{"text_format":"1","workbook":"xlsx","n_sheets":2,"sheets":["Data Entry Page","Details"],"not_rendered":{"charts":0,"images":1,"macros":1,"external_links":0,"defined_names":2,"comments":1,"pivot_tables":0},"unopened":[],"bounds":{"document_bytes":16777216,"sheet_cells":100000,"rows_first":2000,"rows_last":500,"rows_between":2000,"halvings":0,"cell_chars":16384,"cell_head_chars":4096},"cells_cut":0,"cells_raw":0,"read":"whole","date_system":"1900"}

{"sheet":"Data Entry Page","index":0,"n_rows":2019,"n_cols":56,"rows_kept":1125,"cut":true,"hidden":false,"merged":[[16,38,17,38],[11,3,11,5],[15,0,17,0],[16,10,17,10],[15,2,15,8],[15,10,15,14],[16,7,17,7],[16,4,16,5],[16,2,17,2],[16,6,17,6],[16,11,17,11],[16,8,17,8],[16,12,17,12],[16,14,17,14],[16,13,17,13],[15,20,15,23],[16,16,17,16],[16,25,17,25],[16,26,17,26],[15,25,15,26],[16,17,17,17],[16,18,17,18],[15,16,15,18],[16,20,17,20],[16,21,17,21],[16,22,17,22],[9,5,9,9],[16,32,17,32],[4,2,4,4],[5,2,5,4],[7,2,7,4],[8,2,8,4],[4,5,4,9],[5,5,5,9],[7,5,7,9],[8,5,8,9],[9,2,9,4],[16,28,17,28],[16,29,17,29],[15,28,15,29],[16,31,17,31],[16,23,17,23],[16,36,17,36],[16,34,17,34],[16,33,17,33],[16,35,17,35],[15,31,15,35]],"bounds":{"rows_first":500,"rows_last":125,"rows_between":500,"halvings":2}}
[null,null,"L-EB-O  (01.2015)"]
[]
[null,null,"MEMBER LISTING FORM"]
[]
[null,null,"Policy number (new business:  quotation number)"]
[null,null,"Company name"]
[]
[null,null,"Contact name"]
[null,null,"Telephone no."]
[null,null,"Date"]
[]
[null,null,null,"Template provides space for up to 300 entries.\nIf needed, PRESS BUTTON to add additional rows."]
[]
[null,null,"*)  Indicates compulsory details to be provided"]
[]
["Row no.\n",null,"A. MEMBER DATA",null,null,null,null,null,null,null,"B. EMPLOYMENT DATA",null,null,null,null,null,"C. TRANSACTION",null,null,null,"D. PLAN TYPES (NEEDED FOR ADDED MEMBERS *)",null,null,null,null,"E. BANK ACCOUNT (FOR CLAIMS PAYMENTS) ",null,null,"F. CONTACT DATA (E.G. FOR NOTIFICATION OF PAYMENTS)",null,null,"G. STATISTICAL DATA (FOR EMPLOYER USE ONLY, IF NEEDED)"]
[null,null,"Full name\n(as per ID document) *\n",null,"ID document number *",null,"Date of birth\n","Nationality* (BLANK if Malaysia)\n","Relationship type (employee, spouse, child)*\n",null,"Employee ID / staff number *\n","Date joined the employer *\n","Monthly base salary\n(for life *)\nRM","Sum assured\n(for life *)\nRM","Subsidiary / entity (for employer use)\n",null,"Type of transaction *  (Add / Change / Transfer / Terminate / Death)\n","Effective date\nof transaction *\n","If member died:\nDate of death\n",null,"Medical\n(R&B plan)\n","Out-Patient\n(Plan)\n","Covid-19\n(Plan)\n","Life\n",null,"Bank name*\n","Bank account number*\n",null,"E-mail address\n","Handphone number\n",null,"Cost Centre\n","Department\n","Location\n","Salary Plan\n","Salary Grade\n","GDPR\n",null,"Remark\n"]
[null,null,null,"Gender (M/F)*\n","NRIC number *\n","If NO NRIC: Old IC / passport / birth cert. no. *   (provide birth date in column G)",null,null,null,null,null,null,null,null,null,null,null,null,null,null,null,null,null,null,null,null,null,null,null,null,null,null,null,null,null,null,null,null,null,null,null,null,null,"Changes (Add / Terminate / Changes","Changes Remark","Termination Reason","Remark for Death",null,null,"DOB \"-\" Check","DOB \"Number\" Check","dob error",null,null,"Employer Drop box","Gender Drop Box"]
[null,null,"Free text","SELECT","xxxxxx-xx-xxxx","Free text","DD.MM.YYYY","Free text","PLEASE SELECT",null,"Free text","DD.MM.YYYY","Amount RM","Amount RM","Free text",null,"PLEASE SELECT","DD.MM.YYYY","DD.MM.YYYY",null,"Free text","Free text","Free text","Free text",null,"Free text","Free text",null,"Free text","01x1234567",null,"Free text","Free text","Free text","Free text","Free text","Free text",null,"Free text",null,null,null,null,null,null,null,null,null,null,{"$f":"IF(ISERROR(AND(SEARCH(\"-\",E19,7)=7,SEARCH(\"-\",E19,9)=10)),\"DOB Error\",\"ok\")","v":"ok"},{"$f":"IF(ISERROR(LEFT(E19,6)+MID(E19,8,2)+RIGHT(E19,4)),\"DOB Error\",\"ok\")","v":"DOB Error"},{"$f":"IF(E19=\"\",\"\",IF(OR(AX19=\"DOB Error\", AY19=\"DOB Error\"),1,0))","v":1},"To key in Old IC/Passport/Birth Cert No"]
[1,null,null,null,null,null,null,null,null,null,null,null,null,null,null,null,null,{"$f":"IF(OR(Q20=\"CHANGE\",Q20=\"ADD\",Q20=\"TERMINATE\"),VLOOKUP(Q20,$AR:$AS,2,FALSE),\"\")","v":""},{"$f":"IF(OR(Q20=\"TERMINATE (DEATH)\"),VLOOKUP(Q20,$AR:$AU,4,FALSE),\"\")","v":""},null,null,null,null,null,null,null,null,null,null,null,null,null,null,null,null,null,null,null,null,null,null,null,null,"ADD","Key In Date","Death","",null,null,"DOB Error","DOB Error","",null,null,"Employee","M"]
[2,null,null,null,null,{"$f":"IF(AZ21=1,\"To key in Old IC / Passport / Birth Cert No.\",\"\")","v":""},{"$f":"IFERROR(IF(OR(AZ21=1,F21<>\"\"),\"To key in DOB\",#REF!),\"\")","v":""},null,null,null,null,null,null,null,null,null,null,"","",null,null,null,null,null,null,null,null,null,null,null,null,null,null,null,null,null,null,null,null,null,null,null,null,"CHANGE","Key In Date",null,null,null,null,"DOB Error","DOB Error","",null,null,"Spouse","F"]
[3,null,null,null,null,"",{"$f":"IFERROR(IF(OR(AZ22=1,F22<>\"\"),\"To key in DOB\",#REF!),\"\")","v":""},null,null,null,null,null,null,null,null,null,null,"","",null,null,null,null,null,null,null,null,null,null,null,null,null,null,null,null,null,null,null,null,null,null,null,null,"TERMINATE","Key In Date",null,null,null,null,"DOB Error","DOB Error","",null,null,"Child"]
[4,null,null,null,null,"",{"$f":"IFERROR(IF(OR(AZ23=1,F23<>\"\"),\"To key in DOB\",#REF!),\"\")","v":""},null,null,null,null,null,null,null,null,null,null,"","",null,null,null,null,null,null,null,null,null,null,null,null,null,null,null,null,null,null,null,null,null,null,null,null,"TERMINATE (DEATH)","",null,"Key In Date",null,null,"DOB Error","DOB Error",""]
[5,null,null,null,null,"",{"$f":"IFERROR(IF(OR(AZ24=1,F24<>\"\"),\"To key in DOB\",#REF!),\"\")","v":""},null,null,null,null,null,null,null,null,null,null,"","",null,null,null,null,null,null,null,null,null,null,null,null,null,null,null,null,null,null,null,null,null,null,null,null,"TRANSFER",null,null,"",null,null,"DOB Error","DOB Error",""]
[6,null,null,null,null,"",{"$f":"IFERROR(IF(OR(AZ25=1,F25<>\"\"),\"To key in DOB\",#REF!),\"\")","v":""},null,null,null,null,null,null,null,null,null,null,"","",null,null,null,null,null,null,null,null,null,null,null,null,null,null,null,null,null,null,null,null,null,null,null,null,null,null,null,null,null,null,"DOB Error","DOB Error",""]
[7,null,null,null,null,"",{"$f":"IFERROR(IF(OR(AZ26=1,F26<>\"\"),\"To key in DOB\",#REF!),\"\")","v":""},null,null,null,null,null,null,null,null,null,null,"","",null,null,null,null,null,null,null,null,null,null,null,null,null,null,null,null,null,null,null,null,null,null,null,null,null,null,null,null,null,null,"DOB Error","DOB Error",""]
[8,null,null,null,null,"",{"$f":"IFERROR(IF(OR(AZ27=1,F27<>\"\"),\"To key in DOB\",#REF!),\"\")","v":""},null,null,null,null,null,null,null,null,null,null,"","",null,null,null,null,null,null,null,null,null,null,null,null,null,null,null,null,null,null,null,null,null,null,null,null,null,null,null,null,null,null,"DOB Error","DOB Error",""]
[9,null,null,null,null,"",{"$f":"IFERROR(IF(OR(AZ28=1,F28<>\"\"),\"To key in DOB\",#REF!),\"\")","v":""},null,null,null,null,null,null,null,null,null,null,"","",null,null,null,null,null,null,null,null,null,null,null,null,null,null,null,null,null,null,null,null,null,null,null,null,null,null,null,null,null,null,"DOB Error","DOB Error",""]
[10,null,null,null,null,"",{"$f":"IFERROR(IF(OR(AZ29=1,F29<>\"\"),\"To key in DOB\",#REF!),\"\")","v":""},null,null,null,null,null,null,null,null,null,null,"","",null,null,null,null,null,null,null,null,null,null,null,null,null,null,null,null,null,null,null,null,null,null,null,null,null,null,null,null,null,null,"DOB Error","DOB Error",""]
[11,null,null,null,null,"",{"$f":"IFERROR(IF(OR(AZ30=1,F30<>\"\"),\"To key in DOB\",#REF!),\"\")","v":""},null,null,null,null,null,null,null,null,null,null,"","",null,null,null,null,null,null,null,null,null,null,null,null,null,null,null,null,null,null,null,null,null,null,null,null,null,null,null,null,null,null,"DOB Error","DOB Error",""]
[12,null,null,null,null,"",{"$f":"IFERROR(IF(OR(AZ31=1,F31<>\"\"),\"To key in DOB\",#REF!),\"\")","v":""},null,null,null,null,null,null,null,null,null,null,"","",null,null,null,null,null,null,null,null,null,null,null,null,null,null,null,null,null,null,null,null,null,null,null,null,null,null,null,null,null,null,"DOB Error","DOB Error",""]
[13,null,null,null,null,"",{"$f":"IFERROR(IF(OR(AZ32=1,F32<>\"\"),\"To key in DOB\",#REF!),\"\")","v":""},null,null,null,null,null,null,null,null,null,null,"","",null,null,null,null,null,null,null,null,null,null,null,null,null,null,null,null,null,null,null,null,null,null,null,null,null,null,null,null,null,null,"DOB Error","DOB Error",""]
[14,null,null,null,null,"",{"$f":"IFERROR(IF(OR(AZ33=1,F33<>\"\"),\"To key in DOB\",#REF!),\"\")","v":""},null,null,null,null,null,null,null,null,null,null,"","",null,null,null,null,null,null,null,null,null,null,null,null,null,null,null,null,null,null,null,null,null,null,null,null,null,null,null,null,null,null,"DOB Error","DOB Error",""]
[15,null,null,null,null,"",{"$f":"IFERROR(IF(OR(AZ34=1,F34<>\"\"),\"To key in DOB\",#REF!),\"\")","v":""},null,null,null,null,null,null,null,null,null,null,"","",null,null,null,null,null,null,null,null,null,null,null,null,null,null,null,null,null,null,null,null,null,null,null,null,null,null,null,null,null,null,"DOB Error","DOB Error",""]
[16,null,null,null,null,"",{"$f":"IFERROR(IF(OR(AZ35=1,F35<>\"\"),\"To key in DOB\",#REF!),\"\")","v":""},null,null,null,null,null,null,null,null,null,null,"","",null,null,null,null,null,null,null,null,null,null,null,null,null,null,null,null,null,null,null,null,null,null,null,null,null,null,null,null,null,null,"DOB Error","DOB Error",""]
[17,null,null,null,null,"",{"$f":"IFERROR(IF(OR(AZ36=1,F36<>\"\"),\"To key in DOB\",#REF!),\"\")","v":""},null,null,null,null,null,null,null,null,null,null,"","",null,null,null,null,null,null,null,null,null,null,null,null,null,null,null,null,null,null,null,null,null,null,null,null,null,null,null,null,null,null,"DOB Error","DOB Error",""]
[18,null,null,null,null,"",{"$f":"IFERROR(IF(OR(AZ37=1,F37<>\"\"),\"To key in DOB\",#REF!),\"\")","v":""},null,null,null,null,null,null,null,null,null,null,"","",null,null,null,null,null,null,null,null,null,null,null,null,null,null,null,null,null,null,null,null,null,null,null,null,null,null,null,null,null,null,"DOB Error","DOB Error",""]
[19,null,null,null,null,"",{"$f":"IFERROR(IF(OR(AZ38=1,F38<>\"\"),\"To key in DOB\",#REF!),\"\")","v":""},null,null,null,null,null,null,null,null,null,null,"","",null,null,null,null,null,null,null,null,null,null,null,null,null,null,null,null,null,null,null,null,null,null,null,null,null,null,null,null,null,null,"DOB Error","DOB Error",""]
[20,null,null,null,null,"",{"$f":"IFERROR(IF(OR(AZ39=1,F39<>\"\"),\"To key in DOB\",#REF!),\"\")","v":""},null,null,null,null,null,null,null,null,null,null,"","",null,null,null,null,null,null,null,null,null,null,null,null,null,null,null,null,null,null,null,null,null,null,null,null,null,null,null,null,null,null,"DOB Error","DOB Error",""]
[21,null,null,null,null,"",{"$f":"IFERROR(IF(OR(AZ40=1,F40<>\"\"),\"To key in DOB\",#REF!),\"\")","v":""},null,null,null,null,null,null,null,null,null,null,"","",null,null,null,null,null,null,null,null,null,null,null,null,null,null,null,null,null,null,null,null,null,null,null,null,null,null,null,null,null,null,"DOB Error","DOB Error",""]
[22,null,null,null,null,"",{"$f":"IFERROR(IF(OR(AZ41=1,F41<>\"\"),\"To key in DOB\",#REF!),\"\")","v":""},null,null,null,null,null,null,null,null,null,null,"","",null,null,null,null,null,null,null,null,null,null,null,null,null,null,null,null,null,null,null,null,null,null,null,null,null,null,null,null,null,null,"DOB Error","DOB Error",""]
[23,null,null,null,null,"",{"$f":"IFERROR(IF(OR(AZ42=1,F42<>\"\"),\"To key in DOB\",#REF!),\"\")","v":""},null,null,null,null,null,null,null,null,null,null,"","",null,null,null,null,null,null,null,null,null,null,null,null,null,null,null,null,null,null,null,null,null,null,null,null,null,null,null,null,null,null,"DOB Error","DOB Error",""]
[24,null,null,null,null,"",{"$f":"IFERROR(IF(OR(AZ43=1,F43<>\"\"),\"To key in DOB\",#REF!),\"\")","v":""},null,null,null,null,null,null,null,null,null,null,"","",null,null,null,null,null,null,null,null,null,null,null,null,null,null,null,null,null,null,null,null,null,null,null,null,null,null,null,null,null,null,"DOB Error","DOB Error",""]
[25,null,null,null,null,"",{"$f":"IFERROR(IF(OR(AZ44=1,F44<>\"\"),\"To key in DOB\",#REF!),\"\")","v":""},null,null,null,null,null,null,null,null,null,null,"","",null,null,null,null,null,null,null,null,null,null,null,null,null,null,null,null,null,null,null,null,null,null,null,null,null,null,null,null,null,null,"DOB Error","DOB Error",""]
[26,null,null,null,null,"",{"$f":"IFERROR(IF(OR(AZ45=1,F45<>\"\"),\"To key in DOB\",#REF!),\"\")","v":""},null,null,null,null,null,null,null,null,null,null,"","",null,null,null,null,null,null,null,null,null,null,null,null,null,null,null,null,null,null,null,null,null,null,null,null,null,null,null,null,null,null,"DOB Error","DOB Error",""]
[27,null,null,null,null,"",{"$f":"IFERROR(IF(OR(AZ46=1,F46<>\"\"),\"To key in DOB\",#REF!),\"\")","v":""},null,null,null,null,null,null,null,null,null,null,"","",null,null,null,null,null,null,null,null,null,null,null,null,null,null,null,null,null,null,null,null,null,null,null,null,null,null,null,null,null,null,"DOB Error","DOB Error",""]
[28,null,null,null,null,"",{"$f":"IFERROR(IF(OR(AZ47=1,F47<>\"\"),\"To key in DOB\",#REF!),\"\")","v":""},null,null,null,null,null,null,null,null,null,null,"","",null,null,null,null,null,null,null,null,null,null,null,null,null,null,null,null,null,null,null,null,null,null,null,null,null,null,null,null,null,null,"DOB Error","DOB Error",""]
[29,null,null,null,null,"",{"$f":"IFERROR(IF(OR(AZ48=1,F48<>\"\"),\"To key in DOB\",#REF!),\"\")","v":""},null,null,null,null,null,null,null,null,null,null,"","",null,null,null,null,null,null,null,null,null,null,null,null,null,null,null,null,null,null,null,null,null,null,null,null,null,null,null,null,null,null,"DOB Error","DOB Error",""]
[30,null,null,null,null,"",{"$f":"IFERROR(IF(OR(AZ49=1,F49<>\"\"),\"To key in DOB\",#REF!),\"\")","v":""},null,null,null,null,null,null,null,null,null,null,"","",null,null,null,null,null,null,null,null,null,null,null,null,null,null,null,null,null,null,null,null,null,null,null,null,null,null,null,null,null,null,"DOB Error","DOB Error",""]
[31,null,null,null,null,"",{"$f":"IFERROR(IF(OR(AZ50=1,F50<>\"\"),\"To key in DOB\",#REF!),\"\")","v":""},null,null,null,null,null,null,null,null,null,null,"","",null,null,null,null,null,null,null,null,null,null,null,null,null,null,null,null,null,null,null,null,null,null,null,null,null,null,null,null,null,null,"DOB Error","DOB Error",""]
[32,null,null,null,null,"",{"$f":"IFERROR(IF(OR(AZ51=1,F51<>\"\"),\"To key in DOB\",#REF!),\"\")","v":""},null,null,null,null,null,null,null,null,null,null,"","",null,null,null,null,null,null,null,null,null,null,null,null,null,null,null,null,null,null,null,null,null,null,null,null,null,null,null,null,null,null,"DOB Error","DOB Error",""]
[33,null,null,null,null,"",{"$f":"IFERROR(IF(OR(AZ52=1,F52<>\"\"),\"To key in DOB\",#REF!),\"\")","v":""},null,null,null,null,null,null,null,null,null,null,"","",null,null,null,null,null,null,null,null,null,null,null,null,null,null,null,null,null,null,null,null,null,null,null,null,null,null,null,null,null,null,"DOB Error","DOB Error",""]
[34,null,null,null,null,"",{"$f":"IFERROR(IF(OR(AZ53=1,F53<>\"\"),\"To key in DOB\",#REF!),\"\")","v":""},null,null,null,null,null,null,null,null,null,null,"","",null,null,null,null,null,null,null,null,null,null,null,null,null,null,null,null,null,null,null,null,null,null,null,null,null,null,null,null,null,null,"DOB Error","DOB Error",""]
[35,null,null,null,null,"",{"$f":"IFERROR(IF(OR(AZ54=1,F54<>\"\"),\"To key in DOB\",#REF!),\"\")","v":""},null,null,null,null,null,null,null,null,null,null,"","",null,null,null,null,null,null,null,null,null,null,null,null,null,null,null,null,null,null,null,null,null,null,null,null,null,null,null,null,null,null,"DOB Error","DOB Error",""]
[36,null,null,null,null,"",{"$f":"IFERROR(IF(OR(AZ55=1,F55<>\"\"),\"To key in DOB\",#REF!),\"\")","v":""},null,null,null,null,null,null,null,null,null,null,"","",null,null,null,null,null,null,null,null,null,null,null,null,null,null,null,null,null,null,null,null,null,null,null,null,null,null,null,null,null,null,"DOB Error","DOB Error",""]
[37,null,null,null,null,"",{"$f":"IFERROR(IF(OR(AZ56=1,F56<>\"\"),\"To key in DOB\",#REF!),\"\")","v":""},null,null,null,null,null,null,null,null,null,null,"","",null,null,null,null,null,null,null,null,null,null,null,null,null,null,null,null,null,null,null,null,null,null,null,null,null,null,null,null,null,null,"DOB Error","DOB Error",""]
[38,null,null,null,null,"",{"$f":"IFERROR(IF(OR(AZ57=1,F57<>\"\"),\"To key in DOB\",#REF!),\"\")","v":""},null,null,null,null,null,null,null,null,null,null,"","",null,null,null,null,null,null,null,null,null,null,null,null,null,null,null,null,null,null,null,null,null,null,null,null,null,null,null,null,null,null,"DOB Error","DOB Error",""]
[39,null,null,null,null,"",{"$f":"IFERROR(IF(OR(AZ58=1,F58<>\"\"),\"To key in DOB\",#REF!),\"\")","v":""},null,null,null,null,null,null,null,null,null,null,"","",null,null,null,null,null,null,null,null,null,null,null,null,null,null,null,null,null,null,null,null,null,null,null,null,null,null,null,null,null,null,"DOB Error","DOB Error",""]
[40,null,null,null,null,"",{"$f":"IFERROR(IF(OR(AZ59=1,F59<>\"\"),\"To key in DOB\",#REF!),\"\")","v":""},null,null,null,null,null,null,null,null,null,null,"","",null,null,null,null,null,null,null,null,null,null,null,null,null,null,null,null,null,null,null,null,null,null,null,null,null,null,null,null,null,null,"DOB Error","DOB Error",""]
[41,null,null,null,null,"",{"$f":"IFERROR(IF(OR(AZ60=1,F60<>\"\"),\"To key in DOB\",#REF!),\"\")","v":""},null,null,null,null,null,null,null,null,null,null,"","",null,null,null,null,null,null,null,null,null,null,null,null,null,null,null,null,null,null,null,null,null,null,null,null,null,null,null,null,null,null,"DOB Error","DOB Error",""]
[42,null,null,null,null,"",{"$f":"IFERROR(IF(OR(AZ61=1,F61<>\"\"),\"To key in DOB\",#REF!),\"\")","v":""},null,null,null,null,null,null,null,null,null,null,"","",null,null,null,null,null,null,null,null,null,null,null,null,null,null,null,null,null,null,null,null,null,null,null,null,null,null,null,null,null,null,"DOB Error","DOB Error",""]
[43,null,null,null,null,"",{"$f":"IFERROR(IF(OR(AZ62=1,F62<>\"\"),\"To key in DOB\",#REF!),\"\")","v":""},null,null,null,null,null,null,null,null,null,null,"","",null,null,null,null,null,null,null,null,null,null,null,null,null,null,null,null,null,null,null,null,null,null,null,null,null,null,null,null,null,null,"DOB Error","DOB Error",""]
[44,null,null,null,null,"",{"$f":"IFERROR(IF(OR(AZ63=1,F63<>\"\"),\"To key in DOB\",#REF!),\"\")","v":""},null,null,null,null,null,null,null,null,null,null,"","",null,null,null,null,null,null,null,null,null,null,null,null,null,null,null,null,null,null,null,null,null,null,null,null,null,null,null,null,null,null,"DOB Error","DOB Error",""]
[45,null,null,null,null,"",{"$f":"IFERROR(IF(OR(AZ64=1,F64<>\"\"),\"To key in DOB\",#REF!),\"\")","v":""},null,null,null,null,null,null,null,null,null,null,"","",null,null,null,null,null,null,null,null,null,null,null,null,null,null,null,null,null,null,null,null,null,null,null,null,null,null,null,null,null,null,"DOB Error","DOB Error",""]
[46,null,null,null,null,"",{"$f":"IFERROR(IF(OR(AZ65=1,F65<>\"\"),\"To key in DOB\",#REF!),\"\")","v":""},null,null,null,null,null,null,null,null,null,null,"","",null,null,null,null,null,null,null,null,null,null,null,null,null,null,null,null,null,null,null,null,null,null,null,null,null,null,null,null,null,null,"DOB Error","DOB Error",""]
[47,null,null,null,null,"",{"$f":"IFERROR(IF(OR(AZ66=1,F66<>\"\"),\"To key in DOB\",#REF!),\"\")","v":""},null,null,null,null,null,null,null,null,null,null,"","",null,null,null,null,null,null,null,null,null,null,null,null,null,null,null,null,null,null,null,null,null,null,null,null,null,null,null,null,null,null,"DOB Error","DOB Error",""]
[48,null,null,null,null,"",{"$f":"IFERROR(IF(OR(AZ67=1,F67<>\"\"),\"To key in DOB\",#REF!),\"\")","v":""},null,null,null,null,null,null,null,null,null,null,"","",null,null,null,null,null,null,null,null,null,null,null,null,null,null,null,null,null,null,null,null,null,null,null,null,null,null,null,null,null,null,"DOB Error","DOB Error",""]
[49,null,null,null,null,"",{"$f":"IFERROR(IF(OR(AZ68=1,F68<>\"\"),\"To key in DOB\",#REF!),\"\")","v":""},null,null,null,null,null,null,null,null,null,null,"","",null,null,null,null,null,null,null,null,null,null,null,null,null,null,null,null,null,null,null,null,null,null,null,null,null,null,null,null,null,null,"DOB Error","DOB Error",""]
[50,null,null,null,null,"",{"$f":"IFERROR(IF(OR(AZ69=1,F69<>\"\"),\"To key in DOB\",#REF!),\"\")","v":""},null,null,null,null,null,null,null,null,null,null,"","",null,null,null,null,null,null,null,null,null,null,null,null,null,null,null,null,null,null,null,null,null,null,null,null,null,null,null,null,null,null,"DOB Error","DOB Error",""]
[51,null,null,null,null,"",{"$f":"IFERROR(IF(OR(AZ70=1,F70<>\"\"),\"To key in DOB\",#REF!),\"\")","v":""},null,null,null,null,null,null,null,null,null,null,"","",null,null,null,null,null,null,null,null,null,null,null,null,null,null,null,null,null,null,null,null,null,null,null,null,null,null,null,null,null,null,"DOB Error","DOB Error",""]
[52,null,null,null,null,"",{"$f":"IFERROR(IF(OR(AZ71=1,F71<>\"\"),\"To key in DOB\",#REF!),\"\")","v":""},null,null,null,null,null,null,null,null,null,null,"","",null,null,null,null,null,null,null,null,null,null,null,null,null,null,null,null,null,null,null,null,null,null,null,null,null,null,null,null,null,null,"DOB Error","DOB Error",""]
[53,null,null,null,null,"",{"$f":"IFERROR(IF(OR(AZ72=1,F72<>\"\"),\"To key in DOB\",#REF!),\"\")","v":""},null,null,null,null,null,null,null,null,null,null,"","",null,null,null,null,null,null,null,null,null,null,null,null,null,null,null,null,null,null,null,null,null,null,null,null,null,null,null,null,null,null,"DOB Error","DOB Error",""]
[54,null,null,null,null,"",{"$f":"IFERROR(IF(OR(AZ73=1,F73<>\"\"),\"To key in DOB\",#REF!),\"\")","v":""},null,null,null,null,null,null,null,null,null,null,"","",null,null,null,null,null,null,null,null,null,null,null,null,null,null,null,null,null,null,null,null,null,null,null,null,null,null,null,null,null,null,"DOB Error","DOB Error",""]
[55,null,null,null,null,"",{"$f":"IFERROR(IF(OR(AZ74=1,F74<>\"\"),\"To key in DOB\",#REF!),\"\")","v":""},null,null,null,null,null,null,null,null,null,null,"","",null,null,null,null,null,null,null,null,null,null,null,null,null,null,null,null,null,null,null,null,null,null,null,null,null,null,null,null,null,null,"DOB Error","DOB Error",""]
[56,null,null,null,null,"",{"$f":"IFERROR(IF(OR(AZ75=1,F75<>\"\"),\"To key in DOB\",#REF!),\"\")","v":""},null,null,null,null,null,null,null,null,null,null,"","",null,null,null,null,null,null,null,null,null,null,null,null,null,null,null,null,null,null,null,null,null,null,null,null,null,null,null,null,null,null,"DOB Error","DOB Error",""]
[57,null,null,null,null,"",{"$f":"IFERROR(IF(OR(AZ76=1,F76<>\"\"),\"To key in DOB\",#REF!),\"\")","v":""},null,null,null,null,null,null,null,null,null,null,"","",null,null,null,null,null,null,null,null,null,null,null,null,null,null,null,null,null,null,null,null,null,null,null,null,null,null,null,null,null,null,"DOB Error","DOB Error",""]
[58,null,null,null,null,"",{"$f":"IFERROR(IF(OR(AZ77=1,F77<>\"\"),\"To key in DOB\",#REF!),\"\")","v":""},null,null,null,null,null,null,null,null,null,null,"","",null,null,null,null,null,null,null,null,null,null,null,null,null,null,null,null,null,null,null,null,null,null,null,null,null,null,null,null,null,null,"DOB Error","DOB Error",""]
[59,null,null,null,null,"",{"$f":"IFERROR(IF(OR(AZ78=1,F78<>\"\"),\"To key in DOB\",#REF!),\"\")","v":""},null,null,null,null,null,null,null,null,null,null,"","",null,null,null,null,null,null,null,null,null,null,null,null,null,null,null,null,null,null,null,null,null,null,null,null,null,null,null,null,null,null,"DOB Error","DOB Error",""]
[60,null,null,null,null,"",{"$f":"IFERROR(IF(OR(AZ79=1,F79<>\"\"),\"To key in DOB\",#REF!),\"\")","v":""},null,null,null,null,null,null,null,null,null,null,"","",null,null,null,null,null,null,null,null,null,null,null,null,null,null,null,null,null,null,null,null,null,null,null,null,null,null,null,null,null,null,"DOB Error","DOB Error",""]
[61,null,null,null,null,"",{"$f":"IFERROR(IF(OR(AZ80=1,F80<>\"\"),\"To key in DOB\",#REF!),\"\")","v":""},null,null,null,null,null,null,null,null,null,null,"","",null,null,null,null,null,null,null,null,null,null,null,null,null,null,null,null,null,null,null,null,null,null,null,null,null,null,null,null,null,null,"DOB Error","DOB Error",""]
[62,null,null,null,null,"",{"$f":"IFERROR(IF(OR(AZ81=1,F81<>\"\"),\"To key in DOB\",#REF!),\"\")","v":""},null,null,null,null,null,null,null,null,null,null,"","",null,null,null,null,null,null,null,null,null,null,null,null,null,null,null,null,null,null,null,null,null,null,null,null,null,null,null,null,null,null,"DOB Error","DOB Error",""]
[63,null,null,null,null,"",{"$f":"IFERROR(IF(OR(AZ82=1,F82<>\"\"),\"To key in DOB\",#REF!),\"\")","v":""},null,null,null,null,null,null,null,null,null,null,"","",null,null,null,null,null,null,null,null,null,null,null,null,null,null,null,null,null,null,null,null,null,null,null,null,null,null,null,null,null,null,"DOB Error","DOB Error",""]
[64,null,null,null,null,"",{"$f":"IFERROR(IF(OR(AZ83=1,F83<>\"\"),\"To key in DOB\",#REF!),\"\")","v":""},null,null,null,null,null,null,null,null,null,null,"","",null,null,null,null,null,null,null,null,null,null,null,null,null,null,null,null,null,null,null,null,null,null,null,null,null,null,null,null,null,null,{"$f":"IF(ISERROR(AND(SEARCH(\"-\",E83,7)=7,SEARCH(\"-\",E83,9)=10)),\"DOB Error\",\"ok\")","v":"DOB Error"},{"$f":"IF(ISERROR(LEFT(E83,6)+MID(E83,8,2)+RIGHT(E83,4)),\"DOB Error\",\"ok\")","v":"DOB Error"},{"$f":"IF(E83=\"\",\"\",IF(OR(AX83=\"DOB Error\", AY83=\"DOB Error\"),1,0))","v":""}]
[65,null,null,null,null,"",{"$f":"IFERROR(IF(OR(AZ84=1,F84<>\"\"),\"To key in DOB\",#REF!),\"\")","v":""},null,null,null,null,null,null,null,null,null,null,{"$f":"IF(OR(Q84=\"CHANGE\",Q84=\"ADD\",Q84=\"TERMINATE\"),VLOOKUP(Q84,$AR:$AS,2,FALSE),\"\")","v":""},{"$f":"IF(OR(Q84=\"TERMINATE (DEATH)\"),VLOOKUP(Q84,$AR:$AU,4,FALSE),\"\")","v":""},null,null,null,null,null,null,null,null,null,null,null,null,null,null,null,null,null,null,null,null,null,null,null,null,null,null,null,null,null,null,"DOB Error","DOB Error",""]
[66,null,null,null,null,{"$f":"IF(AZ85=1,\"To key in Old IC / Passport / Birth Cert No.\",\"\")","v":""},{"$f":"IFERROR(IF(OR(AZ85=1,F85<>\"\"),\"To key in DOB\",#REF!),\"\")","v":""},null,null,null,null,null,null,null,null,null,null,"","",null,null,null,null,null,null,null,null,null,null,null,null,null,null,null,null,null,null,null,null,null,null,null,null,null,null,null,null,null,null,"DOB Error","DOB Error",""]
[67,null,null,null,null,"",{"$f":"IFERROR(IF(OR(AZ86=1,F86<>\"\"),\"To key in DOB\",#REF!),\"\")","v":""},null,null,null,null,null,null,null,null,null,null,"","",null,null,null,null,null,null,null,null,null,null,null,null,null,null,null,null,null,null,null,null,null,null,null,null,null,null,null,null,null,null,"DOB Error","DOB Error",""]
[68,null,null,null,null,"",{"$f":"IFERROR(IF(OR(AZ87=1,F87<>\"\"),\"To key in DOB\",#REF!),\"\")","v":""},null,null,null,null,null,null,null,null,null,null,"","",null,null,null,null,null,null,null,null,null,null,null,null,null,null,null,null,null,null,null,null,null,null,null,null,null,null,null,null,null,null,"DOB Error","DOB Error",""]
[69,null,null,null,null,"",{"$f":"IFERROR(IF(OR(AZ88=1,F88<>\"\"),\"To key in DOB\",#REF!),\"\")","v":""},null,null,null,null,null,null,null,null,null,null,"","",null,null,null,null,null,null,null,null,null,null,null,null,null,null,null,null,null,null,null,null,null,null,null,null,null,null,null,null,null,null,"DOB Error","DOB Error",""]
[70,null,null,null,null,"",{"$f":"IFERROR(IF(OR(AZ89=1,F89<>\"\"),\"To key in DOB\",#REF!),\"\")","v":""},null,null,null,null,null,null,null,null,null,null,"","",null,null,null,null,null,null,null,null,null,null,null,null,null,null,null,null,null,null,null,null,null,null,null,null,null,null,null,null,null,null,"DOB Error","DOB Error",""]
[71,null,null,null,null,"",{"$f":"IFERROR(IF(OR(AZ90=1,F90<>\"\"),\"To key in DOB\",#REF!),\"\")","v":""},null,null,null,null,null,null,null,null,null,null,"","",null,null,null,null,null,null,null,null,null,null,null,null,null,null,null,null,null,null,null,null,null,null,null,null,null,null,null,null,null,null,"DOB Error","DOB Error",""]
[72,null,null,null,null,"",{"$f":"IFERROR(IF(OR(AZ91=1,F91<>\"\"),\"To key in DOB\",#REF!),\"\")","v":""},null,null,null,null,null,null,null,null,null,null,"","",null,null,null,null,null,null,null,null,null,null,null,null,null,null,null,null,null,null,null,null,null,null,null,null,null,null,null,null,null,null,"DOB Error","DOB Error",""]
[73,null,null,null,null,"",{"$f":"IFERROR(IF(OR(AZ92=1,F92<>\"\"),\"To key in DOB\",#REF!),\"\")","v":""},null,null,null,null,null,null,null,null,null,null,"","",null,null,null,null,null,null,null,null,null,null,null,null,null,null,null,null,null,null,null,null,null,null,null,null,null,null,null,null,null,null,"DOB Error","DOB Error",""]
[74,null,null,null,null,"",{"$f":"IFERROR(IF(OR(AZ93=1,F93<>\"\"),\"To key in DOB\",#REF!),\"\")","v":""},null,null,null,null,null,null,null,null,null,null,"","",null,null,null,null,null,null,null,null,null,null,null,null,null,null,null,null,null,null,null,null,null,null,null,null,null,null,null,null,null,null,"DOB Error","DOB Error",""]
[75,null,null,null,null,"",{"$f":"IFERROR(IF(OR(AZ94=1,F94<>\"\"),\"To key in DOB\",#REF!),\"\")","v":""},null,null,null,null,null,null,null,null,null,null,"","",null,null,null,null,null,null,null,null,null,null,null,null,null,null,null,null,null,null,null,null,null,null,null,null,null,null,null,null,null,null,"DOB Error","DOB Error",""]
[76,null,null,null,null,"",{"$f":"IFERROR(IF(OR(AZ95=1,F95<>\"\"),\"To key in DOB\",#REF!),\"\")","v":""},null,null,null,null,null,null,null,null,null,null,"","",null,null,null,null,null,null,null,null,null,null,null,null,null,null,null,null,null,null,null,null,null,null,null,null,null,null,null,null,null,null,"DOB Error","DOB Error",""]
[77,null,null,null,null,"",{"$f":"IFERROR(IF(OR(AZ96=1,F96<>\"\"),\"To key in DOB\",#REF!),\"\")","v":""},null,null,null,null,null,null,null,null,null,null,"","",null,null,null,null,null,null,null,null,null,null,null,null,null,null,null,null,null,null,null,null,null,null,null,null,null,null,null,null,null,null,"DOB Error","DOB Error",""]
[78,null,null,null,null,"",{"$f":"IFERROR(IF(OR(AZ97=1,F97<>\"\"),\"To key in DOB\",#REF!),\"\")","v":""},null,null,null,null,null,null,null,null,null,null,"","",null,null,null,null,null,null,null,null,null,null,null,null,null,null,null,null,null,null,null,null,null,null,null,null,null,null,null,null,null,null,"DOB Error","DOB Error",""]
[79,null,null,null,null,"",{"$f":"IFERROR(IF(OR(AZ98=1,F98<>\"\"),\"To key in DOB\",#REF!),\"\")","v":""},null,null,null,null,null,null,null,null,null,null,"","",null,null,null,null,null,null,null,null,null,null,null,null,null,null,null,null,null,null,null,null,null,null,null,null,null,null,null,null,null,null,"DOB Error","DOB Error",""]
[80,null,null,null,null,"",{"$f":"IFERROR(IF(OR(AZ99=1,F99<>\"\"),\"To key in DOB\",#REF!),\"\")","v":""},null,null,null,null,null,null,null,null,null,null,"","",null,null,null,null,null,null,null,null,null,null,null,null,null,null,null,null,null,null,null,null,null,null,null,null,null,null,null,null,null,null,"DOB Error","DOB Error",""]
[81,null,null,null,null,"",{"$f":"IFERROR(IF(OR(AZ100=1,F100<>\"\"),\"To key in DOB\",#REF!),\"\")","v":""},null,null,null,null,null,null,null,null,null,null,"","",null,null,null,null,null,null,null,null,null,null,null,null,null,null,null,null,null,null,null,null,null,null,null,null,null,null,null,null,null,null,"DOB Error","DOB Error",""]
[82,null,null,null,null,"",{"$f":"IFERROR(IF(OR(AZ101=1,F101<>\"\"),\"To key in DOB\",#REF!),\"\")","v":""},null,null,null,null,null,null,null,null,null,null,"","",null,null,null,null,null,null,null,null,null,null,null,null,null,null,null,null,null,null,null,null,null,null,null,null,null,null,null,null,null,null,"DOB Error","DOB Error",""]
[83,null,null,null,null,"",{"$f":"IFERROR(IF(OR(AZ102=1,F102<>\"\"),\"To key in DOB\",#REF!),\"\")","v":""},null,null,null,null,null,null,null,null,null,null,"","",null,null,null,null,null,null,null,null,null,null,null,null,null,null,null,null,null,null,null,null,null,null,null,null,null,null,null,null,null,null,"DOB Error","DOB Error",""]
[84,null,null,null,null,"",{"$f":"IFERROR(IF(OR(AZ103=1,F103<>\"\"),\"To key in DOB\",#REF!),\"\")","v":""},null,null,null,null,null,null,null,null,null,null,"","",null,null,null,null,null,null,null,null,null,null,null,null,null,null,null,null,null,null,null,null,null,null,null,null,null,null,null,null,null,null,"DOB Error","DOB Error",""]
[85,null,null,null,null,"",{"$f":"IFERROR(IF(OR(AZ104=1,F104<>\"\"),\"To key in DOB\",#REF!),\"\")","v":""},null,null,null,null,null,null,null,null,null,null,"","",null,null,null,null,null,null,null,null,null,null,null,null,null,null,null,null,null,null,null,null,null,null,null,null,null,null,null,null,null,null,"DOB Error","DOB Error",""]
[86,null,null,null,null,"",{"$f":"IFERROR(IF(OR(AZ105=1,F105<>\"\"),\"To key in DOB\",#REF!),\"\")","v":""},null,null,null,null,null,null,null,null,null,null,"","",null,null,null,null,null,null,null,null,null,null,null,null,null,null,null,null,null,null,null,null,null,null,null,null,null,null,null,null,null,null,"DOB Error","DOB Error",""]
[87,null,null,null,null,"",{"$f":"IFERROR(IF(OR(AZ106=1,F106<>\"\"),\"To key in DOB\",#REF!),\"\")","v":""},null,null,null,null,null,null,null,null,null,null,"","",null,null,null,null,null,null,null,null,null,null,null,null,null,null,null,null,null,null,null,null,null,null,null,null,null,null,null,null,null,null,"DOB Error","DOB Error",""]
[88,null,null,null,null,"",{"$f":"IFERROR(IF(OR(AZ107=1,F107<>\"\"),\"To key in DOB\",#REF!),\"\")","v":""},null,null,null,null,null,null,null,null,null,null,"","",null,null,null,null,null,null,null,null,null,null,null,null,null,null,null,null,null,null,null,null,null,null,null,null,null,null,null,null,null,null,"DOB Error","DOB Error",""]
[89,null,null,null,null,"",{"$f":"IFERROR(IF(OR(AZ108=1,F108<>\"\"),\"To key in DOB\",#REF!),\"\")","v":""},null,null,null,null,null,null,null,null,null,null,"","",null,null,null,null,null,null,null,null,null,null,null,null,null,null,null,null,null,null,null,null,null,null,null,null,null,null,null,null,null,null,"DOB Error","DOB Error",""]
[90,null,null,null,null,"",{"$f":"IFERROR(IF(OR(AZ109=1,F109<>\"\"),\"To key in DOB\",#REF!),\"\")","v":""},null,null,null,null,null,null,null,null,null,null,"","",null,null,null,null,null,null,null,null,null,null,null,null,null,null,null,null,null,null,null,null,null,null,null,null,null,null,null,null,null,null,"DOB Error","DOB Error",""]
[91,null,null,null,null,"",{"$f":"IFERROR(IF(OR(AZ110=1,F110<>\"\"),\"To key in DOB\",#REF!),\"\")","v":""},null,null,null,null,null,null,null,null,null,null,"","",null,null,null,null,null,null,null,null,null,null,null,null,null,null,null,null,null,null,null,null,null,null,null,null,null,null,null,null,null,null,"DOB Error","DOB Error",""]
[92,null,null,null,null,"",{"$f":"IFERROR(IF(OR(AZ111=1,F111<>\"\"),\"To key in DOB\",#REF!),\"\")","v":""},null,null,null,null,null,null,null,null,null,null,"","",null,null,null,null,null,null,null,null,null,null,null,null,null,null,null,null,null,null,null,null,null,null,null,null,null,null,null,null,null,null,"DOB Error","DOB Error",""]
[93,null,null,null,null,"",{"$f":"IFERROR(IF(OR(AZ112=1,F112<>\"\"),\"To key in DOB\",#REF!),\"\")","v":""},null,null,null,null,null,null,null,null,null,null,"","",null,null,null,null,null,null,null,null,null,null,null,null,null,null,null,null,null,null,null,null,null,null,null,null,null,null,null,null,null,null,"DOB Error","DOB Error",""]
[94,null,null,null,null,"",{"$f":"IFERROR(IF(OR(AZ113=1,F113<>\"\"),\"To key in DOB\",#REF!),\"\")","v":""},null,null,null,null,null,null,null,null,null,null,"","",null,null,null,null,null,null,null,null,null,null,null,null,null,null,null,null,null,null,null,null,null,null,null,null,null,null,null,null,null,null,"DOB Error","DOB Error",""]
[95,null,null,null,null,"",{"$f":"IFERROR(IF(OR(AZ114=1,F114<>\"\"),\"To key in DOB\",#REF!),\"\")","v":""},null,null,null,null,null,null,null,null,null,null,"","",null,null,null,null,null,null,null,null,null,null,null,null,null,null,null,null,null,null,null,null,null,null,null,null,null,null,null,null,null,null,"DOB Error","DOB Error",""]
[96,null,null,null,null,"",{"$f":"IFERROR(IF(OR(AZ115=1,F115<>\"\"),\"To key in DOB\",#REF!),\"\")","v":""},null,null,null,null,null,null,null,null,null,null,"","",null,null,null,null,null,null,null,null,null,null,null,null,null,null,null,null,null,null,null,null,null,null,null,null,null,null,null,null,null,null,"DOB Error","DOB Error",""]
[97,null,null,null,null,"",{"$f":"IFERROR(IF(OR(AZ116=1,F116<>\"\"),\"To key in DOB\",#REF!),\"\")","v":""},null,null,null,null,null,null,null,null,null,null,"","",null,null,null,null,null,null,null,null,null,null,null,null,null,null,null,null,null,null,null,null,null,null,null,null,null,null,null,null,null,null,"DOB Error","DOB Error",""]
[98,null,null,null,null,"",{"$f":"IFERROR(IF(OR(AZ117=1,F117<>\"\"),\"To key in DOB\",#REF!),\"\")","v":""},null,null,null,null,null,null,null,null,null,null,"","",null,null,null,null,null,null,null,null,null,null,null,null,null,null,null,null,null,null,null,null,null,null,null,null,null,null,null,null,null,null,"DOB Error","DOB Error",""]
[99,null,null,null,null,"",{"$f":"IFERROR(IF(OR(AZ118=1,F118<>\"\"),\"To key in DOB\",#REF!),\"\")","v":""},null,null,null,null,null,null,null,null,null,null,"","",null,null,null,null,null,null,null,null,null,null,null,null,null,null,null,null,null,null,null,null,null,null,null,null,null,null,null,null,null,null,"DOB Error","DOB Error",""]
[100,null,null,null,null,"",{"$f":"IFERROR(IF(OR(AZ119=1,F119<>\"\"),\"To key in DOB\",#REF!),\"\")","v":""},null,null,null,null,null,null,null,null,null,null,"","",null,null,null,null,null,null,null,null,null,null,null,null,null,null,null,null,null,null,null,null,null,null,null,null,null,null,null,null,null,null,"DOB Error","DOB Error",""]
[101,null,null,null,null,"",{"$f":"IFERROR(IF(OR(AZ120=1,F120<>\"\"),\"To key in DOB\",#REF!),\"\")","v":""},null,null,null,null,null,null,null,null,null,null,"","",null,null,null,null,null,null,null,null,null,null,null,null,null,null,null,null,null,null,null,null,null,null,null,null,null,null,null,null,null,null,"DOB Error","DOB Error",""]
[102,null,null,null,null,"",{"$f":"IFERROR(IF(OR(AZ121=1,F121<>\"\"),\"To key in DOB\",#REF!),\"\")","v":""},null,null,null,null,null,null,null,null,null,null,"","",null,null,null,null,null,null,null,null,null,null,null,null,null,null,null,null,null,null,null,null,null,null,null,null,null,null,null,null,null,null,"DOB Error","DOB Error",""]
[103,null,null,null,null,"",{"$f":"IFERROR(IF(OR(AZ122=1,F122<>\"\"),\"To key in DOB\",#REF!),\"\")","v":""},null,null,null,null,null,null,null,null,null,null,"","",null,null,null,null,null,null,null,null,null,null,null,null,null,null,null,null,null,null,null,null,null,null,null,null,null,null,null,null,null,null,"DOB Error","DOB Error",""]
[104,null,null,null,null,"",{"$f":"IFERROR(IF(OR(AZ123=1,F123<>\"\"),\"To key in DOB\",#REF!),\"\")","v":""},null,null,null,null,null,null,null,null,null,null,"","",null,null,null,null,null,null,null,null,null,null,null,null,null,null,null,null,null,null,null,null,null,null,null,null,null,null,null,null,null,null,"DOB Error","DOB Error",""]
[105,null,null,null,null,"",{"$f":"IFERROR(IF(OR(AZ124=1,F124<>\"\"),\"To key in DOB\",#REF!),\"\")","v":""},null,null,null,null,null,null,null,null,null,null,"","",null,null,null,null,null,null,null,null,null,null,null,null,null,null,null,null,null,null,null,null,null,null,null,null,null,null,null,null,null,null,"DOB Error","DOB Error",""]
[106,null,null,null,null,"",{"$f":"IFERROR(IF(OR(AZ125=1,F125<>\"\"),\"To key in DOB\",#REF!),\"\")","v":""},null,null,null,null,null,null,null,null,null,null,"","",null,null,null,null,null,null,null,null,null,null,null,null,null,null,null,null,null,null,null,null,null,null,null,null,null,null,null,null,null,null,"DOB Error","DOB Error",""]
[107,null,null,null,null,"",{"$f":"IFERROR(IF(OR(AZ126=1,F126<>\"\"),\"To key in DOB\",#REF!),\"\")","v":""},null,null,null,null,null,null,null,null,null,null,"","",null,null,null,null,null,null,null,null,null,null,null,null,null,null,null,null,null,null,null,null,null,null,null,null,null,null,null,null,null,null,"DOB Error","DOB Error",""]
[108,null,null,null,null,"",{"$f":"IFERROR(IF(OR(AZ127=1,F127<>\"\"),\"To key in DOB\",#REF!),\"\")","v":""},null,null,null,null,null,null,null,null,null,null,"","",null,null,null,null,null,null,null,null,null,null,null,null,null,null,null,null,null,null,null,null,null,null,null,null,null,null,null,null,null,null,"DOB Error","DOB Error",""]
[109,null,null,null,null,"",{"$f":"IFERROR(IF(OR(AZ128=1,F128<>\"\"),\"To key in DOB\",#REF!),\"\")","v":""},null,null,null,null,null,null,null,null,null,null,"","",null,null,null,null,null,null,null,null,null,null,null,null,null,null,null,null,null,null,null,null,null,null,null,null,null,null,null,null,null,null,"DOB Error","DOB Error",""]
[110,null,null,null,null,"",{"$f":"IFERROR(IF(OR(AZ129=1,F129<>\"\"),\"To key in DOB\",#REF!),\"\")","v":""},null,null,null,null,null,null,null,null,null,null,"","",null,null,null,null,null,null,null,null,null,null,null,null,null,null,null,null,null,null,null,null,null,null,null,null,null,null,null,null,null,null,"DOB Error","DOB Error",""]
[111,null,null,null,null,"",{"$f":"IFERROR(IF(OR(AZ130=1,F130<>\"\"),\"To key in DOB\",#REF!),\"\")","v":""},null,null,null,null,null,null,null,null,null,null,"","",null,null,null,null,null,null,null,null,null,null,null,null,null,null,null,null,null,null,null,null,null,null,null,null,null,null,null,null,null,null,"DOB Error","DOB Error",""]
[112,null,null,null,null,"",{"$f":"IFERROR(IF(OR(AZ131=1,F131<>\"\"),\"To key in DOB\",#REF!),\"\")","v":""},null,null,null,null,null,null,null,null,null,null,"","",null,null,null,null,null,null,null,null,null,null,null,null,null,null,null,null,null,null,null,null,null,null,null,null,null,null,null,null,null,null,"DOB Error","DOB Error",""]
[113,null,null,null,null,"",{"$f":"IFERROR(IF(OR(AZ132=1,F132<>\"\"),\"To key in DOB\",#REF!),\"\")","v":""},null,null,null,null,null,null,null,null,null,null,"","",null,null,null,null,null,null,null,null,null,null,null,null,null,null,null,null,null,null,null,null,null,null,null,null,null,null,null,null,null,null,"DOB Error","DOB Error",""]
[114,null,null,null,null,"",{"$f":"IFERROR(IF(OR(AZ133=1,F133<>\"\"),\"To key in DOB\",#REF!),\"\")","v":""},null,null,null,null,null,null,null,null,null,null,"","",null,null,null,null,null,null,null,null,null,null,null,null,null,null,null,null,null,null,null,null,null,null,null,null,null,null,null,null,null,null,"DOB Error","DOB Error",""]
[115,null,null,null,null,"",{"$f":"IFERROR(IF(OR(AZ134=1,F134<>\"\"),\"To key in DOB\",#REF!),\"\")","v":""},null,null,null,null,null,null,null,null,null,null,"","",null,null,null,null,null,null,null,null,null,null,null,null,null,null,null,null,null,null,null,null,null,null,null,null,null,null,null,null,null,null,"DOB Error","DOB Error",""]
[116,null,null,null,null,"",{"$f":"IFERROR(IF(OR(AZ135=1,F135<>\"\"),\"To key in DOB\",#REF!),\"\")","v":""},null,null,null,null,null,null,null,null,null,null,"","",null,null,null,null,null,null,null,null,null,null,null,null,null,null,null,null,null,null,null,null,null,null,null,null,null,null,null,null,null,null,"DOB Error","DOB Error",""]
[117,null,null,null,null,"",{"$f":"IFERROR(IF(OR(AZ136=1,F136<>\"\"),\"To key in DOB\",#REF!),\"\")","v":""},null,null,null,null,null,null,null,null,null,null,"","",null,null,null,null,null,null,null,null,null,null,null,null,null,null,null,null,null,null,null,null,null,null,null,null,null,null,null,null,null,null,"DOB Error","DOB Error",""]
[118,null,null,null,null,"",{"$f":"IFERROR(IF(OR(AZ137=1,F137<>\"\"),\"To key in DOB\",#REF!),\"\")","v":""},null,null,null,null,null,null,null,null,null,null,"","",null,null,null,null,null,null,null,null,null,null,null,null,null,null,null,null,null,null,null,null,null,null,null,null,null,null,null,null,null,null,"DOB Error","DOB Error",""]
[119,null,null,null,null,"",{"$f":"IFERROR(IF(OR(AZ138=1,F138<>\"\"),\"To key in DOB\",#REF!),\"\")","v":""},null,null,null,null,null,null,null,null,null,null,"","",null,null,null,null,null,null,null,null,null,null,null,null,null,null,null,null,null,null,null,null,null,null,null,null,null,null,null,null,null,null,"DOB Error","DOB Error",""]
[120,null,null,null,null,"",{"$f":"IFERROR(IF(OR(AZ139=1,F139<>\"\"),\"To key in DOB\",#REF!),\"\")","v":""},null,null,null,null,null,null,null,null,null,null,"","",null,null,null,null,null,null,null,null,null,null,null,null,null,null,null,null,null,null,null,null,null,null,null,null,null,null,null,null,null,null,"DOB Error","DOB Error",""]
[121,null,null,null,null,"",{"$f":"IFERROR(IF(OR(AZ140=1,F140<>\"\"),\"To key in DOB\",#REF!),\"\")","v":""},null,null,null,null,null,null,null,null,null,null,"","",null,null,null,null,null,null,null,null,null,null,null,null,null,null,null,null,null,null,null,null,null,null,null,null,null,null,null,null,null,null,"DOB Error","DOB Error",""]
[122,null,null,null,null,"",{"$f":"IFERROR(IF(OR(AZ141=1,F141<>\"\"),\"To key in DOB\",#REF!),\"\")","v":""},null,null,null,null,null,null,null,null,null,null,"","",null,null,null,null,null,null,null,null,null,null,null,null,null,null,null,null,null,null,null,null,null,null,null,null,null,null,null,null,null,null,"DOB Error","DOB Error",""]
[123,null,null,null,null,"",{"$f":"IFERROR(IF(OR(AZ142=1,F142<>\"\"),\"To key in DOB\",#REF!),\"\")","v":""},null,null,null,null,null,null,null,null,null,null,"","",null,null,null,null,null,null,null,null,null,null,null,null,null,null,null,null,null,null,null,null,null,null,null,null,null,null,null,null,null,null,"DOB Error","DOB Error",""]
[124,null,null,null,null,"",{"$f":"IFERROR(IF(OR(AZ143=1,F143<>\"\"),\"To key in DOB\",#REF!),\"\")","v":""},null,null,null,null,null,null,null,null,null,null,"","",null,null,null,null,null,null,null,null,null,null,null,null,null,null,null,null,null,null,null,null,null,null,null,null,null,null,null,null,null,null,"DOB Error","DOB Error",""]
[125,null,null,null,null,"",{"$f":"IFERROR(IF(OR(AZ144=1,F144<>\"\"),\"To key in DOB\",#REF!),\"\")","v":""},null,null,null,null,null,null,null,null,null,null,"","",null,null,null,null,null,null,null,null,null,null,null,null,null,null,null,null,null,null,null,null,null,null,null,null,null,null,null,null,null,null,"DOB Error","DOB Error",""]
[126,null,null,null,null,"",{"$f":"IFERROR(IF(OR(AZ145=1,F145<>\"\"),\"To key in DOB\",#REF!),\"\")","v":""},null,null,null,null,null,null,null,null,null,null,"","",null,null,null,null,null,null,null,null,null,null,null,null,null,null,null,null,null,null,null,null,null,null,null,null,null,null,null,null,null,null,"DOB Error","DOB Error",""]
[127,null,null,null,null,"",{"$f":"IFERROR(IF(OR(AZ146=1,F146<>\"\"),\"To key in DOB\",#REF!),\"\")","v":""},null,null,null,null,null,null,null,null,null,null,"","",null,null,null,null,null,null,null,null,null,null,null,null,null,null,null,null,null,null,null,null,null,null,null,null,null,null,null,null,null,null,"DOB Error","DOB Error",""]
[128,null,null,null,null,"",{"$f":"IFERROR(IF(OR(AZ147=1,F147<>\"\"),\"To key in DOB\",#REF!),\"\")","v":""},null,null,null,null,null,null,null,null,null,null,"","",null,null,null,null,null,null,null,null,null,null,null,null,null,null,null,null,null,null,null,null,null,null,null,null,null,null,null,null,null,null,{"$f":"IF(ISERROR(AND(SEARCH(\"-\",E147,7)=7,SEARCH(\"-\",E147,9)=10)),\"DOB Error\",\"ok\")","v":"DOB Error"},{"$f":"IF(ISERROR(LEFT(E147,6)+MID(E147,8,2)+RIGHT(E147,4)),\"DOB Error\",\"ok\")","v":"DOB Error"},{"$f":"IF(E147=\"\",\"\",IF(OR(AX147=\"DOB Error\", AY147=\"DOB Error\"),1,0))","v":""}]
[129,null,null,null,null,"",{"$f":"IFERROR(IF(OR(AZ148=1,F148<>\"\"),\"To key in DOB\",#REF!),\"\")","v":""},null,null,null,null,null,null,null,null,null,null,{"$f":"IF(OR(Q148=\"CHANGE\",Q148=\"ADD\",Q148=\"TERMINATE\"),VLOOKUP(Q148,$AR:$AS,2,FALSE),\"\")","v":""},{"$f":"IF(OR(Q148=\"TERMINATE (DEATH)\"),VLOOKUP(Q148,$AR:$AU,4,FALSE),\"\")","v":""},null,null,null,null,null,null,null,null,null,null,null,null,null,null,null,null,null,null,null,null,null,null,null,null,null,null,null,null,null,null,"DOB Error","DOB Error",""]
[130,null,null,null,null,{"$f":"IF(AZ149=1,\"To key in Old IC / Passport / Birth Cert No.\",\"\")","v":""},{"$f":"IFERROR(IF(OR(AZ149=1,F149<>\"\"),\"To key in DOB\",#REF!),\"\")","v":""},null,null,null,null,null,null,null,null,null,null,"","",null,null,null,null,null,null,null,null,null,null,null,null,null,null,null,null,null,null,null,null,null,null,null,null,null,null,null,null,null,null,"DOB Error","DOB Error",""]
[131,null,null,null,null,"",{"$f":"IFERROR(IF(OR(AZ150=1,F150<>\"\"),\"To key in DOB\",#REF!),\"\")","v":""},null,null,null,null,null,null,null,null,null,null,"","",null,null,null,null,null,null,null,null,null,null,null,null,null,null,null,null,null,null,null,null,null,null,null,null,null,null,null,null,null,null,"DOB Error","DOB Error",""]
[132,null,null,null,null,"",{"$f":"IFERROR(IF(OR(AZ151=1,F151<>\"\"),\"To key in DOB\",#REF!),\"\")","v":""},null,null,null,null,null,null,null,null,null,null,"","",null,null,null,null,null,null,null,null,null,null,null,null,null,null,null,null,null,null,null,null,null,null,null,null,null,null,null,null,null,null,"DOB Error","DOB Error",""]
[133,null,null,null,null,"",{"$f":"IFERROR(IF(OR(AZ152=1,F152<>\"\"),\"To key in DOB\",#REF!),\"\")","v":""},null,null,null,null,null,null,null,null,null,null,"","",null,null,null,null,null,null,null,null,null,null,null,null,null,null,null,null,null,null,null,null,null,null,null,null,null,null,null,null,null,null,"DOB Error","DOB Error",""]
[134,null,null,null,null,"",{"$f":"IFERROR(IF(OR(AZ153=1,F153<>\"\"),\"To key in DOB\",#REF!),\"\")","v":""},null,null,null,null,null,null,null,null,null,null,"","",null,null,null,null,null,null,null,null,null,null,null,null,null,null,null,null,null,null,null,null,null,null,null,null,null,null,null,null,null,null,"DOB Error","DOB Error",""]
[135,null,null,null,null,"",{"$f":"IFERROR(IF(OR(AZ154=1,F154<>\"\"),\"To key in DOB\",#REF!),\"\")","v":""},null,null,null,null,null,null,null,null,null,null,"","",null,null,null,null,null,null,null,null,null,null,null,null,null,null,null,null,null,null,null,null,null,null,null,null,null,null,null,null,null,null,"DOB Error","DOB Error",""]
[136,null,null,null,null,"",{"$f":"IFERROR(IF(OR(AZ155=1,F155<>\"\"),\"To key in DOB\",#REF!),\"\")","v":""},null,null,null,null,null,null,null,null,null,null,"","",null,null,null,null,null,null,null,null,null,null,null,null,null,null,null,null,null,null,null,null,null,null,null,null,null,null,null,null,null,null,"DOB Error","DOB Error",""]
[137,null,null,null,null,"",{"$f":"IFERROR(IF(OR(AZ156=1,F156<>\"\"),\"To key in DOB\",#REF!),\"\")","v":""},null,null,null,null,null,null,null,null,null,null,"","",null,null,null,null,null,null,null,null,null,null,null,null,null,null,null,null,null,null,null,null,null,null,null,null,null,null,null,null,null,null,"DOB Error","DOB Error",""]
[138,null,null,null,null,"",{"$f":"IFERROR(IF(OR(AZ157=1,F157<>\"\"),\"To key in DOB\",#REF!),\"\")","v":""},null,null,null,null,null,null,null,null,null,null,"","",null,null,null,null,null,null,null,null,null,null,null,null,null,null,null,null,null,null,null,null,null,null,null,null,null,null,null,null,null,null,"DOB Error","DOB Error",""]
[139,null,null,null,null,"",{"$f":"IFERROR(IF(OR(AZ158=1,F158<>\"\"),\"To key in DOB\",#REF!),\"\")","v":""},null,null,null,null,null,null,null,null,null,null,"","",null,null,null,null,null,null,null,null,null,null,null,null,null,null,null,null,null,null,null,null,null,null,null,null,null,null,null,null,null,null,"DOB Error","DOB Error",""]
[140,null,null,null,null,"",{"$f":"IFERROR(IF(OR(AZ159=1,F159<>\"\"),\"To key in DOB\",#REF!),\"\")","v":""},null,null,null,null,null,null,null,null,null,null,"","",null,null,null,null,null,null,null,null,null,null,null,null,null,null,null,null,null,null,null,null,null,null,null,null,null,null,null,null,null,null,"DOB Error","DOB Error",""]
[141,null,null,null,null,"",{"$f":"IFERROR(IF(OR(AZ160=1,F160<>\"\"),\"To key in DOB\",#REF!),\"\")","v":""},null,null,null,null,null,null,null,null,null,null,"","",null,null,null,null,null,null,null,null,null,null,null,null,null,null,null,null,null,null,null,null,null,null,null,null,null,null,null,null,null,null,"DOB Error","DOB Error",""]
[142,null,null,null,null,"",{"$f":"IFERROR(IF(OR(AZ161=1,F161<>\"\"),\"To key in DOB\",#REF!),\"\")","v":""},null,null,null,null,null,null,null,null,null,null,"","",null,null,null,null,null,null,null,null,null,null,null,null,null,null,null,null,null,null,null,null,null,null,null,null,null,null,null,null,null,null,"DOB Error","DOB Error",""]
[143,null,null,null,null,"",{"$f":"IFERROR(IF(OR(AZ162=1,F162<>\"\"),\"To key in DOB\",#REF!),\"\")","v":""},null,null,null,null,null,null,null,null,null,null,"","",null,null,null,null,null,null,null,null,null,null,null,null,null,null,null,null,null,null,null,null,null,null,null,null,null,null,null,null,null,null,"DOB Error","DOB Error",""]
[144,null,null,null,null,"",{"$f":"IFERROR(IF(OR(AZ163=1,F163<>\"\"),\"To key in DOB\",#REF!),\"\")","v":""},null,null,null,null,null,null,null,null,null,null,"","",null,null,null,null,null,null,null,null,null,null,null,null,null,null,null,null,null,null,null,null,null,null,null,null,null,null,null,null,null,null,"DOB Error","DOB Error",""]
[145,null,null,null,null,"",{"$f":"IFERROR(IF(OR(AZ164=1,F164<>\"\"),\"To key in DOB\",#REF!),\"\")","v":""},null,null,null,null,null,null,null,null,null,null,"","",null,null,null,null,null,null,null,null,null,null,null,null,null,null,null,null,null,null,null,null,null,null,null,null,null,null,null,null,null,null,"DOB Error","DOB Error",""]
[146,null,null,null,null,"",{"$f":"IFERROR(IF(OR(AZ165=1,F165<>\"\"),\"To key in DOB\",#REF!),\"\")","v":""},null,null,null,null,null,null,null,null,null,null,"","",null,null,null,null,null,null,null,null,null,null,null,null,null,null,null,null,null,null,null,null,null,null,null,null,null,null,null,null,null,null,"DOB Error","DOB Error",""]
[147,null,null,null,null,"",{"$f":"IFERROR(IF(OR(AZ166=1,F166<>\"\"),\"To key in DOB\",#REF!),\"\")","v":""},null,null,null,null,null,null,null,null,null,null,"","",null,null,null,null,null,null,null,null,null,null,null,null,null,null,null,null,null,null,null,null,null,null,null,null,null,null,null,null,null,null,"DOB Error","DOB Error",""]
[148,null,null,null,null,"",{"$f":"IFERROR(IF(OR(AZ167=1,F167<>\"\"),\"To key in DOB\",#REF!),\"\")","v":""},null,null,null,null,null,null,null,null,null,null,"","",null,null,null,null,null,null,null,null,null,null,null,null,null,null,null,null,null,null,null,null,null,null,null,null,null,null,null,null,null,null,"DOB Error","DOB Error",""]
[149,null,null,null,null,"",{"$f":"IFERROR(IF(OR(AZ168=1,F168<>\"\"),\"To key in DOB\",#REF!),\"\")","v":""},null,null,null,null,null,null,null,null,null,null,"","",null,null,null,null,null,null,null,null,null,null,null,null,null,null,null,null,null,null,null,null,null,null,null,null,null,null,null,null,null,null,"DOB Error","DOB Error",""]
[150,null,null,null,null,"",{"$f":"IFERROR(IF(OR(AZ169=1,F169<>\"\"),\"To key in DOB\",#REF!),\"\")","v":""},null,null,null,null,null,null,null,null,null,null,"","",null,null,null,null,null,null,null,null,null,null,null,null,null,null,null,null,null,null,null,null,null,null,null,null,null,null,null,null,null,null,"DOB Error","DOB Error",""]
[151,null,null,null,null,"",{"$f":"IFERROR(IF(OR(AZ170=1,F170<>\"\"),\"To key in DOB\",#REF!),\"\")","v":""},null,null,null,null,null,null,null,null,null,null,"","",null,null,null,null,null,null,null,null,null,null,null,null,null,null,null,null,null,null,null,null,null,null,null,null,null,null,null,null,null,null,"DOB Error","DOB Error",""]
[152,null,null,null,null,"",{"$f":"IFERROR(IF(OR(AZ171=1,F171<>\"\"),\"To key in DOB\",#REF!),\"\")","v":""},null,null,null,null,null,null,null,null,null,null,"","",null,null,null,null,null,null,null,null,null,null,null,null,null,null,null,null,null,null,null,null,null,null,null,null,null,null,null,null,null,null,"DOB Error","DOB Error",""]
[153,null,null,null,null,"",{"$f":"IFERROR(IF(OR(AZ172=1,F172<>\"\"),\"To key in DOB\",#REF!),\"\")","v":""},null,null,null,null,null,null,null,null,null,null,"","",null,null,null,null,null,null,null,null,null,null,null,null,null,null,null,null,null,null,null,null,null,null,null,null,null,null,null,null,null,null,"DOB Error","DOB Error",""]
[154,null,null,null,null,"",{"$f":"IFERROR(IF(OR(AZ173=1,F173<>\"\"),\"To key in DOB\",#REF!),\"\")","v":""},null,null,null,null,null,null,null,null,null,null,"","",null,null,null,null,null,null,null,null,null,null,null,null,null,null,null,null,null,null,null,null,null,null,null,null,null,null,null,null,null,null,"DOB Error","DOB Error",""]
[155,null,null,null,null,"",{"$f":"IFERROR(IF(OR(AZ174=1,F174<>\"\"),\"To key in DOB\",#REF!),\"\")","v":""},null,null,null,null,null,null,null,null,null,null,"","",null,null,null,null,null,null,null,null,null,null,null,null,null,null,null,null,null,null,null,null,null,null,null,null,null,null,null,null,null,null,"DOB Error","DOB Error",""]
[156,null,null,null,null,"",{"$f":"IFERROR(IF(OR(AZ175=1,F175<>\"\"),\"To key in DOB\",#REF!),\"\")","v":""},null,null,null,null,null,null,null,null,null,null,"","",null,null,null,null,null,null,null,null,null,null,null,null,null,null,null,null,null,null,null,null,null,null,null,null,null,null,null,null,null,null,"DOB Error","DOB Error",""]
[157,null,null,null,null,"",{"$f":"IFERROR(IF(OR(AZ176=1,F176<>\"\"),\"To key in DOB\",#REF!),\"\")","v":""},null,null,null,null,null,null,null,null,null,null,"","",null,null,null,null,null,null,null,null,null,null,null,null,null,null,null,null,null,null,null,null,null,null,null,null,null,null,null,null,null,null,"DOB Error","DOB Error",""]
[158,null,null,null,null,"",{"$f":"IFERROR(IF(OR(AZ177=1,F177<>\"\"),\"To key in DOB\",#REF!),\"\")","v":""},null,null,null,null,null,null,null,null,null,null,"","",null,null,null,null,null,null,null,null,null,null,null,null,null,null,null,null,null,null,null,null,null,null,null,null,null,null,null,null,null,null,"DOB Error","DOB Error",""]
[159,null,null,null,null,"",{"$f":"IFERROR(IF(OR(AZ178=1,F178<>\"\"),\"To key in DOB\",#REF!),\"\")","v":""},null,null,null,null,null,null,null,null,null,null,"","",null,null,null,null,null,null,null,null,null,null,null,null,null,null,null,null,null,null,null,null,null,null,null,null,null,null,null,null,null,null,"DOB Error","DOB Error",""]
[160,null,null,null,null,"",{"$f":"IFERROR(IF(OR(AZ179=1,F179<>\"\"),\"To key in DOB\",#REF!),\"\")","v":""},null,null,null,null,null,null,null,null,null,null,"","",null,null,null,null,null,null,null,null,null,null,null,null,null,null,null,null,null,null,null,null,null,null,null,null,null,null,null,null,null,null,"DOB Error","DOB Error",""]
[161,null,null,null,null,"",{"$f":"IFERROR(IF(OR(AZ180=1,F180<>\"\"),\"To key in DOB\",#REF!),\"\")","v":""},null,null,null,null,null,null,null,null,null,null,"","",null,null,null,null,null,null,null,null,null,null,null,null,null,null,null,null,null,null,null,null,null,null,null,null,null,null,null,null,null,null,"DOB Error","DOB Error",""]
[162,null,null,null,null,"",{"$f":"IFERROR(IF(OR(AZ181=1,F181<>\"\"),\"To key in DOB\",#REF!),\"\")","v":""},null,null,null,null,null,null,null,null,null,null,"","",null,null,null,null,null,null,null,null,null,null,null,null,null,null,null,null,null,null,null,null,null,null,null,null,null,null,null,null,null,null,"DOB Error","DOB Error",""]
[163,null,null,null,null,"",{"$f":"IFERROR(IF(OR(AZ182=1,F182<>\"\"),\"To key in DOB\",#REF!),\"\")","v":""},null,null,null,null,null,null,null,null,null,null,"","",null,null,null,null,null,null,null,null,null,null,null,null,null,null,null,null,null,null,null,null,null,null,null,null,null,null,null,null,null,null,"DOB Error","DOB Error",""]
[164,null,null,null,null,"",{"$f":"IFERROR(IF(OR(AZ183=1,F183<>\"\"),\"To key in DOB\",#REF!),\"\")","v":""},null,null,null,null,null,null,null,null,null,null,"","",null,null,null,null,null,null,null,null,null,null,null,null,null,null,null,null,null,null,null,null,null,null,null,null,null,null,null,null,null,null,"DOB Error","DOB Error",""]
[165,null,null,null,null,"",{"$f":"IFERROR(IF(OR(AZ184=1,F184<>\"\"),\"To key in DOB\",#REF!),\"\")","v":""},null,null,null,null,null,null,null,null,null,null,"","",null,null,null,null,null,null,null,null,null,null,null,null,null,null,null,null,null,null,null,null,null,null,null,null,null,null,null,null,null,null,"DOB Error","DOB Error",""]
[166,null,null,null,null,"",{"$f":"IFERROR(IF(OR(AZ185=1,F185<>\"\"),\"To key in DOB\",#REF!),\"\")","v":""},null,null,null,null,null,null,null,null,null,null,"","",null,null,null,null,null,null,null,null,null,null,null,null,null,null,null,null,null,null,null,null,null,null,null,null,null,null,null,null,null,null,"DOB Error","DOB Error",""]
[167,null,null,null,null,"",{"$f":"IFERROR(IF(OR(AZ186=1,F186<>\"\"),\"To key in DOB\",#REF!),\"\")","v":""},null,null,null,null,null,null,null,null,null,null,"","",null,null,null,null,null,null,null,null,null,null,null,null,null,null,null,null,null,null,null,null,null,null,null,null,null,null,null,null,null,null,"DOB Error","DOB Error",""]
[168,null,null,null,null,"",{"$f":"IFERROR(IF(OR(AZ187=1,F187<>\"\"),\"To key in DOB\",#REF!),\"\")","v":""},null,null,null,null,null,null,null,null,null,null,"","",null,null,null,null,null,null,null,null,null,null,null,null,null,null,null,null,null,null,null,null,null,null,null,null,null,null,null,null,null,null,"DOB Error","DOB Error",""]
[169,null,null,null,null,"",{"$f":"IFERROR(IF(OR(AZ188=1,F188<>\"\"),\"To key in DOB\",#REF!),\"\")","v":""},null,null,null,null,null,null,null,null,null,null,"","",null,null,null,null,null,null,null,null,null,null,null,null,null,null,null,null,null,null,null,null,null,null,null,null,null,null,null,null,null,null,"DOB Error","DOB Error",""]
[170,null,null,null,null,"",{"$f":"IFERROR(IF(OR(AZ189=1,F189<>\"\"),\"To key in DOB\",#REF!),\"\")","v":""},null,null,null,null,null,null,null,null,null,null,"","",null,null,null,null,null,null,null,null,null,null,null,null,null,null,null,null,null,null,null,null,null,null,null,null,null,null,null,null,null,null,"DOB Error","DOB Error",""]
[171,null,null,null,null,"",{"$f":"IFERROR(IF(OR(AZ190=1,F190<>\"\"),\"To key in DOB\",#REF!),\"\")","v":""},null,null,null,null,null,null,null,null,null,null,"","",null,null,null,null,null,null,null,null,null,null,null,null,null,null,null,null,null,null,null,null,null,null,null,null,null,null,null,null,null,null,"DOB Error","DOB Error",""]
[172,null,null,null,null,"",{"$f":"IFERROR(IF(OR(AZ191=1,F191<>\"\"),\"To key in DOB\",#REF!),\"\")","v":""},null,null,null,null,null,null,null,null,null,null,"","",null,null,null,null,null,null,null,null,null,null,null,null,null,null,null,null,null,null,null,null,null,null,null,null,null,null,null,null,null,null,"DOB Error","DOB Error",""]
[173,null,null,null,null,"",{"$f":"IFERROR(IF(OR(AZ192=1,F192<>\"\"),\"To key in DOB\",#REF!),\"\")","v":""},null,null,null,null,null,null,null,null,null,null,"","",null,null,null,null,null,null,null,null,null,null,null,null,null,null,null,null,null,null,null,null,null,null,null,null,null,null,null,null,null,null,"DOB Error","DOB Error",""]
[174,null,null,null,null,"",{"$f":"IFERROR(IF(OR(AZ193=1,F193<>\"\"),\"To key in DOB\",#REF!),\"\")","v":""},null,null,null,null,null,null,null,null,null,null,"","",null,null,null,null,null,null,null,null,null,null,null,null,null,null,null,null,null,null,null,null,null,null,null,null,null,null,null,null,null,null,"DOB Error","DOB Error",""]
[175,null,null,null,null,"",{"$f":"IFERROR(IF(OR(AZ194=1,F194<>\"\"),\"To key in DOB\",#REF!),\"\")","v":""},null,null,null,null,null,null,null,null,null,null,"","",null,null,null,null,null,null,null,null,null,null,null,null,null,null,null,null,null,null,null,null,null,null,null,null,null,null,null,null,null,null,"DOB Error","DOB Error",""]
[176,null,null,null,null,"",{"$f":"IFERROR(IF(OR(AZ195=1,F195<>\"\"),\"To key in DOB\",#REF!),\"\")","v":""},null,null,null,null,null,null,null,null,null,null,"","",null,null,null,null,null,null,null,null,null,null,null,null,null,null,null,null,null,null,null,null,null,null,null,null,null,null,null,null,null,null,"DOB Error","DOB Error",""]
[177,null,null,null,null,"",{"$f":"IFERROR(IF(OR(AZ196=1,F196<>\"\"),\"To key in DOB\",#REF!),\"\")","v":""},null,null,null,null,null,null,null,null,null,null,"","",null,null,null,null,null,null,null,null,null,null,null,null,null,null,null,null,null,null,null,null,null,null,null,null,null,null,null,null,null,null,"DOB Error","DOB Error",""]
[178,null,null,null,null,"",{"$f":"IFERROR(IF(OR(AZ197=1,F197<>\"\"),\"To key in DOB\",#REF!),\"\")","v":""},null,null,null,null,null,null,null,null,null,null,"","",null,null,null,null,null,null,null,null,null,null,null,null,null,null,null,null,null,null,null,null,null,null,null,null,null,null,null,null,null,null,"DOB Error","DOB Error",""]
[179,null,null,null,null,"",{"$f":"IFERROR(IF(OR(AZ198=1,F198<>\"\"),\"To key in DOB\",#REF!),\"\")","v":""},null,null,null,null,null,null,null,null,null,null,"","",null,null,null,null,null,null,null,null,null,null,null,null,null,null,null,null,null,null,null,null,null,null,null,null,null,null,null,null,null,null,"DOB Error","DOB Error",""]
[180,null,null,null,null,"",{"$f":"IFERROR(IF(OR(AZ199=1,F199<>\"\"),\"To key in DOB\",#REF!),\"\")","v":""},null,null,null,null,null,null,null,null,null,null,"","",null,null,null,null,null,null,null,null,null,null,null,null,null,null,null,null,null,null,null,null,null,null,null,null,null,null,null,null,null,null,"DOB Error","DOB Error",""]
[181,null,null,null,null,"",{"$f":"IFERROR(IF(OR(AZ200=1,F200<>\"\"),\"To key in DOB\",#REF!),\"\")","v":""},null,null,null,null,null,null,null,null,null,null,"","",null,null,null,null,null,null,null,null,null,null,null,null,null,null,null,null,null,null,null,null,null,null,null,null,null,null,null,null,null,null,"DOB Error","DOB Error",""]
[182,null,null,null,null,"",{"$f":"IFERROR(IF(OR(AZ201=1,F201<>\"\"),\"To key in DOB\",#REF!),\"\")","v":""},null,null,null,null,null,null,null,null,null,null,"","",null,null,null,null,null,null,null,null,null,null,null,null,null,null,null,null,null,null,null,null,null,null,null,null,null,null,null,null,null,null,"DOB Error","DOB Error",""]
[183,null,null,null,null,"",{"$f":"IFERROR(IF(OR(AZ202=1,F202<>\"\"),\"To key in DOB\",#REF!),\"\")","v":""},null,null,null,null,null,null,null,null,null,null,"","",null,null,null,null,null,null,null,null,null,null,null,null,null,null,null,null,null,null,null,null,null,null,null,null,null,null,null,null,null,null,"DOB Error","DOB Error",""]
[184,null,null,null,null,"",{"$f":"IFERROR(IF(OR(AZ203=1,F203<>\"\"),\"To key in DOB\",#REF!),\"\")","v":""},null,null,null,null,null,null,null,null,null,null,"","",null,null,null,null,null,null,null,null,null,null,null,null,null,null,null,null,null,null,null,null,null,null,null,null,null,null,null,null,null,null,"DOB Error","DOB Error",""]
[185,null,null,null,null,"",{"$f":"IFERROR(IF(OR(AZ204=1,F204<>\"\"),\"To key in DOB\",#REF!),\"\")","v":""},null,null,null,null,null,null,null,null,null,null,"","",null,null,null,null,null,null,null,null,null,null,null,null,null,null,null,null,null,null,null,null,null,null,null,null,null,null,null,null,null,null,"DOB Error","DOB Error",""]
[186,null,null,null,null,"",{"$f":"IFERROR(IF(OR(AZ205=1,F205<>\"\"),\"To key in DOB\",#REF!),\"\")","v":""},null,null,null,null,null,null,null,null,null,null,"","",null,null,null,null,null,null,null,null,null,null,null,null,null,null,null,null,null,null,null,null,null,null,null,null,null,null,null,null,null,null,"DOB Error","DOB Error",""]
[187,null,null,null,null,"",{"$f":"IFERROR(IF(OR(AZ206=1,F206<>\"\"),\"To key in DOB\",#REF!),\"\")","v":""},null,null,null,null,null,null,null,null,null,null,"","",null,null,null,null,null,null,null,null,null,null,null,null,null,null,null,null,null,null,null,null,null,null,null,null,null,null,null,null,null,null,"DOB Error","DOB Error",""]
[188,null,null,null,null,"",{"$f":"IFERROR(IF(OR(AZ207=1,F207<>\"\"),\"To key in DOB\",#REF!),\"\")","v":""},null,null,null,null,null,null,null,null,null,null,"","",null,null,null,null,null,null,null,null,null,null,null,null,null,null,null,null,null,null,null,null,null,null,null,null,null,null,null,null,null,null,"DOB Error","DOB Error",""]
[189,null,null,null,null,"",{"$f":"IFERROR(IF(OR(AZ208=1,F208<>\"\"),\"To key in DOB\",#REF!),\"\")","v":""},null,null,null,null,null,null,null,null,null,null,"","",null,null,null,null,null,null,null,null,null,null,null,null,null,null,null,null,null,null,null,null,null,null,null,null,null,null,null,null,null,null,"DOB Error","DOB Error",""]
[190,null,null,null,null,"",{"$f":"IFERROR(IF(OR(AZ209=1,F209<>\"\"),\"To key in DOB\",#REF!),\"\")","v":""},null,null,null,null,null,null,null,null,null,null,"","",null,null,null,null,null,null,null,null,null,null,null,null,null,null,null,null,null,null,null,null,null,null,null,null,null,null,null,null,null,null,"DOB Error","DOB Error",""]
[191,null,null,null,null,"",{"$f":"IFERROR(IF(OR(AZ210=1,F210<>\"\"),\"To key in DOB\",#REF!),\"\")","v":""},null,null,null,null,null,null,null,null,null,null,"","",null,null,null,null,null,null,null,null,null,null,null,null,null,null,null,null,null,null,null,null,null,null,null,null,null,null,null,null,null,null,"DOB Error","DOB Error",""]
[192,null,null,null,null,"",{"$f":"IFERROR(IF(OR(AZ211=1,F211<>\"\"),\"To key in DOB\",#REF!),\"\")","v":""},null,null,null,null,null,null,null,null,null,null,"","",null,null,null,null,null,null,null,null,null,null,null,null,null,null,null,null,null,null,null,null,null,null,null,null,null,null,null,null,null,null,{"$f":"IF(ISERROR(AND(SEARCH(\"-\",E211,7)=7,SEARCH(\"-\",E211,9)=10)),\"DOB Error\",\"ok\")","v":"DOB Error"},{"$f":"IF(ISERROR(LEFT(E211,6)+MID(E211,8,2)+RIGHT(E211,4)),\"DOB Error\",\"ok\")","v":"DOB Error"},{"$f":"IF(E211=\"\",\"\",IF(OR(AX211=\"DOB Error\", AY211=\"DOB Error\"),1,0))","v":""}]
[193,null,null,null,null,"",{"$f":"IFERROR(IF(OR(AZ212=1,F212<>\"\"),\"To key in DOB\",#REF!),\"\")","v":""},null,null,null,null,null,null,null,null,null,null,{"$f":"IF(OR(Q212=\"CHANGE\",Q212=\"ADD\",Q212=\"TERMINATE\"),VLOOKUP(Q212,$AR:$AS,2,FALSE),\"\")","v":""},{"$f":"IF(OR(Q212=\"TERMINATE (DEATH)\"),VLOOKUP(Q212,$AR:$AU,4,FALSE),\"\")","v":""},null,null,null,null,null,null,null,null,null,null,null,null,null,null,null,null,null,null,null,null,null,null,null,null,null,null,null,null,null,null,"DOB Error","DOB Error",""]
[194,null,null,null,null,{"$f":"IF(AZ213=1,\"To key in Old IC / Passport / Birth Cert No.\",\"\")","v":""},{"$f":"IFERROR(IF(OR(AZ213=1,F213<>\"\"),\"To key in DOB\",#REF!),\"\")","v":""},null,null,null,null,null,null,null,null,null,null,"","",null,null,null,null,null,null,null,null,null,null,null,null,null,null,null,null,null,null,null,null,null,null,null,null,null,null,null,null,null,null,"DOB Error","DOB Error",""]
[195,null,null,null,null,"",{"$f":"IFERROR(IF(OR(AZ214=1,F214<>\"\"),\"To key in DOB\",#REF!),\"\")","v":""},null,null,null,null,null,null,null,null,null,null,"","",null,null,null,null,null,null,null,null,null,null,null,null,null,null,null,null,null,null,null,null,null,null,null,null,null,null,null,null,null,null,"DOB Error","DOB Error",""]
[196,null,null,null,null,"",{"$f":"IFERROR(IF(OR(AZ215=1,F215<>\"\"),\"To key in DOB\",#REF!),\"\")","v":""},null,null,null,null,null,null,null,null,null,null,"","",null,null,null,null,null,null,null,null,null,null,null,null,null,null,null,null,null,null,null,null,null,null,null,null,null,null,null,null,null,null,"DOB Error","DOB Error",""]
[197,null,null,null,null,"",{"$f":"IFERROR(IF(OR(AZ216=1,F216<>\"\"),\"To key in DOB\",#REF!),\"\")","v":""},null,null,null,null,null,null,null,null,null,null,"","",null,null,null,null,null,null,null,null,null,null,null,null,null,null,null,null,null,null,null,null,null,null,null,null,null,null,null,null,null,null,"DOB Error","DOB Error",""]
[198,null,null,null,null,"",{"$f":"IFERROR(IF(OR(AZ217=1,F217<>\"\"),\"To key in DOB\",#REF!),\"\")","v":""},null,null,null,null,null,null,null,null,null,null,"","",null,null,null,null,null,null,null,null,null,null,null,null,null,null,null,null,null,null,null,null,null,null,null,null,null,null,null,null,null,null,"DOB Error","DOB Error",""]
[199,null,null,null,null,"",{"$f":"IFERROR(IF(OR(AZ218=1,F218<>\"\"),\"To key in DOB\",#REF!),\"\")","v":""},null,null,null,null,null,null,null,null,null,null,"","",null,null,null,null,null,null,null,null,null,null,null,null,null,null,null,null,null,null,null,null,null,null,null,null,null,null,null,null,null,null,"DOB Error","DOB Error",""]
[200,null,null,null,null,"",{"$f":"IFERROR(IF(OR(AZ219=1,F219<>\"\"),\"To key in DOB\",#REF!),\"\")","v":""},null,null,null,null,null,null,null,null,null,null,"","",null,null,null,null,null,null,null,null,null,null,null,null,null,null,null,null,null,null,null,null,null,null,null,null,null,null,null,null,null,null,"DOB Error","DOB Error",""]
[201,null,null,null,null,"",{"$f":"IFERROR(IF(OR(AZ220=1,F220<>\"\"),\"To key in DOB\",#REF!),\"\")","v":""},null,null,null,null,null,null,null,null,null,null,"","",null,null,null,null,null,null,null,null,null,null,null,null,null,null,null,null,null,null,null,null,null,null,null,null,null,null,null,null,null,null,"DOB Error","DOB Error",""]
[202,null,null,null,null,"",{"$f":"IFERROR(IF(OR(AZ221=1,F221<>\"\"),\"To key in DOB\",#REF!),\"\")","v":""},null,null,null,null,null,null,null,null,null,null,"","",null,null,null,null,null,null,null,null,null,null,null,null,null,null,null,null,null,null,null,null,null,null,null,null,null,null,null,null,null,null,"DOB Error","DOB Error",""]
[203,null,null,null,null,"",{"$f":"IFERROR(IF(OR(AZ222=1,F222<>\"\"),\"To key in DOB\",#REF!),\"\")","v":""},null,null,null,null,null,null,null,null,null,null,"","",null,null,null,null,null,null,null,null,null,null,null,null,null,null,null,null,null,null,null,null,null,null,null,null,null,null,null,null,null,null,"DOB Error","DOB Error",""]
[204,null,null,null,null,"",{"$f":"IFERROR(IF(OR(AZ223=1,F223<>\"\"),\"To key in DOB\",#REF!),\"\")","v":""},null,null,null,null,null,null,null,null,null,null,"","",null,null,null,null,null,null,null,null,null,null,null,null,null,null,null,null,null,null,null,null,null,null,null,null,null,null,null,null,null,null,"DOB Error","DOB Error",""]
[205,null,null,null,null,"",{"$f":"IFERROR(IF(OR(AZ224=1,F224<>\"\"),\"To key in DOB\",#REF!),\"\")","v":""},null,null,null,null,null,null,null,null,null,null,"","",null,null,null,null,null,null,null,null,null,null,null,null,null,null,null,null,null,null,null,null,null,null,null,null,null,null,null,null,null,null,"DOB Error","DOB Error",""]
[206,null,null,null,null,"",{"$f":"IFERROR(IF(OR(AZ225=1,F225<>\"\"),\"To key in DOB\",#REF!),\"\")","v":""},null,null,null,null,null,null,null,null,null,null,"","",null,null,null,null,null,null,null,null,null,null,null,null,null,null,null,null,null,null,null,null,null,null,null,null,null,null,null,null,null,null,"DOB Error","DOB Error",""]
[207,null,null,null,null,"",{"$f":"IFERROR(IF(OR(AZ226=1,F226<>\"\"),\"To key in DOB\",#REF!),\"\")","v":""},null,null,null,null,null,null,null,null,null,null,"","",null,null,null,null,null,null,null,null,null,null,null,null,null,null,null,null,null,null,null,null,null,null,null,null,null,null,null,null,null,null,"DOB Error","DOB Error",""]
[208,null,null,null,null,"",{"$f":"IFERROR(IF(OR(AZ227=1,F227<>\"\"),\"To key in DOB\",#REF!),\"\")","v":""},null,null,null,null,null,null,null,null,null,null,"","",null,null,null,null,null,null,null,null,null,null,null,null,null,null,null,null,null,null,null,null,null,null,null,null,null,null,null,null,null,null,"DOB Error","DOB Error",""]
[209,null,null,null,null,"",{"$f":"IFERROR(IF(OR(AZ228=1,F228<>\"\"),\"To key in DOB\",#REF!),\"\")","v":""},null,null,null,null,null,null,null,null,null,null,"","",null,null,null,null,null,null,null,null,null,null,null,null,null,null,null,null,null,null,null,null,null,null,null,null,null,null,null,null,null,null,"DOB Error","DOB Error",""]
[210,null,null,null,null,"",{"$f":"IFERROR(IF(OR(AZ229=1,F229<>\"\"),\"To key in DOB\",#REF!),\"\")","v":""},null,null,null,null,null,null,null,null,null,null,"","",null,null,null,null,null,null,null,null,null,null,null,null,null,null,null,null,null,null,null,null,null,null,null,null,null,null,null,null,null,null,"DOB Error","DOB Error",""]
[211,null,null,null,null,"",{"$f":"IFERROR(IF(OR(AZ230=1,F230<>\"\"),\"To key in DOB\",#REF!),\"\")","v":""},null,null,null,null,null,null,null,null,null,null,"","",null,null,null,null,null,null,null,null,null,null,null,null,null,null,null,null,null,null,null,null,null,null,null,null,null,null,null,null,null,null,"DOB Error","DOB Error",""]
[212,null,null,null,null,"",{"$f":"IFERROR(IF(OR(AZ231=1,F231<>\"\"),\"To key in DOB\",#REF!),\"\")","v":""},null,null,null,null,null,null,null,null,null,null,"","",null,null,null,null,null,null,null,null,null,null,null,null,null,null,null,null,null,null,null,null,null,null,null,null,null,null,null,null,null,null,"DOB Error","DOB Error",""]
[213,null,null,null,null,"",{"$f":"IFERROR(IF(OR(AZ232=1,F232<>\"\"),\"To key in DOB\",#REF!),\"\")","v":""},null,null,null,null,null,null,null,null,null,null,"","",null,null,null,null,null,null,null,null,null,null,null,null,null,null,null,null,null,null,null,null,null,null,null,null,null,null,null,null,null,null,"DOB Error","DOB Error",""]
[214,null,null,null,null,"",{"$f":"IFERROR(IF(OR(AZ233=1,F233<>\"\"),\"To key in DOB\",#REF!),\"\")","v":""},null,null,null,null,null,null,null,null,null,null,"","",null,null,null,null,null,null,null,null,null,null,null,null,null,null,null,null,null,null,null,null,null,null,null,null,null,null,null,null,null,null,"DOB Error","DOB Error",""]
[215,null,null,null,null,"",{"$f":"IFERROR(IF(OR(AZ234=1,F234<>\"\"),\"To key in DOB\",#REF!),\"\")","v":""},null,null,null,null,null,null,null,null,null,null,"","",null,null,null,null,null,null,null,null,null,null,null,null,null,null,null,null,null,null,null,null,null,null,null,null,null,null,null,null,null,null,"DOB Error","DOB Error",""]
[216,null,null,null,null,"",{"$f":"IFERROR(IF(OR(AZ235=1,F235<>\"\"),\"To key in DOB\",#REF!),\"\")","v":""},null,null,null,null,null,null,null,null,null,null,"","",null,null,null,null,null,null,null,null,null,null,null,null,null,null,null,null,null,null,null,null,null,null,null,null,null,null,null,null,null,null,"DOB Error","DOB Error",""]
[217,null,null,null,null,"",{"$f":"IFERROR(IF(OR(AZ236=1,F236<>\"\"),\"To key in DOB\",#REF!),\"\")","v":""},null,null,null,null,null,null,null,null,null,null,"","",null,null,null,null,null,null,null,null,null,null,null,null,null,null,null,null,null,null,null,null,null,null,null,null,null,null,null,null,null,null,"DOB Error","DOB Error",""]
[218,null,null,null,null,"",{"$f":"IFERROR(IF(OR(AZ237=1,F237<>\"\"),\"To key in DOB\",#REF!),\"\")","v":""},null,null,null,null,null,null,null,null,null,null,"","",null,null,null,null,null,null,null,null,null,null,null,null,null,null,null,null,null,null,null,null,null,null,null,null,null,null,null,null,null,null,"DOB Error","DOB Error",""]
[219,null,null,null,null,"",{"$f":"IFERROR(IF(OR(AZ238=1,F238<>\"\"),\"To key in DOB\",#REF!),\"\")","v":""},null,null,null,null,null,null,null,null,null,null,"","",null,null,null,null,null,null,null,null,null,null,null,null,null,null,null,null,null,null,null,null,null,null,null,null,null,null,null,null,null,null,"DOB Error","DOB Error",""]
[220,null,null,null,null,"",{"$f":"IFERROR(IF(OR(AZ239=1,F239<>\"\"),\"To key in DOB\",#REF!),\"\")","v":""},null,null,null,null,null,null,null,null,null,null,"","",null,null,null,null,null,null,null,null,null,null,null,null,null,null,null,null,null,null,null,null,null,null,null,null,null,null,null,null,null,null,"DOB Error","DOB Error",""]
[221,null,null,null,null,"",{"$f":"IFERROR(IF(OR(AZ240=1,F240<>\"\"),\"To key in DOB\",#REF!),\"\")","v":""},null,null,null,null,null,null,null,null,null,null,"","",null,null,null,null,null,null,null,null,null,null,null,null,null,null,null,null,null,null,null,null,null,null,null,null,null,null,null,null,null,null,"DOB Error","DOB Error",""]
[222,null,null,null,null,"",{"$f":"IFERROR(IF(OR(AZ241=1,F241<>\"\"),\"To key in DOB\",#REF!),\"\")","v":""},null,null,null,null,null,null,null,null,null,null,"","",null,null,null,null,null,null,null,null,null,null,null,null,null,null,null,null,null,null,null,null,null,null,null,null,null,null,null,null,null,null,"DOB Error","DOB Error",""]
[223,null,null,null,null,"",{"$f":"IFERROR(IF(OR(AZ242=1,F242<>\"\"),\"To key in DOB\",#REF!),\"\")","v":""},null,null,null,null,null,null,null,null,null,null,"","",null,null,null,null,null,null,null,null,null,null,null,null,null,null,null,null,null,null,null,null,null,null,null,null,null,null,null,null,null,null,"DOB Error","DOB Error",""]
[224,null,null,null,null,"",{"$f":"IFERROR(IF(OR(AZ243=1,F243<>\"\"),\"To key in DOB\",#REF!),\"\")","v":""},null,null,null,null,null,null,null,null,null,null,"","",null,null,null,null,null,null,null,null,null,null,null,null,null,null,null,null,null,null,null,null,null,null,null,null,null,null,null,null,null,null,"DOB Error","DOB Error",""]
[225,null,null,null,null,"",{"$f":"IFERROR(IF(OR(AZ244=1,F244<>\"\"),\"To key in DOB\",#REF!),\"\")","v":""},null,null,null,null,null,null,null,null,null,null,"","",null,null,null,null,null,null,null,null,null,null,null,null,null,null,null,null,null,null,null,null,null,null,null,null,null,null,null,null,null,null,"DOB Error","DOB Error",""]
[226,null,null,null,null,"",{"$f":"IFERROR(IF(OR(AZ245=1,F245<>\"\"),\"To key in DOB\",#REF!),\"\")","v":""},null,null,null,null,null,null,null,null,null,null,"","",null,null,null,null,null,null,null,null,null,null,null,null,null,null,null,null,null,null,null,null,null,null,null,null,null,null,null,null,null,null,"DOB Error","DOB Error",""]
[227,null,null,null,null,"",{"$f":"IFERROR(IF(OR(AZ246=1,F246<>\"\"),\"To key in DOB\",#REF!),\"\")","v":""},null,null,null,null,null,null,null,null,null,null,"","",null,null,null,null,null,null,null,null,null,null,null,null,null,null,null,null,null,null,null,null,null,null,null,null,null,null,null,null,null,null,"DOB Error","DOB Error",""]
[228,null,null,null,null,"",{"$f":"IFERROR(IF(OR(AZ247=1,F247<>\"\"),\"To key in DOB\",#REF!),\"\")","v":""},null,null,null,null,null,null,null,null,null,null,"","",null,null,null,null,null,null,null,null,null,null,null,null,null,null,null,null,null,null,null,null,null,null,null,null,null,null,null,null,null,null,"DOB Error","DOB Error",""]
[229,null,null,null,null,"",{"$f":"IFERROR(IF(OR(AZ248=1,F248<>\"\"),\"To key in DOB\",#REF!),\"\")","v":""},null,null,null,null,null,null,null,null,null,null,"","",null,null,null,null,null,null,null,null,null,null,null,null,null,null,null,null,null,null,null,null,null,null,null,null,null,null,null,null,null,null,"DOB Error","DOB Error",""]
[230,null,null,null,null,"",{"$f":"IFERROR(IF(OR(AZ249=1,F249<>\"\"),\"To key in DOB\",#REF!),\"\")","v":""},null,null,null,null,null,null,null,null,null,null,"","",null,null,null,null,null,null,null,null,null,null,null,null,null,null,null,null,null,null,null,null,null,null,null,null,null,null,null,null,null,null,"DOB Error","DOB Error",""]
[231,null,null,null,null,"",{"$f":"IFERROR(IF(OR(AZ250=1,F250<>\"\"),\"To key in DOB\",#REF!),\"\")","v":""},null,null,null,null,null,null,null,null,null,null,"","",null,null,null,null,null,null,null,null,null,null,null,null,null,null,null,null,null,null,null,null,null,null,null,null,null,null,null,null,null,null,"DOB Error","DOB Error",""]
[232,null,null,null,null,"",{"$f":"IFERROR(IF(OR(AZ251=1,F251<>\"\"),\"To key in DOB\",#REF!),\"\")","v":""},null,null,null,null,null,null,null,null,null,null,"","",null,null,null,null,null,null,null,null,null,null,null,null,null,null,null,null,null,null,null,null,null,null,null,null,null,null,null,null,null,null,"DOB Error","DOB Error",""]
[233,null,null,null,null,"",{"$f":"IFERROR(IF(OR(AZ252=1,F252<>\"\"),\"To key in DOB\",#REF!),\"\")","v":""},null,null,null,null,null,null,null,null,null,null,"","",null,null,null,null,null,null,null,null,null,null,null,null,null,null,null,null,null,null,null,null,null,null,null,null,null,null,null,null,null,null,"DOB Error","DOB Error",""]
[234,null,null,null,null,"",{"$f":"IFERROR(IF(OR(AZ253=1,F253<>\"\"),\"To key in DOB\",#REF!),\"\")","v":""},null,null,null,null,null,null,null,null,null,null,"","",null,null,null,null,null,null,null,null,null,null,null,null,null,null,null,null,null,null,null,null,null,null,null,null,null,null,null,null,null,null,"DOB Error","DOB Error",""]
[235,null,null,null,null,"",{"$f":"IFERROR(IF(OR(AZ254=1,F254<>\"\"),\"To key in DOB\",#REF!),\"\")","v":""},null,null,null,null,null,null,null,null,null,null,"","",null,null,null,null,null,null,null,null,null,null,null,null,null,null,null,null,null,null,null,null,null,null,null,null,null,null,null,null,null,null,"DOB Error","DOB Error",""]
[236,null,null,null,null,"",{"$f":"IFERROR(IF(OR(AZ255=1,F255<>\"\"),\"To key in DOB\",#REF!),\"\")","v":""},null,null,null,null,null,null,null,null,null,null,"","",null,null,null,null,null,null,null,null,null,null,null,null,null,null,null,null,null,null,null,null,null,null,null,null,null,null,null,null,null,null,"DOB Error","DOB Error",""]
[237,null,null,null,null,"",{"$f":"IFERROR(IF(OR(AZ256=1,F256<>\"\"),\"To key in DOB\",#REF!),\"\")","v":""},null,null,null,null,null,null,null,null,null,null,"","",null,null,null,null,null,null,null,null,null,null,null,null,null,null,null,null,null,null,null,null,null,null,null,null,null,null,null,null,null,null,"DOB Error","DOB Error",""]
[238,null,null,null,null,"",{"$f":"IFERROR(IF(OR(AZ257=1,F257<>\"\"),\"To key in DOB\",#REF!),\"\")","v":""},null,null,null,null,null,null,null,null,null,null,"","",null,null,null,null,null,null,null,null,null,null,null,null,null,null,null,null,null,null,null,null,null,null,null,null,null,null,null,null,null,null,"DOB Error","DOB Error",""]
[239,null,null,null,null,"",{"$f":"IFERROR(IF(OR(AZ258=1,F258<>\"\"),\"To key in DOB\",#REF!),\"\")","v":""},null,null,null,null,null,null,null,null,null,null,"","",null,null,null,null,null,null,null,null,null,null,null,null,null,null,null,null,null,null,null,null,null,null,null,null,null,null,null,null,null,null,"DOB Error","DOB Error",""]
[240,null,null,null,null,"",{"$f":"IFERROR(IF(OR(AZ259=1,F259<>\"\"),\"To key in DOB\",#REF!),\"\")","v":""},null,null,null,null,null,null,null,null,null,null,"","",null,null,null,null,null,null,null,null,null,null,null,null,null,null,null,null,null,null,null,null,null,null,null,null,null,null,null,null,null,null,"DOB Error","DOB Error",""]
[241,null,null,null,null,"",{"$f":"IFERROR(IF(OR(AZ260=1,F260<>\"\"),\"To key in DOB\",#REF!),\"\")","v":""},null,null,null,null,null,null,null,null,null,null,"","",null,null,null,null,null,null,null,null,null,null,null,null,null,null,null,null,null,null,null,null,null,null,null,null,null,null,null,null,null,null,"DOB Error","DOB Error",""]
[242,null,null,null,null,"",{"$f":"IFERROR(IF(OR(AZ261=1,F261<>\"\"),\"To key in DOB\",#REF!),\"\")","v":""},null,null,null,null,null,null,null,null,null,null,"","",null,null,null,null,null,null,null,null,null,null,null,null,null,null,null,null,null,null,null,null,null,null,null,null,null,null,null,null,null,null,"DOB Error","DOB Error",""]
[243,null,null,null,null,"",{"$f":"IFERROR(IF(OR(AZ262=1,F262<>\"\"),\"To key in DOB\",#REF!),\"\")","v":""},null,null,null,null,null,null,null,null,null,null,"","",null,null,null,null,null,null,null,null,null,null,null,null,null,null,null,null,null,null,null,null,null,null,null,null,null,null,null,null,null,null,"DOB Error","DOB Error",""]
[244,null,null,null,null,"",{"$f":"IFERROR(IF(OR(AZ263=1,F263<>\"\"),\"To key in DOB\",#REF!),\"\")","v":""},null,null,null,null,null,null,null,null,null,null,"","",null,null,null,null,null,null,null,null,null,null,null,null,null,null,null,null,null,null,null,null,null,null,null,null,null,null,null,null,null,null,"DOB Error","DOB Error",""]
[245,null,null,null,null,"",{"$f":"IFERROR(IF(OR(AZ264=1,F264<>\"\"),\"To key in DOB\",#REF!),\"\")","v":""},null,null,null,null,null,null,null,null,null,null,"","",null,null,null,null,null,null,null,null,null,null,null,null,null,null,null,null,null,null,null,null,null,null,null,null,null,null,null,null,null,null,"DOB Error","DOB Error",""]
[246,null,null,null,null,"",{"$f":"IFERROR(IF(OR(AZ265=1,F265<>\"\"),\"To key in DOB\",#REF!),\"\")","v":""},null,null,null,null,null,null,null,null,null,null,"","",null,null,null,null,null,null,null,null,null,null,null,null,null,null,null,null,null,null,null,null,null,null,null,null,null,null,null,null,null,null,"DOB Error","DOB Error",""]
[247,null,null,null,null,"",{"$f":"IFERROR(IF(OR(AZ266=1,F266<>\"\"),\"To key in DOB\",#REF!),\"\")","v":""},null,null,null,null,null,null,null,null,null,null,"","",null,null,null,null,null,null,null,null,null,null,null,null,null,null,null,null,null,null,null,null,null,null,null,null,null,null,null,null,null,null,"DOB Error","DOB Error",""]
[248,null,null,null,null,"",{"$f":"IFERROR(IF(OR(AZ267=1,F267<>\"\"),\"To key in DOB\",#REF!),\"\")","v":""},null,null,null,null,null,null,null,null,null,null,"","",null,null,null,null,null,null,null,null,null,null,null,null,null,null,null,null,null,null,null,null,null,null,null,null,null,null,null,null,null,null,"DOB Error","DOB Error",""]
[249,null,null,null,null,"",{"$f":"IFERROR(IF(OR(AZ268=1,F268<>\"\"),\"To key in DOB\",#REF!),\"\")","v":""},null,null,null,null,null,null,null,null,null,null,"","",null,null,null,null,null,null,null,null,null,null,null,null,null,null,null,null,null,null,null,null,null,null,null,null,null,null,null,null,null,null,"DOB Error","DOB Error",""]
[250,null,null,null,null,"",{"$f":"IFERROR(IF(OR(AZ269=1,F269<>\"\"),\"To key in DOB\",#REF!),\"\")","v":""},null,null,null,null,null,null,null,null,null,null,"","",null,null,null,null,null,null,null,null,null,null,null,null,null,null,null,null,null,null,null,null,null,null,null,null,null,null,null,null,null,null,"DOB Error","DOB Error",""]
[251,null,null,null,null,"",{"$f":"IFERROR(IF(OR(AZ270=1,F270<>\"\"),\"To key in DOB\",#REF!),\"\")","v":""},null,null,null,null,null,null,null,null,null,null,"","",null,null,null,null,null,null,null,null,null,null,null,null,null,null,null,null,null,null,null,null,null,null,null,null,null,null,null,null,null,null,"DOB Error","DOB Error",""]
[252,null,null,null,null,"",{"$f":"IFERROR(IF(OR(AZ271=1,F271<>\"\"),\"To key in DOB\",#REF!),\"\")","v":""},null,null,null,null,null,null,null,null,null,null,"","",null,null,null,null,null,null,null,null,null,null,null,null,null,null,null,null,null,null,null,null,null,null,null,null,null,null,null,null,null,null,"DOB Error","DOB Error",""]
[253,null,null,null,null,"",{"$f":"IFERROR(IF(OR(AZ272=1,F272<>\"\"),\"To key in DOB\",#REF!),\"\")","v":""},null,null,null,null,null,null,null,null,null,null,"","",null,null,null,null,null,null,null,null,null,null,null,null,null,null,null,null,null,null,null,null,null,null,null,null,null,null,null,null,null,null,"DOB Error","DOB Error",""]
[254,null,null,null,null,"",{"$f":"IFERROR(IF(OR(AZ273=1,F273<>\"\"),\"To key in DOB\",#REF!),\"\")","v":""},null,null,null,null,null,null,null,null,null,null,"","",null,null,null,null,null,null,null,null,null,null,null,null,null,null,null,null,null,null,null,null,null,null,null,null,null,null,null,null,null,null,"DOB Error","DOB Error",""]
[255,null,null,null,null,"",{"$f":"IFERROR(IF(OR(AZ274=1,F274<>\"\"),\"To key in DOB\",#REF!),\"\")","v":""},null,null,null,null,null,null,null,null,null,null,"","",null,null,null,null,null,null,null,null,null,null,null,null,null,null,null,null,null,null,null,null,null,null,null,null,null,null,null,null,null,null,"DOB Error","DOB Error",""]
[256,null,null,null,null,"",{"$f":"IFERROR(IF(OR(AZ275=1,F275<>\"\"),\"To key in DOB\",#REF!),\"\")","v":""},null,null,null,null,null,null,null,null,null,null,"","",null,null,null,null,null,null,null,null,null,null,null,null,null,null,null,null,null,null,null,null,null,null,null,null,null,null,null,null,null,null,{"$f":"IF(ISERROR(AND(SEARCH(\"-\",E275,7)=7,SEARCH(\"-\",E275,9)=10)),\"DOB Error\",\"ok\")","v":"DOB Error"},{"$f":"IF(ISERROR(LEFT(E275,6)+MID(E275,8,2)+RIGHT(E275,4)),\"DOB Error\",\"ok\")","v":"DOB Error"},{"$f":"IF(E275=\"\",\"\",IF(OR(AX275=\"DOB Error\", AY275=\"DOB Error\"),1,0))","v":""}]
[257,null,null,null,null,"",{"$f":"IFERROR(IF(OR(AZ276=1,F276<>\"\"),\"To key in DOB\",#REF!),\"\")","v":""},null,null,null,null,null,null,null,null,null,null,{"$f":"IF(OR(Q276=\"CHANGE\",Q276=\"ADD\",Q276=\"TERMINATE\"),VLOOKUP(Q276,$AR:$AS,2,FALSE),\"\")","v":""},{"$f":"IF(OR(Q276=\"TERMINATE (DEATH)\"),VLOOKUP(Q276,$AR:$AU,4,FALSE),\"\")","v":""},null,null,null,null,null,null,null,null,null,null,null,null,null,null,null,null,null,null,null,null,null,null,null,null,null,null,null,null,null,null,"DOB Error","DOB Error",""]
[258,null,null,null,null,{"$f":"IF(AZ277=1,\"To key in Old IC / Passport / Birth Cert No.\",\"\")","v":""},{"$f":"IFERROR(IF(OR(AZ277=1,F277<>\"\"),\"To key in DOB\",#REF!),\"\")","v":""},null,null,null,null,null,null,null,null,null,null,"","",null,null,null,null,null,null,null,null,null,null,null,null,null,null,null,null,null,null,null,null,null,null,null,null,null,null,null,null,null,null,"DOB Error","DOB Error",""]
[259,null,null,null,null,"",{"$f":"IFERROR(IF(OR(AZ278=1,F278<>\"\"),\"To key in DOB\",#REF!),\"\")","v":""},null,null,null,null,null,null,null,null,null,null,"","",null,null,null,null,null,null,null,null,null,null,null,null,null,null,null,null,null,null,null,null,null,null,null,null,null,null,null,null,null,null,"DOB Error","DOB Error",""]
[260,null,null,null,null,"",{"$f":"IFERROR(IF(OR(AZ279=1,F279<>\"\"),\"To key in DOB\",#REF!),\"\")","v":""},null,null,null,null,null,null,null,null,null,null,"","",null,null,null,null,null,null,null,null,null,null,null,null,null,null,null,null,null,null,null,null,null,null,null,null,null,null,null,null,null,null,"DOB Error","DOB Error",""]
[261,null,null,null,null,"",{"$f":"IFERROR(IF(OR(AZ280=1,F280<>\"\"),\"To key in DOB\",#REF!),\"\")","v":""},null,null,null,null,null,null,null,null,null,null,"","",null,null,null,null,null,null,null,null,null,null,null,null,null,null,null,null,null,null,null,null,null,null,null,null,null,null,null,null,null,null,"DOB Error","DOB Error",""]
[262,null,null,null,null,"",{"$f":"IFERROR(IF(OR(AZ281=1,F281<>\"\"),\"To key in DOB\",#REF!),\"\")","v":""},null,null,null,null,null,null,null,null,null,null,"","",null,null,null,null,null,null,null,null,null,null,null,null,null,null,null,null,null,null,null,null,null,null,null,null,null,null,null,null,null,null,"DOB Error","DOB Error",""]
[263,null,null,null,null,"",{"$f":"IFERROR(IF(OR(AZ282=1,F282<>\"\"),\"To key in DOB\",#REF!),\"\")","v":""},null,null,null,null,null,null,null,null,null,null,"","",null,null,null,null,null,null,null,null,null,null,null,null,null,null,null,null,null,null,null,null,null,null,null,null,null,null,null,null,null,null,"DOB Error","DOB Error",""]
[264,null,null,null,null,"",{"$f":"IFERROR(IF(OR(AZ283=1,F283<>\"\"),\"To key in DOB\",#REF!),\"\")","v":""},null,null,null,null,null,null,null,null,null,null,"","",null,null,null,null,null,null,null,null,null,null,null,null,null,null,null,null,null,null,null,null,null,null,null,null,null,null,null,null,null,null,"DOB Error","DOB Error",""]
[265,null,null,null,null,"",{"$f":"IFERROR(IF(OR(AZ284=1,F284<>\"\"),\"To key in DOB\",#REF!),\"\")","v":""},null,null,null,null,null,null,null,null,null,null,"","",null,null,null,null,null,null,null,null,null,null,null,null,null,null,null,null,null,null,null,null,null,null,null,null,null,null,null,null,null,null,"DOB Error","DOB Error",""]
[266,null,null,null,null,"",{"$f":"IFERROR(IF(OR(AZ285=1,F285<>\"\"),\"To key in DOB\",#REF!),\"\")","v":""},null,null,null,null,null,null,null,null,null,null,"","",null,null,null,null,null,null,null,null,null,null,null,null,null,null,null,null,null,null,null,null,null,null,null,null,null,null,null,null,null,null,"DOB Error","DOB Error",""]
[267,null,null,null,null,"",{"$f":"IFERROR(IF(OR(AZ286=1,F286<>\"\"),\"To key in DOB\",#REF!),\"\")","v":""},null,null,null,null,null,null,null,null,null,null,"","",null,null,null,null,null,null,null,null,null,null,null,null,null,null,null,null,null,null,null,null,null,null,null,null,null,null,null,null,null,null,"DOB Error","DOB Error",""]
[268,null,null,null,null,"",{"$f":"IFERROR(IF(OR(AZ287=1,F287<>\"\"),\"To key in DOB\",#REF!),\"\")","v":""},null,null,null,null,null,null,null,null,null,null,"","",null,null,null,null,null,null,null,null,null,null,null,null,null,null,null,null,null,null,null,null,null,null,null,null,null,null,null,null,null,null,"DOB Error","DOB Error",""]
[269,null,null,null,null,"",{"$f":"IFERROR(IF(OR(AZ288=1,F288<>\"\"),\"To key in DOB\",#REF!),\"\")","v":""},null,null,null,null,null,null,null,null,null,null,"","",null,null,null,null,null,null,null,null,null,null,null,null,null,null,null,null,null,null,null,null,null,null,null,null,null,null,null,null,null,null,"DOB Error","DOB Error",""]
[270,null,null,null,null,"",{"$f":"IFERROR(IF(OR(AZ289=1,F289<>\"\"),\"To key in DOB\",#REF!),\"\")","v":""},null,null,null,null,null,null,null,null,null,null,"","",null,null,null,null,null,null,null,null,null,null,null,null,null,null,null,null,null,null,null,null,null,null,null,null,null,null,null,null,null,null,"DOB Error","DOB Error",""]
[271,null,null,null,null,"",{"$f":"IFERROR(IF(OR(AZ290=1,F290<>\"\"),\"To key in DOB\",#REF!),\"\")","v":""},null,null,null,null,null,null,null,null,null,null,"","",null,null,null,null,null,null,null,null,null,null,null,null,null,null,null,null,null,null,null,null,null,null,null,null,null,null,null,null,null,null,"DOB Error","DOB Error",""]
[272,null,null,null,null,"",{"$f":"IFERROR(IF(OR(AZ291=1,F291<>\"\"),\"To key in DOB\",#REF!),\"\")","v":""},null,null,null,null,null,null,null,null,null,null,"","",null,null,null,null,null,null,null,null,null,null,null,null,null,null,null,null,null,null,null,null,null,null,null,null,null,null,null,null,null,null,"DOB Error","DOB Error",""]
[273,null,null,null,null,"",{"$f":"IFERROR(IF(OR(AZ292=1,F292<>\"\"),\"To key in DOB\",#REF!),\"\")","v":""},null,null,null,null,null,null,null,null,null,null,"","",null,null,null,null,null,null,null,null,null,null,null,null,null,null,null,null,null,null,null,null,null,null,null,null,null,null,null,null,null,null,"DOB Error","DOB Error",""]
[274,null,null,null,null,"",{"$f":"IFERROR(IF(OR(AZ293=1,F293<>\"\"),\"To key in DOB\",#REF!),\"\")","v":""},null,null,null,null,null,null,null,null,null,null,"","",null,null,null,null,null,null,null,null,null,null,null,null,null,null,null,null,null,null,null,null,null,null,null,null,null,null,null,null,null,null,"DOB Error","DOB Error",""]
[275,null,null,null,null,"",{"$f":"IFERROR(IF(OR(AZ294=1,F294<>\"\"),\"To key in DOB\",#REF!),\"\")","v":""},null,null,null,null,null,null,null,null,null,null,"","",null,null,null,null,null,null,null,null,null,null,null,null,null,null,null,null,null,null,null,null,null,null,null,null,null,null,null,null,null,null,"DOB Error","DOB Error",""]
[276,null,null,null,null,"",{"$f":"IFERROR(IF(OR(AZ295=1,F295<>\"\"),\"To key in DOB\",#REF!),\"\")","v":""},null,null,null,null,null,null,null,null,null,null,"","",null,null,null,null,null,null,null,null,null,null,null,null,null,null,null,null,null,null,null,null,null,null,null,null,null,null,null,null,null,null,"DOB Error","DOB Error",""]
[277,null,null,null,null,"",{"$f":"IFERROR(IF(OR(AZ296=1,F296<>\"\"),\"To key in DOB\",#REF!),\"\")","v":""},null,null,null,null,null,null,null,null,null,null,"","",null,null,null,null,null,null,null,null,null,null,null,null,null,null,null,null,null,null,null,null,null,null,null,null,null,null,null,null,null,null,"DOB Error","DOB Error",""]
[278,null,null,null,null,"",{"$f":"IFERROR(IF(OR(AZ297=1,F297<>\"\"),\"To key in DOB\",#REF!),\"\")","v":""},null,null,null,null,null,null,null,null,null,null,"","",null,null,null,null,null,null,null,null,null,null,null,null,null,null,null,null,null,null,null,null,null,null,null,null,null,null,null,null,null,null,"DOB Error","DOB Error",""]
[279,null,null,null,null,"",{"$f":"IFERROR(IF(OR(AZ298=1,F298<>\"\"),\"To key in DOB\",#REF!),\"\")","v":""},null,null,null,null,null,null,null,null,null,null,"","",null,null,null,null,null,null,null,null,null,null,null,null,null,null,null,null,null,null,null,null,null,null,null,null,null,null,null,null,null,null,"DOB Error","DOB Error",""]
[280,null,null,null,null,"",{"$f":"IFERROR(IF(OR(AZ299=1,F299<>\"\"),\"To key in DOB\",#REF!),\"\")","v":""},null,null,null,null,null,null,null,null,null,null,"","",null,null,null,null,null,null,null,null,null,null,null,null,null,null,null,null,null,null,null,null,null,null,null,null,null,null,null,null,null,null,"DOB Error","DOB Error",""]
[281,null,null,null,null,"",{"$f":"IFERROR(IF(OR(AZ300=1,F300<>\"\"),\"To key in DOB\",#REF!),\"\")","v":""},null,null,null,null,null,null,null,null,null,null,"","",null,null,null,null,null,null,null,null,null,null,null,null,null,null,null,null,null,null,null,null,null,null,null,null,null,null,null,null,null,null,"DOB Error","DOB Error",""]
[282,null,null,null,null,"",{"$f":"IFERROR(IF(OR(AZ301=1,F301<>\"\"),\"To key in DOB\",#REF!),\"\")","v":""},null,null,null,null,null,null,null,null,null,null,"","",null,null,null,null,null,null,null,null,null,null,null,null,null,null,null,null,null,null,null,null,null,null,null,null,null,null,null,null,null,null,"DOB Error","DOB Error",""]
[283,null,null,null,null,"",{"$f":"IFERROR(IF(OR(AZ302=1,F302<>\"\"),\"To key in DOB\",#REF!),\"\")","v":""},null,null,null,null,null,null,null,null,null,null,"","",null,null,null,null,null,null,null,null,null,null,null,null,null,null,null,null,null,null,null,null,null,null,null,null,null,null,null,null,null,null,"DOB Error","DOB Error",""]
[284,null,null,null,null,"",{"$f":"IFERROR(IF(OR(AZ303=1,F303<>\"\"),\"To key in DOB\",#REF!),\"\")","v":""},null,null,null,null,null,null,null,null,null,null,"","",null,null,null,null,null,null,null,null,null,null,null,null,null,null,null,null,null,null,null,null,null,null,null,null,null,null,null,null,null,null,"DOB Error","DOB Error",""]
[285,null,null,null,null,"",{"$f":"IFERROR(IF(OR(AZ304=1,F304<>\"\"),\"To key in DOB\",#REF!),\"\")","v":""},null,null,null,null,null,null,null,null,null,null,"","",null,null,null,null,null,null,null,null,null,null,null,null,null,null,null,null,null,null,null,null,null,null,null,null,null,null,null,null,null,null,"DOB Error","DOB Error",""]
[286,null,null,null,null,"",{"$f":"IFERROR(IF(OR(AZ305=1,F305<>\"\"),\"To key in DOB\",#REF!),\"\")","v":""},null,null,null,null,null,null,null,null,null,null,"","",null,null,null,null,null,null,null,null,null,null,null,null,null,null,null,null,null,null,null,null,null,null,null,null,null,null,null,null,null,null,"DOB Error","DOB Error",""]
[287,null,null,null,null,"",{"$f":"IFERROR(IF(OR(AZ306=1,F306<>\"\"),\"To key in DOB\",#REF!),\"\")","v":""},null,null,null,null,null,null,null,null,null,null,"","",null,null,null,null,null,null,null,null,null,null,null,null,null,null,null,null,null,null,null,null,null,null,null,null,null,null,null,null,null,null,"DOB Error","DOB Error",""]
[288,null,null,null,null,"",{"$f":"IFERROR(IF(OR(AZ307=1,F307<>\"\"),\"To key in DOB\",#REF!),\"\")","v":""},null,null,null,null,null,null,null,null,null,null,"","",null,null,null,null,null,null,null,null,null,null,null,null,null,null,null,null,null,null,null,null,null,null,null,null,null,null,null,null,null,null,"DOB Error","DOB Error",""]
[289,null,null,null,null,"",{"$f":"IFERROR(IF(OR(AZ308=1,F308<>\"\"),\"To key in DOB\",#REF!),\"\")","v":""},null,null,null,null,null,null,null,null,null,null,"","",null,null,null,null,null,null,null,null,null,null,null,null,null,null,null,null,null,null,null,null,null,null,null,null,null,null,null,null,null,null,"DOB Error","DOB Error",""]
[290,null,null,null,null,"",{"$f":"IFERROR(IF(OR(AZ309=1,F309<>\"\"),\"To key in DOB\",#REF!),\"\")","v":""},null,null,null,null,null,null,null,null,null,null,"","",null,null,null,null,null,null,null,null,null,null,null,null,null,null,null,null,null,null,null,null,null,null,null,null,null,null,null,null,null,null,"DOB Error","DOB Error",""]
[291,null,null,null,null,"",{"$f":"IFERROR(IF(OR(AZ310=1,F310<>\"\"),\"To key in DOB\",#REF!),\"\")","v":""},null,null,null,null,null,null,null,null,null,null,"","",null,null,null,null,null,null,null,null,null,null,null,null,null,null,null,null,null,null,null,null,null,null,null,null,null,null,null,null,null,null,"DOB Error","DOB Error",""]
[292,null,null,null,null,"",{"$f":"IFERROR(IF(OR(AZ311=1,F311<>\"\"),\"To key in DOB\",#REF!),\"\")","v":""},null,null,null,null,null,null,null,null,null,null,"","",null,null,null,null,null,null,null,null,null,null,null,null,null,null,null,null,null,null,null,null,null,null,null,null,null,null,null,null,null,null,"DOB Error","DOB Error",""]
[293,null,null,null,null,"",{"$f":"IFERROR(IF(OR(AZ312=1,F312<>\"\"),\"To key in DOB\",#REF!),\"\")","v":""},null,null,null,null,null,null,null,null,null,null,"","",null,null,null,null,null,null,null,null,null,null,null,null,null,null,null,null,null,null,null,null,null,null,null,null,null,null,null,null,null,null,"DOB Error","DOB Error",""]
[294,null,null,null,null,"",{"$f":"IFERROR(IF(OR(AZ313=1,F313<>\"\"),\"To key in DOB\",#REF!),\"\")","v":""},null,null,null,null,null,null,null,null,null,null,"","",null,null,null,null,null,null,null,null,null,null,null,null,null,null,null,null,null,null,null,null,null,null,null,null,null,null,null,null,null,null,"DOB Error","DOB Error",""]
[295,null,null,null,null,"",{"$f":"IFERROR(IF(OR(AZ314=1,F314<>\"\"),\"To key in DOB\",#REF!),\"\")","v":""},null,null,null,null,null,null,null,null,null,null,"","",null,null,null,null,null,null,null,null,null,null,null,null,null,null,null,null,null,null,null,null,null,null,null,null,null,null,null,null,null,null,"DOB Error","DOB Error",""]
[296,null,null,null,null,"",{"$f":"IFERROR(IF(OR(AZ315=1,F315<>\"\"),\"To key in DOB\",#REF!),\"\")","v":""},null,null,null,null,null,null,null,null,null,null,"","",null,null,null,null,null,null,null,null,null,null,null,null,null,null,null,null,null,null,null,null,null,null,null,null,null,null,null,null,null,null,"DOB Error","DOB Error",""]
[297,null,null,null,null,"",{"$f":"IFERROR(IF(OR(AZ316=1,F316<>\"\"),\"To key in DOB\",#REF!),\"\")","v":""},null,null,null,null,null,null,null,null,null,null,"","",null,null,null,null,null,null,null,null,null,null,null,null,null,null,null,null,null,null,null,null,null,null,null,null,null,null,null,null,null,null,"DOB Error","DOB Error",""]
[298,null,null,null,null,"",{"$f":"IFERROR(IF(OR(AZ317=1,F317<>\"\"),\"To key in DOB\",#REF!),\"\")","v":""},null,null,null,null,null,null,null,null,null,null,"","",null,null,null,null,null,null,null,null,null,null,null,null,null,null,null,null,null,null,null,null,null,null,null,null,null,null,null,null,null,null,"DOB Error","DOB Error",""]
[299,null,null,null,null,"",{"$f":"IFERROR(IF(OR(AZ318=1,F318<>\"\"),\"To key in DOB\",#REF!),\"\")","v":""},null,null,null,null,null,null,null,null,null,null,"","",null,null,null,null,null,null,null,null,null,null,null,null,null,null,null,null,null,null,null,null,null,null,null,null,null,null,null,null,null,null,"DOB Error","DOB Error",""]
[300,null,null,null,null,"",{"$f":"IFERROR(IF(OR(AZ319=1,F319<>\"\"),\"To key in DOB\",#REF!),\"\")","v":""},null,null,null,null,null,null,null,null,null,null,"","",null,null,null,null,null,null,null,null,null,null,null,null,null,null,null,null,null,null,null,null,null,null,null,null,null,null,null,null,null,null,"DOB Error","DOB Error",""]
[301,null,null,null,null,"",{"$f":"IFERROR(IF(OR(AZ320=1,F320<>\"\"),\"To key in DOB\",#REF!),\"\")","v":""},null,null,null,null,null,null,null,null,null,null,"","",null,null,null,null,null,null,null,null,null,null,null,null,null,null,null,null,null,null,null,null,null,null,null,null,null,null,null,null,null,null,"DOB Error","DOB Error",""]
[302,null,null,null,null,"",{"$f":"IFERROR(IF(OR(AZ321=1,F321<>\"\"),\"To key in DOB\",#REF!),\"\")","v":""},null,null,null,null,null,null,null,null,null,null,"","",null,null,null,null,null,null,null,null,null,null,null,null,null,null,null,null,null,null,null,null,null,null,null,null,null,null,null,null,null,null,"DOB Error","DOB Error",""]
[303,null,null,null,null,"",{"$f":"IFERROR(IF(OR(AZ322=1,F322<>\"\"),\"To key in DOB\",#REF!),\"\")","v":""},null,null,null,null,null,null,null,null,null,null,"","",null,null,null,null,null,null,null,null,null,null,null,null,null,null,null,null,null,null,null,null,null,null,null,null,null,null,null,null,null,null,"DOB Error","DOB Error",""]
[304,null,null,null,null,"",{"$f":"IFERROR(IF(OR(AZ323=1,F323<>\"\"),\"To key in DOB\",#REF!),\"\")","v":""},null,null,null,null,null,null,null,null,null,null,"","",null,null,null,null,null,null,null,null,null,null,null,null,null,null,null,null,null,null,null,null,null,null,null,null,null,null,null,null,null,null,"DOB Error","DOB Error",""]
[305,null,null,null,null,"",{"$f":"IFERROR(IF(OR(AZ324=1,F324<>\"\"),\"To key in DOB\",#REF!),\"\")","v":""},null,null,null,null,null,null,null,null,null,null,"","",null,null,null,null,null,null,null,null,null,null,null,null,null,null,null,null,null,null,null,null,null,null,null,null,null,null,null,null,null,null,"DOB Error","DOB Error",""]
[306,null,null,null,null,"",{"$f":"IFERROR(IF(OR(AZ325=1,F325<>\"\"),\"To key in DOB\",#REF!),\"\")","v":""},null,null,null,null,null,null,null,null,null,null,"","",null,null,null,null,null,null,null,null,null,null,null,null,null,null,null,null,null,null,null,null,null,null,null,null,null,null,null,null,null,null,"DOB Error","DOB Error",""]
[307,null,null,null,null,"",{"$f":"IFERROR(IF(OR(AZ326=1,F326<>\"\"),\"To key in DOB\",#REF!),\"\")","v":""},null,null,null,null,null,null,null,null,null,null,"","",null,null,null,null,null,null,null,null,null,null,null,null,null,null,null,null,null,null,null,null,null,null,null,null,null,null,null,null,null,null,"DOB Error","DOB Error",""]
[308,null,null,null,null,"",{"$f":"IFERROR(IF(OR(AZ327=1,F327<>\"\"),\"To key in DOB\",#REF!),\"\")","v":""},null,null,null,null,null,null,null,null,null,null,"","",null,null,null,null,null,null,null,null,null,null,null,null,null,null,null,null,null,null,null,null,null,null,null,null,null,null,null,null,null,null,"DOB Error","DOB Error",""]
[309,null,null,null,null,"",{"$f":"IFERROR(IF(OR(AZ328=1,F328<>\"\"),\"To key in DOB\",#REF!),\"\")","v":""},null,null,null,null,null,null,null,null,null,null,"","",null,null,null,null,null,null,null,null,null,null,null,null,null,null,null,null,null,null,null,null,null,null,null,null,null,null,null,null,null,null,"DOB Error","DOB Error",""]
[310,null,null,null,null,"",{"$f":"IFERROR(IF(OR(AZ329=1,F329<>\"\"),\"To key in DOB\",#REF!),\"\")","v":""},null,null,null,null,null,null,null,null,null,null,"","",null,null,null,null,null,null,null,null,null,null,null,null,null,null,null,null,null,null,null,null,null,null,null,null,null,null,null,null,null,null,"DOB Error","DOB Error",""]
[311,null,null,null,null,"",{"$f":"IFERROR(IF(OR(AZ330=1,F330<>\"\"),\"To key in DOB\",#REF!),\"\")","v":""},null,null,null,null,null,null,null,null,null,null,"","",null,null,null,null,null,null,null,null,null,null,null,null,null,null,null,null,null,null,null,null,null,null,null,null,null,null,null,null,null,null,"DOB Error","DOB Error",""]
[312,null,null,null,null,"",{"$f":"IFERROR(IF(OR(AZ331=1,F331<>\"\"),\"To key in DOB\",#REF!),\"\")","v":""},null,null,null,null,null,null,null,null,null,null,"","",null,null,null,null,null,null,null,null,null,null,null,null,null,null,null,null,null,null,null,null,null,null,null,null,null,null,null,null,null,null,"DOB Error","DOB Error",""]
[313,null,null,null,null,"",{"$f":"IFERROR(IF(OR(AZ332=1,F332<>\"\"),\"To key in DOB\",#REF!),\"\")","v":""},null,null,null,null,null,null,null,null,null,null,"","",null,null,null,null,null,null,null,null,null,null,null,null,null,null,null,null,null,null,null,null,null,null,null,null,null,null,null,null,null,null,"DOB Error","DOB Error",""]
[314,null,null,null,null,"",{"$f":"IFERROR(IF(OR(AZ333=1,F333<>\"\"),\"To key in DOB\",#REF!),\"\")","v":""},null,null,null,null,null,null,null,null,null,null,"","",null,null,null,null,null,null,null,null,null,null,null,null,null,null,null,null,null,null,null,null,null,null,null,null,null,null,null,null,null,null,"DOB Error","DOB Error",""]
[315,null,null,null,null,"",{"$f":"IFERROR(IF(OR(AZ334=1,F334<>\"\"),\"To key in DOB\",#REF!),\"\")","v":""},null,null,null,null,null,null,null,null,null,null,"","",null,null,null,null,null,null,null,null,null,null,null,null,null,null,null,null,null,null,null,null,null,null,null,null,null,null,null,null,null,null,"DOB Error","DOB Error",""]
[316,null,null,null,null,"",{"$f":"IFERROR(IF(OR(AZ335=1,F335<>\"\"),\"To key in DOB\",#REF!),\"\")","v":""},null,null,null,null,null,null,null,null,null,null,"","",null,null,null,null,null,null,null,null,null,null,null,null,null,null,null,null,null,null,null,null,null,null,null,null,null,null,null,null,null,null,"DOB Error","DOB Error",""]
[317,null,null,null,null,"",{"$f":"IFERROR(IF(OR(AZ336=1,F336<>\"\"),\"To key in DOB\",#REF!),\"\")","v":""},null,null,null,null,null,null,null,null,null,null,"","",null,null,null,null,null,null,null,null,null,null,null,null,null,null,null,null,null,null,null,null,null,null,null,null,null,null,null,null,null,null,"DOB Error","DOB Error",""]
[318,null,null,null,null,"",{"$f":"IFERROR(IF(OR(AZ337=1,F337<>\"\"),\"To key in DOB\",#REF!),\"\")","v":""},null,null,null,null,null,null,null,null,null,null,"","",null,null,null,null,null,null,null,null,null,null,null,null,null,null,null,null,null,null,null,null,null,null,null,null,null,null,null,null,null,null,"DOB Error","DOB Error",""]
[319,null,null,null,null,"",{"$f":"IFERROR(IF(OR(AZ338=1,F338<>\"\"),\"To key in DOB\",#REF!),\"\")","v":""},null,null,null,null,null,null,null,null,null,null,"","",null,null,null,null,null,null,null,null,null,null,null,null,null,null,null,null,null,null,null,null,null,null,null,null,null,null,null,null,null,null,"DOB Error","DOB Error",""]
[320,null,null,null,null,"",{"$f":"IFERROR(IF(OR(AZ339=1,F339<>\"\"),\"To key in DOB\",#REF!),\"\")","v":""},null,null,null,null,null,null,null,null,null,null,"","",null,null,null,null,null,null,null,null,null,null,null,null,null,null,null,null,null,null,null,null,null,null,null,null,null,null,null,null,null,null,{"$f":"IF(ISERROR(AND(SEARCH(\"-\",E339,7)=7,SEARCH(\"-\",E339,9)=10)),\"DOB Error\",\"ok\")","v":"DOB Error"},{"$f":"IF(ISERROR(LEFT(E339,6)+MID(E339,8,2)+RIGHT(E339,4)),\"DOB Error\",\"ok\")","v":"DOB Error"},{"$f":"IF(E339=\"\",\"\",IF(OR(AX339=\"DOB Error\", AY339=\"DOB Error\"),1,0))","v":""}]
[321,null,null,null,null,"",{"$f":"IFERROR(IF(OR(AZ340=1,F340<>\"\"),\"To key in DOB\",#REF!),\"\")","v":""},null,null,null,null,null,null,null,null,null,null,{"$f":"IF(OR(Q340=\"CHANGE\",Q340=\"ADD\",Q340=\"TERMINATE\"),VLOOKUP(Q340,$AR:$AS,2,FALSE),\"\")","v":""},{"$f":"IF(OR(Q340=\"TERMINATE (DEATH)\"),VLOOKUP(Q340,$AR:$AU,4,FALSE),\"\")","v":""},null,null,null,null,null,null,null,null,null,null,null,null,null,null,null,null,null,null,null,null,null,null,null,null,null,null,null,null,null,null,"DOB Error","DOB Error",""]
[322,null,null,null,null,{"$f":"IF(AZ341=1,\"To key in Old IC / Passport / Birth Cert No.\",\"\")","v":""},{"$f":"IFERROR(IF(OR(AZ341=1,F341<>\"\"),\"To key in DOB\",#REF!),\"\")","v":""},null,null,null,null,null,null,null,null,null,null,"","",null,null,null,null,null,null,null,null,null,null,null,null,null,null,null,null,null,null,null,null,null,null,null,null,null,null,null,null,null,null,"DOB Error","DOB Error",""]
[323,null,null,null,null,"",{"$f":"IFERROR(IF(OR(AZ342=1,F342<>\"\"),\"To key in DOB\",#REF!),\"\")","v":""},null,null,null,null,null,null,null,null,null,null,"","",null,null,null,null,null,null,null,null,null,null,null,null,null,null,null,null,null,null,null,null,null,null,null,null,null,null,null,null,null,null,"DOB Error","DOB Error",""]
[324,null,null,null,null,"",{"$f":"IFERROR(IF(OR(AZ343=1,F343<>\"\"),\"To key in DOB\",#REF!),\"\")","v":""},null,null,null,null,null,null,null,null,null,null,"","",null,null,null,null,null,null,null,null,null,null,null,null,null,null,null,null,null,null,null,null,null,null,null,null,null,null,null,null,null,null,"DOB Error","DOB Error",""]
[325,null,null,null,null,"",{"$f":"IFERROR(IF(OR(AZ344=1,F344<>\"\"),\"To key in DOB\",#REF!),\"\")","v":""},null,null,null,null,null,null,null,null,null,null,"","",null,null,null,null,null,null,null,null,null,null,null,null,null,null,null,null,null,null,null,null,null,null,null,null,null,null,null,null,null,null,"DOB Error","DOB Error",""]
[326,null,null,null,null,"",{"$f":"IFERROR(IF(OR(AZ345=1,F345<>\"\"),\"To key in DOB\",#REF!),\"\")","v":""},null,null,null,null,null,null,null,null,null,null,"","",null,null,null,null,null,null,null,null,null,null,null,null,null,null,null,null,null,null,null,null,null,null,null,null,null,null,null,null,null,null,"DOB Error","DOB Error",""]
[327,null,null,null,null,"",{"$f":"IFERROR(IF(OR(AZ346=1,F346<>\"\"),\"To key in DOB\",#REF!),\"\")","v":""},null,null,null,null,null,null,null,null,null,null,"","",null,null,null,null,null,null,null,null,null,null,null,null,null,null,null,null,null,null,null,null,null,null,null,null,null,null,null,null,null,null,"DOB Error","DOB Error",""]
[328,null,null,null,null,"",{"$f":"IFERROR(IF(OR(AZ347=1,F347<>\"\"),\"To key in DOB\",#REF!),\"\")","v":""},null,null,null,null,null,null,null,null,null,null,"","",null,null,null,null,null,null,null,null,null,null,null,null,null,null,null,null,null,null,null,null,null,null,null,null,null,null,null,null,null,null,"DOB Error","DOB Error",""]
[329,null,null,null,null,"",{"$f":"IFERROR(IF(OR(AZ348=1,F348<>\"\"),\"To key in DOB\",#REF!),\"\")","v":""},null,null,null,null,null,null,null,null,null,null,"","",null,null,null,null,null,null,null,null,null,null,null,null,null,null,null,null,null,null,null,null,null,null,null,null,null,null,null,null,null,null,"DOB Error","DOB Error",""]
[330,null,null,null,null,"",{"$f":"IFERROR(IF(OR(AZ349=1,F349<>\"\"),\"To key in DOB\",#REF!),\"\")","v":""},null,null,null,null,null,null,null,null,null,null,"","",null,null,null,null,null,null,null,null,null,null,null,null,null,null,null,null,null,null,null,null,null,null,null,null,null,null,null,null,null,null,"DOB Error","DOB Error",""]
[331,null,null,null,null,"",{"$f":"IFERROR(IF(OR(AZ350=1,F350<>\"\"),\"To key in DOB\",#REF!),\"\")","v":""},null,null,null,null,null,null,null,null,null,null,"","",null,null,null,null,null,null,null,null,null,null,null,null,null,null,null,null,null,null,null,null,null,null,null,null,null,null,null,null,null,null,"DOB Error","DOB Error",""]
[332,null,null,null,null,"",{"$f":"IFERROR(IF(OR(AZ351=1,F351<>\"\"),\"To key in DOB\",#REF!),\"\")","v":""},null,null,null,null,null,null,null,null,null,null,"","",null,null,null,null,null,null,null,null,null,null,null,null,null,null,null,null,null,null,null,null,null,null,null,null,null,null,null,null,null,null,"DOB Error","DOB Error",""]
[333,null,null,null,null,"",{"$f":"IFERROR(IF(OR(AZ352=1,F352<>\"\"),\"To key in DOB\",#REF!),\"\")","v":""},null,null,null,null,null,null,null,null,null,null,"","",null,null,null,null,null,null,null,null,null,null,null,null,null,null,null,null,null,null,null,null,null,null,null,null,null,null,null,null,null,null,"DOB Error","DOB Error",""]
[334,null,null,null,null,"",{"$f":"IFERROR(IF(OR(AZ353=1,F353<>\"\"),\"To key in DOB\",#REF!),\"\")","v":""},null,null,null,null,null,null,null,null,null,null,"","",null,null,null,null,null,null,null,null,null,null,null,null,null,null,null,null,null,null,null,null,null,null,null,null,null,null,null,null,null,null,"DOB Error","DOB Error",""]
[335,null,null,null,null,"",{"$f":"IFERROR(IF(OR(AZ354=1,F354<>\"\"),\"To key in DOB\",#REF!),\"\")","v":""},null,null,null,null,null,null,null,null,null,null,"","",null,null,null,null,null,null,null,null,null,null,null,null,null,null,null,null,null,null,null,null,null,null,null,null,null,null,null,null,null,null,"DOB Error","DOB Error",""]
[336,null,null,null,null,"",{"$f":"IFERROR(IF(OR(AZ355=1,F355<>\"\"),\"To key in DOB\",#REF!),\"\")","v":""},null,null,null,null,null,null,null,null,null,null,"","",null,null,null,null,null,null,null,null,null,null,null,null,null,null,null,null,null,null,null,null,null,null,null,null,null,null,null,null,null,null,"DOB Error","DOB Error",""]
[337,null,null,null,null,"",{"$f":"IFERROR(IF(OR(AZ356=1,F356<>\"\"),\"To key in DOB\",#REF!),\"\")","v":""},null,null,null,null,null,null,null,null,null,null,"","",null,null,null,null,null,null,null,null,null,null,null,null,null,null,null,null,null,null,null,null,null,null,null,null,null,null,null,null,null,null,"DOB Error","DOB Error",""]
[338,null,null,null,null,"",{"$f":"IFERROR(IF(OR(AZ357=1,F357<>\"\"),\"To key in DOB\",#REF!),\"\")","v":""},null,null,null,null,null,null,null,null,null,null,"","",null,null,null,null,null,null,null,null,null,null,null,null,null,null,null,null,null,null,null,null,null,null,null,null,null,null,null,null,null,null,"DOB Error","DOB Error",""]
[339,null,null,null,null,"",{"$f":"IFERROR(IF(OR(AZ358=1,F358<>\"\"),\"To key in DOB\",#REF!),\"\")","v":""},null,null,null,null,null,null,null,null,null,null,"","",null,null,null,null,null,null,null,null,null,null,null,null,null,null,null,null,null,null,null,null,null,null,null,null,null,null,null,null,null,null,"DOB Error","DOB Error",""]
[340,null,null,null,null,"",{"$f":"IFERROR(IF(OR(AZ359=1,F359<>\"\"),\"To key in DOB\",#REF!),\"\")","v":""},null,null,null,null,null,null,null,null,null,null,"","",null,null,null,null,null,null,null,null,null,null,null,null,null,null,null,null,null,null,null,null,null,null,null,null,null,null,null,null,null,null,"DOB Error","DOB Error",""]
[341,null,null,null,null,"",{"$f":"IFERROR(IF(OR(AZ360=1,F360<>\"\"),\"To key in DOB\",#REF!),\"\")","v":""},null,null,null,null,null,null,null,null,null,null,"","",null,null,null,null,null,null,null,null,null,null,null,null,null,null,null,null,null,null,null,null,null,null,null,null,null,null,null,null,null,null,"DOB Error","DOB Error",""]
[342,null,null,null,null,"",{"$f":"IFERROR(IF(OR(AZ361=1,F361<>\"\"),\"To key in DOB\",#REF!),\"\")","v":""},null,null,null,null,null,null,null,null,null,null,"","",null,null,null,null,null,null,null,null,null,null,null,null,null,null,null,null,null,null,null,null,null,null,null,null,null,null,null,null,null,null,"DOB Error","DOB Error",""]
[343,null,null,null,null,"",{"$f":"IFERROR(IF(OR(AZ362=1,F362<>\"\"),\"To key in DOB\",#REF!),\"\")","v":""},null,null,null,null,null,null,null,null,null,null,"","",null,null,null,null,null,null,null,null,null,null,null,null,null,null,null,null,null,null,null,null,null,null,null,null,null,null,null,null,null,null,"DOB Error","DOB Error",""]
[344,null,null,null,null,"",{"$f":"IFERROR(IF(OR(AZ363=1,F363<>\"\"),\"To key in DOB\",#REF!),\"\")","v":""},null,null,null,null,null,null,null,null,null,null,"","",null,null,null,null,null,null,null,null,null,null,null,null,null,null,null,null,null,null,null,null,null,null,null,null,null,null,null,null,null,null,"DOB Error","DOB Error",""]
[345,null,null,null,null,"",{"$f":"IFERROR(IF(OR(AZ364=1,F364<>\"\"),\"To key in DOB\",#REF!),\"\")","v":""},null,null,null,null,null,null,null,null,null,null,"","",null,null,null,null,null,null,null,null,null,null,null,null,null,null,null,null,null,null,null,null,null,null,null,null,null,null,null,null,null,null,"DOB Error","DOB Error",""]
[346,null,null,null,null,"",{"$f":"IFERROR(IF(OR(AZ365=1,F365<>\"\"),\"To key in DOB\",#REF!),\"\")","v":""},null,null,null,null,null,null,null,null,null,null,"","",null,null,null,null,null,null,null,null,null,null,null,null,null,null,null,null,null,null,null,null,null,null,null,null,null,null,null,null,null,null,"DOB Error","DOB Error",""]
[347,null,null,null,null,"",{"$f":"IFERROR(IF(OR(AZ366=1,F366<>\"\"),\"To key in DOB\",#REF!),\"\")","v":""},null,null,null,null,null,null,null,null,null,null,"","",null,null,null,null,null,null,null,null,null,null,null,null,null,null,null,null,null,null,null,null,null,null,null,null,null,null,null,null,null,null,"DOB Error","DOB Error",""]
[348,null,null,null,null,"",{"$f":"IFERROR(IF(OR(AZ367=1,F367<>\"\"),\"To key in DOB\",#REF!),\"\")","v":""},null,null,null,null,null,null,null,null,null,null,"","",null,null,null,null,null,null,null,null,null,null,null,null,null,null,null,null,null,null,null,null,null,null,null,null,null,null,null,null,null,null,"DOB Error","DOB Error",""]
[349,null,null,null,null,"",{"$f":"IFERROR(IF(OR(AZ368=1,F368<>\"\"),\"To key in DOB\",#REF!),\"\")","v":""},null,null,null,null,null,null,null,null,null,null,"","",null,null,null,null,null,null,null,null,null,null,null,null,null,null,null,null,null,null,null,null,null,null,null,null,null,null,null,null,null,null,"DOB Error","DOB Error",""]
[350,null,null,null,null,"",{"$f":"IFERROR(IF(OR(AZ369=1,F369<>\"\"),\"To key in DOB\",#REF!),\"\")","v":""},null,null,null,null,null,null,null,null,null,null,"","",null,null,null,null,null,null,null,null,null,null,null,null,null,null,null,null,null,null,null,null,null,null,null,null,null,null,null,null,null,null,"DOB Error","DOB Error",""]
[351,null,null,null,null,"",{"$f":"IFERROR(IF(OR(AZ370=1,F370<>\"\"),\"To key in DOB\",#REF!),\"\")","v":""},null,null,null,null,null,null,null,null,null,null,"","",null,null,null,null,null,null,null,null,null,null,null,null,null,null,null,null,null,null,null,null,null,null,null,null,null,null,null,null,null,null,"DOB Error","DOB Error",""]
[352,null,null,null,null,"",{"$f":"IFERROR(IF(OR(AZ371=1,F371<>\"\"),\"To key in DOB\",#REF!),\"\")","v":""},null,null,null,null,null,null,null,null,null,null,"","",null,null,null,null,null,null,null,null,null,null,null,null,null,null,null,null,null,null,null,null,null,null,null,null,null,null,null,null,null,null,"DOB Error","DOB Error",""]
[353,null,null,null,null,"",{"$f":"IFERROR(IF(OR(AZ372=1,F372<>\"\"),\"To key in DOB\",#REF!),\"\")","v":""},null,null,null,null,null,null,null,null,null,null,"","",null,null,null,null,null,null,null,null,null,null,null,null,null,null,null,null,null,null,null,null,null,null,null,null,null,null,null,null,null,null,"DOB Error","DOB Error",""]
[354,null,null,null,null,"",{"$f":"IFERROR(IF(OR(AZ373=1,F373<>\"\"),\"To key in DOB\",#REF!),\"\")","v":""},null,null,null,null,null,null,null,null,null,null,"","",null,null,null,null,null,null,null,null,null,null,null,null,null,null,null,null,null,null,null,null,null,null,null,null,null,null,null,null,null,null,"DOB Error","DOB Error",""]
[355,null,null,null,null,"",{"$f":"IFERROR(IF(OR(AZ374=1,F374<>\"\"),\"To key in DOB\",#REF!),\"\")","v":""},null,null,null,null,null,null,null,null,null,null,"","",null,null,null,null,null,null,null,null,null,null,null,null,null,null,null,null,null,null,null,null,null,null,null,null,null,null,null,null,null,null,"DOB Error","DOB Error",""]
[356,null,null,null,null,"",{"$f":"IFERROR(IF(OR(AZ375=1,F375<>\"\"),\"To key in DOB\",#REF!),\"\")","v":""},null,null,null,null,null,null,null,null,null,null,"","",null,null,null,null,null,null,null,null,null,null,null,null,null,null,null,null,null,null,null,null,null,null,null,null,null,null,null,null,null,null,"DOB Error","DOB Error",""]
[357,null,null,null,null,"",{"$f":"IFERROR(IF(OR(AZ376=1,F376<>\"\"),\"To key in DOB\",#REF!),\"\")","v":""},null,null,null,null,null,null,null,null,null,null,"","",null,null,null,null,null,null,null,null,null,null,null,null,null,null,null,null,null,null,null,null,null,null,null,null,null,null,null,null,null,null,"DOB Error","DOB Error",""]
[358,null,null,null,null,"",{"$f":"IFERROR(IF(OR(AZ377=1,F377<>\"\"),\"To key in DOB\",#REF!),\"\")","v":""},null,null,null,null,null,null,null,null,null,null,"","",null,null,null,null,null,null,null,null,null,null,null,null,null,null,null,null,null,null,null,null,null,null,null,null,null,null,null,null,null,null,"DOB Error","DOB Error",""]
[359,null,null,null,null,"",{"$f":"IFERROR(IF(OR(AZ378=1,F378<>\"\"),\"To key in DOB\",#REF!),\"\")","v":""},null,null,null,null,null,null,null,null,null,null,"","",null,null,null,null,null,null,null,null,null,null,null,null,null,null,null,null,null,null,null,null,null,null,null,null,null,null,null,null,null,null,"DOB Error","DOB Error",""]
[360,null,null,null,null,"",{"$f":"IFERROR(IF(OR(AZ379=1,F379<>\"\"),\"To key in DOB\",#REF!),\"\")","v":""},null,null,null,null,null,null,null,null,null,null,"","",null,null,null,null,null,null,null,null,null,null,null,null,null,null,null,null,null,null,null,null,null,null,null,null,null,null,null,null,null,null,"DOB Error","DOB Error",""]
[361,null,null,null,null,"",{"$f":"IFERROR(IF(OR(AZ380=1,F380<>\"\"),\"To key in DOB\",#REF!),\"\")","v":""},null,null,null,null,null,null,null,null,null,null,"","",null,null,null,null,null,null,null,null,null,null,null,null,null,null,null,null,null,null,null,null,null,null,null,null,null,null,null,null,null,null,"DOB Error","DOB Error",""]
[362,null,null,null,null,"",{"$f":"IFERROR(IF(OR(AZ381=1,F381<>\"\"),\"To key in DOB\",#REF!),\"\")","v":""},null,null,null,null,null,null,null,null,null,null,"","",null,null,null,null,null,null,null,null,null,null,null,null,null,null,null,null,null,null,null,null,null,null,null,null,null,null,null,null,null,null,"DOB Error","DOB Error",""]
[363,null,null,null,null,"",{"$f":"IFERROR(IF(OR(AZ382=1,F382<>\"\"),\"To key in DOB\",#REF!),\"\")","v":""},null,null,null,null,null,null,null,null,null,null,"","",null,null,null,null,null,null,null,null,null,null,null,null,null,null,null,null,null,null,null,null,null,null,null,null,null,null,null,null,null,null,"DOB Error","DOB Error",""]
[364,null,null,null,null,"",{"$f":"IFERROR(IF(OR(AZ383=1,F383<>\"\"),\"To key in DOB\",#REF!),\"\")","v":""},null,null,null,null,null,null,null,null,null,null,"","",null,null,null,null,null,null,null,null,null,null,null,null,null,null,null,null,null,null,null,null,null,null,null,null,null,null,null,null,null,null,"DOB Error","DOB Error",""]
[365,null,null,null,null,"",{"$f":"IFERROR(IF(OR(AZ384=1,F384<>\"\"),\"To key in DOB\",#REF!),\"\")","v":""},null,null,null,null,null,null,null,null,null,null,"","",null,null,null,null,null,null,null,null,null,null,null,null,null,null,null,null,null,null,null,null,null,null,null,null,null,null,null,null,null,null,"DOB Error","DOB Error",""]
[366,null,null,null,null,"",{"$f":"IFERROR(IF(OR(AZ385=1,F385<>\"\"),\"To key in DOB\",#REF!),\"\")","v":""},null,null,null,null,null,null,null,null,null,null,"","",null,null,null,null,null,null,null,null,null,null,null,null,null,null,null,null,null,null,null,null,null,null,null,null,null,null,null,null,null,null,"DOB Error","DOB Error",""]
[367,null,null,null,null,"",{"$f":"IFERROR(IF(OR(AZ386=1,F386<>\"\"),\"To key in DOB\",#REF!),\"\")","v":""},null,null,null,null,null,null,null,null,null,null,"","",null,null,null,null,null,null,null,null,null,null,null,null,null,null,null,null,null,null,null,null,null,null,null,null,null,null,null,null,null,null,"DOB Error","DOB Error",""]
[368,null,null,null,null,"",{"$f":"IFERROR(IF(OR(AZ387=1,F387<>\"\"),\"To key in DOB\",#REF!),\"\")","v":""},null,null,null,null,null,null,null,null,null,null,"","",null,null,null,null,null,null,null,null,null,null,null,null,null,null,null,null,null,null,null,null,null,null,null,null,null,null,null,null,null,null,"DOB Error","DOB Error",""]
[369,null,null,null,null,"",{"$f":"IFERROR(IF(OR(AZ388=1,F388<>\"\"),\"To key in DOB\",#REF!),\"\")","v":""},null,null,null,null,null,null,null,null,null,null,"","",null,null,null,null,null,null,null,null,null,null,null,null,null,null,null,null,null,null,null,null,null,null,null,null,null,null,null,null,null,null,"DOB Error","DOB Error",""]
[370,null,null,null,null,"",{"$f":"IFERROR(IF(OR(AZ389=1,F389<>\"\"),\"To key in DOB\",#REF!),\"\")","v":""},null,null,null,null,null,null,null,null,null,null,"","",null,null,null,null,null,null,null,null,null,null,null,null,null,null,null,null,null,null,null,null,null,null,null,null,null,null,null,null,null,null,"DOB Error","DOB Error",""]
[371,null,null,null,null,"",{"$f":"IFERROR(IF(OR(AZ390=1,F390<>\"\"),\"To key in DOB\",#REF!),\"\")","v":""},null,null,null,null,null,null,null,null,null,null,"","",null,null,null,null,null,null,null,null,null,null,null,null,null,null,null,null,null,null,null,null,null,null,null,null,null,null,null,null,null,null,"DOB Error","DOB Error",""]
[372,null,null,null,null,"",{"$f":"IFERROR(IF(OR(AZ391=1,F391<>\"\"),\"To key in DOB\",#REF!),\"\")","v":""},null,null,null,null,null,null,null,null,null,null,"","",null,null,null,null,null,null,null,null,null,null,null,null,null,null,null,null,null,null,null,null,null,null,null,null,null,null,null,null,null,null,"DOB Error","DOB Error",""]
[373,null,null,null,null,"",{"$f":"IFERROR(IF(OR(AZ392=1,F392<>\"\"),\"To key in DOB\",#REF!),\"\")","v":""},null,null,null,null,null,null,null,null,null,null,"","",null,null,null,null,null,null,null,null,null,null,null,null,null,null,null,null,null,null,null,null,null,null,null,null,null,null,null,null,null,null,"DOB Error","DOB Error",""]
[374,null,null,null,null,"",{"$f":"IFERROR(IF(OR(AZ393=1,F393<>\"\"),\"To key in DOB\",#REF!),\"\")","v":""},null,null,null,null,null,null,null,null,null,null,"","",null,null,null,null,null,null,null,null,null,null,null,null,null,null,null,null,null,null,null,null,null,null,null,null,null,null,null,null,null,null,"DOB Error","DOB Error",""]
[375,null,null,null,null,"",{"$f":"IFERROR(IF(OR(AZ394=1,F394<>\"\"),\"To key in DOB\",#REF!),\"\")","v":""},null,null,null,null,null,null,null,null,null,null,"","",null,null,null,null,null,null,null,null,null,null,null,null,null,null,null,null,null,null,null,null,null,null,null,null,null,null,null,null,null,null,"DOB Error","DOB Error",""]
[376,null,null,null,null,"",{"$f":"IFERROR(IF(OR(AZ395=1,F395<>\"\"),\"To key in DOB\",#REF!),\"\")","v":""},null,null,null,null,null,null,null,null,null,null,"","",null,null,null,null,null,null,null,null,null,null,null,null,null,null,null,null,null,null,null,null,null,null,null,null,null,null,null,null,null,null,"DOB Error","DOB Error",""]
[377,null,null,null,null,"",{"$f":"IFERROR(IF(OR(AZ396=1,F396<>\"\"),\"To key in DOB\",#REF!),\"\")","v":""},null,null,null,null,null,null,null,null,null,null,"","",null,null,null,null,null,null,null,null,null,null,null,null,null,null,null,null,null,null,null,null,null,null,null,null,null,null,null,null,null,null,"DOB Error","DOB Error",""]
[378,null,null,null,null,"",{"$f":"IFERROR(IF(OR(AZ397=1,F397<>\"\"),\"To key in DOB\",#REF!),\"\")","v":""},null,null,null,null,null,null,null,null,null,null,"","",null,null,null,null,null,null,null,null,null,null,null,null,null,null,null,null,null,null,null,null,null,null,null,null,null,null,null,null,null,null,"DOB Error","DOB Error",""]
[379,null,null,null,null,"",{"$f":"IFERROR(IF(OR(AZ398=1,F398<>\"\"),\"To key in DOB\",#REF!),\"\")","v":""},null,null,null,null,null,null,null,null,null,null,"","",null,null,null,null,null,null,null,null,null,null,null,null,null,null,null,null,null,null,null,null,null,null,null,null,null,null,null,null,null,null,"DOB Error","DOB Error",""]
[380,null,null,null,null,"",{"$f":"IFERROR(IF(OR(AZ399=1,F399<>\"\"),\"To key in DOB\",#REF!),\"\")","v":""},null,null,null,null,null,null,null,null,null,null,"","",null,null,null,null,null,null,null,null,null,null,null,null,null,null,null,null,null,null,null,null,null,null,null,null,null,null,null,null,null,null,"DOB Error","DOB Error",""]
[381,null,null,null,null,"",{"$f":"IFERROR(IF(OR(AZ400=1,F400<>\"\"),\"To key in DOB\",#REF!),\"\")","v":""},null,null,null,null,null,null,null,null,null,null,"","",null,null,null,null,null,null,null,null,null,null,null,null,null,null,null,null,null,null,null,null,null,null,null,null,null,null,null,null,null,null,"DOB Error","DOB Error",""]
[382,null,null,null,null,"",{"$f":"IFERROR(IF(OR(AZ401=1,F401<>\"\"),\"To key in DOB\",#REF!),\"\")","v":""},null,null,null,null,null,null,null,null,null,null,"","",null,null,null,null,null,null,null,null,null,null,null,null,null,null,null,null,null,null,null,null,null,null,null,null,null,null,null,null,null,null,"DOB Error","DOB Error",""]
[383,null,null,null,null,"",{"$f":"IFERROR(IF(OR(AZ402=1,F402<>\"\"),\"To key in DOB\",#REF!),\"\")","v":""},null,null,null,null,null,null,null,null,null,null,"","",null,null,null,null,null,null,null,null,null,null,null,null,null,null,null,null,null,null,null,null,null,null,null,null,null,null,null,null,null,null,"DOB Error","DOB Error",""]
[384,null,null,null,null,"",{"$f":"IFERROR(IF(OR(AZ403=1,F403<>\"\"),\"To key in DOB\",#REF!),\"\")","v":""},null,null,null,null,null,null,null,null,null,null,"","",null,null,null,null,null,null,null,null,null,null,null,null,null,null,null,null,null,null,null,null,null,null,null,null,null,null,null,null,null,null,{"$f":"IF(ISERROR(AND(SEARCH(\"-\",E403,7)=7,SEARCH(\"-\",E403,9)=10)),\"DOB Error\",\"ok\")","v":"DOB Error"},{"$f":"IF(ISERROR(LEFT(E403,6)+MID(E403,8,2)+RIGHT(E403,4)),\"DOB Error\",\"ok\")","v":"DOB Error"},{"$f":"IF(E403=\"\",\"\",IF(OR(AX403=\"DOB Error\", AY403=\"DOB Error\"),1,0))","v":""}]
[385,null,null,null,null,"",{"$f":"IFERROR(IF(OR(AZ404=1,F404<>\"\"),\"To key in DOB\",#REF!),\"\")","v":""},null,null,null,null,null,null,null,null,null,null,{"$f":"IF(OR(Q404=\"CHANGE\",Q404=\"ADD\",Q404=\"TERMINATE\"),VLOOKUP(Q404,$AR:$AS,2,FALSE),\"\")","v":""},{"$f":"IF(OR(Q404=\"TERMINATE (DEATH)\"),VLOOKUP(Q404,$AR:$AU,4,FALSE),\"\")","v":""},null,null,null,null,null,null,null,null,null,null,null,null,null,null,null,null,null,null,null,null,null,null,null,null,null,null,null,null,null,null,"DOB Error","DOB Error",""]
[386,null,null,null,null,{"$f":"IF(AZ405=1,\"To key in Old IC / Passport / Birth Cert No.\",\"\")","v":""},{"$f":"IFERROR(IF(OR(AZ405=1,F405<>\"\"),\"To key in DOB\",#REF!),\"\")","v":""},null,null,null,null,null,null,null,null,null,null,"","",null,null,null,null,null,null,null,null,null,null,null,null,null,null,null,null,null,null,null,null,null,null,null,null,null,null,null,null,null,null,"DOB Error","DOB Error",""]
[387,null,null,null,null,"",{"$f":"IFERROR(IF(OR(AZ406=1,F406<>\"\"),\"To key in DOB\",#REF!),\"\")","v":""},null,null,null,null,null,null,null,null,null,null,"","",null,null,null,null,null,null,null,null,null,null,null,null,null,null,null,null,null,null,null,null,null,null,null,null,null,null,null,null,null,null,"DOB Error","DOB Error",""]
[388,null,null,null,null,"",{"$f":"IFERROR(IF(OR(AZ407=1,F407<>\"\"),\"To key in DOB\",#REF!),\"\")","v":""},null,null,null,null,null,null,null,null,null,null,"","",null,null,null,null,null,null,null,null,null,null,null,null,null,null,null,null,null,null,null,null,null,null,null,null,null,null,null,null,null,null,"DOB Error","DOB Error",""]
[389,null,null,null,null,"",{"$f":"IFERROR(IF(OR(AZ408=1,F408<>\"\"),\"To key in DOB\",#REF!),\"\")","v":""},null,null,null,null,null,null,null,null,null,null,"","",null,null,null,null,null,null,null,null,null,null,null,null,null,null,null,null,null,null,null,null,null,null,null,null,null,null,null,null,null,null,"DOB Error","DOB Error",""]
[390,null,null,null,null,"",{"$f":"IFERROR(IF(OR(AZ409=1,F409<>\"\"),\"To key in DOB\",#REF!),\"\")","v":""},null,null,null,null,null,null,null,null,null,null,"","",null,null,null,null,null,null,null,null,null,null,null,null,null,null,null,null,null,null,null,null,null,null,null,null,null,null,null,null,null,null,"DOB Error","DOB Error",""]
[391,null,null,null,null,"",{"$f":"IFERROR(IF(OR(AZ410=1,F410<>\"\"),\"To key in DOB\",#REF!),\"\")","v":""},null,null,null,null,null,null,null,null,null,null,"","",null,null,null,null,null,null,null,null,null,null,null,null,null,null,null,null,null,null,null,null,null,null,null,null,null,null,null,null,null,null,"DOB Error","DOB Error",""]
[392,null,null,null,null,"",{"$f":"IFERROR(IF(OR(AZ411=1,F411<>\"\"),\"To key in DOB\",#REF!),\"\")","v":""},null,null,null,null,null,null,null,null,null,null,"","",null,null,null,null,null,null,null,null,null,null,null,null,null,null,null,null,null,null,null,null,null,null,null,null,null,null,null,null,null,null,"DOB Error","DOB Error",""]
[393,null,null,null,null,"",{"$f":"IFERROR(IF(OR(AZ412=1,F412<>\"\"),\"To key in DOB\",#REF!),\"\")","v":""},null,null,null,null,null,null,null,null,null,null,"","",null,null,null,null,null,null,null,null,null,null,null,null,null,null,null,null,null,null,null,null,null,null,null,null,null,null,null,null,null,null,"DOB Error","DOB Error",""]
[394,null,null,null,null,"",{"$f":"IFERROR(IF(OR(AZ413=1,F413<>\"\"),\"To key in DOB\",#REF!),\"\")","v":""},null,null,null,null,null,null,null,null,null,null,"","",null,null,null,null,null,null,null,null,null,null,null,null,null,null,null,null,null,null,null,null,null,null,null,null,null,null,null,null,null,null,"DOB Error","DOB Error",""]
[395,null,null,null,null,"",{"$f":"IFERROR(IF(OR(AZ414=1,F414<>\"\"),\"To key in DOB\",#REF!),\"\")","v":""},null,null,null,null,null,null,null,null,null,null,"","",null,null,null,null,null,null,null,null,null,null,null,null,null,null,null,null,null,null,null,null,null,null,null,null,null,null,null,null,null,null,"DOB Error","DOB Error",""]
[396,null,null,null,null,"",{"$f":"IFERROR(IF(OR(AZ415=1,F415<>\"\"),\"To key in DOB\",#REF!),\"\")","v":""},null,null,null,null,null,null,null,null,null,null,"","",null,null,null,null,null,null,null,null,null,null,null,null,null,null,null,null,null,null,null,null,null,null,null,null,null,null,null,null,null,null,"DOB Error","DOB Error",""]
[397,null,null,null,null,"",{"$f":"IFERROR(IF(OR(AZ416=1,F416<>\"\"),\"To key in DOB\",#REF!),\"\")","v":""},null,null,null,null,null,null,null,null,null,null,"","",null,null,null,null,null,null,null,null,null,null,null,null,null,null,null,null,null,null,null,null,null,null,null,null,null,null,null,null,null,null,"DOB Error","DOB Error",""]
[398,null,null,null,null,"",{"$f":"IFERROR(IF(OR(AZ417=1,F417<>\"\"),\"To key in DOB\",#REF!),\"\")","v":""},null,null,null,null,null,null,null,null,null,null,"","",null,null,null,null,null,null,null,null,null,null,null,null,null,null,null,null,null,null,null,null,null,null,null,null,null,null,null,null,null,null,"DOB Error","DOB Error",""]
[399,null,null,null,null,"",{"$f":"IFERROR(IF(OR(AZ418=1,F418<>\"\"),\"To key in DOB\",#REF!),\"\")","v":""},null,null,null,null,null,null,null,null,null,null,"","",null,null,null,null,null,null,null,null,null,null,null,null,null,null,null,null,null,null,null,null,null,null,null,null,null,null,null,null,null,null,"DOB Error","DOB Error",""]
[400,null,null,null,null,"",{"$f":"IFERROR(IF(OR(AZ419=1,F419<>\"\"),\"To key in DOB\",#REF!),\"\")","v":""},null,null,null,null,null,null,null,null,null,null,"","",null,null,null,null,null,null,null,null,null,null,null,null,null,null,null,null,null,null,null,null,null,null,null,null,null,null,null,null,null,null,"DOB Error","DOB Error",""]
[401,null,null,null,null,"",{"$f":"IFERROR(IF(OR(AZ420=1,F420<>\"\"),\"To key in DOB\",#REF!),\"\")","v":""},null,null,null,null,null,null,null,null,null,null,"","",null,null,null,null,null,null,null,null,null,null,null,null,null,null,null,null,null,null,null,null,null,null,null,null,null,null,null,null,null,null,"DOB Error","DOB Error",""]
[402,null,null,null,null,"",{"$f":"IFERROR(IF(OR(AZ421=1,F421<>\"\"),\"To key in DOB\",#REF!),\"\")","v":""},null,null,null,null,null,null,null,null,null,null,"","",null,null,null,null,null,null,null,null,null,null,null,null,null,null,null,null,null,null,null,null,null,null,null,null,null,null,null,null,null,null,"DOB Error","DOB Error",""]
[403,null,null,null,null,"",{"$f":"IFERROR(IF(OR(AZ422=1,F422<>\"\"),\"To key in DOB\",#REF!),\"\")","v":""},null,null,null,null,null,null,null,null,null,null,"","",null,null,null,null,null,null,null,null,null,null,null,null,null,null,null,null,null,null,null,null,null,null,null,null,null,null,null,null,null,null,"DOB Error","DOB Error",""]
[404,null,null,null,null,"",{"$f":"IFERROR(IF(OR(AZ423=1,F423<>\"\"),\"To key in DOB\",#REF!),\"\")","v":""},null,null,null,null,null,null,null,null,null,null,"","",null,null,null,null,null,null,null,null,null,null,null,null,null,null,null,null,null,null,null,null,null,null,null,null,null,null,null,null,null,null,"DOB Error","DOB Error",""]
[405,null,null,null,null,"",{"$f":"IFERROR(IF(OR(AZ424=1,F424<>\"\"),\"To key in DOB\",#REF!),\"\")","v":""},null,null,null,null,null,null,null,null,null,null,"","",null,null,null,null,null,null,null,null,null,null,null,null,null,null,null,null,null,null,null,null,null,null,null,null,null,null,null,null,null,null,"DOB Error","DOB Error",""]
[406,null,null,null,null,"",{"$f":"IFERROR(IF(OR(AZ425=1,F425<>\"\"),\"To key in DOB\",#REF!),\"\")","v":""},null,null,null,null,null,null,null,null,null,null,"","",null,null,null,null,null,null,null,null,null,null,null,null,null,null,null,null,null,null,null,null,null,null,null,null,null,null,null,null,null,null,"DOB Error","DOB Error",""]
[407,null,null,null,null,"",{"$f":"IFERROR(IF(OR(AZ426=1,F426<>\"\"),\"To key in DOB\",#REF!),\"\")","v":""},null,null,null,null,null,null,null,null,null,null,"","",null,null,null,null,null,null,null,null,null,null,null,null,null,null,null,null,null,null,null,null,null,null,null,null,null,null,null,null,null,null,"DOB Error","DOB Error",""]
[408,null,null,null,null,"",{"$f":"IFERROR(IF(OR(AZ427=1,F427<>\"\"),\"To key in DOB\",#REF!),\"\")","v":""},null,null,null,null,null,null,null,null,null,null,"","",null,null,null,null,null,null,null,null,null,null,null,null,null,null,null,null,null,null,null,null,null,null,null,null,null,null,null,null,null,null,"DOB Error","DOB Error",""]
[409,null,null,null,null,"",{"$f":"IFERROR(IF(OR(AZ428=1,F428<>\"\"),\"To key in DOB\",#REF!),\"\")","v":""},null,null,null,null,null,null,null,null,null,null,"","",null,null,null,null,null,null,null,null,null,null,null,null,null,null,null,null,null,null,null,null,null,null,null,null,null,null,null,null,null,null,"DOB Error","DOB Error",""]
[410,null,null,null,null,"",{"$f":"IFERROR(IF(OR(AZ429=1,F429<>\"\"),\"To key in DOB\",#REF!),\"\")","v":""},null,null,null,null,null,null,null,null,null,null,"","",null,null,null,null,null,null,null,null,null,null,null,null,null,null,null,null,null,null,null,null,null,null,null,null,null,null,null,null,null,null,"DOB Error","DOB Error",""]
[411,null,null,null,null,"",{"$f":"IFERROR(IF(OR(AZ430=1,F430<>\"\"),\"To key in DOB\",#REF!),\"\")","v":""},null,null,null,null,null,null,null,null,null,null,"","",null,null,null,null,null,null,null,null,null,null,null,null,null,null,null,null,null,null,null,null,null,null,null,null,null,null,null,null,null,null,"DOB Error","DOB Error",""]
[412,null,null,null,null,"",{"$f":"IFERROR(IF(OR(AZ431=1,F431<>\"\"),\"To key in DOB\",#REF!),\"\")","v":""},null,null,null,null,null,null,null,null,null,null,"","",null,null,null,null,null,null,null,null,null,null,null,null,null,null,null,null,null,null,null,null,null,null,null,null,null,null,null,null,null,null,"DOB Error","DOB Error",""]
[413,null,null,null,null,"",{"$f":"IFERROR(IF(OR(AZ432=1,F432<>\"\"),\"To key in DOB\",#REF!),\"\")","v":""},null,null,null,null,null,null,null,null,null,null,"","",null,null,null,null,null,null,null,null,null,null,null,null,null,null,null,null,null,null,null,null,null,null,null,null,null,null,null,null,null,null,"DOB Error","DOB Error",""]
[414,null,null,null,null,"",{"$f":"IFERROR(IF(OR(AZ433=1,F433<>\"\"),\"To key in DOB\",#REF!),\"\")","v":""},null,null,null,null,null,null,null,null,null,null,"","",null,null,null,null,null,null,null,null,null,null,null,null,null,null,null,null,null,null,null,null,null,null,null,null,null,null,null,null,null,null,"DOB Error","DOB Error",""]
[415,null,null,null,null,"",{"$f":"IFERROR(IF(OR(AZ434=1,F434<>\"\"),\"To key in DOB\",#REF!),\"\")","v":""},null,null,null,null,null,null,null,null,null,null,"","",null,null,null,null,null,null,null,null,null,null,null,null,null,null,null,null,null,null,null,null,null,null,null,null,null,null,null,null,null,null,"DOB Error","DOB Error",""]
[416,null,null,null,null,"",{"$f":"IFERROR(IF(OR(AZ435=1,F435<>\"\"),\"To key in DOB\",#REF!),\"\")","v":""},null,null,null,null,null,null,null,null,null,null,"","",null,null,null,null,null,null,null,null,null,null,null,null,null,null,null,null,null,null,null,null,null,null,null,null,null,null,null,null,null,null,"DOB Error","DOB Error",""]
[417,null,null,null,null,"",{"$f":"IFERROR(IF(OR(AZ436=1,F436<>\"\"),\"To key in DOB\",#REF!),\"\")","v":""},null,null,null,null,null,null,null,null,null,null,"","",null,null,null,null,null,null,null,null,null,null,null,null,null,null,null,null,null,null,null,null,null,null,null,null,null,null,null,null,null,null,"DOB Error","DOB Error",""]
[418,null,null,null,null,"",{"$f":"IFERROR(IF(OR(AZ437=1,F437<>\"\"),\"To key in DOB\",#REF!),\"\")","v":""},null,null,null,null,null,null,null,null,null,null,"","",null,null,null,null,null,null,null,null,null,null,null,null,null,null,null,null,null,null,null,null,null,null,null,null,null,null,null,null,null,null,"DOB Error","DOB Error",""]
[419,null,null,null,null,"",{"$f":"IFERROR(IF(OR(AZ438=1,F438<>\"\"),\"To key in DOB\",#REF!),\"\")","v":""},null,null,null,null,null,null,null,null,null,null,"","",null,null,null,null,null,null,null,null,null,null,null,null,null,null,null,null,null,null,null,null,null,null,null,null,null,null,null,null,null,null,"DOB Error","DOB Error",""]
[420,null,null,null,null,"",{"$f":"IFERROR(IF(OR(AZ439=1,F439<>\"\"),\"To key in DOB\",#REF!),\"\")","v":""},null,null,null,null,null,null,null,null,null,null,"","",null,null,null,null,null,null,null,null,null,null,null,null,null,null,null,null,null,null,null,null,null,null,null,null,null,null,null,null,null,null,"DOB Error","DOB Error",""]
[421,null,null,null,null,"",{"$f":"IFERROR(IF(OR(AZ440=1,F440<>\"\"),\"To key in DOB\",#REF!),\"\")","v":""},null,null,null,null,null,null,null,null,null,null,"","",null,null,null,null,null,null,null,null,null,null,null,null,null,null,null,null,null,null,null,null,null,null,null,null,null,null,null,null,null,null,"DOB Error","DOB Error",""]
[422,null,null,null,null,"",{"$f":"IFERROR(IF(OR(AZ441=1,F441<>\"\"),\"To key in DOB\",#REF!),\"\")","v":""},null,null,null,null,null,null,null,null,null,null,"","",null,null,null,null,null,null,null,null,null,null,null,null,null,null,null,null,null,null,null,null,null,null,null,null,null,null,null,null,null,null,"DOB Error","DOB Error",""]
[423,null,null,null,null,"",{"$f":"IFERROR(IF(OR(AZ442=1,F442<>\"\"),\"To key in DOB\",#REF!),\"\")","v":""},null,null,null,null,null,null,null,null,null,null,"","",null,null,null,null,null,null,null,null,null,null,null,null,null,null,null,null,null,null,null,null,null,null,null,null,null,null,null,null,null,null,"DOB Error","DOB Error",""]
[424,null,null,null,null,"",{"$f":"IFERROR(IF(OR(AZ443=1,F443<>\"\"),\"To key in DOB\",#REF!),\"\")","v":""},null,null,null,null,null,null,null,null,null,null,"","",null,null,null,null,null,null,null,null,null,null,null,null,null,null,null,null,null,null,null,null,null,null,null,null,null,null,null,null,null,null,"DOB Error","DOB Error",""]
[425,null,null,null,null,"",{"$f":"IFERROR(IF(OR(AZ444=1,F444<>\"\"),\"To key in DOB\",#REF!),\"\")","v":""},null,null,null,null,null,null,null,null,null,null,"","",null,null,null,null,null,null,null,null,null,null,null,null,null,null,null,null,null,null,null,null,null,null,null,null,null,null,null,null,null,null,"DOB Error","DOB Error",""]
[426,null,null,null,null,"",{"$f":"IFERROR(IF(OR(AZ445=1,F445<>\"\"),\"To key in DOB\",#REF!),\"\")","v":""},null,null,null,null,null,null,null,null,null,null,"","",null,null,null,null,null,null,null,null,null,null,null,null,null,null,null,null,null,null,null,null,null,null,null,null,null,null,null,null,null,null,"DOB Error","DOB Error",""]
[427,null,null,null,null,"",{"$f":"IFERROR(IF(OR(AZ446=1,F446<>\"\"),\"To key in DOB\",#REF!),\"\")","v":""},null,null,null,null,null,null,null,null,null,null,"","",null,null,null,null,null,null,null,null,null,null,null,null,null,null,null,null,null,null,null,null,null,null,null,null,null,null,null,null,null,null,"DOB Error","DOB Error",""]
[428,null,null,null,null,"",{"$f":"IFERROR(IF(OR(AZ447=1,F447<>\"\"),\"To key in DOB\",#REF!),\"\")","v":""},null,null,null,null,null,null,null,null,null,null,"","",null,null,null,null,null,null,null,null,null,null,null,null,null,null,null,null,null,null,null,null,null,null,null,null,null,null,null,null,null,null,"DOB Error","DOB Error",""]
[429,null,null,null,null,"",{"$f":"IFERROR(IF(OR(AZ448=1,F448<>\"\"),\"To key in DOB\",#REF!),\"\")","v":""},null,null,null,null,null,null,null,null,null,null,"","",null,null,null,null,null,null,null,null,null,null,null,null,null,null,null,null,null,null,null,null,null,null,null,null,null,null,null,null,null,null,"DOB Error","DOB Error",""]
[430,null,null,null,null,"",{"$f":"IFERROR(IF(OR(AZ449=1,F449<>\"\"),\"To key in DOB\",#REF!),\"\")","v":""},null,null,null,null,null,null,null,null,null,null,"","",null,null,null,null,null,null,null,null,null,null,null,null,null,null,null,null,null,null,null,null,null,null,null,null,null,null,null,null,null,null,"DOB Error","DOB Error",""]
[431,null,null,null,null,"",{"$f":"IFERROR(IF(OR(AZ450=1,F450<>\"\"),\"To key in DOB\",#REF!),\"\")","v":""},null,null,null,null,null,null,null,null,null,null,"","",null,null,null,null,null,null,null,null,null,null,null,null,null,null,null,null,null,null,null,null,null,null,null,null,null,null,null,null,null,null,"DOB Error","DOB Error",""]
[432,null,null,null,null,"",{"$f":"IFERROR(IF(OR(AZ451=1,F451<>\"\"),\"To key in DOB\",#REF!),\"\")","v":""},null,null,null,null,null,null,null,null,null,null,"","",null,null,null,null,null,null,null,null,null,null,null,null,null,null,null,null,null,null,null,null,null,null,null,null,null,null,null,null,null,null,"DOB Error","DOB Error",""]
[433,null,null,null,null,"",{"$f":"IFERROR(IF(OR(AZ452=1,F452<>\"\"),\"To key in DOB\",#REF!),\"\")","v":""},null,null,null,null,null,null,null,null,null,null,"","",null,null,null,null,null,null,null,null,null,null,null,null,null,null,null,null,null,null,null,null,null,null,null,null,null,null,null,null,null,null,"DOB Error","DOB Error",""]
[434,null,null,null,null,"",{"$f":"IFERROR(IF(OR(AZ453=1,F453<>\"\"),\"To key in DOB\",#REF!),\"\")","v":""},null,null,null,null,null,null,null,null,null,null,"","",null,null,null,null,null,null,null,null,null,null,null,null,null,null,null,null,null,null,null,null,null,null,null,null,null,null,null,null,null,null,"DOB Error","DOB Error",""]
[435,null,null,null,null,"",{"$f":"IFERROR(IF(OR(AZ454=1,F454<>\"\"),\"To key in DOB\",#REF!),\"\")","v":""},null,null,null,null,null,null,null,null,null,null,"","",null,null,null,null,null,null,null,null,null,null,null,null,null,null,null,null,null,null,null,null,null,null,null,null,null,null,null,null,null,null,"DOB Error","DOB Error",""]
[436,null,null,null,null,"",{"$f":"IFERROR(IF(OR(AZ455=1,F455<>\"\"),\"To key in DOB\",#REF!),\"\")","v":""},null,null,null,null,null,null,null,null,null,null,"","",null,null,null,null,null,null,null,null,null,null,null,null,null,null,null,null,null,null,null,null,null,null,null,null,null,null,null,null,null,null,"DOB Error","DOB Error",""]
[437,null,null,null,null,"",{"$f":"IFERROR(IF(OR(AZ456=1,F456<>\"\"),\"To key in DOB\",#REF!),\"\")","v":""},null,null,null,null,null,null,null,null,null,null,"","",null,null,null,null,null,null,null,null,null,null,null,null,null,null,null,null,null,null,null,null,null,null,null,null,null,null,null,null,null,null,"DOB Error","DOB Error",""]
[438,null,null,null,null,"",{"$f":"IFERROR(IF(OR(AZ457=1,F457<>\"\"),\"To key in DOB\",#REF!),\"\")","v":""},null,null,null,null,null,null,null,null,null,null,"","",null,null,null,null,null,null,null,null,null,null,null,null,null,null,null,null,null,null,null,null,null,null,null,null,null,null,null,null,null,null,"DOB Error","DOB Error",""]
[439,null,null,null,null,"",{"$f":"IFERROR(IF(OR(AZ458=1,F458<>\"\"),\"To key in DOB\",#REF!),\"\")","v":""},null,null,null,null,null,null,null,null,null,null,"","",null,null,null,null,null,null,null,null,null,null,null,null,null,null,null,null,null,null,null,null,null,null,null,null,null,null,null,null,null,null,"DOB Error","DOB Error",""]
[440,null,null,null,null,"",{"$f":"IFERROR(IF(OR(AZ459=1,F459<>\"\"),\"To key in DOB\",#REF!),\"\")","v":""},null,null,null,null,null,null,null,null,null,null,"","",null,null,null,null,null,null,null,null,null,null,null,null,null,null,null,null,null,null,null,null,null,null,null,null,null,null,null,null,null,null,"DOB Error","DOB Error",""]
[441,null,null,null,null,"",{"$f":"IFERROR(IF(OR(AZ460=1,F460<>\"\"),\"To key in DOB\",#REF!),\"\")","v":""},null,null,null,null,null,null,null,null,null,null,"","",null,null,null,null,null,null,null,null,null,null,null,null,null,null,null,null,null,null,null,null,null,null,null,null,null,null,null,null,null,null,"DOB Error","DOB Error",""]
[442,null,null,null,null,"",{"$f":"IFERROR(IF(OR(AZ461=1,F461<>\"\"),\"To key in DOB\",#REF!),\"\")","v":""},null,null,null,null,null,null,null,null,null,null,"","",null,null,null,null,null,null,null,null,null,null,null,null,null,null,null,null,null,null,null,null,null,null,null,null,null,null,null,null,null,null,"DOB Error","DOB Error",""]
[443,null,null,null,null,"",{"$f":"IFERROR(IF(OR(AZ462=1,F462<>\"\"),\"To key in DOB\",#REF!),\"\")","v":""},null,null,null,null,null,null,null,null,null,null,"","",null,null,null,null,null,null,null,null,null,null,null,null,null,null,null,null,null,null,null,null,null,null,null,null,null,null,null,null,null,null,"DOB Error","DOB Error",""]
[444,null,null,null,null,"",{"$f":"IFERROR(IF(OR(AZ463=1,F463<>\"\"),\"To key in DOB\",#REF!),\"\")","v":""},null,null,null,null,null,null,null,null,null,null,"","",null,null,null,null,null,null,null,null,null,null,null,null,null,null,null,null,null,null,null,null,null,null,null,null,null,null,null,null,null,null,"DOB Error","DOB Error",""]
[445,null,null,null,null,"",{"$f":"IFERROR(IF(OR(AZ464=1,F464<>\"\"),\"To key in DOB\",#REF!),\"\")","v":""},null,null,null,null,null,null,null,null,null,null,"","",null,null,null,null,null,null,null,null,null,null,null,null,null,null,null,null,null,null,null,null,null,null,null,null,null,null,null,null,null,null,"DOB Error","DOB Error",""]
[446,null,null,null,null,"",{"$f":"IFERROR(IF(OR(AZ465=1,F465<>\"\"),\"To key in DOB\",#REF!),\"\")","v":""},null,null,null,null,null,null,null,null,null,null,"","",null,null,null,null,null,null,null,null,null,null,null,null,null,null,null,null,null,null,null,null,null,null,null,null,null,null,null,null,null,null,"DOB Error","DOB Error",""]
[447,null,null,null,null,"",{"$f":"IFERROR(IF(OR(AZ466=1,F466<>\"\"),\"To key in DOB\",#REF!),\"\")","v":""},null,null,null,null,null,null,null,null,null,null,"","",null,null,null,null,null,null,null,null,null,null,null,null,null,null,null,null,null,null,null,null,null,null,null,null,null,null,null,null,null,null,"DOB Error","DOB Error",""]
[448,null,null,null,null,"",{"$f":"IFERROR(IF(OR(AZ467=1,F467<>\"\"),\"To key in DOB\",#REF!),\"\")","v":""},null,null,null,null,null,null,null,null,null,null,"","",null,null,null,null,null,null,null,null,null,null,null,null,null,null,null,null,null,null,null,null,null,null,null,null,null,null,null,null,null,null,{"$f":"IF(ISERROR(AND(SEARCH(\"-\",E467,7)=7,SEARCH(\"-\",E467,9)=10)),\"DOB Error\",\"ok\")","v":"DOB Error"},{"$f":"IF(ISERROR(LEFT(E467,6)+MID(E467,8,2)+RIGHT(E467,4)),\"DOB Error\",\"ok\")","v":"DOB Error"},{"$f":"IF(E467=\"\",\"\",IF(OR(AX467=\"DOB Error\", AY467=\"DOB Error\"),1,0))","v":""}]
[449,null,null,null,null,"",{"$f":"IFERROR(IF(OR(AZ468=1,F468<>\"\"),\"To key in DOB\",#REF!),\"\")","v":""},null,null,null,null,null,null,null,null,null,null,{"$f":"IF(OR(Q468=\"CHANGE\",Q468=\"ADD\",Q468=\"TERMINATE\"),VLOOKUP(Q468,$AR:$AS,2,FALSE),\"\")","v":""},{"$f":"IF(OR(Q468=\"TERMINATE (DEATH)\"),VLOOKUP(Q468,$AR:$AU,4,FALSE),\"\")","v":""},null,null,null,null,null,null,null,null,null,null,null,null,null,null,null,null,null,null,null,null,null,null,null,null,null,null,null,null,null,null,"DOB Error","DOB Error",""]
[450,null,null,null,null,{"$f":"IF(AZ469=1,\"To key in Old IC / Passport / Birth Cert No.\",\"\")","v":""},{"$f":"IFERROR(IF(OR(AZ469=1,F469<>\"\"),\"To key in DOB\",#REF!),\"\")","v":""},null,null,null,null,null,null,null,null,null,null,"","",null,null,null,null,null,null,null,null,null,null,null,null,null,null,null,null,null,null,null,null,null,null,null,null,null,null,null,null,null,null,"DOB Error","DOB Error",""]
[451,null,null,null,null,"",{"$f":"IFERROR(IF(OR(AZ470=1,F470<>\"\"),\"To key in DOB\",#REF!),\"\")","v":""},null,null,null,null,null,null,null,null,null,null,"","",null,null,null,null,null,null,null,null,null,null,null,null,null,null,null,null,null,null,null,null,null,null,null,null,null,null,null,null,null,null,"DOB Error","DOB Error",""]
[452,null,null,null,null,"",{"$f":"IFERROR(IF(OR(AZ471=1,F471<>\"\"),\"To key in DOB\",#REF!),\"\")","v":""},null,null,null,null,null,null,null,null,null,null,"","",null,null,null,null,null,null,null,null,null,null,null,null,null,null,null,null,null,null,null,null,null,null,null,null,null,null,null,null,null,null,"DOB Error","DOB Error",""]
[453,null,null,null,null,"",{"$f":"IFERROR(IF(OR(AZ472=1,F472<>\"\"),\"To key in DOB\",#REF!),\"\")","v":""},null,null,null,null,null,null,null,null,null,null,"","",null,null,null,null,null,null,null,null,null,null,null,null,null,null,null,null,null,null,null,null,null,null,null,null,null,null,null,null,null,null,"DOB Error","DOB Error",""]
[454,null,null,null,null,"",{"$f":"IFERROR(IF(OR(AZ473=1,F473<>\"\"),\"To key in DOB\",#REF!),\"\")","v":""},null,null,null,null,null,null,null,null,null,null,"","",null,null,null,null,null,null,null,null,null,null,null,null,null,null,null,null,null,null,null,null,null,null,null,null,null,null,null,null,null,null,"DOB Error","DOB Error",""]
[455,null,null,null,null,"",{"$f":"IFERROR(IF(OR(AZ474=1,F474<>\"\"),\"To key in DOB\",#REF!),\"\")","v":""},null,null,null,null,null,null,null,null,null,null,"","",null,null,null,null,null,null,null,null,null,null,null,null,null,null,null,null,null,null,null,null,null,null,null,null,null,null,null,null,null,null,"DOB Error","DOB Error",""]
[456,null,null,null,null,"",{"$f":"IFERROR(IF(OR(AZ475=1,F475<>\"\"),\"To key in DOB\",#REF!),\"\")","v":""},null,null,null,null,null,null,null,null,null,null,"","",null,null,null,null,null,null,null,null,null,null,null,null,null,null,null,null,null,null,null,null,null,null,null,null,null,null,null,null,null,null,"DOB Error","DOB Error",""]
[457,null,null,null,null,"",{"$f":"IFERROR(IF(OR(AZ476=1,F476<>\"\"),\"To key in DOB\",#REF!),\"\")","v":""},null,null,null,null,null,null,null,null,null,null,"","",null,null,null,null,null,null,null,null,null,null,null,null,null,null,null,null,null,null,null,null,null,null,null,null,null,null,null,null,null,null,"DOB Error","DOB Error",""]
[458,null,null,null,null,"",{"$f":"IFERROR(IF(OR(AZ477=1,F477<>\"\"),\"To key in DOB\",#REF!),\"\")","v":""},null,null,null,null,null,null,null,null,null,null,"","",null,null,null,null,null,null,null,null,null,null,null,null,null,null,null,null,null,null,null,null,null,null,null,null,null,null,null,null,null,null,"DOB Error","DOB Error",""]
[459,null,null,null,null,"",{"$f":"IFERROR(IF(OR(AZ478=1,F478<>\"\"),\"To key in DOB\",#REF!),\"\")","v":""},null,null,null,null,null,null,null,null,null,null,"","",null,null,null,null,null,null,null,null,null,null,null,null,null,null,null,null,null,null,null,null,null,null,null,null,null,null,null,null,null,null,"DOB Error","DOB Error",""]
[460,null,null,null,null,"",{"$f":"IFERROR(IF(OR(AZ479=1,F479<>\"\"),\"To key in DOB\",#REF!),\"\")","v":""},null,null,null,null,null,null,null,null,null,null,"","",null,null,null,null,null,null,null,null,null,null,null,null,null,null,null,null,null,null,null,null,null,null,null,null,null,null,null,null,null,null,"DOB Error","DOB Error",""]
[461,null,null,null,null,"",{"$f":"IFERROR(IF(OR(AZ480=1,F480<>\"\"),\"To key in DOB\",#REF!),\"\")","v":""},null,null,null,null,null,null,null,null,null,null,"","",null,null,null,null,null,null,null,null,null,null,null,null,null,null,null,null,null,null,null,null,null,null,null,null,null,null,null,null,null,null,"DOB Error","DOB Error",""]
[462,null,null,null,null,"",{"$f":"IFERROR(IF(OR(AZ481=1,F481<>\"\"),\"To key in DOB\",#REF!),\"\")","v":""},null,null,null,null,null,null,null,null,null,null,"","",null,null,null,null,null,null,null,null,null,null,null,null,null,null,null,null,null,null,null,null,null,null,null,null,null,null,null,null,null,null,"DOB Error","DOB Error",""]
[463,null,null,null,null,"",{"$f":"IFERROR(IF(OR(AZ482=1,F482<>\"\"),\"To key in DOB\",#REF!),\"\")","v":""},null,null,null,null,null,null,null,null,null,null,"","",null,null,null,null,null,null,null,null,null,null,null,null,null,null,null,null,null,null,null,null,null,null,null,null,null,null,null,null,null,null,"DOB Error","DOB Error",""]
[464,null,null,null,null,"",{"$f":"IFERROR(IF(OR(AZ483=1,F483<>\"\"),\"To key in DOB\",#REF!),\"\")","v":""},null,null,null,null,null,null,null,null,null,null,"","",null,null,null,null,null,null,null,null,null,null,null,null,null,null,null,null,null,null,null,null,null,null,null,null,null,null,null,null,null,null,"DOB Error","DOB Error",""]
[465,null,null,null,null,"",{"$f":"IFERROR(IF(OR(AZ484=1,F484<>\"\"),\"To key in DOB\",#REF!),\"\")","v":""},null,null,null,null,null,null,null,null,null,null,"","",null,null,null,null,null,null,null,null,null,null,null,null,null,null,null,null,null,null,null,null,null,null,null,null,null,null,null,null,null,null,"DOB Error","DOB Error",""]
[466,null,null,null,null,"",{"$f":"IFERROR(IF(OR(AZ485=1,F485<>\"\"),\"To key in DOB\",#REF!),\"\")","v":""},null,null,null,null,null,null,null,null,null,null,"","",null,null,null,null,null,null,null,null,null,null,null,null,null,null,null,null,null,null,null,null,null,null,null,null,null,null,null,null,null,null,"DOB Error","DOB Error",""]
[467,null,null,null,null,"",{"$f":"IFERROR(IF(OR(AZ486=1,F486<>\"\"),\"To key in DOB\",#REF!),\"\")","v":""},null,null,null,null,null,null,null,null,null,null,"","",null,null,null,null,null,null,null,null,null,null,null,null,null,null,null,null,null,null,null,null,null,null,null,null,null,null,null,null,null,null,"DOB Error","DOB Error",""]
[468,null,null,null,null,"",{"$f":"IFERROR(IF(OR(AZ487=1,F487<>\"\"),\"To key in DOB\",#REF!),\"\")","v":""},null,null,null,null,null,null,null,null,null,null,"","",null,null,null,null,null,null,null,null,null,null,null,null,null,null,null,null,null,null,null,null,null,null,null,null,null,null,null,null,null,null,"DOB Error","DOB Error",""]
[469,null,null,null,null,"",{"$f":"IFERROR(IF(OR(AZ488=1,F488<>\"\"),\"To key in DOB\",#REF!),\"\")","v":""},null,null,null,null,null,null,null,null,null,null,"","",null,null,null,null,null,null,null,null,null,null,null,null,null,null,null,null,null,null,null,null,null,null,null,null,null,null,null,null,null,null,"DOB Error","DOB Error",""]
[470,null,null,null,null,"",{"$f":"IFERROR(IF(OR(AZ489=1,F489<>\"\"),\"To key in DOB\",#REF!),\"\")","v":""},null,null,null,null,null,null,null,null,null,null,"","",null,null,null,null,null,null,null,null,null,null,null,null,null,null,null,null,null,null,null,null,null,null,null,null,null,null,null,null,null,null,"DOB Error","DOB Error",""]
[471,null,null,null,null,"",{"$f":"IFERROR(IF(OR(AZ490=1,F490<>\"\"),\"To key in DOB\",#REF!),\"\")","v":""},null,null,null,null,null,null,null,null,null,null,"","",null,null,null,null,null,null,null,null,null,null,null,null,null,null,null,null,null,null,null,null,null,null,null,null,null,null,null,null,null,null,"DOB Error","DOB Error",""]
[472,null,null,null,null,"",{"$f":"IFERROR(IF(OR(AZ491=1,F491<>\"\"),\"To key in DOB\",#REF!),\"\")","v":""},null,null,null,null,null,null,null,null,null,null,"","",null,null,null,null,null,null,null,null,null,null,null,null,null,null,null,null,null,null,null,null,null,null,null,null,null,null,null,null,null,null,"DOB Error","DOB Error",""]
[473,null,null,null,null,"",{"$f":"IFERROR(IF(OR(AZ492=1,F492<>\"\"),\"To key in DOB\",#REF!),\"\")","v":""},null,null,null,null,null,null,null,null,null,null,"","",null,null,null,null,null,null,null,null,null,null,null,null,null,null,null,null,null,null,null,null,null,null,null,null,null,null,null,null,null,null,"DOB Error","DOB Error",""]
[474,null,null,null,null,"",{"$f":"IFERROR(IF(OR(AZ493=1,F493<>\"\"),\"To key in DOB\",#REF!),\"\")","v":""},null,null,null,null,null,null,null,null,null,null,"","",null,null,null,null,null,null,null,null,null,null,null,null,null,null,null,null,null,null,null,null,null,null,null,null,null,null,null,null,null,null,"DOB Error","DOB Error",""]
[475,null,null,null,null,"",{"$f":"IFERROR(IF(OR(AZ494=1,F494<>\"\"),\"To key in DOB\",#REF!),\"\")","v":""},null,null,null,null,null,null,null,null,null,null,"","",null,null,null,null,null,null,null,null,null,null,null,null,null,null,null,null,null,null,null,null,null,null,null,null,null,null,null,null,null,null,"DOB Error","DOB Error",""]
[476,null,null,null,null,"",{"$f":"IFERROR(IF(OR(AZ495=1,F495<>\"\"),\"To key in DOB\",#REF!),\"\")","v":""},null,null,null,null,null,null,null,null,null,null,"","",null,null,null,null,null,null,null,null,null,null,null,null,null,null,null,null,null,null,null,null,null,null,null,null,null,null,null,null,null,null,"DOB Error","DOB Error",""]
[477,null,null,null,null,"",{"$f":"IFERROR(IF(OR(AZ496=1,F496<>\"\"),\"To key in DOB\",#REF!),\"\")","v":""},null,null,null,null,null,null,null,null,null,null,"","",null,null,null,null,null,null,null,null,null,null,null,null,null,null,null,null,null,null,null,null,null,null,null,null,null,null,null,null,null,null,"DOB Error","DOB Error",""]
[478,null,null,null,null,"",{"$f":"IFERROR(IF(OR(AZ497=1,F497<>\"\"),\"To key in DOB\",#REF!),\"\")","v":""},null,null,null,null,null,null,null,null,null,null,"","",null,null,null,null,null,null,null,null,null,null,null,null,null,null,null,null,null,null,null,null,null,null,null,null,null,null,null,null,null,null,"DOB Error","DOB Error",""]
[479,null,null,null,null,"",{"$f":"IFERROR(IF(OR(AZ498=1,F498<>\"\"),\"To key in DOB\",#REF!),\"\")","v":""},null,null,null,null,null,null,null,null,null,null,"","",null,null,null,null,null,null,null,null,null,null,null,null,null,null,null,null,null,null,null,null,null,null,null,null,null,null,null,null,null,null,"DOB Error","DOB Error",""]
[480,null,null,null,null,"",{"$f":"IFERROR(IF(OR(AZ499=1,F499<>\"\"),\"To key in DOB\",#REF!),\"\")","v":""},null,null,null,null,null,null,null,null,null,null,"","",null,null,null,null,null,null,null,null,null,null,null,null,null,null,null,null,null,null,null,null,null,null,null,null,null,null,null,null,null,null,"DOB Error","DOB Error",""]
[481,null,null,null,null,"",{"$f":"IFERROR(IF(OR(AZ500=1,F500<>\"\"),\"To key in DOB\",#REF!),\"\")","v":""},null,null,null,null,null,null,null,null,null,null,"","",null,null,null,null,null,null,null,null,null,null,null,null,null,null,null,null,null,null,null,null,null,null,null,null,null,null,null,null,null,null,"DOB Error","DOB Error",""]
[483,null,null,null,null,"",{"$f":"IFERROR(IF(OR(AZ502=1,F502<>\"\"),\"To key in DOB\",#REF!),\"\")","v":""},null,null,null,null,null,null,null,null,null,null,"","",null,null,null,null,null,null,null,null,null,null,null,null,null,null,null,null,null,null,null,null,null,null,null,null,null,null,null,null,null,null,"DOB Error","DOB Error",""]
[485,null,null,null,null,"",{"$f":"IFERROR(IF(OR(AZ504=1,F504<>\"\"),\"To key in DOB\",#REF!),\"\")","v":""},null,null,null,null,null,null,null,null,null,null,"","",null,null,null,null,null,null,null,null,null,null,null,null,null,null,null,null,null,null,null,null,null,null,null,null,null,null,null,null,null,null,"DOB Error","DOB Error",""]
[488,null,null,null,null,"",{"$f":"IFERROR(IF(OR(AZ507=1,F507<>\"\"),\"To key in DOB\",#REF!),\"\")","v":""},null,null,null,null,null,null,null,null,null,null,"","",null,null,null,null,null,null,null,null,null,null,null,null,null,null,null,null,null,null,null,null,null,null,null,null,null,null,null,null,null,null,"DOB Error","DOB Error",""]
[492,null,null,null,null,"",{"$f":"IFERROR(IF(OR(AZ511=1,F511<>\"\"),\"To key in DOB\",#REF!),\"\")","v":""},null,null,null,null,null,null,null,null,null,null,"","",null,null,null,null,null,null,null,null,null,null,null,null,null,null,null,null,null,null,null,null,null,null,null,null,null,null,null,null,null,null,"DOB Error","DOB Error",""]
[494,null,null,null,null,"",{"$f":"IFERROR(IF(OR(AZ513=1,F513<>\"\"),\"To key in DOB\",#REF!),\"\")","v":""},null,null,null,null,null,null,null,null,null,null,"","",null,null,null,null,null,null,null,null,null,null,null,null,null,null,null,null,null,null,null,null,null,null,null,null,null,null,null,null,null,null,"DOB Error","DOB Error",""]
[497,null,null,null,null,"",{"$f":"IFERROR(IF(OR(AZ516=1,F516<>\"\"),\"To key in DOB\",#REF!),\"\")","v":""},null,null,null,null,null,null,null,null,null,null,"","",null,null,null,null,null,null,null,null,null,null,null,null,null,null,null,null,null,null,null,null,null,null,null,null,null,null,null,null,null,null,"DOB Error","DOB Error",""]
[498,null,null,null,null,"",{"$f":"IFERROR(IF(OR(AZ517=1,F517<>\"\"),\"To key in DOB\",#REF!),\"\")","v":""},null,null,null,null,null,null,null,null,null,null,"","",null,null,null,null,null,null,null,null,null,null,null,null,null,null,null,null,null,null,null,null,null,null,null,null,null,null,null,null,null,null,"DOB Error","DOB Error",""]
[501,null,null,null,null,"",{"$f":"IFERROR(IF(OR(AZ520=1,F520<>\"\"),\"To key in DOB\",#REF!),\"\")","v":""},null,null,null,null,null,null,null,null,null,null,"","",null,null,null,null,null,null,null,null,null,null,null,null,null,null,null,null,null,null,null,null,null,null,null,null,null,null,null,null,null,null,"DOB Error","DOB Error",""]
[505,null,null,null,null,"",{"$f":"IFERROR(IF(OR(AZ524=1,F524<>\"\"),\"To key in DOB\",#REF!),\"\")","v":""},null,null,null,null,null,null,null,null,null,null,"","",null,null,null,null,null,null,null,null,null,null,null,null,null,null,null,null,null,null,null,null,null,null,null,null,null,null,null,null,null,null,"DOB Error","DOB Error",""]
[507,null,null,null,null,"",{"$f":"IFERROR(IF(OR(AZ526=1,F526<>\"\"),\"To key in DOB\",#REF!),\"\")","v":""},null,null,null,null,null,null,null,null,null,null,"","",null,null,null,null,null,null,null,null,null,null,null,null,null,null,null,null,null,null,null,null,null,null,null,null,null,null,null,null,null,null,"DOB Error","DOB Error",""]
[510,null,null,null,null,"",{"$f":"IFERROR(IF(OR(AZ529=1,F529<>\"\"),\"To key in DOB\",#REF!),\"\")","v":""},null,null,null,null,null,null,null,null,null,null,"","",null,null,null,null,null,null,null,null,null,null,null,null,null,null,null,null,null,null,null,null,null,null,null,null,null,null,null,null,null,null,"DOB Error","DOB Error",""]
[514,null,null,null,null,{"$f":"IF(AZ533=1,\"To key in Old IC / Passport / Birth Cert No.\",\"\")","v":""},{"$f":"IFERROR(IF(OR(AZ533=1,F533<>\"\"),\"To key in DOB\",#REF!),\"\")","v":""},null,null,null,null,null,null,null,null,null,null,"","",null,null,null,null,null,null,null,null,null,null,null,null,null,null,null,null,null,null,null,null,null,null,null,null,null,null,null,null,null,null,"DOB Error","DOB Error",""]
[517,null,null,null,null,"",{"$f":"IFERROR(IF(OR(AZ536=1,F536<>\"\"),\"To key in DOB\",#REF!),\"\")","v":""},null,null,null,null,null,null,null,null,null,null,"","",null,null,null,null,null,null,null,null,null,null,null,null,null,null,null,null,null,null,null,null,null,null,null,null,null,null,null,null,null,null,"DOB Error","DOB Error",""]
[520,null,null,null,null,"",{"$f":"IFERROR(IF(OR(AZ539=1,F539<>\"\"),\"To key in DOB\",#REF!),\"\")","v":""},null,null,null,null,null,null,null,null,null,null,"","",null,null,null,null,null,null,null,null,null,null,null,null,null,null,null,null,null,null,null,null,null,null,null,null,null,null,null,null,null,null,"DOB Error","DOB Error",""]
[522,null,null,null,null,"",{"$f":"IFERROR(IF(OR(AZ541=1,F541<>\"\"),\"To key in DOB\",#REF!),\"\")","v":""},null,null,null,null,null,null,null,null,null,null,"","",null,null,null,null,null,null,null,null,null,null,null,null,null,null,null,null,null,null,null,null,null,null,null,null,null,null,null,null,null,null,"DOB Error","DOB Error",""]
[523,null,null,null,null,"",{"$f":"IFERROR(IF(OR(AZ542=1,F542<>\"\"),\"To key in DOB\",#REF!),\"\")","v":""},null,null,null,null,null,null,null,null,null,null,"","",null,null,null,null,null,null,null,null,null,null,null,null,null,null,null,null,null,null,null,null,null,null,null,null,null,null,null,null,null,null,"DOB Error","DOB Error",""]
[527,null,null,null,null,"",{"$f":"IFERROR(IF(OR(AZ546=1,F546<>\"\"),\"To key in DOB\",#REF!),\"\")","v":""},null,null,null,null,null,null,null,null,null,null,"","",null,null,null,null,null,null,null,null,null,null,null,null,null,null,null,null,null,null,null,null,null,null,null,null,null,null,null,null,null,null,"DOB Error","DOB Error",""]
[530,null,null,null,null,"",{"$f":"IFERROR(IF(OR(AZ549=1,F549<>\"\"),\"To key in DOB\",#REF!),\"\")","v":""},null,null,null,null,null,null,null,null,null,null,"","",null,null,null,null,null,null,null,null,null,null,null,null,null,null,null,null,null,null,null,null,null,null,null,null,null,null,null,null,null,null,"DOB Error","DOB Error",""]
[533,null,null,null,null,"",{"$f":"IFERROR(IF(OR(AZ552=1,F552<>\"\"),\"To key in DOB\",#REF!),\"\")","v":""},null,null,null,null,null,null,null,null,null,null,"","",null,null,null,null,null,null,null,null,null,null,null,null,null,null,null,null,null,null,null,null,null,null,null,null,null,null,null,null,null,null,"DOB Error","DOB Error",""]
[536,null,null,null,null,"",{"$f":"IFERROR(IF(OR(AZ555=1,F555<>\"\"),\"To key in DOB\",#REF!),\"\")","v":""},null,null,null,null,null,null,null,null,null,null,"","",null,null,null,null,null,null,null,null,null,null,null,null,null,null,null,null,null,null,null,null,null,null,null,null,null,null,null,null,null,null,"DOB Error","DOB Error",""]
[539,null,null,null,null,"",{"$f":"IFERROR(IF(OR(AZ558=1,F558<>\"\"),\"To key in DOB\",#REF!),\"\")","v":""},null,null,null,null,null,null,null,null,null,null,"","",null,null,null,null,null,null,null,null,null,null,null,null,null,null,null,null,null,null,null,null,null,null,null,null,null,null,null,null,null,null,"DOB Error","DOB Error",""]
[540,null,null,null,null,"",{"$f":"IFERROR(IF(OR(AZ559=1,F559<>\"\"),\"To key in DOB\",#REF!),\"\")","v":""},null,null,null,null,null,null,null,null,null,null,"","",null,null,null,null,null,null,null,null,null,null,null,null,null,null,null,null,null,null,null,null,null,null,null,null,null,null,null,null,null,null,"DOB Error","DOB Error",""]
[543,null,null,null,null,"",{"$f":"IFERROR(IF(OR(AZ562=1,F562<>\"\"),\"To key in DOB\",#REF!),\"\")","v":""},null,null,null,null,null,null,null,null,null,null,"","",null,null,null,null,null,null,null,null,null,null,null,null,null,null,null,null,null,null,null,null,null,null,null,null,null,null,null,null,null,null,"DOB Error","DOB Error",""]
[546,null,null,null,null,"",{"$f":"IFERROR(IF(OR(AZ565=1,F565<>\"\"),\"To key in DOB\",#REF!),\"\")","v":""},null,null,null,null,null,null,null,null,null,null,"","",null,null,null,null,null,null,null,null,null,null,null,null,null,null,null,null,null,null,null,null,null,null,null,null,null,null,null,null,null,null,"DOB Error","DOB Error",""]
[549,null,null,null,null,"",{"$f":"IFERROR(IF(OR(AZ568=1,F568<>\"\"),\"To key in DOB\",#REF!),\"\")","v":""},null,null,null,null,null,null,null,null,null,null,"","",null,null,null,null,null,null,null,null,null,null,null,null,null,null,null,null,null,null,null,null,null,null,null,null,null,null,null,null,null,null,"DOB Error","DOB Error",""]
[552,null,null,null,null,"",{"$f":"IFERROR(IF(OR(AZ571=1,F571<>\"\"),\"To key in DOB\",#REF!),\"\")","v":""},null,null,null,null,null,null,null,null,null,null,"","",null,null,null,null,null,null,null,null,null,null,null,null,null,null,null,null,null,null,null,null,null,null,null,null,null,null,null,null,null,null,"DOB Error","DOB Error",""]
[555,null,null,null,null,"",{"$f":"IFERROR(IF(OR(AZ574=1,F574<>\"\"),\"To key in DOB\",#REF!),\"\")","v":""},null,null,null,null,null,null,null,null,null,null,"","",null,null,null,null,null,null,null,null,null,null,null,null,null,null,null,null,null,null,null,null,null,null,null,null,null,null,null,null,null,null,"DOB Error","DOB Error",""]
[559,null,null,null,null,"",{"$f":"IFERROR(IF(OR(AZ578=1,F578<>\"\"),\"To key in DOB\",#REF!),\"\")","v":""},null,null,null,null,null,null,null,null,null,null,"","",null,null,null,null,null,null,null,null,null,null,null,null,null,null,null,null,null,null,null,null,null,null,null,null,null,null,null,null,null,null,"DOB Error","DOB Error",""]
[561,null,null,null,null,"",{"$f":"IFERROR(IF(OR(AZ580=1,F580<>\"\"),\"To key in DOB\",#REF!),\"\")","v":""},null,null,null,null,null,null,null,null,null,null,"","",null,null,null,null,null,null,null,null,null,null,null,null,null,null,null,null,null,null,null,null,null,null,null,null,null,null,null,null,null,null,"DOB Error","DOB Error",""]
[562,null,null,null,null,"",{"$f":"IFERROR(IF(OR(AZ581=1,F581<>\"\"),\"To key in DOB\",#REF!),\"\")","v":""},null,null,null,null,null,null,null,null,null,null,"","",null,null,null,null,null,null,null,null,null,null,null,null,null,null,null,null,null,null,null,null,null,null,null,null,null,null,null,null,null,null,"DOB Error","DOB Error",""]
[565,null,null,null,null,"",{"$f":"IFERROR(IF(OR(AZ584=1,F584<>\"\"),\"To key in DOB\",#REF!),\"\")","v":""},null,null,null,null,null,null,null,null,null,null,"","",null,null,null,null,null,null,null,null,null,null,null,null,null,null,null,null,null,null,null,null,null,null,null,null,null,null,null,null,null,null,"DOB Error","DOB Error",""]
[568,null,null,null,null,"",{"$f":"IFERROR(IF(OR(AZ587=1,F587<>\"\"),\"To key in DOB\",#REF!),\"\")","v":""},null,null,null,null,null,null,null,null,null,null,"","",null,null,null,null,null,null,null,null,null,null,null,null,null,null,null,null,null,null,null,null,null,null,null,null,null,null,null,null,null,null,"DOB Error","DOB Error",""]
[572,null,null,null,null,"",{"$f":"IFERROR(IF(OR(AZ591=1,F591<>\"\"),\"To key in DOB\",#REF!),\"\")","v":""},null,null,null,null,null,null,null,null,null,null,"","",null,null,null,null,null,null,null,null,null,null,null,null,null,null,null,null,null,null,null,null,null,null,null,null,null,null,null,null,null,null,"DOB Error","DOB Error",""]
[574,null,null,null,null,"",{"$f":"IFERROR(IF(OR(AZ593=1,F593<>\"\"),\"To key in DOB\",#REF!),\"\")","v":""},null,null,null,null,null,null,null,null,null,null,"","",null,null,null,null,null,null,null,null,null,null,null,null,null,null,null,null,null,null,null,null,null,null,null,null,null,null,null,null,null,null,"DOB Error","DOB Error",""]
[577,null,null,null,null,"",{"$f":"IFERROR(IF(OR(AZ596=1,F596<>\"\"),\"To key in DOB\",#REF!),\"\")","v":""},null,null,null,null,null,null,null,null,null,null,{"$f":"IF(OR(Q596=\"CHANGE\",Q596=\"ADD\",Q596=\"TERMINATE\"),VLOOKUP(Q596,$AR:$AS,2,FALSE),\"\")","v":""},{"$f":"IF(OR(Q596=\"TERMINATE (DEATH)\"),VLOOKUP(Q596,$AR:$AU,4,FALSE),\"\")","v":""},null,null,null,null,null,null,null,null,null,null,null,null,null,null,null,null,null,null,null,null,null,null,null,null,null,null,null,null,null,null,"DOB Error","DOB Error",""]
[581,null,null,null,null,"",{"$f":"IFERROR(IF(OR(AZ600=1,F600<>\"\"),\"To key in DOB\",#REF!),\"\")","v":""},null,null,null,null,null,null,null,null,null,null,"","",null,null,null,null,null,null,null,null,null,null,null,null,null,null,null,null,null,null,null,null,null,null,null,null,null,null,null,null,null,null,"DOB Error","DOB Error",""]
[584,null,null,null,null,"",{"$f":"IFERROR(IF(OR(AZ603=1,F603<>\"\"),\"To key in DOB\",#REF!),\"\")","v":""},null,null,null,null,null,null,null,null,null,null,"","",null,null,null,null,null,null,null,null,null,null,null,null,null,null,null,null,null,null,null,null,null,null,null,null,null,null,null,null,null,null,"DOB Error","DOB Error",""]
[585,null,null,null,null,"",{"$f":"IFERROR(IF(OR(AZ604=1,F604<>\"\"),\"To key in DOB\",#REF!),\"\")","v":""},null,null,null,null,null,null,null,null,null,null,"","",null,null,null,null,null,null,null,null,null,null,null,null,null,null,null,null,null,null,null,null,null,null,null,null,null,null,null,null,null,null,"DOB Error","DOB Error",""]
[587,null,null,null,null,"",{"$f":"IFERROR(IF(OR(AZ606=1,F606<>\"\"),\"To key in DOB\",#REF!),\"\")","v":""},null,null,null,null,null,null,null,null,null,null,"","",null,null,null,null,null,null,null,null,null,null,null,null,null,null,null,null,null,null,null,null,null,null,null,null,null,null,null,null,null,null,"DOB Error","DOB Error",""]
[590,null,null,null,null,"",{"$f":"IFERROR(IF(OR(AZ609=1,F609<>\"\"),\"To key in DOB\",#REF!),\"\")","v":""},null,null,null,null,null,null,null,null,null,null,"","",null,null,null,null,null,null,null,null,null,null,null,null,null,null,null,null,null,null,null,null,null,null,null,null,null,null,null,null,null,null,"DOB Error","DOB Error",""]
[594,null,null,null,null,"",{"$f":"IFERROR(IF(OR(AZ613=1,F613<>\"\"),\"To key in DOB\",#REF!),\"\")","v":""},null,null,null,null,null,null,null,null,null,null,"","",null,null,null,null,null,null,null,null,null,null,null,null,null,null,null,null,null,null,null,null,null,null,null,null,null,null,null,null,null,null,"DOB Error","DOB Error",""]
[597,null,null,null,null,"",{"$f":"IFERROR(IF(OR(AZ616=1,F616<>\"\"),\"To key in DOB\",#REF!),\"\")","v":""},null,null,null,null,null,null,null,null,null,null,"","",null,null,null,null,null,null,null,null,null,null,null,null,null,null,null,null,null,null,null,null,null,null,null,null,null,null,null,null,null,null,"DOB Error","DOB Error",""]
[600,null,null,null,null,"",{"$f":"IFERROR(IF(OR(AZ619=1,F619<>\"\"),\"To key in DOB\",#REF!),\"\")","v":""},null,null,null,null,null,null,null,null,null,null,"","",null,null,null,null,null,null,null,null,null,null,null,null,null,null,null,null,null,null,null,null,null,null,null,null,null,null,null,null,null,null,"DOB Error","DOB Error",""]
[603,null,null,null,null,"",{"$f":"IFERROR(IF(OR(AZ622=1,F622<>\"\"),\"To key in DOB\",#REF!),\"\")","v":""},null,null,null,null,null,null,null,null,null,null,"","",null,null,null,null,null,null,null,null,null,null,null,null,null,null,null,null,null,null,null,null,null,null,null,null,null,null,null,null,null,null,"DOB Error","DOB Error",""]
[606,null,null,null,null,"",{"$f":"IFERROR(IF(OR(AZ625=1,F625<>\"\"),\"To key in DOB\",#REF!),\"\")","v":""},null,null,null,null,null,null,null,null,null,null,"","",null,null,null,null,null,null,null,null,null,null,null,null,null,null,null,null,null,null,null,null,null,null,null,null,null,null,null,null,null,null,"DOB Error","DOB Error",""]
[607,null,null,null,null,"",{"$f":"IFERROR(IF(OR(AZ626=1,F626<>\"\"),\"To key in DOB\",#REF!),\"\")","v":""},null,null,null,null,null,null,null,null,null,null,"","",null,null,null,null,null,null,null,null,null,null,null,null,null,null,null,null,null,null,null,null,null,null,null,null,null,null,null,null,null,null,"DOB Error","DOB Error",""]
[610,null,null,null,null,"",{"$f":"IFERROR(IF(OR(AZ629=1,F629<>\"\"),\"To key in DOB\",#REF!),\"\")","v":""},null,null,null,null,null,null,null,null,null,null,"","",null,null,null,null,null,null,null,null,null,null,null,null,null,null,null,null,null,null,null,null,null,null,null,null,null,null,null,null,null,null,"DOB Error","DOB Error",""]
[613,null,null,null,null,"",{"$f":"IFERROR(IF(OR(AZ632=1,F632<>\"\"),\"To key in DOB\",#REF!),\"\")","v":""},null,null,null,null,null,null,null,null,null,null,"","",null,null,null,null,null,null,null,null,null,null,null,null,null,null,null,null,null,null,null,null,null,null,null,null,null,null,null,null,null,null,"DOB Error","DOB Error",""]
[616,null,null,null,null,"",{"$f":"IFERROR(IF(OR(AZ635=1,F635<>\"\"),\"To key in DOB\",#REF!),\"\")","v":""},null,null,null,null,null,null,null,null,null,null,"","",null,null,null,null,null,null,null,null,null,null,null,null,null,null,null,null,null,null,null,null,null,null,null,null,null,null,null,null,null,null,"DOB Error","DOB Error",""]
[619,null,null,null,null,"",{"$f":"IFERROR(IF(OR(AZ638=1,F638<>\"\"),\"To key in DOB\",#REF!),\"\")","v":""},null,null,null,null,null,null,null,null,null,null,"","",null,null,null,null,null,null,null,null,null,null,null,null,null,null,null,null,null,null,null,null,null,null,null,null,null,null,null,null,null,null,"DOB Error","DOB Error",""]
[623,null,null,null,null,"",{"$f":"IFERROR(IF(OR(AZ642=1,F642<>\"\"),\"To key in DOB\",#REF!),\"\")","v":""},null,null,null,null,null,null,null,null,null,null,"","",null,null,null,null,null,null,null,null,null,null,null,null,null,null,null,null,null,null,null,null,null,null,null,null,null,null,null,null,null,null,"DOB Error","DOB Error",""]
[624,null,null,null,null,"",{"$f":"IFERROR(IF(OR(AZ643=1,F643<>\"\"),\"To key in DOB\",#REF!),\"\")","v":""},null,null,null,null,null,null,null,null,null,null,"","",null,null,null,null,null,null,null,null,null,null,null,null,null,null,null,null,null,null,null,null,null,null,null,null,null,null,null,null,null,null,"DOB Error","DOB Error",""]
[628,null,null,null,null,"",{"$f":"IFERROR(IF(OR(AZ647=1,F647<>\"\"),\"To key in DOB\",#REF!),\"\")","v":""},null,null,null,null,null,null,null,null,null,null,"","",null,null,null,null,null,null,null,null,null,null,null,null,null,null,null,null,null,null,null,null,null,null,null,null,null,null,null,null,null,null,"DOB Error","DOB Error",""]
[629,null,null,null,null,"",{"$f":"IFERROR(IF(OR(AZ648=1,F648<>\"\"),\"To key in DOB\",#REF!),\"\")","v":""},null,null,null,null,null,null,null,null,null,null,"","",null,null,null,null,null,null,null,null,null,null,null,null,null,null,null,null,null,null,null,null,null,null,null,null,null,null,null,null,null,null,"DOB Error","DOB Error",""]
[632,null,null,null,null,"",{"$f":"IFERROR(IF(OR(AZ651=1,F651<>\"\"),\"To key in DOB\",#REF!),\"\")","v":""},null,null,null,null,null,null,null,null,null,null,"","",null,null,null,null,null,null,null,null,null,null,null,null,null,null,null,null,null,null,null,null,null,null,null,null,null,null,null,null,null,null,"DOB Error","DOB Error",""]
[636,null,null,null,null,"",{"$f":"IFERROR(IF(OR(AZ655=1,F655<>\"\"),\"To key in DOB\",#REF!),\"\")","v":""},null,null,null,null,null,null,null,null,null,null,"","",null,null,null,null,null,null,null,null,null,null,null,null,null,null,null,null,null,null,null,null,null,null,null,null,null,null,null,null,null,null,"DOB Error","DOB Error",""]
[639,null,null,null,null,"",{"$f":"IFERROR(IF(OR(AZ658=1,F658<>\"\"),\"To key in DOB\",#REF!),\"\")","v":""},null,null,null,null,null,null,null,null,null,null,"","",null,null,null,null,null,null,null,null,null,null,null,null,null,null,null,null,null,null,null,null,null,null,null,null,null,null,null,null,null,null,"DOB Error","DOB Error",""]
[641,null,null,null,null,"",{"$f":"IFERROR(IF(OR(AZ660=1,F660<>\"\"),\"To key in DOB\",#REF!),\"\")","v":""},null,null,null,null,null,null,null,null,null,null,{"$f":"IF(OR(Q660=\"CHANGE\",Q660=\"ADD\",Q660=\"TERMINATE\"),VLOOKUP(Q660,$AR:$AS,2,FALSE),\"\")","v":""},{"$f":"IF(OR(Q660=\"TERMINATE (DEATH)\"),VLOOKUP(Q660,$AR:$AU,4,FALSE),\"\")","v":""},null,null,null,null,null,null,null,null,null,null,null,null,null,null,null,null,null,null,null,null,null,null,null,null,null,null,null,null,null,null,"DOB Error","DOB Error",""]
[645,null,null,null,null,"",{"$f":"IFERROR(IF(OR(AZ664=1,F664<>\"\"),\"To key in DOB\",#REF!),\"\")","v":""},null,null,null,null,null,null,null,null,null,null,"","",null,null,null,null,null,null,null,null,null,null,null,null,null,null,null,null,null,null,null,null,null,null,null,null,null,null,null,null,null,null,"DOB Error","DOB Error",""]
[648,null,null,null,null,"",{"$f":"IFERROR(IF(OR(AZ667=1,F667<>\"\"),\"To key in DOB\",#REF!),\"\")","v":""},null,null,null,null,null,null,null,null,null,null,"","",null,null,null,null,null,null,null,null,null,null,null,null,null,null,null,null,null,null,null,null,null,null,null,null,null,null,null,null,null,null,"DOB Error","DOB Error",""]
[651,null,null,null,null,"",{"$f":"IFERROR(IF(OR(AZ670=1,F670<>\"\"),\"To key in DOB\",#REF!),\"\")","v":""},null,null,null,null,null,null,null,null,null,null,"","",null,null,null,null,null,null,null,null,null,null,null,null,null,null,null,null,null,null,null,null,null,null,null,null,null,null,null,null,null,null,"DOB Error","DOB Error",""]
[652,null,null,null,null,"",{"$f":"IFERROR(IF(OR(AZ671=1,F671<>\"\"),\"To key in DOB\",#REF!),\"\")","v":""},null,null,null,null,null,null,null,null,null,null,"","",null,null,null,null,null,null,null,null,null,null,null,null,null,null,null,null,null,null,null,null,null,null,null,null,null,null,null,null,null,null,"DOB Error","DOB Error",""]
[654,null,null,null,null,"",{"$f":"IFERROR(IF(OR(AZ673=1,F673<>\"\"),\"To key in DOB\",#REF!),\"\")","v":""},null,null,null,null,null,null,null,null,null,null,"","",null,null,null,null,null,null,null,null,null,null,null,null,null,null,null,null,null,null,null,null,null,null,null,null,null,null,null,null,null,null,"DOB Error","DOB Error",""]
[658,null,null,null,null,"",{"$f":"IFERROR(IF(OR(AZ677=1,F677<>\"\"),\"To key in DOB\",#REF!),\"\")","v":""},null,null,null,null,null,null,null,null,null,null,"","",null,null,null,null,null,null,null,null,null,null,null,null,null,null,null,null,null,null,null,null,null,null,null,null,null,null,null,null,null,null,"DOB Error","DOB Error",""]
[661,null,null,null,null,"",{"$f":"IFERROR(IF(OR(AZ680=1,F680<>\"\"),\"To key in DOB\",#REF!),\"\")","v":""},null,null,null,null,null,null,null,null,null,null,"","",null,null,null,null,null,null,null,null,null,null,null,null,null,null,null,null,null,null,null,null,null,null,null,null,null,null,null,null,null,null,"DOB Error","DOB Error",""]
[664,null,null,null,null,"",{"$f":"IFERROR(IF(OR(AZ683=1,F683<>\"\"),\"To key in DOB\",#REF!),\"\")","v":""},null,null,null,null,null,null,null,null,null,null,"","",null,null,null,null,null,null,null,null,null,null,null,null,null,null,null,null,null,null,null,null,null,null,null,null,null,null,null,null,null,null,"DOB Error","DOB Error",""]
[667,null,null,null,null,"",{"$f":"IFERROR(IF(OR(AZ686=1,F686<>\"\"),\"To key in DOB\",#REF!),\"\")","v":""},null,null,null,null,null,null,null,null,null,null,"","",null,null,null,null,null,null,null,null,null,null,null,null,null,null,null,null,null,null,null,null,null,null,null,null,null,null,null,null,null,null,"DOB Error","DOB Error",""]
[670,null,null,null,null,"",{"$f":"IFERROR(IF(OR(AZ689=1,F689<>\"\"),\"To key in DOB\",#REF!),\"\")","v":""},null,null,null,null,null,null,null,null,null,null,"","",null,null,null,null,null,null,null,null,null,null,null,null,null,null,null,null,null,null,null,null,null,null,null,null,null,null,null,null,null,null,"DOB Error","DOB Error",""]
[673,null,null,null,null,"",{"$f":"IFERROR(IF(OR(AZ692=1,F692<>\"\"),\"To key in DOB\",#REF!),\"\")","v":""},null,null,null,null,null,null,null,null,null,null,"","",null,null,null,null,null,null,null,null,null,null,null,null,null,null,null,null,null,null,null,null,null,null,null,null,null,null,null,null,null,null,"DOB Error","DOB Error",""]
[674,null,null,null,null,"",{"$f":"IFERROR(IF(OR(AZ693=1,F693<>\"\"),\"To key in DOB\",#REF!),\"\")","v":""},null,null,null,null,null,null,null,null,null,null,"","",null,null,null,null,null,null,null,null,null,null,null,null,null,null,null,null,null,null,null,null,null,null,null,null,null,null,null,null,null,null,"DOB Error","DOB Error",""]
[678,null,null,null,null,"",{"$f":"IFERROR(IF(OR(AZ697=1,F697<>\"\"),\"To key in DOB\",#REF!),\"\")","v":""},null,null,null,null,null,null,null,null,null,null,"","",null,null,null,null,null,null,null,null,null,null,null,null,null,null,null,null,null,null,null,null,null,null,null,null,null,null,null,null,null,null,"DOB Error","DOB Error",""]
[680,null,null,null,null,"",{"$f":"IFERROR(IF(OR(AZ699=1,F699<>\"\"),\"To key in DOB\",#REF!),\"\")","v":""},null,null,null,null,null,null,null,null,null,null,"","",null,null,null,null,null,null,null,null,null,null,null,null,null,null,null,null,null,null,null,null,null,null,null,null,null,null,null,null,null,null,"DOB Error","DOB Error",""]
[683,null,null,null,null,"",{"$f":"IFERROR(IF(OR(AZ702=1,F702<>\"\"),\"To key in DOB\",#REF!),\"\")","v":""},null,null,null,null,null,null,null,null,null,null,"","",null,null,null,null,null,null,null,null,null,null,null,null,null,null,null,null,null,null,null,null,null,null,null,null,null,null,null,null,null,null,"DOB Error","DOB Error",""]
[686,null,null,null,null,"",{"$f":"IFERROR(IF(OR(AZ705=1,F705<>\"\"),\"To key in DOB\",#REF!),\"\")","v":""},null,null,null,null,null,null,null,null,null,null,"","",null,null,null,null,null,null,null,null,null,null,null,null,null,null,null,null,null,null,null,null,null,null,null,null,null,null,null,null,null,null,"DOB Error","DOB Error",""]
[690,null,null,null,null,"",{"$f":"IFERROR(IF(OR(AZ709=1,F709<>\"\"),\"To key in DOB\",#REF!),\"\")","v":""},null,null,null,null,null,null,null,null,null,null,"","",null,null,null,null,null,null,null,null,null,null,null,null,null,null,null,null,null,null,null,null,null,null,null,null,null,null,null,null,null,null,"DOB Error","DOB Error",""]
[691,null,null,null,null,"",{"$f":"IFERROR(IF(OR(AZ710=1,F710<>\"\"),\"To key in DOB\",#REF!),\"\")","v":""},null,null,null,null,null,null,null,null,null,null,"","",null,null,null,null,null,null,null,null,null,null,null,null,null,null,null,null,null,null,null,null,null,null,null,null,null,null,null,null,null,null,"DOB Error","DOB Error",""]
[693,null,null,null,null,"",{"$f":"IFERROR(IF(OR(AZ712=1,F712<>\"\"),\"To key in DOB\",#REF!),\"\")","v":""},null,null,null,null,null,null,null,null,null,null,"","",null,null,null,null,null,null,null,null,null,null,null,null,null,null,null,null,null,null,null,null,null,null,null,null,null,null,null,null,null,null,"DOB Error","DOB Error",""]
[696,null,null,null,null,"",{"$f":"IFERROR(IF(OR(AZ715=1,F715<>\"\"),\"To key in DOB\",#REF!),\"\")","v":""},null,null,null,null,null,null,null,null,null,null,"","",null,null,null,null,null,null,null,null,null,null,null,null,null,null,null,null,null,null,null,null,null,null,null,null,null,null,null,null,null,null,"DOB Error","DOB Error",""]
[699,null,null,null,null,"",{"$f":"IFERROR(IF(OR(AZ718=1,F718<>\"\"),\"To key in DOB\",#REF!),\"\")","v":""},null,null,null,null,null,null,null,null,null,null,"","",null,null,null,null,null,null,null,null,null,null,null,null,null,null,null,null,null,null,null,null,null,null,null,null,null,null,null,null,null,null,"DOB Error","DOB Error",""]
[703,null,null,null,null,"",{"$f":"IFERROR(IF(OR(AZ722=1,F722<>\"\"),\"To key in DOB\",#REF!),\"\")","v":""},null,null,null,null,null,null,null,null,null,null,"","",null,null,null,null,null,null,null,null,null,null,null,null,null,null,null,null,null,null,null,null,null,null,null,null,null,null,null,null,null,null,"DOB Error","DOB Error",""]
[706,null,null,null,null,{"$f":"IF(AZ725=1,\"To key in Old IC / Passport / Birth Cert No.\",\"\")","v":""},{"$f":"IFERROR(IF(OR(AZ725=1,F725<>\"\"),\"To key in DOB\",#REF!),\"\")","v":""},null,null,null,null,null,null,null,null,null,null,"","",null,null,null,null,null,null,null,null,null,null,null,null,null,null,null,null,null,null,null,null,null,null,null,null,null,null,null,null,null,null,"DOB Error","DOB Error",""]
[708,null,null,null,null,"",{"$f":"IFERROR(IF(OR(AZ727=1,F727<>\"\"),\"To key in DOB\",#REF!),\"\")","v":""},null,null,null,null,null,null,null,null,null,null,"","",null,null,null,null,null,null,null,null,null,null,null,null,null,null,null,null,null,null,null,null,null,null,null,null,null,null,null,null,null,null,"DOB Error","DOB Error",""]
[712,null,null,null,null,"",{"$f":"IFERROR(IF(OR(AZ731=1,F731<>\"\"),\"To key in DOB\",#REF!),\"\")","v":""},null,null,null,null,null,null,null,null,null,null,"","",null,null,null,null,null,null,null,null,null,null,null,null,null,null,null,null,null,null,null,null,null,null,null,null,null,null,null,null,null,null,"DOB Error","DOB Error",""]
[715,null,null,null,null,"",{"$f":"IFERROR(IF(OR(AZ734=1,F734<>\"\"),\"To key in DOB\",#REF!),\"\")","v":""},null,null,null,null,null,null,null,null,null,null,"","",null,null,null,null,null,null,null,null,null,null,null,null,null,null,null,null,null,null,null,null,null,null,null,null,null,null,null,null,null,null,"DOB Error","DOB Error",""]
[717,null,null,null,null,"",{"$f":"IFERROR(IF(OR(AZ736=1,F736<>\"\"),\"To key in DOB\",#REF!),\"\")","v":""},null,null,null,null,null,null,null,null,null,null,"","",null,null,null,null,null,null,null,null,null,null,null,null,null,null,null,null,null,null,null,null,null,null,null,null,null,null,null,null,null,null,"DOB Error","DOB Error",""]
[718,null,null,null,null,"",{"$f":"IFERROR(IF(OR(AZ737=1,F737<>\"\"),\"To key in DOB\",#REF!),\"\")","v":""},null,null,null,null,null,null,null,null,null,null,"","",null,null,null,null,null,null,null,null,null,null,null,null,null,null,null,null,null,null,null,null,null,null,null,null,null,null,null,null,null,null,"DOB Error","DOB Error",""]
[721,null,null,null,null,"",{"$f":"IFERROR(IF(OR(AZ740=1,F740<>\"\"),\"To key in DOB\",#REF!),\"\")","v":""},null,null,null,null,null,null,null,null,null,null,"","",null,null,null,null,null,null,null,null,null,null,null,null,null,null,null,null,null,null,null,null,null,null,null,null,null,null,null,null,null,null,"DOB Error","DOB Error",""]
[725,null,null,null,null,"",{"$f":"IFERROR(IF(OR(AZ744=1,F744<>\"\"),\"To key in DOB\",#REF!),\"\")","v":""},null,null,null,null,null,null,null,null,null,null,"","",null,null,null,null,null,null,null,null,null,null,null,null,null,null,null,null,null,null,null,null,null,null,null,null,null,null,null,null,null,null,"DOB Error","DOB Error",""]
[728,null,null,null,null,"",{"$f":"IFERROR(IF(OR(AZ747=1,F747<>\"\"),\"To key in DOB\",#REF!),\"\")","v":""},null,null,null,null,null,null,null,null,null,null,"","",null,null,null,null,null,null,null,null,null,null,null,null,null,null,null,null,null,null,null,null,null,null,null,null,null,null,null,null,null,null,"DOB Error","DOB Error",""]
[730,null,null,null,null,"",{"$f":"IFERROR(IF(OR(AZ749=1,F749<>\"\"),\"To key in DOB\",#REF!),\"\")","v":""},null,null,null,null,null,null,null,null,null,null,"","",null,null,null,null,null,null,null,null,null,null,null,null,null,null,null,null,null,null,null,null,null,null,null,null,null,null,null,null,null,null,"DOB Error","DOB Error",""]
[734,null,null,null,null,"",{"$f":"IFERROR(IF(OR(AZ753=1,F753<>\"\"),\"To key in DOB\",#REF!),\"\")","v":""},null,null,null,null,null,null,null,null,null,null,"","",null,null,null,null,null,null,null,null,null,null,null,null,null,null,null,null,null,null,null,null,null,null,null,null,null,null,null,null,null,null,"DOB Error","DOB Error",""]
[737,null,null,null,null,"",{"$f":"IFERROR(IF(OR(AZ756=1,F756<>\"\"),\"To key in DOB\",#REF!),\"\")","v":""},null,null,null,null,null,null,null,null,null,null,"","",null,null,null,null,null,null,null,null,null,null,null,null,null,null,null,null,null,null,null,null,null,null,null,null,null,null,null,null,null,null,"DOB Error","DOB Error",""]
[738,null,null,null,null,"",{"$f":"IFERROR(IF(OR(AZ757=1,F757<>\"\"),\"To key in DOB\",#REF!),\"\")","v":""},null,null,null,null,null,null,null,null,null,null,"","",null,null,null,null,null,null,null,null,null,null,null,null,null,null,null,null,null,null,null,null,null,null,null,null,null,null,null,null,null,null,"DOB Error","DOB Error",""]
[741,null,null,null,null,"",{"$f":"IFERROR(IF(OR(AZ760=1,F760<>\"\"),\"To key in DOB\",#REF!),\"\")","v":""},null,null,null,null,null,null,null,null,null,null,"","",null,null,null,null,null,null,null,null,null,null,null,null,null,null,null,null,null,null,null,null,null,null,null,null,null,null,null,null,null,null,"DOB Error","DOB Error",""]
[745,null,null,null,null,"",{"$f":"IFERROR(IF(OR(AZ764=1,F764<>\"\"),\"To key in DOB\",#REF!),\"\")","v":""},null,null,null,null,null,null,null,null,null,null,"","",null,null,null,null,null,null,null,null,null,null,null,null,null,null,null,null,null,null,null,null,null,null,null,null,null,null,null,null,null,null,"DOB Error","DOB Error",""]
[747,null,null,null,null,"",{"$f":"IFERROR(IF(OR(AZ766=1,F766<>\"\"),\"To key in DOB\",#REF!),\"\")","v":""},null,null,null,null,null,null,null,null,null,null,"","",null,null,null,null,null,null,null,null,null,null,null,null,null,null,null,null,null,null,null,null,null,null,null,null,null,null,null,null,null,null,"DOB Error","DOB Error",""]
[750,null,null,null,null,"",{"$f":"IFERROR(IF(OR(AZ769=1,F769<>\"\"),\"To key in DOB\",#REF!),\"\")","v":""},null,null,null,null,null,null,null,null,null,null,"","",null,null,null,null,null,null,null,null,null,null,null,null,null,null,null,null,null,null,null,null,null,null,null,null,null,null,null,null,null,null,"DOB Error","DOB Error",""]
[754,null,null,null,null,"",{"$f":"IFERROR(IF(OR(AZ773=1,F773<>\"\"),\"To key in DOB\",#REF!),\"\")","v":""},null,null,null,null,null,null,null,null,null,null,"","",null,null,null,null,null,null,null,null,null,null,null,null,null,null,null,null,null,null,null,null,null,null,null,null,null,null,null,null,null,null,"DOB Error","DOB Error",""]
[757,null,null,null,null,"",{"$f":"IFERROR(IF(OR(AZ776=1,F776<>\"\"),\"To key in DOB\",#REF!),\"\")","v":""},null,null,null,null,null,null,null,null,null,null,"","",null,null,null,null,null,null,null,null,null,null,null,null,null,null,null,null,null,null,null,null,null,null,null,null,null,null,null,null,null,null,"DOB Error","DOB Error",""]
[758,null,null,null,null,"",{"$f":"IFERROR(IF(OR(AZ777=1,F777<>\"\"),\"To key in DOB\",#REF!),\"\")","v":""},null,null,null,null,null,null,null,null,null,null,"","",null,null,null,null,null,null,null,null,null,null,null,null,null,null,null,null,null,null,null,null,null,null,null,null,null,null,null,null,null,null,"DOB Error","DOB Error",""]
[760,null,null,null,null,"",{"$f":"IFERROR(IF(OR(AZ779=1,F779<>\"\"),\"To key in DOB\",#REF!),\"\")","v":""},null,null,null,null,null,null,null,null,null,null,"","",null,null,null,null,null,null,null,null,null,null,null,null,null,null,null,null,null,null,null,null,null,null,null,null,null,null,null,null,null,null,"DOB Error","DOB Error",""]
[763,null,null,null,null,"",{"$f":"IFERROR(IF(OR(AZ782=1,F782<>\"\"),\"To key in DOB\",#REF!),\"\")","v":""},null,null,null,null,null,null,null,null,null,null,"","",null,null,null,null,null,null,null,null,null,null,null,null,null,null,null,null,null,null,null,null,null,null,null,null,null,null,null,null,null,null,"DOB Error","DOB Error",""]
[766,null,null,null,null,"",{"$f":"IFERROR(IF(OR(AZ785=1,F785<>\"\"),\"To key in DOB\",#REF!),\"\")","v":""},null,null,null,null,null,null,null,null,null,null,"","",null,null,null,null,null,null,null,null,null,null,null,null,null,null,null,null,null,null,null,null,null,null,null,null,null,null,null,null,null,null,"DOB Error","DOB Error",""]
[769,null,null,null,null,"",{"$f":"IFERROR(IF(OR(AZ788=1,F788<>\"\"),\"To key in DOB\",#REF!),\"\")","v":""},null,null,null,null,null,null,null,null,null,null,{"$f":"IF(OR(Q788=\"CHANGE\",Q788=\"ADD\",Q788=\"TERMINATE\"),VLOOKUP(Q788,$AR:$AS,2,FALSE),\"\")","v":""},{"$f":"IF(OR(Q788=\"TERMINATE (DEATH)\"),VLOOKUP(Q788,$AR:$AU,4,FALSE),\"\")","v":""},null,null,null,null,null,null,null,null,null,null,null,null,null,null,null,null,null,null,null,null,null,null,null,null,null,null,null,null,null,null,"DOB Error","DOB Error",""]
[772,null,null,null,null,"",{"$f":"IFERROR(IF(OR(AZ791=1,F791<>\"\"),\"To key in DOB\",#REF!),\"\")","v":""},null,null,null,null,null,null,null,null,null,null,"","",null,null,null,null,null,null,null,null,null,null,null,null,null,null,null,null,null,null,null,null,null,null,null,null,null,null,null,null,null,null,"DOB Error","DOB Error",""]
[776,null,null,null,null,"",{"$f":"IFERROR(IF(OR(AZ795=1,F795<>\"\"),\"To key in DOB\",#REF!),\"\")","v":""},null,null,null,null,null,null,null,null,null,null,"","",null,null,null,null,null,null,null,null,null,null,null,null,null,null,null,null,null,null,null,null,null,null,null,null,null,null,null,null,null,null,"DOB Error","DOB Error",""]
[779,null,null,null,null,"",{"$f":"IFERROR(IF(OR(AZ798=1,F798<>\"\"),\"To key in DOB\",#REF!),\"\")","v":""},null,null,null,null,null,null,null,null,null,null,"","",null,null,null,null,null,null,null,null,null,null,null,null,null,null,null,null,null,null,null,null,null,null,null,null,null,null,null,null,null,null,"DOB Error","DOB Error",""]
[782,null,null,null,null,"",{"$f":"IFERROR(IF(OR(AZ801=1,F801<>\"\"),\"To key in DOB\",#REF!),\"\")","v":""},null,null,null,null,null,null,null,null,null,null,"","",null,null,null,null,null,null,null,null,null,null,null,null,null,null,null,null,null,null,null,null,null,null,null,null,null,null,null,null,null,null,"DOB Error","DOB Error",""]
[784,null,null,null,null,"",{"$f":"IFERROR(IF(OR(AZ803=1,F803<>\"\"),\"To key in DOB\",#REF!),\"\")","v":""},null,null,null,null,null,null,null,null,null,null,"","",null,null,null,null,null,null,null,null,null,null,null,null,null,null,null,null,null,null,null,null,null,null,null,null,null,null,null,null,null,null,"DOB Error","DOB Error",""]
[785,null,null,null,null,"",{"$f":"IFERROR(IF(OR(AZ804=1,F804<>\"\"),\"To key in DOB\",#REF!),\"\")","v":""},null,null,null,null,null,null,null,null,null,null,"","",null,null,null,null,null,null,null,null,null,null,null,null,null,null,null,null,null,null,null,null,null,null,null,null,null,null,null,null,null,null,"DOB Error","DOB Error",""]
[789,null,null,null,null,"",{"$f":"IFERROR(IF(OR(AZ808=1,F808<>\"\"),\"To key in DOB\",#REF!),\"\")","v":""},null,null,null,null,null,null,null,null,null,null,"","",null,null,null,null,null,null,null,null,null,null,null,null,null,null,null,null,null,null,null,null,null,null,null,null,null,null,null,null,null,null,"DOB Error","DOB Error",""]
[792,null,null,null,null,"",{"$f":"IFERROR(IF(OR(AZ811=1,F811<>\"\"),\"To key in DOB\",#REF!),\"\")","v":""},null,null,null,null,null,null,null,null,null,null,"","",null,null,null,null,null,null,null,null,null,null,null,null,null,null,null,null,null,null,null,null,null,null,null,null,null,null,null,null,null,null,"DOB Error","DOB Error",""]
[795,null,null,null,null,"",{"$f":"IFERROR(IF(OR(AZ814=1,F814<>\"\"),\"To key in DOB\",#REF!),\"\")","v":""},null,null,null,null,null,null,null,null,null,null,"","",null,null,null,null,null,null,null,null,null,null,null,null,null,null,null,null,null,null,null,null,null,null,null,null,null,null,null,null,null,null,"DOB Error","DOB Error",""]
[797,null,null,null,null,"",{"$f":"IFERROR(IF(OR(AZ816=1,F816<>\"\"),\"To key in DOB\",#REF!),\"\")","v":""},null,null,null,null,null,null,null,null,null,null,"","",null,null,null,null,null,null,null,null,null,null,null,null,null,null,null,null,null,null,null,null,null,null,null,null,null,null,null,null,null,null,"DOB Error","DOB Error",""]
[801,null,null,null,null,"",{"$f":"IFERROR(IF(OR(AZ820=1,F820<>\"\"),\"To key in DOB\",#REF!),\"\")","v":""},null,null,null,null,null,null,null,null,null,null,"","",null,null,null,null,null,null,null,null,null,null,null,null,null,null,null,null,null,null,null,null,null,null,null,null,null,null,null,null,null,null,"DOB Error","DOB Error",""]
[804,null,null,null,null,"",{"$f":"IFERROR(IF(OR(AZ823=1,F823<>\"\"),\"To key in DOB\",#REF!),\"\")","v":""},null,null,null,null,null,null,null,null,null,null,"","",null,null,null,null,null,null,null,null,null,null,null,null,null,null,null,null,null,null,null,null,null,null,null,null,null,null,null,null,null,null,"DOB Error","DOB Error",""]
[805,null,null,null,null,"",{"$f":"IFERROR(IF(OR(AZ824=1,F824<>\"\"),\"To key in DOB\",#REF!),\"\")","v":""},null,null,null,null,null,null,null,null,null,null,"","",null,null,null,null,null,null,null,null,null,null,null,null,null,null,null,null,null,null,null,null,null,null,null,null,null,null,null,null,null,null,"DOB Error","DOB Error",""]
[808,null,null,null,null,"",{"$f":"IFERROR(IF(OR(AZ827=1,F827<>\"\"),\"To key in DOB\",#REF!),\"\")","v":""},null,null,null,null,null,null,null,null,null,null,"","",null,null,null,null,null,null,null,null,null,null,null,null,null,null,null,null,null,null,null,null,null,null,null,null,null,null,null,null,null,null,"DOB Error","DOB Error",""]
[811,null,null,null,null,"",{"$f":"IFERROR(IF(OR(AZ830=1,F830<>\"\"),\"To key in DOB\",#REF!),\"\")","v":""},null,null,null,null,null,null,null,null,null,null,"","",null,null,null,null,null,null,null,null,null,null,null,null,null,null,null,null,null,null,null,null,null,null,null,null,null,null,null,null,null,null,"DOB Error","DOB Error",""]
[814,null,null,null,null,"",{"$f":"IFERROR(IF(OR(AZ833=1,F833<>\"\"),\"To key in DOB\",#REF!),\"\")","v":""},null,null,null,null,null,null,null,null,null,null,"","",null,null,null,null,null,null,null,null,null,null,null,null,null,null,null,null,null,null,null,null,null,null,null,null,null,null,null,null,null,null,"DOB Error","DOB Error",""]
[817,null,null,null,null,"",{"$f":"IFERROR(IF(OR(AZ836=1,F836<>\"\"),\"To key in DOB\",#REF!),\"\")","v":""},null,null,null,null,null,null,null,null,null,null,"","",null,null,null,null,null,null,null,null,null,null,null,null,null,null,null,null,null,null,null,null,null,null,null,null,null,null,null,null,null,null,"DOB Error","DOB Error",""]
[821,null,null,null,null,"",{"$f":"IFERROR(IF(OR(AZ840=1,F840<>\"\"),\"To key in DOB\",#REF!),\"\")","v":""},null,null,null,null,null,null,null,null,null,null,"","",null,null,null,null,null,null,null,null,null,null,null,null,null,null,null,null,null,null,null,null,null,null,null,null,null,null,null,null,null,null,"DOB Error","DOB Error",""]
[823,null,null,null,null,"",{"$f":"IFERROR(IF(OR(AZ842=1,F842<>\"\"),\"To key in DOB\",#REF!),\"\")","v":""},null,null,null,null,null,null,null,null,null,null,"","",null,null,null,null,null,null,null,null,null,null,null,null,null,null,null,null,null,null,null,null,null,null,null,null,null,null,null,null,null,null,"DOB Error","DOB Error",""]
[826,null,null,null,null,"",{"$f":"IFERROR(IF(OR(AZ845=1,F845<>\"\"),\"To key in DOB\",#REF!),\"\")","v":""},null,null,null,null,null,null,null,null,null,null,"","",null,null,null,null,null,null,null,null,null,null,null,null,null,null,null,null,null,null,null,null,null,null,null,null,null,null,null,null,null,null,"DOB Error","DOB Error",""]
[827,null,null,null,null,"",{"$f":"IFERROR(IF(OR(AZ846=1,F846<>\"\"),\"To key in DOB\",#REF!),\"\")","v":""},null,null,null,null,null,null,null,null,null,null,"","",null,null,null,null,null,null,null,null,null,null,null,null,null,null,null,null,null,null,null,null,null,null,null,null,null,null,null,null,null,null,"DOB Error","DOB Error",""]
[830,null,null,null,null,"",{"$f":"IFERROR(IF(OR(AZ849=1,F849<>\"\"),\"To key in DOB\",#REF!),\"\")","v":""},null,null,null,null,null,null,null,null,null,null,"","",null,null,null,null,null,null,null,null,null,null,null,null,null,null,null,null,null,null,null,null,null,null,null,null,null,null,null,null,null,null,"DOB Error","DOB Error",""]
[834,null,null,null,null,{"$f":"IF(AZ853=1,\"To key in Old IC / Passport / Birth Cert No.\",\"\")","v":""},{"$f":"IFERROR(IF(OR(AZ853=1,F853<>\"\"),\"To key in DOB\",#REF!),\"\")","v":""},null,null,null,null,null,null,null,null,null,null,"","",null,null,null,null,null,null,null,null,null,null,null,null,null,null,null,null,null,null,null,null,null,null,null,null,null,null,null,null,null,null,"DOB Error","DOB Error",""]
[836,null,null,null,null,"",{"$f":"IFERROR(IF(OR(AZ855=1,F855<>\"\"),\"To key in DOB\",#REF!),\"\")","v":""},null,null,null,null,null,null,null,null,null,null,"","",null,null,null,null,null,null,null,null,null,null,null,null,null,null,null,null,null,null,null,null,null,null,null,null,null,null,null,null,null,null,"DOB Error","DOB Error",""]
[839,null,null,null,null,"",{"$f":"IFERROR(IF(OR(AZ858=1,F858<>\"\"),\"To key in DOB\",#REF!),\"\")","v":""},null,null,null,null,null,null,null,null,null,null,"","",null,null,null,null,null,null,null,null,null,null,null,null,null,null,null,null,null,null,null,null,null,null,null,null,null,null,null,null,null,null,"DOB Error","DOB Error",""]
[843,null,null,null,null,"",{"$f":"IFERROR(IF(OR(AZ862=1,F862<>\"\"),\"To key in DOB\",#REF!),\"\")","v":""},null,null,null,null,null,null,null,null,null,null,"","",null,null,null,null,null,null,null,null,null,null,null,null,null,null,null,null,null,null,null,null,null,null,null,null,null,null,null,null,null,null,"DOB Error","DOB Error",""]
[846,null,null,null,null,"",{"$f":"IFERROR(IF(OR(AZ865=1,F865<>\"\"),\"To key in DOB\",#REF!),\"\")","v":""},null,null,null,null,null,null,null,null,null,null,"","",null,null,null,null,null,null,null,null,null,null,null,null,null,null,null,null,null,null,null,null,null,null,null,null,null,null,null,null,null,null,"DOB Error","DOB Error",""]
[847,null,null,null,null,"",{"$f":"IFERROR(IF(OR(AZ866=1,F866<>\"\"),\"To key in DOB\",#REF!),\"\")","v":""},null,null,null,null,null,null,null,null,null,null,"","",null,null,null,null,null,null,null,null,null,null,null,null,null,null,null,null,null,null,null,null,null,null,null,null,null,null,null,null,null,null,"DOB Error","DOB Error",""]
[851,null,null,null,null,"",{"$f":"IFERROR(IF(OR(AZ870=1,F870<>\"\"),\"To key in DOB\",#REF!),\"\")","v":""},null,null,null,null,null,null,null,null,null,null,"","",null,null,null,null,null,null,null,null,null,null,null,null,null,null,null,null,null,null,null,null,null,null,null,null,null,null,null,null,null,null,"DOB Error","DOB Error",""]
[852,null,null,null,null,"",{"$f":"IFERROR(IF(OR(AZ871=1,F871<>\"\"),\"To key in DOB\",#REF!),\"\")","v":""},null,null,null,null,null,null,null,null,null,null,"","",null,null,null,null,null,null,null,null,null,null,null,null,null,null,null,null,null,null,null,null,null,null,null,null,null,null,null,null,null,null,"DOB Error","DOB Error",""]
[856,null,null,null,null,"",{"$f":"IFERROR(IF(OR(AZ875=1,F875<>\"\"),\"To key in DOB\",#REF!),\"\")","v":""},null,null,null,null,null,null,null,null,null,null,"","",null,null,null,null,null,null,null,null,null,null,null,null,null,null,null,null,null,null,null,null,null,null,null,null,null,null,null,null,null,null,"DOB Error","DOB Error",""]
[859,null,null,null,null,"",{"$f":"IFERROR(IF(OR(AZ878=1,F878<>\"\"),\"To key in DOB\",#REF!),\"\")","v":""},null,null,null,null,null,null,null,null,null,null,"","",null,null,null,null,null,null,null,null,null,null,null,null,null,null,null,null,null,null,null,null,null,null,null,null,null,null,null,null,null,null,"DOB Error","DOB Error",""]
[862,null,null,null,null,"",{"$f":"IFERROR(IF(OR(AZ881=1,F881<>\"\"),\"To key in DOB\",#REF!),\"\")","v":""},null,null,null,null,null,null,null,null,null,null,"","",null,null,null,null,null,null,null,null,null,null,null,null,null,null,null,null,null,null,null,null,null,null,null,null,null,null,null,null,null,null,"DOB Error","DOB Error",""]
[865,null,null,null,null,"",{"$f":"IFERROR(IF(OR(AZ884=1,F884<>\"\"),\"To key in DOB\",#REF!),\"\")","v":""},null,null,null,null,null,null,null,null,null,null,"","",null,null,null,null,null,null,null,null,null,null,null,null,null,null,null,null,null,null,null,null,null,null,null,null,null,null,null,null,null,null,"DOB Error","DOB Error",""]
[868,null,null,null,null,"",{"$f":"IFERROR(IF(OR(AZ887=1,F887<>\"\"),\"To key in DOB\",#REF!),\"\")","v":""},null,null,null,null,null,null,null,null,null,null,"","",null,null,null,null,null,null,null,null,null,null,null,null,null,null,null,null,null,null,null,null,null,null,null,null,null,null,null,null,null,null,"DOB Error","DOB Error",""]
[869,null,null,null,null,"",{"$f":"IFERROR(IF(OR(AZ888=1,F888<>\"\"),\"To key in DOB\",#REF!),\"\")","v":""},null,null,null,null,null,null,null,null,null,null,"","",null,null,null,null,null,null,null,null,null,null,null,null,null,null,null,null,null,null,null,null,null,null,null,null,null,null,null,null,null,null,"DOB Error","DOB Error",""]
[872,null,null,null,null,"",{"$f":"IFERROR(IF(OR(AZ891=1,F891<>\"\"),\"To key in DOB\",#REF!),\"\")","v":""},null,null,null,null,null,null,null,null,null,null,"","",null,null,null,null,null,null,null,null,null,null,null,null,null,null,null,null,null,null,null,null,null,null,null,null,null,null,null,null,null,null,"DOB Error","DOB Error",""]
[875,null,null,null,null,"",{"$f":"IFERROR(IF(OR(AZ894=1,F894<>\"\"),\"To key in DOB\",#REF!),\"\")","v":""},null,null,null,null,null,null,null,null,null,null,"","",null,null,null,null,null,null,null,null,null,null,null,null,null,null,null,null,null,null,null,null,null,null,null,null,null,null,null,null,null,null,"DOB Error","DOB Error",""]
[878,null,null,null,null,"",{"$f":"IFERROR(IF(OR(AZ897=1,F897<>\"\"),\"To key in DOB\",#REF!),\"\")","v":""},null,null,null,null,null,null,null,null,null,null,"","",null,null,null,null,null,null,null,null,null,null,null,null,null,null,null,null,null,null,null,null,null,null,null,null,null,null,null,null,null,null,"DOB Error","DOB Error",""]
[881,null,null,null,null,"",{"$f":"IFERROR(IF(OR(AZ900=1,F900<>\"\"),\"To key in DOB\",#REF!),\"\")","v":""},null,null,null,null,null,null,null,null,null,null,"","",null,null,null,null,null,null,null,null,null,null,null,null,null,null,null,null,null,null,null,null,null,null,null,null,null,null,null,null,null,null,"DOB Error","DOB Error",""]
[885,null,null,null,null,"",{"$f":"IFERROR(IF(OR(AZ904=1,F904<>\"\"),\"To key in DOB\",#REF!),\"\")","v":""},null,null,null,null,null,null,null,null,null,null,"","",null,null,null,null,null,null,null,null,null,null,null,null,null,null,null,null,null,null,null,null,null,null,null,null,null,null,null,null,null,null,"DOB Error","DOB Error",""]
[888,null,null,null,null,"",{"$f":"IFERROR(IF(OR(AZ907=1,F907<>\"\"),\"To key in DOB\",#REF!),\"\")","v":""},null,null,null,null,null,null,null,null,null,null,"","",null,null,null,null,null,null,null,null,null,null,null,null,null,null,null,null,null,null,null,null,null,null,null,null,null,null,null,null,null,null,"DOB Error","DOB Error",""]
[890,null,null,null,null,"",{"$f":"IFERROR(IF(OR(AZ909=1,F909<>\"\"),\"To key in DOB\",#REF!),\"\")","v":""},null,null,null,null,null,null,null,null,null,null,"","",null,null,null,null,null,null,null,null,null,null,null,null,null,null,null,null,null,null,null,null,null,null,null,null,null,null,null,null,null,null,"DOB Error","DOB Error",""]
[891,null,null,null,null,"",{"$f":"IFERROR(IF(OR(AZ910=1,F910<>\"\"),\"To key in DOB\",#REF!),\"\")","v":""},null,null,null,null,null,null,null,null,null,null,"","",null,null,null,null,null,null,null,null,null,null,null,null,null,null,null,null,null,null,null,null,null,null,null,null,null,null,null,null,null,null,"DOB Error","DOB Error",""]
[894,null,null,null,null,"",{"$f":"IFERROR(IF(OR(AZ913=1,F913<>\"\"),\"To key in DOB\",#REF!),\"\")","v":""},null,null,null,null,null,null,null,null,null,null,"","",null,null,null,null,null,null,null,null,null,null,null,null,null,null,null,null,null,null,null,null,null,null,null,null,null,null,null,null,null,null,"DOB Error","DOB Error",""]
[897,null,null,null,null,"",{"$f":"IFERROR(IF(OR(AZ916=1,F916<>\"\"),\"To key in DOB\",#REF!),\"\")","v":""},null,null,null,null,null,null,null,null,null,null,{"$f":"IF(OR(Q916=\"CHANGE\",Q916=\"ADD\",Q916=\"TERMINATE\"),VLOOKUP(Q916,$AR:$AS,2,FALSE),\"\")","v":""},{"$f":"IF(OR(Q916=\"TERMINATE (DEATH)\"),VLOOKUP(Q916,$AR:$AU,4,FALSE),\"\")","v":""},null,null,null,null,null,null,null,null,null,null,null,null,null,null,null,null,null,null,null,null,null,null,null,null,null,null,null,null,null,null,"DOB Error","DOB Error",""]
[901,null,null,null,null,"",{"$f":"IFERROR(IF(OR(AZ920=1,F920<>\"\"),\"To key in DOB\",#REF!),\"\")","v":""},null,null,null,null,null,null,null,null,null,null,"","",null,null,null,null,null,null,null,null,null,null,null,null,null,null,null,null,null,null,null,null,null,null,null,null,null,null,null,null,null,null,"DOB Error","DOB Error",""]
[903,null,null,null,null,"",{"$f":"IFERROR(IF(OR(AZ922=1,F922<>\"\"),\"To key in DOB\",#REF!),\"\")","v":""},null,null,null,null,null,null,null,null,null,null,"","",null,null,null,null,null,null,null,null,null,null,null,null,null,null,null,null,null,null,null,null,null,null,null,null,null,null,null,null,null,null,"DOB Error","DOB Error",""]
[907,null,null,null,null,"",{"$f":"IFERROR(IF(OR(AZ926=1,F926<>\"\"),\"To key in DOB\",#REF!),\"\")","v":""},null,null,null,null,null,null,null,null,null,null,"","",null,null,null,null,null,null,null,null,null,null,null,null,null,null,null,null,null,null,null,null,null,null,null,null,null,null,null,null,null,null,"DOB Error","DOB Error",""]
[910,null,null,null,null,"",{"$f":"IFERROR(IF(OR(AZ929=1,F929<>\"\"),\"To key in DOB\",#REF!),\"\")","v":""},null,null,null,null,null,null,null,null,null,null,"","",null,null,null,null,null,null,null,null,null,null,null,null,null,null,null,null,null,null,null,null,null,null,null,null,null,null,null,null,null,null,"DOB Error","DOB Error",""]
[913,null,null,null,null,"",{"$f":"IFERROR(IF(OR(AZ932=1,F932<>\"\"),\"To key in DOB\",#REF!),\"\")","v":""},null,null,null,null,null,null,null,null,null,null,"","",null,null,null,null,null,null,null,null,null,null,null,null,null,null,null,null,null,null,null,null,null,null,null,null,null,null,null,null,null,null,"DOB Error","DOB Error",""]
[914,null,null,null,null,"",{"$f":"IFERROR(IF(OR(AZ933=1,F933<>\"\"),\"To key in DOB\",#REF!),\"\")","v":""},null,null,null,null,null,null,null,null,null,null,"","",null,null,null,null,null,null,null,null,null,null,null,null,null,null,null,null,null,null,null,null,null,null,null,null,null,null,null,null,null,null,"DOB Error","DOB Error",""]
[916,null,null,null,null,"",{"$f":"IFERROR(IF(OR(AZ935=1,F935<>\"\"),\"To key in DOB\",#REF!),\"\")","v":""},null,null,null,null,null,null,null,null,null,null,"","",null,null,null,null,null,null,null,null,null,null,null,null,null,null,null,null,null,null,null,null,null,null,null,null,null,null,null,null,null,null,"DOB Error","DOB Error",""]
[919,null,null,null,null,"",{"$f":"IFERROR(IF(OR(AZ938=1,F938<>\"\"),\"To key in DOB\",#REF!),\"\")","v":""},null,null,null,null,null,null,null,null,null,null,"","",null,null,null,null,null,null,null,null,null,null,null,null,null,null,null,null,null,null,null,null,null,null,null,null,null,null,null,null,null,null,"DOB Error","DOB Error",""]
[923,null,null,null,null,"",{"$f":"IFERROR(IF(OR(AZ942=1,F942<>\"\"),\"To key in DOB\",#REF!),\"\")","v":""},null,null,null,null,null,null,null,null,null,null,"","",null,null,null,null,null,null,null,null,null,null,null,null,null,null,null,null,null,null,null,null,null,null,null,null,null,null,null,null,null,null,"DOB Error","DOB Error",""]
[926,null,null,null,null,"",{"$f":"IFERROR(IF(OR(AZ945=1,F945<>\"\"),\"To key in DOB\",#REF!),\"\")","v":""},null,null,null,null,null,null,null,null,null,null,"","",null,null,null,null,null,null,null,null,null,null,null,null,null,null,null,null,null,null,null,null,null,null,null,null,null,null,null,null,null,null,"DOB Error","DOB Error",""]
[929,null,null,null,null,"",{"$f":"IFERROR(IF(OR(AZ948=1,F948<>\"\"),\"To key in DOB\",#REF!),\"\")","v":""},null,null,null,null,null,null,null,null,null,null,"","",null,null,null,null,null,null,null,null,null,null,null,null,null,null,null,null,null,null,null,null,null,null,null,null,null,null,null,null,null,null,"DOB Error","DOB Error",""]
[932,null,null,null,null,"",{"$f":"IFERROR(IF(OR(AZ951=1,F951<>\"\"),\"To key in DOB\",#REF!),\"\")","v":""},null,null,null,null,null,null,null,null,null,null,"","",null,null,null,null,null,null,null,null,null,null,null,null,null,null,null,null,null,null,null,null,null,null,null,null,null,null,null,null,null,null,"DOB Error","DOB Error",""]
[935,null,null,null,null,"",{"$f":"IFERROR(IF(OR(AZ954=1,F954<>\"\"),\"To key in DOB\",#REF!),\"\")","v":""},null,null,null,null,null,null,null,null,null,null,"","",null,null,null,null,null,null,null,null,null,null,null,null,null,null,null,null,null,null,null,null,null,null,null,null,null,null,null,null,null,null,"DOB Error","DOB Error",""]
[936,null,null,null,null,"",{"$f":"IFERROR(IF(OR(AZ955=1,F955<>\"\"),\"To key in DOB\",#REF!),\"\")","v":""},null,null,null,null,null,null,null,null,null,null,"","",null,null,null,null,null,null,null,null,null,null,null,null,null,null,null,null,null,null,null,null,null,null,null,null,null,null,null,null,null,null,"DOB Error","DOB Error",""]
[939,null,null,null,null,"",{"$f":"IFERROR(IF(OR(AZ958=1,F958<>\"\"),\"To key in DOB\",#REF!),\"\")","v":""},null,null,null,null,null,null,null,null,null,null,"","",null,null,null,null,null,null,null,null,null,null,null,null,null,null,null,null,null,null,null,null,null,null,null,null,null,null,null,null,null,null,"DOB Error","DOB Error",""]
[942,null,null,null,null,"",{"$f":"IFERROR(IF(OR(AZ961=1,F961<>\"\"),\"To key in DOB\",#REF!),\"\")","v":""},null,null,null,null,null,null,null,null,null,null,"","",null,null,null,null,null,null,null,null,null,null,null,null,null,null,null,null,null,null,null,null,null,null,null,null,null,null,null,null,null,null,"DOB Error","DOB Error",""]
[945,null,null,null,null,"",{"$f":"IFERROR(IF(OR(AZ964=1,F964<>\"\"),\"To key in DOB\",#REF!),\"\")","v":""},null,null,null,null,null,null,null,null,null,null,"","",null,null,null,null,null,null,null,null,null,null,null,null,null,null,null,null,null,null,null,null,null,null,null,null,null,null,null,null,null,null,"DOB Error","DOB Error",""]
[948,null,null,null,null,"",{"$f":"IFERROR(IF(OR(AZ967=1,F967<>\"\"),\"To key in DOB\",#REF!),\"\")","v":""},null,null,null,null,null,null,null,null,null,null,"","",null,null,null,null,null,null,null,null,null,null,null,null,null,null,null,null,null,null,null,null,null,null,null,null,null,null,null,null,null,null,"DOB Error","DOB Error",""]
[952,null,null,null,null,"",{"$f":"IFERROR(IF(OR(AZ971=1,F971<>\"\"),\"To key in DOB\",#REF!),\"\")","v":""},null,null,null,null,null,null,null,null,null,null,"","",null,null,null,null,null,null,null,null,null,null,null,null,null,null,null,null,null,null,null,null,null,null,null,null,null,null,null,null,null,null,"DOB Error","DOB Error",""]
[953,null,null,null,null,"",{"$f":"IFERROR(IF(OR(AZ972=1,F972<>\"\"),\"To key in DOB\",#REF!),\"\")","v":""},null,null,null,null,null,null,null,null,null,null,"","",null,null,null,null,null,null,null,null,null,null,null,null,null,null,null,null,null,null,null,null,null,null,null,null,null,null,null,null,null,null,"DOB Error","DOB Error",""]
[957,null,null,null,null,"",{"$f":"IFERROR(IF(OR(AZ976=1,F976<>\"\"),\"To key in DOB\",#REF!),\"\")","v":""},null,null,null,null,null,null,null,null,null,null,"","",null,null,null,null,null,null,null,null,null,null,null,null,null,null,null,null,null,null,null,null,null,null,null,null,null,null,null,null,null,null,"DOB Error","DOB Error",""]
[958,null,null,null,null,"",{"$f":"IFERROR(IF(OR(AZ977=1,F977<>\"\"),\"To key in DOB\",#REF!),\"\")","v":""},null,null,null,null,null,null,null,null,null,null,"","",null,null,null,null,null,null,null,null,null,null,null,null,null,null,null,null,null,null,null,null,null,null,null,null,null,null,null,null,null,null,"DOB Error","DOB Error",""]
[961,null,null,null,null,"",{"$f":"IFERROR(IF(OR(AZ980=1,F980<>\"\"),\"To key in DOB\",#REF!),\"\")","v":""},null,null,null,null,null,null,null,null,null,null,{"$f":"IF(OR(Q980=\"CHANGE\",Q980=\"ADD\",Q980=\"TERMINATE\"),VLOOKUP(Q980,$AR:$AS,2,FALSE),\"\")","v":""},{"$f":"IF(OR(Q980=\"TERMINATE (DEATH)\"),VLOOKUP(Q980,$AR:$AU,4,FALSE),\"\")","v":""},null,null,null,null,null,null,null,null,null,null,null,null,null,null,null,null,null,null,null,null,null,null,null,null,null,null,null,null,null,null,"DOB Error","DOB Error",""]
[965,null,null,null,null,"",{"$f":"IFERROR(IF(OR(AZ984=1,F984<>\"\"),\"To key in DOB\",#REF!),\"\")","v":""},null,null,null,null,null,null,null,null,null,null,"","",null,null,null,null,null,null,null,null,null,null,null,null,null,null,null,null,null,null,null,null,null,null,null,null,null,null,null,null,null,null,"DOB Error","DOB Error",""]
[968,null,null,null,null,"",{"$f":"IFERROR(IF(OR(AZ987=1,F987<>\"\"),\"To key in DOB\",#REF!),\"\")","v":""},null,null,null,null,null,null,null,null,null,null,"","",null,null,null,null,null,null,null,null,null,null,null,null,null,null,null,null,null,null,null,null,null,null,null,null,null,null,null,null,null,null,"DOB Error","DOB Error",""]
[970,null,null,null,null,"",{"$f":"IFERROR(IF(OR(AZ989=1,F989<>\"\"),\"To key in DOB\",#REF!),\"\")","v":""},null,null,null,null,null,null,null,null,null,null,"","",null,null,null,null,null,null,null,null,null,null,null,null,null,null,null,null,null,null,null,null,null,null,null,null,null,null,null,null,null,null,"DOB Error","DOB Error",""]
[974,null,null,null,null,"",{"$f":"IFERROR(IF(OR(AZ993=1,F993<>\"\"),\"To key in DOB\",#REF!),\"\")","v":""},null,null,null,null,null,null,null,null,null,null,"","",null,null,null,null,null,null,null,null,null,null,null,null,null,null,null,null,null,null,null,null,null,null,null,null,null,null,null,null,null,null,"DOB Error","DOB Error",""]
[977,null,null,null,null,"",{"$f":"IFERROR(IF(OR(AZ996=1,F996<>\"\"),\"To key in DOB\",#REF!),\"\")","v":""},null,null,null,null,null,null,null,null,null,null,"","",null,null,null,null,null,null,null,null,null,null,null,null,null,null,null,null,null,null,null,null,null,null,null,null,null,null,null,null,null,null,"DOB Error","DOB Error",""]
[980,null,null,null,null,"",{"$f":"IFERROR(IF(OR(AZ999=1,F999<>\"\"),\"To key in DOB\",#REF!),\"\")","v":""},null,null,null,null,null,null,null,null,null,null,"","",null,null,null,null,null,null,null,null,null,null,null,null,null,null,null,null,null,null,null,null,null,null,null,null,null,null,null,null,null,null,"DOB Error","DOB Error",""]
[981,null,null,null,null,"",{"$f":"IFERROR(IF(OR(AZ1000=1,F1000<>\"\"),\"To key in DOB\",#REF!),\"\")","v":""},null,null,null,null,null,null,null,null,null,null,"","",null,null,null,null,null,null,null,null,null,null,null,null,null,null,null,null,null,null,null,null,null,null,null,null,null,null,null,null,null,null,"DOB Error","DOB Error",""]
[983,null,null,null,null,"",{"$f":"IFERROR(IF(OR(AZ1002=1,F1002<>\"\"),\"To key in DOB\",#REF!),\"\")","v":""},null,null,null,null,null,null,null,null,null,null,"","",null,null,null,null,null,null,null,null,null,null,null,null,null,null,null,null,null,null,null,null,null,null,null,null,null,null,null,null,null,null,"DOB Error","DOB Error",""]
[987,null,null,null,null,"",{"$f":"IFERROR(IF(OR(AZ1006=1,F1006<>\"\"),\"To key in DOB\",#REF!),\"\")","v":""},null,null,null,null,null,null,null,null,null,null,"","",null,null,null,null,null,null,null,null,null,null,null,null,null,null,null,null,null,null,null,null,null,null,null,null,null,null,null,null,null,null,"DOB Error","DOB Error",""]
[990,null,null,null,null,"",{"$f":"IFERROR(IF(OR(AZ1009=1,F1009<>\"\"),\"To key in DOB\",#REF!),\"\")","v":""},null,null,null,null,null,null,null,null,null,null,"","",null,null,null,null,null,null,null,null,null,null,null,null,null,null,null,null,null,null,null,null,null,null,null,null,null,null,null,null,null,null,"DOB Error","DOB Error",""]
[992,null,null,null,null,"",{"$f":"IFERROR(IF(OR(AZ1011=1,F1011<>\"\"),\"To key in DOB\",#REF!),\"\")","v":""},null,null,null,null,null,null,null,null,null,null,"","",null,null,null,null,null,null,null,null,null,null,null,null,null,null,null,null,null,null,null,null,null,null,null,null,null,null,null,null,null,null,"DOB Error","DOB Error",""]
[996,null,null,null,null,"",{"$f":"IFERROR(IF(OR(AZ1015=1,F1015<>\"\"),\"To key in DOB\",#REF!),\"\")","v":""},null,null,null,null,null,null,null,null,null,null,"","",null,null,null,null,null,null,null,null,null,null,null,null,null,null,null,null,null,null,null,null,null,null,null,null,null,null,null,null,null,null,"DOB Error","DOB Error",""]
[999,null,null,null,null,"",{"$f":"IFERROR(IF(OR(AZ1018=1,F1018<>\"\"),\"To key in DOB\",#REF!),\"\")","v":""},null,null,null,null,null,null,null,null,null,null,"","",null,null,null,null,null,null,null,null,null,null,null,null,null,null,null,null,null,null,null,null,null,null,null,null,null,null,null,null,null,null,"DOB Error","DOB Error",""]
[1000,null,null,null,null,"",{"$f":"IFERROR(IF(OR(AZ1019=1,F1019<>\"\"),\"To key in DOB\",#REF!),\"\")","v":""},null,null,null,null,null,null,null,null,null,null,"","",null,null,null,null,null,null,null,null,null,null,null,null,null,null,null,null,null,null,null,null,null,null,null,null,null,null,null,null,null,null,"DOB Error","DOB Error",""]
[1003,null,null,null,null,"",{"$f":"IFERROR(IF(OR(AZ1022=1,F1022<>\"\"),\"To key in DOB\",#REF!),\"\")","v":""},null,null,null,null,null,null,null,null,null,null,"","",null,null,null,null,null,null,null,null,null,null,null,null,null,null,null,null,null,null,null,null,null,null,null,null,null,null,null,null,null,null,"DOB Error","DOB Error",""]
[1007,null,null,null,null,"",{"$f":"IFERROR(IF(OR(AZ1026=1,F1026<>\"\"),\"To key in DOB\",#REF!),\"\")","v":""},null,null,null,null,null,null,null,null,null,null,"","",null,null,null,null,null,null,null,null,null,null,null,null,null,null,null,null,null,null,null,null,null,null,null,null,null,null,null,null,null,null,"DOB Error","DOB Error",""]
[1009,null,null,null,null,"",{"$f":"IFERROR(IF(OR(AZ1028=1,F1028<>\"\"),\"To key in DOB\",#REF!),\"\")","v":""},null,null,null,null,null,null,null,null,null,null,"","",null,null,null,null,null,null,null,null,null,null,null,null,null,null,null,null,null,null,null,null,null,null,null,null,null,null,null,null,null,null,"DOB Error","DOB Error",""]
[1012,null,null,null,null,"",{"$f":"IFERROR(IF(OR(AZ1031=1,F1031<>\"\"),\"To key in DOB\",#REF!),\"\")","v":""},null,null,null,null,null,null,null,null,null,null,"","",null,null,null,null,null,null,null,null,null,null,null,null,null,null,null,null,null,null,null,null,null,null,null,null,null,null,null,null,null,null,"DOB Error","DOB Error",""]
[1015,null,null,null,null,"",{"$f":"IFERROR(IF(OR(AZ1034=1,F1034<>\"\"),\"To key in DOB\",#REF!),\"\")","v":""},null,null,null,null,null,null,null,null,null,null,"","",null,null,null,null,null,null,null,null,null,null,null,null,null,null,null,null,null,null,null,null,null,null,null,null,null,null,null,null,null,null,"DOB Error","DOB Error",""]
[1019,null,null,null,null,"",{"$f":"IFERROR(IF(OR(AZ1038=1,F1038<>\"\"),\"To key in DOB\",#REF!),\"\")","v":""},null,null,null,null,null,null,null,null,null,null,"","",null,null,null,null,null,null,null,null,null,null,null,null,null,null,null,null,null,null,null,null,null,null,null,null,null,null,null,null,null,null,"DOB Error","DOB Error",""]
[1020,null,null,null,null,"",{"$f":"IFERROR(IF(OR(AZ1039=1,F1039<>\"\"),\"To key in DOB\",#REF!),\"\")","v":""},null,null,null,null,null,null,null,null,null,null,"","",null,null,null,null,null,null,null,null,null,null,null,null,null,null,null,null,null,null,null,null,null,null,null,null,null,null,null,null,null,null,"DOB Error","DOB Error",""]
[1022,null,null,null,null,"",{"$f":"IFERROR(IF(OR(AZ1041=1,F1041<>\"\"),\"To key in DOB\",#REF!),\"\")","v":""},null,null,null,null,null,null,null,null,null,null,"","",null,null,null,null,null,null,null,null,null,null,null,null,null,null,null,null,null,null,null,null,null,null,null,null,null,null,null,null,null,null,"DOB Error","DOB Error",""]
[1025,null,null,null,null,"",{"$f":"IFERROR(IF(OR(AZ1044=1,F1044<>\"\"),\"To key in DOB\",#REF!),\"\")","v":""},null,null,null,null,null,null,null,null,null,null,{"$f":"IF(OR(Q1044=\"CHANGE\",Q1044=\"ADD\",Q1044=\"TERMINATE\"),VLOOKUP(Q1044,$AR:$AS,2,FALSE),\"\")","v":""},{"$f":"IF(OR(Q1044=\"TERMINATE (DEATH)\"),VLOOKUP(Q1044,$AR:$AU,4,FALSE),\"\")","v":""},null,null,null,null,null,null,null,null,null,null,null,null,null,null,null,null,null,null,null,null,null,null,null,null,null,null,null,null,null,null,"DOB Error","DOB Error",""]
[1028,null,null,null,null,"",{"$f":"IFERROR(IF(OR(AZ1047=1,F1047<>\"\"),\"To key in DOB\",#REF!),\"\")","v":""},null,null,null,null,null,null,null,null,null,null,"","",null,null,null,null,null,null,null,null,null,null,null,null,null,null,null,null,null,null,null,null,null,null,null,null,null,null,null,null,null,null,"DOB Error","DOB Error",""]
[1032,null,null,null,null,"",{"$f":"IFERROR(IF(OR(AZ1051=1,F1051<>\"\"),\"To key in DOB\",#REF!),\"\")","v":""},null,null,null,null,null,null,null,null,null,null,"","",null,null,null,null,null,null,null,null,null,null,null,null,null,null,null,null,null,null,null,null,null,null,null,null,null,null,null,null,null,null,"DOB Error","DOB Error",""]
[1035,null,null,null,null,"",{"$f":"IFERROR(IF(OR(AZ1054=1,F1054<>\"\"),\"To key in DOB\",#REF!),\"\")","v":""},null,null,null,null,null,null,null,null,null,null,"","",null,null,null,null,null,null,null,null,null,null,null,null,null,null,null,null,null,null,null,null,null,null,null,null,null,null,null,null,null,null,"DOB Error","DOB Error",""]
[1038,null,null,null,null,"",{"$f":"IFERROR(IF(OR(AZ1057=1,F1057<>\"\"),\"To key in DOB\",#REF!),\"\")","v":""},null,null,null,null,null,null,null,null,null,null,"","",null,null,null,null,null,null,null,null,null,null,null,null,null,null,null,null,null,null,null,null,null,null,null,null,null,null,null,null,null,null,"DOB Error","DOB Error",""]
[1041,null,null,null,null,"",{"$f":"IFERROR(IF(OR(AZ1060=1,F1060<>\"\"),\"To key in DOB\",#REF!),\"\")","v":""},null,null,null,null,null,null,null,null,null,null,"","",null,null,null,null,null,null,null,null,null,null,null,null,null,null,null,null,null,null,null,null,null,null,null,null,null,null,null,null,null,null,"DOB Error","DOB Error",""]
[1044,null,null,null,null,"",{"$f":"IFERROR(IF(OR(AZ1063=1,F1063<>\"\"),\"To key in DOB\",#REF!),\"\")","v":""},null,null,null,null,null,null,null,null,null,null,"","",null,null,null,null,null,null,null,null,null,null,null,null,null,null,null,null,null,null,null,null,null,null,null,null,null,null,null,null,null,null,"DOB Error","DOB Error",""]
[1046,null,null,null,null,"",{"$f":"IFERROR(IF(OR(AZ1065=1,F1065<>\"\"),\"To key in DOB\",#REF!),\"\")","v":""},null,null,null,null,null,null,null,null,null,null,"","",null,null,null,null,null,null,null,null,null,null,null,null,null,null,null,null,null,null,null,null,null,null,null,null,null,null,null,null,null,null,"DOB Error","DOB Error",""]
[1047,null,null,null,null,"",{"$f":"IFERROR(IF(OR(AZ1066=1,F1066<>\"\"),\"To key in DOB\",#REF!),\"\")","v":""},null,null,null,null,null,null,null,null,null,null,"","",null,null,null,null,null,null,null,null,null,null,null,null,null,null,null,null,null,null,null,null,null,null,null,null,null,null,null,null,null,null,"DOB Error","DOB Error",""]
[1050,null,null,null,null,"",{"$f":"IFERROR(IF(OR(AZ1069=1,F1069<>\"\"),\"To key in DOB\",#REF!),\"\")","v":""},null,null,null,null,null,null,null,null,null,null,"","",null,null,null,null,null,null,null,null,null,null,null,null,null,null,null,null,null,null,null,null,null,null,null,null,null,null,null,null,null,null,"DOB Error","DOB Error",""]
[1054,null,null,null,null,"",{"$f":"IFERROR(IF(OR(AZ1073=1,F1073<>\"\"),\"To key in DOB\",#REF!),\"\")","v":""},null,null,null,null,null,null,null,null,null,null,"","",null,null,null,null,null,null,null,null,null,null,null,null,null,null,null,null,null,null,null,null,null,null,null,null,null,null,null,null,null,null,"DOB Error","DOB Error",""]
[1057,null,null,null,null,"",{"$f":"IFERROR(IF(OR(AZ1076=1,F1076<>\"\"),\"To key in DOB\",#REF!),\"\")","v":""},null,null,null,null,null,null,null,null,null,null,"","",null,null,null,null,null,null,null,null,null,null,null,null,null,null,null,null,null,null,null,null,null,null,null,null,null,null,null,null,null,null,"DOB Error","DOB Error",""]
[1059,null,null,null,null,"",{"$f":"IFERROR(IF(OR(AZ1078=1,F1078<>\"\"),\"To key in DOB\",#REF!),\"\")","v":""},null,null,null,null,null,null,null,null,null,null,"","",null,null,null,null,null,null,null,null,null,null,null,null,null,null,null,null,null,null,null,null,null,null,null,null,null,null,null,null,null,null,"DOB Error","DOB Error",""]
[1063,null,null,null,null,"",{"$f":"IFERROR(IF(OR(AZ1082=1,F1082<>\"\"),\"To key in DOB\",#REF!),\"\")","v":""},null,null,null,null,null,null,null,null,null,null,"","",null,null,null,null,null,null,null,null,null,null,null,null,null,null,null,null,null,null,null,null,null,null,null,null,null,null,null,null,null,null,"DOB Error","DOB Error",""]
[1066,null,null,null,null,"",{"$f":"IFERROR(IF(OR(AZ1085=1,F1085<>\"\"),\"To key in DOB\",#REF!),\"\")","v":""},null,null,null,null,null,null,null,null,null,null,"","",null,null,null,null,null,null,null,null,null,null,null,null,null,null,null,null,null,null,null,null,null,null,null,null,null,null,null,null,null,null,"DOB Error","DOB Error",""]
[1067,null,null,null,null,"",{"$f":"IFERROR(IF(OR(AZ1086=1,F1086<>\"\"),\"To key in DOB\",#REF!),\"\")","v":""},null,null,null,null,null,null,null,null,null,null,"","",null,null,null,null,null,null,null,null,null,null,null,null,null,null,null,null,null,null,null,null,null,null,null,null,null,null,null,null,null,null,"DOB Error","DOB Error",""]
[1070,null,null,null,null,"",{"$f":"IFERROR(IF(OR(AZ1089=1,F1089<>\"\"),\"To key in DOB\",#REF!),\"\")","v":""},null,null,null,null,null,null,null,null,null,null,"","",null,null,null,null,null,null,null,null,null,null,null,null,null,null,null,null,null,null,null,null,null,null,null,null,null,null,null,null,null,null,"DOB Error","DOB Error",""]
[1074,null,null,null,null,"",{"$f":"IFERROR(IF(OR(AZ1093=1,F1093<>\"\"),\"To key in DOB\",#REF!),\"\")","v":""},null,null,null,null,null,null,null,null,null,null,"","",null,null,null,null,null,null,null,null,null,null,null,null,null,null,null,null,null,null,null,null,null,null,null,null,null,null,null,null,null,null,"DOB Error","DOB Error",""]
[1076,null,null,null,null,"",{"$f":"IFERROR(IF(OR(AZ1095=1,F1095<>\"\"),\"To key in DOB\",#REF!),\"\")","v":""},null,null,null,null,null,null,null,null,null,null,"","",null,null,null,null,null,null,null,null,null,null,null,null,null,null,null,null,null,null,null,null,null,null,null,null,null,null,null,null,null,null,"DOB Error","DOB Error",""]
[1079,null,null,null,null,"",{"$f":"IFERROR(IF(OR(AZ1098=1,F1098<>\"\"),\"To key in DOB\",#REF!),\"\")","v":""},null,null,null,null,null,null,null,null,null,null,"","",null,null,null,null,null,null,null,null,null,null,null,null,null,null,null,null,null,null,null,null,null,null,null,null,null,null,null,null,null,null,"DOB Error","DOB Error",""]
[1083,null,null,null,null,"",{"$f":"IFERROR(IF(OR(AZ1102=1,F1102<>\"\"),\"To key in DOB\",#REF!),\"\")","v":""},null,null,null,null,null,null,null,null,null,null,"","",null,null,null,null,null,null,null,null,null,null,null,null,null,null,null,null,null,null,null,null,null,null,null,null,null,null,null,null,null,null,"DOB Error","DOB Error",""]
[1085,null,null,null,null,"",{"$f":"IFERROR(IF(OR(AZ1104=1,F1104<>\"\"),\"To key in DOB\",#REF!),\"\")","v":""},null,null,null,null,null,null,null,null,null,null,"","",null,null,null,null,null,null,null,null,null,null,null,null,null,null,null,null,null,null,null,null,null,null,null,null,null,null,null,null,null,null,"DOB Error","DOB Error",""]
[1088,null,null,null,null,"",{"$f":"IFERROR(IF(OR(AZ1107=1,F1107<>\"\"),\"To key in DOB\",#REF!),\"\")","v":""},null,null,null,null,null,null,null,null,null,null,"","",null,null,null,null,null,null,null,null,null,null,null,null,null,null,null,null,null,null,null,null,null,null,null,null,null,null,null,null,null,null,{"$f":"IF(ISERROR(AND(SEARCH(\"-\",E1107,7)=7,SEARCH(\"-\",E1107,9)=10)),\"DOB Error\",\"ok\")","v":"DOB Error"},{"$f":"IF(ISERROR(LEFT(E1107,6)+MID(E1107,8,2)+RIGHT(E1107,4)),\"DOB Error\",\"ok\")","v":"DOB Error"},{"$f":"IF(E1107=\"\",\"\",IF(OR(AX1107=\"DOB Error\", AY1107=\"DOB Error\"),1,0))","v":""}]
[1089,null,null,null,null,"",{"$f":"IFERROR(IF(OR(AZ1108=1,F1108<>\"\"),\"To key in DOB\",#REF!),\"\")","v":""},null,null,null,null,null,null,null,null,null,null,{"$f":"IF(OR(Q1108=\"CHANGE\",Q1108=\"ADD\",Q1108=\"TERMINATE\"),VLOOKUP(Q1108,$AR:$AS,2,FALSE),\"\")","v":""},{"$f":"IF(OR(Q1108=\"TERMINATE (DEATH)\"),VLOOKUP(Q1108,$AR:$AU,4,FALSE),\"\")","v":""},null,null,null,null,null,null,null,null,null,null,null,null,null,null,null,null,null,null,null,null,null,null,null,null,null,null,null,null,null,null,"DOB Error","DOB Error",""]
[1092,null,null,null,null,"",{"$f":"IFERROR(IF(OR(AZ1111=1,F1111<>\"\"),\"To key in DOB\",#REF!),\"\")","v":""},null,null,null,null,null,null,null,null,null,null,"","",null,null,null,null,null,null,null,null,null,null,null,null,null,null,null,null,null,null,null,null,null,null,null,null,null,null,null,null,null,null,"DOB Error","DOB Error",""]
[1096,null,null,null,null,"",{"$f":"IFERROR(IF(OR(AZ1115=1,F1115<>\"\"),\"To key in DOB\",#REF!),\"\")","v":""},null,null,null,null,null,null,null,null,null,null,"","",null,null,null,null,null,null,null,null,null,null,null,null,null,null,null,null,null,null,null,null,null,null,null,null,null,null,null,null,null,null,"DOB Error","DOB Error",""]
[1098,null,null,null,null,"",{"$f":"IFERROR(IF(OR(AZ1117=1,F1117<>\"\"),\"To key in DOB\",#REF!),\"\")","v":""},null,null,null,null,null,null,null,null,null,null,"","",null,null,null,null,null,null,null,null,null,null,null,null,null,null,null,null,null,null,null,null,null,null,null,null,null,null,null,null,null,null,"DOB Error","DOB Error",""]
[1101,null,null,null,null,"",{"$f":"IFERROR(IF(OR(AZ1120=1,F1120<>\"\"),\"To key in DOB\",#REF!),\"\")","v":""},null,null,null,null,null,null,null,null,null,null,"","",null,null,null,null,null,null,null,null,null,null,null,null,null,null,null,null,null,null,null,null,null,null,null,null,null,null,null,null,null,null,"DOB Error","DOB Error",""]
[1105,null,null,null,null,"",{"$f":"IFERROR(IF(OR(AZ1124=1,F1124<>\"\"),\"To key in DOB\",#REF!),\"\")","v":""},null,null,null,null,null,null,null,null,null,null,"","",null,null,null,null,null,null,null,null,null,null,null,null,null,null,null,null,null,null,null,null,null,null,null,null,null,null,null,null,null,null,"DOB Error","DOB Error",""]
[1108,null,null,null,null,"",{"$f":"IFERROR(IF(OR(AZ1127=1,F1127<>\"\"),\"To key in DOB\",#REF!),\"\")","v":""},null,null,null,null,null,null,null,null,null,null,"","",null,null,null,null,null,null,null,null,null,null,null,null,null,null,null,null,null,null,null,null,null,null,null,null,null,null,null,null,null,null,"DOB Error","DOB Error",""]
[1111,null,null,null,null,"",{"$f":"IFERROR(IF(OR(AZ1130=1,F1130<>\"\"),\"To key in DOB\",#REF!),\"\")","v":""},null,null,null,null,null,null,null,null,null,null,"","",null,null,null,null,null,null,null,null,null,null,null,null,null,null,null,null,null,null,null,null,null,null,null,null,null,null,null,null,null,null,"DOB Error","DOB Error",""]
[1113,null,null,null,null,"",{"$f":"IFERROR(IF(OR(AZ1132=1,F1132<>\"\"),\"To key in DOB\",#REF!),\"\")","v":""},null,null,null,null,null,null,null,null,null,null,"","",null,null,null,null,null,null,null,null,null,null,null,null,null,null,null,null,null,null,null,null,null,null,null,null,null,null,null,null,null,null,"DOB Error","DOB Error",""]
[1114,null,null,null,null,"",{"$f":"IFERROR(IF(OR(AZ1133=1,F1133<>\"\"),\"To key in DOB\",#REF!),\"\")","v":""},null,null,null,null,null,null,null,null,null,null,"","",null,null,null,null,null,null,null,null,null,null,null,null,null,null,null,null,null,null,null,null,null,null,null,null,null,null,null,null,null,null,"DOB Error","DOB Error",""]
[1118,null,null,null,null,"",{"$f":"IFERROR(IF(OR(AZ1137=1,F1137<>\"\"),\"To key in DOB\",#REF!),\"\")","v":""},null,null,null,null,null,null,null,null,null,null,"","",null,null,null,null,null,null,null,null,null,null,null,null,null,null,null,null,null,null,null,null,null,null,null,null,null,null,null,null,null,null,"DOB Error","DOB Error",""]
[1121,null,null,null,null,"",{"$f":"IFERROR(IF(OR(AZ1140=1,F1140<>\"\"),\"To key in DOB\",#REF!),\"\")","v":""},null,null,null,null,null,null,null,null,null,null,"","",null,null,null,null,null,null,null,null,null,null,null,null,null,null,null,null,null,null,null,null,null,null,null,null,null,null,null,null,null,null,"DOB Error","DOB Error",""]
[1124,null,null,null,null,"",{"$f":"IFERROR(IF(OR(AZ1143=1,F1143<>\"\"),\"To key in DOB\",#REF!),\"\")","v":""},null,null,null,null,null,null,null,null,null,null,"","",null,null,null,null,null,null,null,null,null,null,null,null,null,null,null,null,null,null,null,null,null,null,null,null,null,null,null,null,null,null,"DOB Error","DOB Error",""]
[1126,null,null,null,null,"",{"$f":"IFERROR(IF(OR(AZ1145=1,F1145<>\"\"),\"To key in DOB\",#REF!),\"\")","v":""},null,null,null,null,null,null,null,null,null,null,"","",null,null,null,null,null,null,null,null,null,null,null,null,null,null,null,null,null,null,null,null,null,null,null,null,null,null,null,null,null,null,"DOB Error","DOB Error",""]
[1130,null,null,null,null,"",{"$f":"IFERROR(IF(OR(AZ1149=1,F1149<>\"\"),\"To key in DOB\",#REF!),\"\")","v":""},null,null,null,null,null,null,null,null,null,null,"","",null,null,null,null,null,null,null,null,null,null,null,null,null,null,null,null,null,null,null,null,null,null,null,null,null,null,null,null,null,null,"DOB Error","DOB Error",""]
[1133,null,null,null,null,"",{"$f":"IFERROR(IF(OR(AZ1152=1,F1152<>\"\"),\"To key in DOB\",#REF!),\"\")","v":""},null,null,null,null,null,null,null,null,null,null,"","",null,null,null,null,null,null,null,null,null,null,null,null,null,null,null,null,null,null,null,null,null,null,null,null,null,null,null,null,null,null,"DOB Error","DOB Error",""]
[1134,null,null,null,null,"",{"$f":"IFERROR(IF(OR(AZ1153=1,F1153<>\"\"),\"To key in DOB\",#REF!),\"\")","v":""},null,null,null,null,null,null,null,null,null,null,"","",null,null,null,null,null,null,null,null,null,null,null,null,null,null,null,null,null,null,null,null,null,null,null,null,null,null,null,null,null,null,"DOB Error","DOB Error",""]
[1137,null,null,null,null,"",{"$f":"IFERROR(IF(OR(AZ1156=1,F1156<>\"\"),\"To key in DOB\",#REF!),\"\")","v":""},null,null,null,null,null,null,null,null,null,null,"","",null,null,null,null,null,null,null,null,null,null,null,null,null,null,null,null,null,null,null,null,null,null,null,null,null,null,null,null,null,null,"DOB Error","DOB Error",""]
[1140,null,null,null,null,"",{"$f":"IFERROR(IF(OR(AZ1159=1,F1159<>\"\"),\"To key in DOB\",#REF!),\"\")","v":""},null,null,null,null,null,null,null,null,null,null,"","",null,null,null,null,null,null,null,null,null,null,null,null,null,null,null,null,null,null,null,null,null,null,null,null,null,null,null,null,null,null,"DOB Error","DOB Error",""]
[1143,null,null,null,null,"",{"$f":"IFERROR(IF(OR(AZ1162=1,F1162<>\"\"),\"To key in DOB\",#REF!),\"\")","v":""},null,null,null,null,null,null,null,null,null,null,"","",null,null,null,null,null,null,null,null,null,null,null,null,null,null,null,null,null,null,null,null,null,null,null,null,null,null,null,null,null,null,"DOB Error","DOB Error",""]
[1146,null,null,null,null,"",{"$f":"IFERROR(IF(OR(AZ1165=1,F1165<>\"\"),\"To key in DOB\",#REF!),\"\")","v":""},null,null,null,null,null,null,null,null,null,null,"","",null,null,null,null,null,null,null,null,null,null,null,null,null,null,null,null,null,null,null,null,null,null,null,null,null,null,null,null,null,null,"DOB Error","DOB Error",""]
[1150,null,null,null,null,"",{"$f":"IFERROR(IF(OR(AZ1169=1,F1169<>\"\"),\"To key in DOB\",#REF!),\"\")","v":""},null,null,null,null,null,null,null,null,null,null,"","",null,null,null,null,null,null,null,null,null,null,null,null,null,null,null,null,null,null,null,null,null,null,null,null,null,null,null,null,null,null,"DOB Error","DOB Error",""]
[1152,null,null,null,null,"",{"$f":"IFERROR(IF(OR(AZ1171=1,F1171<>\"\"),\"To key in DOB\",#REF!),\"\")","v":""},null,null,null,null,null,null,null,null,null,null,"","",null,null,null,null,null,null,null,null,null,null,null,null,null,null,null,null,null,null,null,null,null,null,null,null,null,null,null,null,null,null,{"$f":"IF(ISERROR(AND(SEARCH(\"-\",E1171,7)=7,SEARCH(\"-\",E1171,9)=10)),\"DOB Error\",\"ok\")","v":"DOB Error"},{"$f":"IF(ISERROR(LEFT(E1171,6)+MID(E1171,8,2)+RIGHT(E1171,4)),\"DOB Error\",\"ok\")","v":"DOB Error"},{"$f":"IF(E1171=\"\",\"\",IF(OR(AX1171=\"DOB Error\", AY1171=\"DOB Error\"),1,0))","v":""}]
[1153,null,null,null,null,"",{"$f":"IFERROR(IF(OR(AZ1172=1,F1172<>\"\"),\"To key in DOB\",#REF!),\"\")","v":""},null,null,null,null,null,null,null,null,null,null,{"$f":"IF(OR(Q1172=\"CHANGE\",Q1172=\"ADD\",Q1172=\"TERMINATE\"),VLOOKUP(Q1172,$AR:$AS,2,FALSE),\"\")","v":""},{"$f":"IF(OR(Q1172=\"TERMINATE (DEATH)\"),VLOOKUP(Q1172,$AR:$AU,4,FALSE),\"\")","v":""},null,null,null,null,null,null,null,null,null,null,null,null,null,null,null,null,null,null,null,null,null,null,null,null,null,null,null,null,null,null,"DOB Error","DOB Error",""]
[1156,null,null,null,null,"",{"$f":"IFERROR(IF(OR(AZ1175=1,F1175<>\"\"),\"To key in DOB\",#REF!),\"\")","v":""},null,null,null,null,null,null,null,null,null,null,"","",null,null,null,null,null,null,null,null,null,null,null,null,null,null,null,null,null,null,null,null,null,null,null,null,null,null,null,null,null,null,"DOB Error","DOB Error",""]
[1159,null,null,null,null,"",{"$f":"IFERROR(IF(OR(AZ1178=1,F1178<>\"\"),\"To key in DOB\",#REF!),\"\")","v":""},null,null,null,null,null,null,null,null,null,null,"","",null,null,null,null,null,null,null,null,null,null,null,null,null,null,null,null,null,null,null,null,null,null,null,null,null,null,null,null,null,null,"DOB Error","DOB Error",""]
[1163,null,null,null,null,"",{"$f":"IFERROR(IF(OR(AZ1182=1,F1182<>\"\"),\"To key in DOB\",#REF!),\"\")","v":""},null,null,null,null,null,null,null,null,null,null,"","",null,null,null,null,null,null,null,null,null,null,null,null,null,null,null,null,null,null,null,null,null,null,null,null,null,null,null,null,null,null,"DOB Error","DOB Error",""]
[1165,null,null,null,null,"",{"$f":"IFERROR(IF(OR(AZ1184=1,F1184<>\"\"),\"To key in DOB\",#REF!),\"\")","v":""},null,null,null,null,null,null,null,null,null,null,"","",null,null,null,null,null,null,null,null,null,null,null,null,null,null,null,null,null,null,null,null,null,null,null,null,null,null,null,null,null,null,"DOB Error","DOB Error",""]
[1168,null,null,null,null,"",{"$f":"IFERROR(IF(OR(AZ1187=1,F1187<>\"\"),\"To key in DOB\",#REF!),\"\")","v":""},null,null,null,null,null,null,null,null,null,null,"","",null,null,null,null,null,null,null,null,null,null,null,null,null,null,null,null,null,null,null,null,null,null,null,null,null,null,null,null,null,null,"DOB Error","DOB Error",""]
[1172,null,null,null,null,"",{"$f":"IFERROR(IF(OR(AZ1191=1,F1191<>\"\"),\"To key in DOB\",#REF!),\"\")","v":""},null,null,null,null,null,null,null,null,null,null,"","",null,null,null,null,null,null,null,null,null,null,null,null,null,null,null,null,null,null,null,null,null,null,null,null,null,null,null,null,null,null,"DOB Error","DOB Error",""]
[1175,null,null,null,null,"",{"$f":"IFERROR(IF(OR(AZ1194=1,F1194<>\"\"),\"To key in DOB\",#REF!),\"\")","v":""},null,null,null,null,null,null,null,null,null,null,"","",null,null,null,null,null,null,null,null,null,null,null,null,null,null,null,null,null,null,null,null,null,null,null,null,null,null,null,null,null,null,"DOB Error","DOB Error",""]
[1176,null,null,null,null,"",{"$f":"IFERROR(IF(OR(AZ1195=1,F1195<>\"\"),\"To key in DOB\",#REF!),\"\")","v":""},null,null,null,null,null,null,null,null,null,null,"","",null,null,null,null,null,null,null,null,null,null,null,null,null,null,null,null,null,null,null,null,null,null,null,null,null,null,null,null,null,null,"DOB Error","DOB Error",""]
[1180,null,null,null,null,"",{"$f":"IFERROR(IF(OR(AZ1199=1,F1199<>\"\"),\"To key in DOB\",#REF!),\"\")","v":""},null,null,null,null,null,null,null,null,null,null,"","",null,null,null,null,null,null,null,null,null,null,null,null,null,null,null,null,null,null,null,null,null,null,null,null,null,null,null,null,null,null,"DOB Error","DOB Error",""]
[1181,null,null,null,null,"",{"$f":"IFERROR(IF(OR(AZ1200=1,F1200<>\"\"),\"To key in DOB\",#REF!),\"\")","v":""},null,null,null,null,null,null,null,null,null,null,"","",null,null,null,null,null,null,null,null,null,null,null,null,null,null,null,null,null,null,null,null,null,null,null,null,null,null,null,null,null,null,"DOB Error","DOB Error",""]
[1185,null,null,null,null,"",{"$f":"IFERROR(IF(OR(AZ1204=1,F1204<>\"\"),\"To key in DOB\",#REF!),\"\")","v":""},null,null,null,null,null,null,null,null,null,null,"","",null,null,null,null,null,null,null,null,null,null,null,null,null,null,null,null,null,null,null,null,null,null,null,null,null,null,null,null,null,null,"DOB Error","DOB Error",""]
[1188,null,null,null,null,"",{"$f":"IFERROR(IF(OR(AZ1207=1,F1207<>\"\"),\"To key in DOB\",#REF!),\"\")","v":""},null,null,null,null,null,null,null,null,null,null,"","",null,null,null,null,null,null,null,null,null,null,null,null,null,null,null,null,null,null,null,null,null,null,null,null,null,null,null,null,null,null,"DOB Error","DOB Error",""]
[1191,null,null,null,null,"",{"$f":"IFERROR(IF(OR(AZ1210=1,F1210<>\"\"),\"To key in DOB\",#REF!),\"\")","v":""},null,null,null,null,null,null,null,null,null,null,"","",null,null,null,null,null,null,null,null,null,null,null,null,null,null,null,null,null,null,null,null,null,null,null,null,null,null,null,null,null,null,"DOB Error","DOB Error",""]
[1194,null,null,null,null,"",{"$f":"IFERROR(IF(OR(AZ1213=1,F1213<>\"\"),\"To key in DOB\",#REF!),\"\")","v":""},null,null,null,null,null,null,null,null,null,null,"","",null,null,null,null,null,null,null,null,null,null,null,null,null,null,null,null,null,null,null,null,null,null,null,null,null,null,null,null,null,null,"DOB Error","DOB Error",""]
[1197,null,null,null,null,"",{"$f":"IFERROR(IF(OR(AZ1216=1,F1216<>\"\"),\"To key in DOB\",#REF!),\"\")","v":""},null,null,null,null,null,null,null,null,null,null,"","",null,null,null,null,null,null,null,null,null,null,null,null,null,null,null,null,null,null,null,null,null,null,null,null,null,null,null,null,null,null,"DOB Error","DOB Error",""]
[1198,null,null,null,null,"",{"$f":"IFERROR(IF(OR(AZ1217=1,F1217<>\"\"),\"To key in DOB\",#REF!),\"\")","v":""},null,null,null,null,null,null,null,null,null,null,"","",null,null,null,null,null,null,null,null,null,null,null,null,null,null,null,null,null,null,null,null,null,null,null,null,null,null,null,null,null,null,"DOB Error","DOB Error",""]
[1201,null,null,null,null,"",{"$f":"IFERROR(IF(OR(AZ1220=1,F1220<>\"\"),\"To key in DOB\",#REF!),\"\")","v":""},null,null,null,null,null,null,null,null,null,null,"","",null,null,null,null,null,null,null,null,null,null,null,null,null,null,null,null,null,null,null,null,null,null,null,null,null,null,null,null,null,null,"DOB Error","DOB Error",""]
[1204,null,null,null,null,"",{"$f":"IFERROR(IF(OR(AZ1223=1,F1223<>\"\"),\"To key in DOB\",#REF!),\"\")","v":""},null,null,null,null,null,null,null,null,null,null,"","",null,null,null,null,null,null,null,null,null,null,null,null,null,null,null,null,null,null,null,null,null,null,null,null,null,null,null,null,null,null,"DOB Error","DOB Error",""]
[1207,null,null,null,null,"",{"$f":"IFERROR(IF(OR(AZ1226=1,F1226<>\"\"),\"To key in DOB\",#REF!),\"\")","v":""},null,null,null,null,null,null,null,null,null,null,"","",null,null,null,null,null,null,null,null,null,null,null,null,null,null,null,null,null,null,null,null,null,null,null,null,null,null,null,null,null,null,"DOB Error","DOB Error",""]
[1210,null,null,null,null,"",{"$f":"IFERROR(IF(OR(AZ1229=1,F1229<>\"\"),\"To key in DOB\",#REF!),\"\")","v":""},null,null,null,null,null,null,null,null,null,null,"","",null,null,null,null,null,null,null,null,null,null,null,null,null,null,null,null,null,null,null,null,null,null,null,null,null,null,null,null,null,null,"DOB Error","DOB Error",""]
[1214,null,null,null,null,"",{"$f":"IFERROR(IF(OR(AZ1233=1,F1233<>\"\"),\"To key in DOB\",#REF!),\"\")","v":""},null,null,null,null,null,null,null,null,null,null,"","",null,null,null,null,null,null,null,null,null,null,null,null,null,null,null,null,null,null,null,null,null,null,null,null,null,null,null,null,null,null,"DOB Error","DOB Error",""]
[1217,null,null,null,null,"",{"$f":"IFERROR(IF(OR(AZ1236=1,F1236<>\"\"),\"To key in DOB\",#REF!),\"\")","v":""},null,null,null,null,null,null,null,null,null,null,{"$f":"IF(OR(Q1236=\"CHANGE\",Q1236=\"ADD\",Q1236=\"TERMINATE\"),VLOOKUP(Q1236,$AR:$AS,2,FALSE),\"\")","v":""},{"$f":"IF(OR(Q1236=\"TERMINATE (DEATH)\"),VLOOKUP(Q1236,$AR:$AU,4,FALSE),\"\")","v":""},null,null,null,null,null,null,null,null,null,null,null,null,null,null,null,null,null,null,null,null,null,null,null,null,null,null,null,null,null,null,"DOB Error","DOB Error",""]
[1219,null,null,null,null,"",{"$f":"IFERROR(IF(OR(AZ1238=1,F1238<>\"\"),\"To key in DOB\",#REF!),\"\")","v":""},null,null,null,null,null,null,null,null,null,null,"","",null,null,null,null,null,null,null,null,null,null,null,null,null,null,null,null,null,null,null,null,null,null,null,null,null,null,null,null,null,null,"DOB Error","DOB Error",""]
[1220,null,null,null,null,"",{"$f":"IFERROR(IF(OR(AZ1239=1,F1239<>\"\"),\"To key in DOB\",#REF!),\"\")","v":""},null,null,null,null,null,null,null,null,null,null,"","",null,null,null,null,null,null,null,null,null,null,null,null,null,null,null,null,null,null,null,null,null,null,null,null,null,null,null,null,null,null,"DOB Error","DOB Error",""]
[1223,null,null,null,null,"",{"$f":"IFERROR(IF(OR(AZ1242=1,F1242<>\"\"),\"To key in DOB\",#REF!),\"\")","v":""},null,null,null,null,null,null,null,null,null,null,"","",null,null,null,null,null,null,null,null,null,null,null,null,null,null,null,null,null,null,null,null,null,null,null,null,null,null,null,null,null,null,"DOB Error","DOB Error",""]
[1226,null,null,null,null,"",{"$f":"IFERROR(IF(OR(AZ1245=1,F1245<>\"\"),\"To key in DOB\",#REF!),\"\")","v":""},null,null,null,null,null,null,null,null,null,null,"","",null,null,null,null,null,null,null,null,null,null,null,null,null,null,null,null,null,null,null,null,null,null,null,null,null,null,null,null,null,null,"DOB Error","DOB Error",""]
[1230,null,null,null,null,"",{"$f":"IFERROR(IF(OR(AZ1249=1,F1249<>\"\"),\"To key in DOB\",#REF!),\"\")","v":""},null,null,null,null,null,null,null,null,null,null,"","",null,null,null,null,null,null,null,null,null,null,null,null,null,null,null,null,null,null,null,null,null,null,null,null,null,null,null,null,null,null,"DOB Error","DOB Error",""]
[1232,null,null,null,null,"",{"$f":"IFERROR(IF(OR(AZ1251=1,F1251<>\"\"),\"To key in DOB\",#REF!),\"\")","v":""},null,null,null,null,null,null,null,null,null,null,"","",null,null,null,null,null,null,null,null,null,null,null,null,null,null,null,null,null,null,null,null,null,null,null,null,null,null,null,null,null,null,"DOB Error","DOB Error",""]
[1236,null,null,null,null,"",{"$f":"IFERROR(IF(OR(AZ1255=1,F1255<>\"\"),\"To key in DOB\",#REF!),\"\")","v":""},null,null,null,null,null,null,null,null,null,null,"","",null,null,null,null,null,null,null,null,null,null,null,null,null,null,null,null,null,null,null,null,null,null,null,null,null,null,null,null,null,null,"DOB Error","DOB Error",""]
[1239,null,null,null,null,"",{"$f":"IFERROR(IF(OR(AZ1258=1,F1258<>\"\"),\"To key in DOB\",#REF!),\"\")","v":""},null,null,null,null,null,null,null,null,null,null,"","",null,null,null,null,null,null,null,null,null,null,null,null,null,null,null,null,null,null,null,null,null,null,null,null,null,null,null,null,null,null,"DOB Error","DOB Error",""]
[1242,null,null,null,null,"",{"$f":"IFERROR(IF(OR(AZ1261=1,F1261<>\"\"),\"To key in DOB\",#REF!),\"\")","v":""},null,null,null,null,null,null,null,null,null,null,"","",null,null,null,null,null,null,null,null,null,null,null,null,null,null,null,null,null,null,null,null,null,null,null,null,null,null,null,null,null,null,"DOB Error","DOB Error",""]
[1243,null,null,null,null,"",{"$f":"IFERROR(IF(OR(AZ1262=1,F1262<>\"\"),\"To key in DOB\",#REF!),\"\")","v":""},null,null,null,null,null,null,null,null,null,null,"","",null,null,null,null,null,null,null,null,null,null,null,null,null,null,null,null,null,null,null,null,null,null,null,null,null,null,null,null,null,null,"DOB Error","DOB Error",""]
[1245,null,null,null,null,"",{"$f":"IFERROR(IF(OR(AZ1264=1,F1264<>\"\"),\"To key in DOB\",#REF!),\"\")","v":""},null,null,null,null,null,null,null,null,null,null,"","",null,null,null,null,null,null,null,null,null,null,null,null,null,null,null,null,null,null,null,null,null,null,null,null,null,null,null,null,null,null,"DOB Error","DOB Error",""]
[1249,null,null,null,null,"",{"$f":"IFERROR(IF(OR(AZ1268=1,F1268<>\"\"),\"To key in DOB\",#REF!),\"\")","v":""},null,null,null,null,null,null,null,null,null,null,"","",null,null,null,null,null,null,null,null,null,null,null,null,null,null,null,null,null,null,null,null,null,null,null,null,null,null,null,null,null,null,"DOB Error","DOB Error",""]
[1252,null,null,null,null,"",{"$f":"IFERROR(IF(OR(AZ1271=1,F1271<>\"\"),\"To key in DOB\",#REF!),\"\")","v":""},null,null,null,null,null,null,null,null,null,null,"","",null,null,null,null,null,null,null,null,null,null,null,null,null,null,null,null,null,null,null,null,null,null,null,null,null,null,null,null,null,null,"DOB Error","DOB Error",""]
[1255,null,null,null,null,"",{"$f":"IFERROR(IF(OR(AZ1274=1,F1274<>\"\"),\"To key in DOB\",#REF!),\"\")","v":""},null,null,null,null,null,null,null,null,null,null,"","",null,null,null,null,null,null,null,null,null,null,null,null,null,null,null,null,null,null,null,null,null,null,null,null,null,null,null,null,null,null,"DOB Error","DOB Error",""]
[1258,null,null,null,null,"",{"$f":"IFERROR(IF(OR(AZ1277=1,F1277<>\"\"),\"To key in DOB\",#REF!),\"\")","v":""},null,null,null,null,null,null,null,null,null,null,"","",null,null,null,null,null,null,null,null,null,null,null,null,null,null,null,null,null,null,null,null,null,null,null,null,null,null,null,null,null,null,"DOB Error","DOB Error",""]
[1261,null,null,null,null,"",{"$f":"IFERROR(IF(OR(AZ1280=1,F1280<>\"\"),\"To key in DOB\",#REF!),\"\")","v":""},null,null,null,null,null,null,null,null,null,null,"","",null,null,null,null,null,null,null,null,null,null,null,null,null,null,null,null,null,null,null,null,null,null,null,null,null,null,null,null,null,null,"DOB Error","DOB Error",""]
[1264,null,null,null,null,"",{"$f":"IFERROR(IF(OR(AZ1283=1,F1283<>\"\"),\"To key in DOB\",#REF!),\"\")","v":""},null,null,null,null,null,null,null,null,null,null,"","",null,null,null,null,null,null,null,null,null,null,null,null,null,null,null,null,null,null,null,null,null,null,null,null,null,null,null,null,null,null,"DOB Error","DOB Error",""]
[1265,null,null,null,null,"",{"$f":"IFERROR(IF(OR(AZ1284=1,F1284<>\"\"),\"To key in DOB\",#REF!),\"\")","v":""},null,null,null,null,null,null,null,null,null,null,"","",null,null,null,null,null,null,null,null,null,null,null,null,null,null,null,null,null,null,null,null,null,null,null,null,null,null,null,null,null,null,"DOB Error","DOB Error",""]
[1268,null,null,null,null,"",{"$f":"IFERROR(IF(OR(AZ1287=1,F1287<>\"\"),\"To key in DOB\",#REF!),\"\")","v":""},null,null,null,null,null,null,null,null,null,null,"","",null,null,null,null,null,null,null,null,null,null,null,null,null,null,null,null,null,null,null,null,null,null,null,null,null,null,null,null,null,null,"DOB Error","DOB Error",""]
[1271,null,null,null,null,"",{"$f":"IFERROR(IF(OR(AZ1290=1,F1290<>\"\"),\"To key in DOB\",#REF!),\"\")","v":""},null,null,null,null,null,null,null,null,null,null,"","",null,null,null,null,null,null,null,null,null,null,null,null,null,null,null,null,null,null,null,null,null,null,null,null,null,null,null,null,null,null,"DOB Error","DOB Error",""]
[1274,null,null,null,null,"",{"$f":"IFERROR(IF(OR(AZ1293=1,F1293<>\"\"),\"To key in DOB\",#REF!),\"\")","v":""},null,null,null,null,null,null,null,null,null,null,"","",null,null,null,null,null,null,null,null,null,null,null,null,null,null,null,null,null,null,null,null,null,null,null,null,null,null,null,null,null,null,"DOB Error","DOB Error",""]
[1277,null,null,null,null,"",{"$f":"IFERROR(IF(OR(AZ1296=1,F1296<>\"\"),\"To key in DOB\",#REF!),\"\")","v":""},null,null,null,null,null,null,null,null,null,null,"","",null,null,null,null,null,null,null,null,null,null,null,null,null,null,null,null,null,null,null,null,null,null,null,null,null,null,null,null,null,null,"DOB Error","DOB Error",""]
[1281,null,null,null,null,"",{"$f":"IFERROR(IF(OR(AZ1300=1,F1300<>\"\"),\"To key in DOB\",#REF!),\"\")","v":""},null,null,null,null,null,null,null,null,null,null,{"$f":"IF(OR(Q1300=\"CHANGE\",Q1300=\"ADD\",Q1300=\"TERMINATE\"),VLOOKUP(Q1300,$AR:$AS,2,FALSE),\"\")","v":""},{"$f":"IF(OR(Q1300=\"TERMINATE (DEATH)\"),VLOOKUP(Q1300,$AR:$AU,4,FALSE),\"\")","v":""},null,null,null,null,null,null,null,null,null,null,null,null,null,null,null,null,null,null,null,null,null,null,null,null,null,null,null,null,null,null,"DOB Error","DOB Error",""]
[1282,null,null,null,null,{"$f":"IF(AZ1301=1,\"To key in Old IC / Passport / Birth Cert No.\",\"\")","v":""},{"$f":"IFERROR(IF(OR(AZ1301=1,F1301<>\"\"),\"To key in DOB\",#REF!),\"\")","v":""},null,null,null,null,null,null,null,null,null,null,"","",null,null,null,null,null,null,null,null,null,null,null,null,null,null,null,null,null,null,null,null,null,null,null,null,null,null,null,null,null,null,"DOB Error","DOB Error",""]
[1284,null,null,null,null,"",{"$f":"IFERROR(IF(OR(AZ1303=1,F1303<>\"\"),\"To key in DOB\",#REF!),\"\")","v":""},null,null,null,null,null,null,null,null,null,null,"","",null,null,null,null,null,null,null,null,null,null,null,null,null,null,null,null,null,null,null,null,null,null,null,null,null,null,null,null,null,null,"DOB Error","DOB Error",""]
[1287,null,null,null,null,"",{"$f":"IFERROR(IF(OR(AZ1306=1,F1306<>\"\"),\"To key in DOB\",#REF!),\"\")","v":""},null,null,null,null,null,null,null,null,null,null,"","",null,null,null,null,null,null,null,null,null,null,null,null,null,null,null,null,null,null,null,null,null,null,null,null,null,null,null,null,null,null,"DOB Error","DOB Error",""]
[1290,null,null,null,null,"",{"$f":"IFERROR(IF(OR(AZ1309=1,F1309<>\"\"),\"To key in DOB\",#REF!),\"\")","v":""},null,null,null,null,null,null,null,null,null,null,"","",null,null,null,null,null,null,null,null,null,null,null,null,null,null,null,null,null,null,null,null,null,null,null,null,null,null,null,null,null,null,"DOB Error","DOB Error",""]
[1294,null,null,null,null,"",{"$f":"IFERROR(IF(OR(AZ1313=1,F1313<>\"\"),\"To key in DOB\",#REF!),\"\")","v":""},null,null,null,null,null,null,null,null,null,null,"","",null,null,null,null,null,null,null,null,null,null,null,null,null,null,null,null,null,null,null,null,null,null,null,null,null,null,null,null,null,null,"DOB Error","DOB Error",""]
[1297,null,null,null,null,"",{"$f":"IFERROR(IF(OR(AZ1316=1,F1316<>\"\"),\"To key in DOB\",#REF!),\"\")","v":""},null,null,null,null,null,null,null,null,null,null,"","",null,null,null,null,null,null,null,null,null,null,null,null,null,null,null,null,null,null,null,null,null,null,null,null,null,null,null,null,null,null,"DOB Error","DOB Error",""]
[1299,null,null,null,null,"",{"$f":"IFERROR(IF(OR(AZ1318=1,F1318<>\"\"),\"To key in DOB\",#REF!),\"\")","v":""},null,null,null,null,null,null,null,null,null,null,"","",null,null,null,null,null,null,null,null,null,null,null,null,null,null,null,null,null,null,null,null,null,null,null,null,null,null,null,null,null,null,"DOB Error","DOB Error",""]
[1303,null,null,null,null,"",{"$f":"IFERROR(IF(OR(AZ1322=1,F1322<>\"\"),\"To key in DOB\",#REF!),\"\")","v":""},null,null,null,null,null,null,null,null,null,null,"","",null,null,null,null,null,null,null,null,null,null,null,null,null,null,null,null,null,null,null,null,null,null,null,null,null,null,null,null,null,null,"DOB Error","DOB Error",""]
[1306,null,null,null,null,"",{"$f":"IFERROR(IF(OR(AZ1325=1,F1325<>\"\"),\"To key in DOB\",#REF!),\"\")","v":""},null,null,null,null,null,null,null,null,null,null,"","",null,null,null,null,null,null,null,null,null,null,null,null,null,null,null,null,null,null,null,null,null,null,null,null,null,null,null,null,null,null,"DOB Error","DOB Error",""]
[1307,null,null,null,null,"",{"$f":"IFERROR(IF(OR(AZ1326=1,F1326<>\"\"),\"To key in DOB\",#REF!),\"\")","v":""},null,null,null,null,null,null,null,null,null,null,"","",null,null,null,null,null,null,null,null,null,null,null,null,null,null,null,null,null,null,null,null,null,null,null,null,null,null,null,null,null,null,"DOB Error","DOB Error",""]
[1310,null,null,null,null,"",{"$f":"IFERROR(IF(OR(AZ1329=1,F1329<>\"\"),\"To key in DOB\",#REF!),\"\")","v":""},null,null,null,null,null,null,null,null,null,null,"","",null,null,null,null,null,null,null,null,null,null,null,null,null,null,null,null,null,null,null,null,null,null,null,null,null,null,null,null,null,null,"DOB Error","DOB Error",""]
[1312,null,null,null,null,"",{"$f":"IFERROR(IF(OR(AZ1331=1,F1331<>\"\"),\"To key in DOB\",#REF!),\"\")","v":""},null,null,null,null,null,null,null,null,null,null,"","",null,null,null,null,null,null,null,null,null,null,null,null,null,null,null,null,null,null,null,null,null,null,null,null,null,null,null,null,null,null,"DOB Error","DOB Error",""]
[1316,null,null,null,null,"",{"$f":"IFERROR(IF(OR(AZ1335=1,F1335<>\"\"),\"To key in DOB\",#REF!),\"\")","v":""},null,null,null,null,null,null,null,null,null,null,"","",null,null,null,null,null,null,null,null,null,null,null,null,null,null,null,null,null,null,null,null,null,null,null,null,null,null,null,null,null,null,"DOB Error","DOB Error",""]
[1319,null,null,null,null,"",{"$f":"IFERROR(IF(OR(AZ1338=1,F1338<>\"\"),\"To key in DOB\",#REF!),\"\")","v":""},null,null,null,null,null,null,null,null,null,null,"","",null,null,null,null,null,null,null,null,null,null,null,null,null,null,null,null,null,null,null,null,null,null,null,null,null,null,null,null,null,null,"DOB Error","DOB Error",""]
[1321,null,null,null,null,"",{"$f":"IFERROR(IF(OR(AZ1340=1,F1340<>\"\"),\"To key in DOB\",#REF!),\"\")","v":""},null,null,null,null,null,null,null,null,null,null,"","",null,null,null,null,null,null,null,null,null,null,null,null,null,null,null,null,null,null,null,null,null,null,null,null,null,null,null,null,null,null,"DOB Error","DOB Error",""]
[1325,null,null,null,null,"",{"$f":"IFERROR(IF(OR(AZ1344=1,F1344<>\"\"),\"To key in DOB\",#REF!),\"\")","v":""},null,null,null,null,null,null,null,null,null,null,"","",null,null,null,null,null,null,null,null,null,null,null,null,null,null,null,null,null,null,null,null,null,null,null,null,null,null,null,null,null,null,"DOB Error","DOB Error",""]
[1328,null,null,null,null,"",{"$f":"IFERROR(IF(OR(AZ1347=1,F1347<>\"\"),\"To key in DOB\",#REF!),\"\")","v":""},null,null,null,null,null,null,null,null,null,null,"","",null,null,null,null,null,null,null,null,null,null,null,null,null,null,null,null,null,null,null,null,null,null,null,null,null,null,null,null,null,null,"DOB Error","DOB Error",""]
[1329,null,null,null,null,"",{"$f":"IFERROR(IF(OR(AZ1348=1,F1348<>\"\"),\"To key in DOB\",#REF!),\"\")","v":""},null,null,null,null,null,null,null,null,null,null,"","",null,null,null,null,null,null,null,null,null,null,null,null,null,null,null,null,null,null,null,null,null,null,null,null,null,null,null,null,null,null,"DOB Error","DOB Error",""]
[1332,null,null,null,null,"",{"$f":"IFERROR(IF(OR(AZ1351=1,F1351<>\"\"),\"To key in DOB\",#REF!),\"\")","v":""},null,null,null,null,null,null,null,null,null,null,"","",null,null,null,null,null,null,null,null,null,null,null,null,null,null,null,null,null,null,null,null,null,null,null,null,null,null,null,null,null,null,"DOB Error","DOB Error",""]
[1336,null,null,null,null,"",{"$f":"IFERROR(IF(OR(AZ1355=1,F1355<>\"\"),\"To key in DOB\",#REF!),\"\")","v":""},null,null,null,null,null,null,null,null,null,null,"","",null,null,null,null,null,null,null,null,null,null,null,null,null,null,null,null,null,null,null,null,null,null,null,null,null,null,null,null,null,null,"DOB Error","DOB Error",""]
[1338,null,null,null,null,"",{"$f":"IFERROR(IF(OR(AZ1357=1,F1357<>\"\"),\"To key in DOB\",#REF!),\"\")","v":""},null,null,null,null,null,null,null,null,null,null,"","",null,null,null,null,null,null,null,null,null,null,null,null,null,null,null,null,null,null,null,null,null,null,null,null,null,null,null,null,null,null,"DOB Error","DOB Error",""]
[1341,null,null,null,null,"",{"$f":"IFERROR(IF(OR(AZ1360=1,F1360<>\"\"),\"To key in DOB\",#REF!),\"\")","v":""},null,null,null,null,null,null,null,null,null,null,"","",null,null,null,null,null,null,null,null,null,null,null,null,null,null,null,null,null,null,null,null,null,null,null,null,null,null,null,null,null,null,"DOB Error","DOB Error",""]
[1345,null,null,null,null,"",{"$f":"IFERROR(IF(OR(AZ1364=1,F1364<>\"\"),\"To key in DOB\",#REF!),\"\")","v":""},null,null,null,null,null,null,null,null,null,null,{"$f":"IF(OR(Q1364=\"CHANGE\",Q1364=\"ADD\",Q1364=\"TERMINATE\"),VLOOKUP(Q1364,$AR:$AS,2,FALSE),\"\")","v":""},{"$f":"IF(OR(Q1364=\"TERMINATE (DEATH)\"),VLOOKUP(Q1364,$AR:$AU,4,FALSE),\"\")","v":""},null,null,null,null,null,null,null,null,null,null,null,null,null,null,null,null,null,null,null,null,null,null,null,null,null,null,null,null,null,null,"DOB Error","DOB Error",""]
[1348,null,null,null,null,"",{"$f":"IFERROR(IF(OR(AZ1367=1,F1367<>\"\"),\"To key in DOB\",#REF!),\"\")","v":""},null,null,null,null,null,null,null,null,null,null,"","",null,null,null,null,null,null,null,null,null,null,null,null,null,null,null,null,null,null,null,null,null,null,null,null,null,null,null,null,null,null,"DOB Error","DOB Error",""]
[1349,null,null,null,null,"",{"$f":"IFERROR(IF(OR(AZ1368=1,F1368<>\"\"),\"To key in DOB\",#REF!),\"\")","v":""},null,null,null,null,null,null,null,null,null,null,"","",null,null,null,null,null,null,null,null,null,null,null,null,null,null,null,null,null,null,null,null,null,null,null,null,null,null,null,null,null,null,"DOB Error","DOB Error",""]
[1351,null,null,null,null,"",{"$f":"IFERROR(IF(OR(AZ1370=1,F1370<>\"\"),\"To key in DOB\",#REF!),\"\")","v":""},null,null,null,null,null,null,null,null,null,null,"","",null,null,null,null,null,null,null,null,null,null,null,null,null,null,null,null,null,null,null,null,null,null,null,null,null,null,null,null,null,null,"DOB Error","DOB Error",""]
[1354,null,null,null,null,"",{"$f":"IFERROR(IF(OR(AZ1373=1,F1373<>\"\"),\"To key in DOB\",#REF!),\"\")","v":""},null,null,null,null,null,null,null,null,null,null,"","",null,null,null,null,null,null,null,null,null,null,null,null,null,null,null,null,null,null,null,null,null,null,null,null,null,null,null,null,null,null,"DOB Error","DOB Error",""]
[1357,null,null,null,null,"",{"$f":"IFERROR(IF(OR(AZ1376=1,F1376<>\"\"),\"To key in DOB\",#REF!),\"\")","v":""},null,null,null,null,null,null,null,null,null,null,"","",null,null,null,null,null,null,null,null,null,null,null,null,null,null,null,null,null,null,null,null,null,null,null,null,null,null,null,null,null,null,"DOB Error","DOB Error",""]
[1361,null,null,null,null,"",{"$f":"IFERROR(IF(OR(AZ1380=1,F1380<>\"\"),\"To key in DOB\",#REF!),\"\")","v":""},null,null,null,null,null,null,null,null,null,null,"","",null,null,null,null,null,null,null,null,null,null,null,null,null,null,null,null,null,null,null,null,null,null,null,null,null,null,null,null,null,null,"DOB Error","DOB Error",""]
[1364,null,null,null,null,"",{"$f":"IFERROR(IF(OR(AZ1383=1,F1383<>\"\"),\"To key in DOB\",#REF!),\"\")","v":""},null,null,null,null,null,null,null,null,null,null,"","",null,null,null,null,null,null,null,null,null,null,null,null,null,null,null,null,null,null,null,null,null,null,null,null,null,null,null,null,null,null,"DOB Error","DOB Error",""]
[1367,null,null,null,null,"",{"$f":"IFERROR(IF(OR(AZ1386=1,F1386<>\"\"),\"To key in DOB\",#REF!),\"\")","v":""},null,null,null,null,null,null,null,null,null,null,"","",null,null,null,null,null,null,null,null,null,null,null,null,null,null,null,null,null,null,null,null,null,null,null,null,null,null,null,null,null,null,"DOB Error","DOB Error",""]
[1370,null,null,null,null,"",{"$f":"IFERROR(IF(OR(AZ1389=1,F1389<>\"\"),\"To key in DOB\",#REF!),\"\")","v":""},null,null,null,null,null,null,null,null,null,null,"","",null,null,null,null,null,null,null,null,null,null,null,null,null,null,null,null,null,null,null,null,null,null,null,null,null,null,null,null,null,null,"DOB Error","DOB Error",""]
[1373,null,null,null,null,"",{"$f":"IFERROR(IF(OR(AZ1392=1,F1392<>\"\"),\"To key in DOB\",#REF!),\"\")","v":""},null,null,null,null,null,null,null,null,null,null,"","",null,null,null,null,null,null,null,null,null,null,null,null,null,null,null,null,null,null,null,null,null,null,null,null,null,null,null,null,null,null,"DOB Error","DOB Error",""]
[1375,null,null,null,null,"",{"$f":"IFERROR(IF(OR(AZ1394=1,F1394<>\"\"),\"To key in DOB\",#REF!),\"\")","v":""},null,null,null,null,null,null,null,null,null,null,"","",null,null,null,null,null,null,null,null,null,null,null,null,null,null,null,null,null,null,null,null,null,null,null,null,null,null,null,null,null,null,"DOB Error","DOB Error",""]
[1376,null,null,null,null,"",{"$f":"IFERROR(IF(OR(AZ1395=1,F1395<>\"\"),\"To key in DOB\",#REF!),\"\")","v":""},null,null,null,null,null,null,null,null,null,null,"","",null,null,null,null,null,null,null,null,null,null,null,null,null,null,null,null,null,null,null,null,null,null,null,null,null,null,null,null,null,null,"DOB Error","DOB Error",""]
[1379,null,null,null,null,"",{"$f":"IFERROR(IF(OR(AZ1398=1,F1398<>\"\"),\"To key in DOB\",#REF!),\"\")","v":""},null,null,null,null,null,null,null,null,null,null,"","",null,null,null,null,null,null,null,null,null,null,null,null,null,null,null,null,null,null,null,null,null,null,null,null,null,null,null,null,null,null,"DOB Error","DOB Error",""]
[1383,null,null,null,null,"",{"$f":"IFERROR(IF(OR(AZ1402=1,F1402<>\"\"),\"To key in DOB\",#REF!),\"\")","v":""},null,null,null,null,null,null,null,null,null,null,"","",null,null,null,null,null,null,null,null,null,null,null,null,null,null,null,null,null,null,null,null,null,null,null,null,null,null,null,null,null,null,"DOB Error","DOB Error",""]
[1386,null,null,null,null,"",{"$f":"IFERROR(IF(OR(AZ1405=1,F1405<>\"\"),\"To key in DOB\",#REF!),\"\")","v":""},null,null,null,null,null,null,null,null,null,null,"","",null,null,null,null,null,null,null,null,null,null,null,null,null,null,null,null,null,null,null,null,null,null,null,null,null,null,null,null,null,null,"DOB Error","DOB Error",""]
[1388,null,null,null,null,"",{"$f":"IFERROR(IF(OR(AZ1407=1,F1407<>\"\"),\"To key in DOB\",#REF!),\"\")","v":""},null,null,null,null,null,null,null,null,null,null,"","",null,null,null,null,null,null,null,null,null,null,null,null,null,null,null,null,null,null,null,null,null,null,null,null,null,null,null,null,null,null,"DOB Error","DOB Error",""]
[1392,null,null,null,null,"",{"$f":"IFERROR(IF(OR(AZ1411=1,F1411<>\"\"),\"To key in DOB\",#REF!),\"\")","v":""},null,null,null,null,null,null,null,null,null,null,"","",null,null,null,null,null,null,null,null,null,null,null,null,null,null,null,null,null,null,null,null,null,null,null,null,null,null,null,null,null,null,"DOB Error","DOB Error",""]
[1395,null,null,null,null,"",{"$f":"IFERROR(IF(OR(AZ1414=1,F1414<>\"\"),\"To key in DOB\",#REF!),\"\")","v":""},null,null,null,null,null,null,null,null,null,null,"","",null,null,null,null,null,null,null,null,null,null,null,null,null,null,null,null,null,null,null,null,null,null,null,null,null,null,null,null,null,null,"DOB Error","DOB Error",""]
[1396,null,null,null,null,"",{"$f":"IFERROR(IF(OR(AZ1415=1,F1415<>\"\"),\"To key in DOB\",#REF!),\"\")","v":""},null,null,null,null,null,null,null,null,null,null,"","",null,null,null,null,null,null,null,null,null,null,null,null,null,null,null,null,null,null,null,null,null,null,null,null,null,null,null,null,null,null,"DOB Error","DOB Error",""]
[1399,null,null,null,null,"",{"$f":"IFERROR(IF(OR(AZ1418=1,F1418<>\"\"),\"To key in DOB\",#REF!),\"\")","v":""},null,null,null,null,null,null,null,null,null,null,"","",null,null,null,null,null,null,null,null,null,null,null,null,null,null,null,null,null,null,null,null,null,null,null,null,null,null,null,null,null,null,"DOB Error","DOB Error",""]
[1403,null,null,null,null,"",{"$f":"IFERROR(IF(OR(AZ1422=1,F1422<>\"\"),\"To key in DOB\",#REF!),\"\")","v":""},null,null,null,null,null,null,null,null,null,null,"","",null,null,null,null,null,null,null,null,null,null,null,null,null,null,null,null,null,null,null,null,null,null,null,null,null,null,null,null,null,null,"DOB Error","DOB Error",""]
[1405,null,null,null,null,"",{"$f":"IFERROR(IF(OR(AZ1424=1,F1424<>\"\"),\"To key in DOB\",#REF!),\"\")","v":""},null,null,null,null,null,null,null,null,null,null,"","",null,null,null,null,null,null,null,null,null,null,null,null,null,null,null,null,null,null,null,null,null,null,null,null,null,null,null,null,null,null,"DOB Error","DOB Error",""]
[1408,null,null,null,null,"",{"$f":"IFERROR(IF(OR(AZ1427=1,F1427<>\"\"),\"To key in DOB\",#REF!),\"\")","v":""},null,null,null,null,null,null,null,null,null,null,"","",null,null,null,null,null,null,null,null,null,null,null,null,null,null,null,null,null,null,null,null,null,null,null,null,null,null,null,null,null,null,{"$f":"IF(ISERROR(AND(SEARCH(\"-\",E1427,7)=7,SEARCH(\"-\",E1427,9)=10)),\"DOB Error\",\"ok\")","v":"DOB Error"},{"$f":"IF(ISERROR(LEFT(E1427,6)+MID(E1427,8,2)+RIGHT(E1427,4)),\"DOB Error\",\"ok\")","v":"DOB Error"},{"$f":"IF(E1427=\"\",\"\",IF(OR(AX1427=\"DOB Error\", AY1427=\"DOB Error\"),1,0))","v":""}]
[1412,null,null,null,null,"",{"$f":"IFERROR(IF(OR(AZ1431=1,F1431<>\"\"),\"To key in DOB\",#REF!),\"\")","v":""},null,null,null,null,null,null,null,null,null,null,"","",null,null,null,null,null,null,null,null,null,null,null,null,null,null,null,null,null,null,null,null,null,null,null,null,null,null,null,null,null,null,"DOB Error","DOB Error",""]
[1414,null,null,null,null,"",{"$f":"IFERROR(IF(OR(AZ1433=1,F1433<>\"\"),\"To key in DOB\",#REF!),\"\")","v":""},null,null,null,null,null,null,null,null,null,null,"","",null,null,null,null,null,null,null,null,null,null,null,null,null,null,null,null,null,null,null,null,null,null,null,null,null,null,null,null,null,null,"DOB Error","DOB Error",""]
[1417,null,null,null,null,"",{"$f":"IFERROR(IF(OR(AZ1436=1,F1436<>\"\"),\"To key in DOB\",#REF!),\"\")","v":""},null,null,null,null,null,null,null,null,null,null,"","",null,null,null,null,null,null,null,null,null,null,null,null,null,null,null,null,null,null,null,null,null,null,null,null,null,null,null,null,null,null,"DOB Error","DOB Error",""]
[1418,null,null,null,null,"",{"$f":"IFERROR(IF(OR(AZ1437=1,F1437<>\"\"),\"To key in DOB\",#REF!),\"\")","v":""},null,null,null,null,null,null,null,null,null,null,"","",null,null,null,null,null,null,null,null,null,null,null,null,null,null,null,null,null,null,null,null,null,null,null,null,null,null,null,null,null,null,"DOB Error","DOB Error",""]
[1421,null,null,null,null,"",{"$f":"IFERROR(IF(OR(AZ1440=1,F1440<>\"\"),\"To key in DOB\",#REF!),\"\")","v":""},null,null,null,null,null,null,null,null,null,null,"","",null,null,null,null,null,null,null,null,null,null,null,null,null,null,null,null,null,null,null,null,null,null,null,null,null,null,null,null,null,null,"DOB Error","DOB Error",""]
[1425,null,null,null,null,"",{"$f":"IFERROR(IF(OR(AZ1444=1,F1444<>\"\"),\"To key in DOB\",#REF!),\"\")","v":""},null,null,null,null,null,null,null,null,null,null,"","",null,null,null,null,null,null,null,null,null,null,null,null,null,null,null,null,null,null,null,null,null,null,null,null,null,null,null,null,null,null,"DOB Error","DOB Error",""]
[1427,null,null,null,null,"",{"$f":"IFERROR(IF(OR(AZ1446=1,F1446<>\"\"),\"To key in DOB\",#REF!),\"\")","v":""},null,null,null,null,null,null,null,null,null,null,"","",null,null,null,null,null,null,null,null,null,null,null,null,null,null,null,null,null,null,null,null,null,null,null,null,null,null,null,null,null,null,"DOB Error","DOB Error",""]
[1430,null,null,null,null,"",{"$f":"IFERROR(IF(OR(AZ1449=1,F1449<>\"\"),\"To key in DOB\",#REF!),\"\")","v":""},null,null,null,null,null,null,null,null,null,null,"","",null,null,null,null,null,null,null,null,null,null,null,null,null,null,null,null,null,null,null,null,null,null,null,null,null,null,null,null,null,null,"DOB Error","DOB Error",""]
[1434,null,null,null,null,"",{"$f":"IFERROR(IF(OR(AZ1453=1,F1453<>\"\"),\"To key in DOB\",#REF!),\"\")","v":""},null,null,null,null,null,null,null,null,null,null,"","",null,null,null,null,null,null,null,null,null,null,null,null,null,null,null,null,null,null,null,null,null,null,null,null,null,null,null,null,null,null,"DOB Error","DOB Error",""]
[1437,null,null,null,null,"",{"$f":"IFERROR(IF(OR(AZ1456=1,F1456<>\"\"),\"To key in DOB\",#REF!),\"\")","v":""},null,null,null,null,null,null,null,null,null,null,"","",null,null,null,null,null,null,null,null,null,null,null,null,null,null,null,null,null,null,null,null,null,null,null,null,null,null,null,null,null,null,"DOB Error","DOB Error",""]
[1438,null,null,null,null,"",{"$f":"IFERROR(IF(OR(AZ1457=1,F1457<>\"\"),\"To key in DOB\",#REF!),\"\")","v":""},null,null,null,null,null,null,null,null,null,null,"","",null,null,null,null,null,null,null,null,null,null,null,null,null,null,null,null,null,null,null,null,null,null,null,null,null,null,null,null,null,null,"DOB Error","DOB Error",""]
[1442,null,null,null,null,"",{"$f":"IFERROR(IF(OR(AZ1461=1,F1461<>\"\"),\"To key in DOB\",#REF!),\"\")","v":""},null,null,null,null,null,null,null,null,null,null,"","",null,null,null,null,null,null,null,null,null,null,null,null,null,null,null,null,null,null,null,null,null,null,null,null,null,null,null,null,null,null,"DOB Error","DOB Error",""]
[1443,null,null,null,null,"",{"$f":"IFERROR(IF(OR(AZ1462=1,F1462<>\"\"),\"To key in DOB\",#REF!),\"\")","v":""},null,null,null,null,null,null,null,null,null,null,"","",null,null,null,null,null,null,null,null,null,null,null,null,null,null,null,null,null,null,null,null,null,null,null,null,null,null,null,null,null,null,"DOB Error","DOB Error",""]
[1447,null,null,null,null,"",{"$f":"IFERROR(IF(OR(AZ1466=1,F1466<>\"\"),\"To key in DOB\",#REF!),\"\")","v":""},null,null,null,null,null,null,null,null,null,null,"","",null,null,null,null,null,null,null,null,null,null,null,null,null,null,null,null,null,null,null,null,null,null,null,null,null,null,null,null,null,null,"DOB Error","DOB Error",""]
[1450,null,null,null,null,"",{"$f":"IFERROR(IF(OR(AZ1469=1,F1469<>\"\"),\"To key in DOB\",#REF!),\"\")","v":""},null,null,null,null,null,null,null,null,null,null,"","",null,null,null,null,null,null,null,null,null,null,null,null,null,null,null,null,null,null,null,null,null,null,null,null,null,null,null,null,null,null,"DOB Error","DOB Error",""]
[1453,null,null,null,null,"",{"$f":"IFERROR(IF(OR(AZ1472=1,F1472<>\"\"),\"To key in DOB\",#REF!),\"\")","v":""},null,null,null,null,null,null,null,null,null,null,"","",null,null,null,null,null,null,null,null,null,null,null,null,null,null,null,null,null,null,null,null,null,null,null,null,null,null,null,null,null,null,"DOB Error","DOB Error",""]
[1455,null,null,null,null,"",{"$f":"IFERROR(IF(OR(AZ1474=1,F1474<>\"\"),\"To key in DOB\",#REF!),\"\")","v":""},null,null,null,null,null,null,null,null,null,null,"","",null,null,null,null,null,null,null,null,null,null,null,null,null,null,null,null,null,null,null,null,null,null,null,null,null,null,null,null,null,null,"DOB Error","DOB Error",""]
[1459,null,null,null,null,"",{"$f":"IFERROR(IF(OR(AZ1478=1,F1478<>\"\"),\"To key in DOB\",#REF!),\"\")","v":""},null,null,null,null,null,null,null,null,null,null,"","",null,null,null,null,null,null,null,null,null,null,null,null,null,null,null,null,null,null,null,null,null,null,null,null,null,null,null,null,null,null,"DOB Error","DOB Error",""]
[1460,null,null,null,null,"",{"$f":"IFERROR(IF(OR(AZ1479=1,F1479<>\"\"),\"To key in DOB\",#REF!),\"\")","v":""},null,null,null,null,null,null,null,null,null,null,"","",null,null,null,null,null,null,null,null,null,null,null,null,null,null,null,null,null,null,null,null,null,null,null,null,null,null,null,null,null,null,"DOB Error","DOB Error",""]
[1463,null,null,null,null,"",{"$f":"IFERROR(IF(OR(AZ1482=1,F1482<>\"\"),\"To key in DOB\",#REF!),\"\")","v":""},null,null,null,null,null,null,null,null,null,null,"","",null,null,null,null,null,null,null,null,null,null,null,null,null,null,null,null,null,null,null,null,null,null,null,null,null,null,null,null,null,null,"DOB Error","DOB Error",""]
[1466,null,null,null,null,"",{"$f":"IFERROR(IF(OR(AZ1485=1,F1485<>\"\"),\"To key in DOB\",#REF!),\"\")","v":""},null,null,null,null,null,null,null,null,null,null,"","",null,null,null,null,null,null,null,null,null,null,null,null,null,null,null,null,null,null,null,null,null,null,null,null,null,null,null,null,null,null,"DOB Error","DOB Error",""]
[1469,null,null,null,null,"",{"$f":"IFERROR(IF(OR(AZ1488=1,F1488<>\"\"),\"To key in DOB\",#REF!),\"\")","v":""},null,null,null,null,null,null,null,null,null,null,"","",null,null,null,null,null,null,null,null,null,null,null,null,null,null,null,null,null,null,null,null,null,null,null,null,null,null,null,null,null,null,"DOB Error","DOB Error",""]
[1472,null,null,null,null,"",{"$f":"IFERROR(IF(OR(AZ1491=1,F1491<>\"\"),\"To key in DOB\",#REF!),\"\")","v":""},null,null,null,null,null,null,null,null,null,null,"","",null,null,null,null,null,null,null,null,null,null,null,null,null,null,null,null,null,null,null,null,null,null,null,null,null,null,null,null,null,null,{"$f":"IF(ISERROR(AND(SEARCH(\"-\",E1491,7)=7,SEARCH(\"-\",E1491,9)=10)),\"DOB Error\",\"ok\")","v":"DOB Error"},{"$f":"IF(ISERROR(LEFT(E1491,6)+MID(E1491,8,2)+RIGHT(E1491,4)),\"DOB Error\",\"ok\")","v":"DOB Error"},{"$f":"IF(E1491=\"\",\"\",IF(OR(AX1491=\"DOB Error\", AY1491=\"DOB Error\"),1,0))","v":""}]
[1475,null,null,null,null,"",{"$f":"IFERROR(IF(OR(AZ1494=1,F1494<>\"\"),\"To key in DOB\",#REF!),\"\")","v":""},null,null,null,null,null,null,null,null,null,null,"","",null,null,null,null,null,null,null,null,null,null,null,null,null,null,null,null,null,null,null,null,null,null,null,null,null,null,null,null,null,null,"DOB Error","DOB Error",""]
[1479,null,null,null,null,"",{"$f":"IFERROR(IF(OR(AZ1498=1,F1498<>\"\"),\"To key in DOB\",#REF!),\"\")","v":""},null,null,null,null,null,null,null,null,null,null,"","",null,null,null,null,null,null,null,null,null,null,null,null,null,null,null,null,null,null,null,null,null,null,null,null,null,null,null,null,null,null,"DOB Error","DOB Error",""]
[1481,null,null,null,null,"",{"$f":"IFERROR(IF(OR(AZ1500=1,F1500<>\"\"),\"To key in DOB\",#REF!),\"\")","v":""},null,null,null,null,null,null,null,null,null,null,"","",null,null,null,null,null,null,null,null,null,null,null,null,null,null,null,null,null,null,null,null,null,null,null,null,null,null,null,null,null,null,"DOB Error","DOB Error",""]
[1482,null,null,null,null,"",{"$f":"IFERROR(IF(OR(AZ1501=1,F1501<>\"\"),\"To key in DOB\",#REF!),\"\")","v":""},null,null,null,null,null,null,null,null,null,null,"","",null,null,null,null,null,null,null,null,null,null,null,null,null,null,null,null,null,null,null,null,null,null,null,null,null,null,null,null,null,null,"DOB Error","DOB Error",""]
[1485,null,null,null,null,"",{"$f":"IFERROR(IF(OR(AZ1504=1,F1504<>\"\"),\"To key in DOB\",#REF!),\"\")","v":""},null,null,null,null,null,null,null,null,null,null,"","",null,null,null,null,null,null,null,null,null,null,null,null,null,null,null,null,null,null,null,null,null,null,null,null,null,null,null,null,null,null,"DOB Error","DOB Error",""]
[1488,null,null,null,null,"",{"$f":"IFERROR(IF(OR(AZ1507=1,F1507<>\"\"),\"To key in DOB\",#REF!),\"\")","v":""},null,null,null,null,null,null,null,null,null,null,"","",null,null,null,null,null,null,null,null,null,null,null,null,null,null,null,null,null,null,null,null,null,null,null,null,null,null,null,null,null,null,"DOB Error","DOB Error",""]
[1492,null,null,null,null,"",{"$f":"IFERROR(IF(OR(AZ1511=1,F1511<>\"\"),\"To key in DOB\",#REF!),\"\")","v":""},null,null,null,null,null,null,null,null,null,null,"","",null,null,null,null,null,null,null,null,null,null,null,null,null,null,null,null,null,null,null,null,null,null,null,null,null,null,null,null,null,null,"DOB Error","DOB Error",""]
[1494,null,null,null,null,"",{"$f":"IFERROR(IF(OR(AZ1513=1,F1513<>\"\"),\"To key in DOB\",#REF!),\"\")","v":""},null,null,null,null,null,null,null,null,null,null,"","",null,null,null,null,null,null,null,null,null,null,null,null,null,null,null,null,null,null,null,null,null,null,null,null,null,null,null,null,null,null,"DOB Error","DOB Error",""]
[1498,null,null,null,null,"",{"$f":"IFERROR(IF(OR(AZ1517=1,F1517<>\"\"),\"To key in DOB\",#REF!),\"\")","v":""},null,null,null,null,null,null,null,null,null,null,"","",null,null,null,null,null,null,null,null,null,null,null,null,null,null,null,null,null,null,null,null,null,null,null,null,null,null,null,null,null,null,"DOB Error","DOB Error",""]
[1501,null,null,null,null,"",{"$f":"IFERROR(IF(OR(AZ1520=1,F1520<>\"\"),\"To key in DOB\",#REF!),\"\")","v":""},null,null,null,null,null,null,null,null,null,null,"","",null,null,null,null,null,null,null,null,null,null,null,null,null,null,null,null,null,null,null,null,null,null,null,null,null,null,null,null,null,null,"DOB Error","DOB Error",""]
[1504,null,null,null,null,"",{"$f":"IFERROR(IF(OR(AZ1523=1,F1523<>\"\"),\"To key in DOB\",#REF!),\"\")","v":""},null,null,null,null,null,null,null,null,null,null,"","",null,null,null,null,null,null,null,null,null,null,null,null,null,null,null,null,null,null,null,null,null,null,null,null,null,null,null,null,null,null,"DOB Error","DOB Error",""]
[1505,null,null,null,null,"",{"$f":"IFERROR(IF(OR(AZ1524=1,F1524<>\"\"),\"To key in DOB\",#REF!),\"\")","v":""},null,null,null,null,null,null,null,null,null,null,"","",null,null,null,null,null,null,null,null,null,null,null,null,null,null,null,null,null,null,null,null,null,null,null,null,null,null,null,null,null,null,"DOB Error","DOB Error",""]
[1507,null,null,null,null,"",{"$f":"IFERROR(IF(OR(AZ1526=1,F1526<>\"\"),\"To key in DOB\",#REF!),\"\")","v":""},null,null,null,null,null,null,null,null,null,null,"","",null,null,null,null,null,null,null,null,null,null,null,null,null,null,null,null,null,null,null,null,null,null,null,null,null,null,null,null,null,null,"DOB Error","DOB Error",""]
[1510,null,null,null,null,"",{"$f":"IFERROR(IF(OR(AZ1529=1,F1529<>\"\"),\"To key in DOB\",#REF!),\"\")","v":""},null,null,null,null,null,null,null,null,null,null,"","",null,null,null,null,null,null,null,null,null,null,null,null,null,null,null,null,null,null,null,null,null,null,null,null,null,null,null,null,null,null,"DOB Error","DOB Error",""]
[1514,null,null,null,null,"",{"$f":"IFERROR(IF(OR(AZ1533=1,F1533<>\"\"),\"To key in DOB\",#REF!),\"\")","v":""},null,null,null,null,null,null,null,null,null,null,"","",null,null,null,null,null,null,null,null,null,null,null,null,null,null,null,null,null,null,null,null,null,null,null,null,null,null,null,null,null,null,"DOB Error","DOB Error",""]
[1517,null,null,null,null,"",{"$f":"IFERROR(IF(OR(AZ1536=1,F1536<>\"\"),\"To key in DOB\",#REF!),\"\")","v":""},null,null,null,null,null,null,null,null,null,null,"","",null,null,null,null,null,null,null,null,null,null,null,null,null,null,null,null,null,null,null,null,null,null,null,null,null,null,null,null,null,null,"DOB Error","DOB Error",""]
[1520,null,null,null,null,"",{"$f":"IFERROR(IF(OR(AZ1539=1,F1539<>\"\"),\"To key in DOB\",#REF!),\"\")","v":""},null,null,null,null,null,null,null,null,null,null,"","",null,null,null,null,null,null,null,null,null,null,null,null,null,null,null,null,null,null,null,null,null,null,null,null,null,null,null,null,null,null,"DOB Error","DOB Error",""]
[1523,null,null,null,null,"",{"$f":"IFERROR(IF(OR(AZ1542=1,F1542<>\"\"),\"To key in DOB\",#REF!),\"\")","v":""},null,null,null,null,null,null,null,null,null,null,"","",null,null,null,null,null,null,null,null,null,null,null,null,null,null,null,null,null,null,null,null,null,null,null,null,null,null,null,null,null,null,"DOB Error","DOB Error",""]
[1526,null,null,null,null,"",{"$f":"IFERROR(IF(OR(AZ1545=1,F1545<>\"\"),\"To key in DOB\",#REF!),\"\")","v":""},null,null,null,null,null,null,null,null,null,null,"","",null,null,null,null,null,null,null,null,null,null,null,null,null,null,null,null,null,null,null,null,null,null,null,null,null,null,null,null,null,null,"DOB Error","DOB Error",""]
[1527,null,null,null,null,"",{"$f":"IFERROR(IF(OR(AZ1546=1,F1546<>\"\"),\"To key in DOB\",#REF!),\"\")","v":""},null,null,null,null,null,null,null,null,null,null,"","",null,null,null,null,null,null,null,null,null,null,null,null,null,null,null,null,null,null,null,null,null,null,null,null,null,null,null,null,null,null,"DOB Error","DOB Error",""]
[1530,null,null,null,null,"",{"$f":"IFERROR(IF(OR(AZ1549=1,F1549<>\"\"),\"To key in DOB\",#REF!),\"\")","v":""},null,null,null,null,null,null,null,null,null,null,"","",null,null,null,null,null,null,null,null,null,null,null,null,null,null,null,null,null,null,null,null,null,null,null,null,null,null,null,null,null,null,"DOB Error","DOB Error",""]
[1533,null,null,null,null,"",{"$f":"IFERROR(IF(OR(AZ1552=1,F1552<>\"\"),\"To key in DOB\",#REF!),\"\")","v":""},null,null,null,null,null,null,null,null,null,null,"","",null,null,null,null,null,null,null,null,null,null,null,null,null,null,null,null,null,null,null,null,null,null,null,null,null,null,null,null,null,null,"DOB Error","DOB Error",""]
[1536,null,null,null,null,"",{"$f":"IFERROR(IF(OR(AZ1555=1,F1555<>\"\"),\"To key in DOB\",#REF!),\"\")","v":""},null,null,null,null,null,null,null,null,null,null,"","",null,null,null,null,null,null,null,null,null,null,null,null,null,null,null,null,null,null,null,null,null,null,null,null,null,null,null,null,null,null,{"$f":"IF(ISERROR(AND(SEARCH(\"-\",E1555,7)=7,SEARCH(\"-\",E1555,9)=10)),\"DOB Error\",\"ok\")","v":"DOB Error"},{"$f":"IF(ISERROR(LEFT(E1555,6)+MID(E1555,8,2)+RIGHT(E1555,4)),\"DOB Error\",\"ok\")","v":"DOB Error"},{"$f":"IF(E1555=\"\",\"\",IF(OR(AX1555=\"DOB Error\", AY1555=\"DOB Error\"),1,0))","v":""}]
[1539,null,null,null,null,"",{"$f":"IFERROR(IF(OR(AZ1558=1,F1558<>\"\"),\"To key in DOB\",#REF!),\"\")","v":""},null,null,null,null,null,null,null,null,null,null,"","",null,null,null,null,null,null,null,null,null,null,null,null,null,null,null,null,null,null,null,null,null,null,null,null,null,null,null,null,null,null,"DOB Error","DOB Error",""]
[1543,null,null,null,null,"",{"$f":"IFERROR(IF(OR(AZ1562=1,F1562<>\"\"),\"To key in DOB\",#REF!),\"\")","v":""},null,null,null,null,null,null,null,null,null,null,"","",null,null,null,null,null,null,null,null,null,null,null,null,null,null,null,null,null,null,null,null,null,null,null,null,null,null,null,null,null,null,"DOB Error","DOB Error",""]
[1546,null,null,null,null,"",{"$f":"IFERROR(IF(OR(AZ1565=1,F1565<>\"\"),\"To key in DOB\",#REF!),\"\")","v":""},null,null,null,null,null,null,null,null,null,null,"","",null,null,null,null,null,null,null,null,null,null,null,null,null,null,null,null,null,null,null,null,null,null,null,null,null,null,null,null,null,null,"DOB Error","DOB Error",""]
[1548,null,null,null,null,"",{"$f":"IFERROR(IF(OR(AZ1567=1,F1567<>\"\"),\"To key in DOB\",#REF!),\"\")","v":""},null,null,null,null,null,null,null,null,null,null,"","",null,null,null,null,null,null,null,null,null,null,null,null,null,null,null,null,null,null,null,null,null,null,null,null,null,null,null,null,null,null,"DOB Error","DOB Error",""]
[1549,null,null,null,null,"",{"$f":"IFERROR(IF(OR(AZ1568=1,F1568<>\"\"),\"To key in DOB\",#REF!),\"\")","v":""},null,null,null,null,null,null,null,null,null,null,"","",null,null,null,null,null,null,null,null,null,null,null,null,null,null,null,null,null,null,null,null,null,null,null,null,null,null,null,null,null,null,"DOB Error","DOB Error",""]
[1552,null,null,null,null,"",{"$f":"IFERROR(IF(OR(AZ1571=1,F1571<>\"\"),\"To key in DOB\",#REF!),\"\")","v":""},null,null,null,null,null,null,null,null,null,null,"","",null,null,null,null,null,null,null,null,null,null,null,null,null,null,null,null,null,null,null,null,null,null,null,null,null,null,null,null,null,null,"DOB Error","DOB Error",""]
[1556,null,null,null,null,"",{"$f":"IFERROR(IF(OR(AZ1575=1,F1575<>\"\"),\"To key in DOB\",#REF!),\"\")","v":""},null,null,null,null,null,null,null,null,null,null,"","",null,null,null,null,null,null,null,null,null,null,null,null,null,null,null,null,null,null,null,null,null,null,null,null,null,null,null,null,null,null,"DOB Error","DOB Error",""]
[1559,null,null,null,null,"",{"$f":"IFERROR(IF(OR(AZ1578=1,F1578<>\"\"),\"To key in DOB\",#REF!),\"\")","v":""},null,null,null,null,null,null,null,null,null,null,"","",null,null,null,null,null,null,null,null,null,null,null,null,null,null,null,null,null,null,null,null,null,null,null,null,null,null,null,null,null,null,"DOB Error","DOB Error",""]
[1561,null,null,null,null,"",{"$f":"IFERROR(IF(OR(AZ1580=1,F1580<>\"\"),\"To key in DOB\",#REF!),\"\")","v":""},null,null,null,null,null,null,null,null,null,null,"","",null,null,null,null,null,null,null,null,null,null,null,null,null,null,null,null,null,null,null,null,null,null,null,null,null,null,null,null,null,null,"DOB Error","DOB Error",""]
[1565,null,null,null,null,"",{"$f":"IFERROR(IF(OR(AZ1584=1,F1584<>\"\"),\"To key in DOB\",#REF!),\"\")","v":""},null,null,null,null,null,null,null,null,null,null,"","",null,null,null,null,null,null,null,null,null,null,null,null,null,null,null,null,null,null,null,null,null,null,null,null,null,null,null,null,null,null,"DOB Error","DOB Error",""]
[1568,null,null,null,null,"",{"$f":"IFERROR(IF(OR(AZ1587=1,F1587<>\"\"),\"To key in DOB\",#REF!),\"\")","v":""},null,null,null,null,null,null,null,null,null,null,"","",null,null,null,null,null,null,null,null,null,null,null,null,null,null,null,null,null,null,null,null,null,null,null,null,null,null,null,null,null,null,"DOB Error","DOB Error",""]
[1571,null,null,null,null,"",{"$f":"IFERROR(IF(OR(AZ1590=1,F1590<>\"\"),\"To key in DOB\",#REF!),\"\")","v":""},null,null,null,null,null,null,null,null,null,null,"","",null,null,null,null,null,null,null,null,null,null,null,null,null,null,null,null,null,null,null,null,null,null,null,null,null,null,null,null,null,null,"DOB Error","DOB Error",""]
[1572,null,null,null,null,"",{"$f":"IFERROR(IF(OR(AZ1591=1,F1591<>\"\"),\"To key in DOB\",#REF!),\"\")","v":""},null,null,null,null,null,null,null,null,null,null,"","",null,null,null,null,null,null,null,null,null,null,null,null,null,null,null,null,null,null,null,null,null,null,null,null,null,null,null,null,null,null,"DOB Error","DOB Error",""]
[1574,null,null,null,null,"",{"$f":"IFERROR(IF(OR(AZ1593=1,F1593<>\"\"),\"To key in DOB\",#REF!),\"\")","v":""},null,null,null,null,null,null,null,null,null,null,"","",null,null,null,null,null,null,null,null,null,null,null,null,null,null,null,null,null,null,null,null,null,null,null,null,null,null,null,null,null,null,"DOB Error","DOB Error",""]
[1578,null,null,null,null,"",{"$f":"IFERROR(IF(OR(AZ1597=1,F1597<>\"\"),\"To key in DOB\",#REF!),\"\")","v":""},null,null,null,null,null,null,null,null,null,null,"","",null,null,null,null,null,null,null,null,null,null,null,null,null,null,null,null,null,null,null,null,null,null,null,null,null,null,null,null,null,null,"DOB Error","DOB Error",""]
[1581,null,null,null,null,"",{"$f":"IFERROR(IF(OR(AZ1600=1,F1600<>\"\"),\"To key in DOB\",#REF!),\"\")","v":""},null,null,null,null,null,null,null,null,null,null,"","",null,null,null,null,null,null,null,null,null,null,null,null,null,null,null,null,null,null,null,null,null,null,null,null,null,null,null,null,null,null,"DOB Error","DOB Error",""]
[1584,null,null,null,null,"",{"$f":"IFERROR(IF(OR(AZ1603=1,F1603<>\"\"),\"To key in DOB\",#REF!),\"\")","v":""},null,null,null,null,null,null,null,null,null,null,"","",null,null,null,null,null,null,null,null,null,null,null,null,null,null,null,null,null,null,null,null,null,null,null,null,null,null,null,null,null,null,"DOB Error","DOB Error",""]
[1587,null,null,null,null,"",{"$f":"IFERROR(IF(OR(AZ1606=1,F1606<>\"\"),\"To key in DOB\",#REF!),\"\")","v":""},null,null,null,null,null,null,null,null,null,null,"","",null,null,null,null,null,null,null,null,null,null,null,null,null,null,null,null,null,null,null,null,null,null,null,null,null,null,null,null,null,null,"DOB Error","DOB Error",""]
[1590,null,null,null,null,"",{"$f":"IFERROR(IF(OR(AZ1609=1,F1609<>\"\"),\"To key in DOB\",#REF!),\"\")","v":""},null,null,null,null,null,null,null,null,null,null,"","",null,null,null,null,null,null,null,null,null,null,null,null,null,null,null,null,null,null,null,null,null,null,null,null,null,null,null,null,null,null,"DOB Error","DOB Error",""]
[1591,null,null,null,null,"",{"$f":"IFERROR(IF(OR(AZ1610=1,F1610<>\"\"),\"To key in DOB\",#REF!),\"\")","v":""},null,null,null,null,null,null,null,null,null,null,"","",null,null,null,null,null,null,null,null,null,null,null,null,null,null,null,null,null,null,null,null,null,null,null,null,null,null,null,null,null,null,"DOB Error","DOB Error",""]
[1594,null,null,null,null,"",{"$f":"IFERROR(IF(OR(AZ1613=1,F1613<>\"\"),\"To key in DOB\",#REF!),\"\")","v":""},null,null,null,null,null,null,null,null,null,null,"","",null,null,null,null,null,null,null,null,null,null,null,null,null,null,null,null,null,null,null,null,null,null,null,null,null,null,null,null,null,null,"DOB Error","DOB Error",""]
[1598,null,null,null,null,"",{"$f":"IFERROR(IF(OR(AZ1617=1,F1617<>\"\"),\"To key in DOB\",#REF!),\"\")","v":""},null,null,null,null,null,null,null,null,null,null,"","",null,null,null,null,null,null,null,null,null,null,null,null,null,null,null,null,null,null,null,null,null,null,null,null,null,null,null,null,null,null,"DOB Error","DOB Error",""]
[1600,null,null,null,null,"",{"$f":"IFERROR(IF(OR(AZ1619=1,F1619<>\"\"),\"To key in DOB\",#REF!),\"\")","v":""},null,null,null,null,null,null,null,null,null,null,"","",null,null,null,null,null,null,null,null,null,null,null,null,null,null,null,null,null,null,null,null,null,null,null,null,null,null,null,null,null,null,{"$f":"IF(ISERROR(AND(SEARCH(\"-\",E1619,7)=7,SEARCH(\"-\",E1619,9)=10)),\"DOB Error\",\"ok\")","v":"DOB Error"},{"$f":"IF(ISERROR(LEFT(E1619,6)+MID(E1619,8,2)+RIGHT(E1619,4)),\"DOB Error\",\"ok\")","v":"DOB Error"},{"$f":"IF(E1619=\"\",\"\",IF(OR(AX1619=\"DOB Error\", AY1619=\"DOB Error\"),1,0))","v":""}]
[1603,null,null,null,null,"",{"$f":"IFERROR(IF(OR(AZ1622=1,F1622<>\"\"),\"To key in DOB\",#REF!),\"\")","v":""},null,null,null,null,null,null,null,null,null,null,"","",null,null,null,null,null,null,null,null,null,null,null,null,null,null,null,null,null,null,null,null,null,null,null,null,null,null,null,null,null,null,"DOB Error","DOB Error",""]
[1606,null,null,null,null,"",{"$f":"IFERROR(IF(OR(AZ1625=1,F1625<>\"\"),\"To key in DOB\",#REF!),\"\")","v":""},null,null,null,null,null,null,null,null,null,null,"","",null,null,null,null,null,null,null,null,null,null,null,null,null,null,null,null,null,null,null,null,null,null,null,null,null,null,null,null,null,null,"DOB Error","DOB Error",""]
[1610,null,null,null,null,"",{"$f":"IFERROR(IF(OR(AZ1629=1,F1629<>\"\"),\"To key in DOB\",#REF!),\"\")","v":""},null,null,null,null,null,null,null,null,null,null,"","",null,null,null,null,null,null,null,null,null,null,null,null,null,null,null,null,null,null,null,null,null,null,null,null,null,null,null,null,null,null,"DOB Error","DOB Error",""]
[1611,null,null,null,null,"",{"$f":"IFERROR(IF(OR(AZ1630=1,F1630<>\"\"),\"To key in DOB\",#REF!),\"\")","v":""},null,null,null,null,null,null,null,null,null,null,"","",null,null,null,null,null,null,null,null,null,null,null,null,null,null,null,null,null,null,null,null,null,null,null,null,null,null,null,null,null,null,"DOB Error","DOB Error",""]
[1613,null,null,null,null,"",{"$f":"IFERROR(IF(OR(AZ1632=1,F1632<>\"\"),\"To key in DOB\",#REF!),\"\")","v":""},null,null,null,null,null,null,null,null,null,null,"","",null,null,null,null,null,null,null,null,null,null,null,null,null,null,null,null,null,null,null,null,null,null,null,null,null,null,null,null,null,null,"DOB Error","DOB Error",""]
[1616,null,null,null,null,"",{"$f":"IFERROR(IF(OR(AZ1635=1,F1635<>\"\"),\"To key in DOB\",#REF!),\"\")","v":""},null,null,null,null,null,null,null,null,null,null,"","",null,null,null,null,null,null,null,null,null,null,null,null,null,null,null,null,null,null,null,null,null,null,null,null,null,null,null,null,null,null,"DOB Error","DOB Error",""]
[1619,null,null,null,null,"",{"$f":"IFERROR(IF(OR(AZ1638=1,F1638<>\"\"),\"To key in DOB\",#REF!),\"\")","v":""},null,null,null,null,null,null,null,null,null,null,"","",null,null,null,null,null,null,null,null,null,null,null,null,null,null,null,null,null,null,null,null,null,null,null,null,null,null,null,null,null,null,"DOB Error","DOB Error",""]
[1623,null,null,null,null,"",{"$f":"IFERROR(IF(OR(AZ1642=1,F1642<>\"\"),\"To key in DOB\",#REF!),\"\")","v":""},null,null,null,null,null,null,null,null,null,null,"","",null,null,null,null,null,null,null,null,null,null,null,null,null,null,null,null,null,null,null,null,null,null,null,null,null,null,null,null,null,null,"DOB Error","DOB Error",""]
[1626,null,null,null,null,"",{"$f":"IFERROR(IF(OR(AZ1645=1,F1645<>\"\"),\"To key in DOB\",#REF!),\"\")","v":""},null,null,null,null,null,null,null,null,null,null,"","",null,null,null,null,null,null,null,null,null,null,null,null,null,null,null,null,null,null,null,null,null,null,null,null,null,null,null,null,null,null,"DOB Error","DOB Error",""]
[1628,null,null,null,null,"",{"$f":"IFERROR(IF(OR(AZ1647=1,F1647<>\"\"),\"To key in DOB\",#REF!),\"\")","v":""},null,null,null,null,null,null,null,null,null,null,"","",null,null,null,null,null,null,null,null,null,null,null,null,null,null,null,null,null,null,null,null,null,null,null,null,null,null,null,null,null,null,"DOB Error","DOB Error",""]
[1632,null,null,null,null,"",{"$f":"IFERROR(IF(OR(AZ1651=1,F1651<>\"\"),\"To key in DOB\",#REF!),\"\")","v":""},null,null,null,null,null,null,null,null,null,null,"","",null,null,null,null,null,null,null,null,null,null,null,null,null,null,null,null,null,null,null,null,null,null,null,null,null,null,null,null,null,null,"DOB Error","DOB Error",""]
[1635,null,null,null,null,"",{"$f":"IFERROR(IF(OR(AZ1654=1,F1654<>\"\"),\"To key in DOB\",#REF!),\"\")","v":""},null,null,null,null,null,null,null,null,null,null,"","",null,null,null,null,null,null,null,null,null,null,null,null,null,null,null,null,null,null,null,null,null,null,null,null,null,null,null,null,null,null,"DOB Error","DOB Error",""]
[1636,null,null,null,null,"",{"$f":"IFERROR(IF(OR(AZ1655=1,F1655<>\"\"),\"To key in DOB\",#REF!),\"\")","v":""},null,null,null,null,null,null,null,null,null,null,"","",null,null,null,null,null,null,null,null,null,null,null,null,null,null,null,null,null,null,null,null,null,null,null,null,null,null,null,null,null,null,"DOB Error","DOB Error",""]
[1639,null,null,null,null,"",{"$f":"IFERROR(IF(OR(AZ1658=1,F1658<>\"\"),\"To key in DOB\",#REF!),\"\")","v":""},null,null,null,null,null,null,null,null,null,null,"","",null,null,null,null,null,null,null,null,null,null,null,null,null,null,null,null,null,null,null,null,null,null,null,null,null,null,null,null,null,null,"DOB Error","DOB Error",""]
[1641,null,null,null,null,"",{"$f":"IFERROR(IF(OR(AZ1660=1,F1660<>\"\"),\"To key in DOB\",#REF!),\"\")","v":""},null,null,null,null,null,null,null,null,null,null,"","",null,null,null,null,null,null,null,null,null,null,null,null,null,null,null,null,null,null,null,null,null,null,null,null,null,null,null,null,null,null,"DOB Error","DOB Error",""]
[1645,null,null,null,null,"",{"$f":"IFERROR(IF(OR(AZ1664=1,F1664<>\"\"),\"To key in DOB\",#REF!),\"\")","v":""},null,null,null,null,null,null,null,null,null,null,"","",null,null,null,null,null,null,null,null,null,null,null,null,null,null,null,null,null,null,null,null,null,null,null,null,null,null,null,null,null,null,"DOB Error","DOB Error",""]
[1648,null,null,null,null,"",{"$f":"IFERROR(IF(OR(AZ1667=1,F1667<>\"\"),\"To key in DOB\",#REF!),\"\")","v":""},null,null,null,null,null,null,null,null,null,null,"","",null,null,null,null,null,null,null,null,null,null,null,null,null,null,null,null,null,null,null,null,null,null,null,null,null,null,null,null,null,null,"DOB Error","DOB Error",""]
[1650,null,null,null,null,"",{"$f":"IFERROR(IF(OR(AZ1669=1,F1669<>\"\"),\"To key in DOB\",#REF!),\"\")","v":""},null,null,null,null,null,null,null,null,null,null,"","",null,null,null,null,null,null,null,null,null,null,null,null,null,null,null,null,null,null,null,null,null,null,null,null,null,null,null,null,null,null,"DOB Error","DOB Error",""]
[1654,null,null,null,null,"",{"$f":"IFERROR(IF(OR(AZ1673=1,F1673<>\"\"),\"To key in DOB\",#REF!),\"\")","v":""},null,null,null,null,null,null,null,null,null,null,"","",null,null,null,null,null,null,null,null,null,null,null,null,null,null,null,null,null,null,null,null,null,null,null,null,null,null,null,null,null,null,"DOB Error","DOB Error",""]
[1657,null,null,null,null,"",{"$f":"IFERROR(IF(OR(AZ1676=1,F1676<>\"\"),\"To key in DOB\",#REF!),\"\")","v":""},null,null,null,null,null,null,null,null,null,null,"","",null,null,null,null,null,null,null,null,null,null,null,null,null,null,null,null,null,null,null,null,null,null,null,null,null,null,null,null,null,null,"DOB Error","DOB Error",""]
[1658,null,null,null,null,"",{"$f":"IFERROR(IF(OR(AZ1677=1,F1677<>\"\"),\"To key in DOB\",#REF!),\"\")","v":""},null,null,null,null,null,null,null,null,null,null,"","",null,null,null,null,null,null,null,null,null,null,null,null,null,null,null,null,null,null,null,null,null,null,null,null,null,null,null,null,null,null,"DOB Error","DOB Error",""]
[1661,null,null,null,null,"",{"$f":"IFERROR(IF(OR(AZ1680=1,F1680<>\"\"),\"To key in DOB\",#REF!),\"\")","v":""},null,null,null,null,null,null,null,null,null,null,"","",null,null,null,null,null,null,null,null,null,null,null,null,null,null,null,null,null,null,null,null,null,null,null,null,null,null,null,null,null,null,"DOB Error","DOB Error",""]
[1665,null,null,null,null,"",{"$f":"IFERROR(IF(OR(AZ1684=1,F1684<>\"\"),\"To key in DOB\",#REF!),\"\")","v":""},null,null,null,null,null,null,null,null,null,null,{"$f":"IF(OR(Q1684=\"CHANGE\",Q1684=\"ADD\",Q1684=\"TERMINATE\"),VLOOKUP(Q1684,$AR:$AS,2,FALSE),\"\")","v":""},{"$f":"IF(OR(Q1684=\"TERMINATE (DEATH)\"),VLOOKUP(Q1684,$AR:$AU,4,FALSE),\"\")","v":""},null,null,null,null,null,null,null,null,null,null,null,null,null,null,null,null,null,null,null,null,null,null,null,null,null,null,null,null,null,null,"DOB Error","DOB Error",""]
[1667,null,null,null,null,"",{"$f":"IFERROR(IF(OR(AZ1686=1,F1686<>\"\"),\"To key in DOB\",#REF!),\"\")","v":""},null,null,null,null,null,null,null,null,null,null,"","",null,null,null,null,null,null,null,null,null,null,null,null,null,null,null,null,null,null,null,null,null,null,null,null,null,null,null,null,null,null,"DOB Error","DOB Error",""]
[1670,null,null,null,null,"",{"$f":"IFERROR(IF(OR(AZ1689=1,F1689<>\"\"),\"To key in DOB\",#REF!),\"\")","v":""},null,null,null,null,null,null,null,null,null,null,"","",null,null,null,null,null,null,null,null,null,null,null,null,null,null,null,null,null,null,null,null,null,null,null,null,null,null,null,null,null,null,"DOB Error","DOB Error",""]
[1674,null,null,null,null,"",{"$f":"IFERROR(IF(OR(AZ1693=1,F1693<>\"\"),\"To key in DOB\",#REF!),\"\")","v":""},null,null,null,null,null,null,null,null,null,null,"","",null,null,null,null,null,null,null,null,null,null,null,null,null,null,null,null,null,null,null,null,null,null,null,null,null,null,null,null,null,null,"DOB Error","DOB Error",""]
[1677,null,null,null,null,"",{"$f":"IFERROR(IF(OR(AZ1696=1,F1696<>\"\"),\"To key in DOB\",#REF!),\"\")","v":""},null,null,null,null,null,null,null,null,null,null,"","",null,null,null,null,null,null,null,null,null,null,null,null,null,null,null,null,null,null,null,null,null,null,null,null,null,null,null,null,null,null,"DOB Error","DOB Error",""]
[1678,null,null,null,null,"",{"$f":"IFERROR(IF(OR(AZ1697=1,F1697<>\"\"),\"To key in DOB\",#REF!),\"\")","v":""},null,null,null,null,null,null,null,null,null,null,"","",null,null,null,null,null,null,null,null,null,null,null,null,null,null,null,null,null,null,null,null,null,null,null,null,null,null,null,null,null,null,"DOB Error","DOB Error",""]
[1680,null,null,null,null,"",{"$f":"IFERROR(IF(OR(AZ1699=1,F1699<>\"\"),\"To key in DOB\",#REF!),\"\")","v":""},null,null,null,null,null,null,null,null,null,null,"","",null,null,null,null,null,null,null,null,null,null,null,null,null,null,null,null,null,null,null,null,null,null,null,null,null,null,null,null,null,null,"DOB Error","DOB Error",""]
[1683,null,null,null,null,"",{"$f":"IFERROR(IF(OR(AZ1702=1,F1702<>\"\"),\"To key in DOB\",#REF!),\"\")","v":""},null,null,null,null,null,null,null,null,null,null,"","",null,null,null,null,null,null,null,null,null,null,null,null,null,null,null,null,null,null,null,null,null,null,null,null,null,null,null,null,null,null,"DOB Error","DOB Error",""]
[1687,null,null,null,null,"",{"$f":"IFERROR(IF(OR(AZ1706=1,F1706<>\"\"),\"To key in DOB\",#REF!),\"\")","v":""},null,null,null,null,null,null,null,null,null,null,"","",null,null,null,null,null,null,null,null,null,null,null,null,null,null,null,null,null,null,null,null,null,null,null,null,null,null,null,null,null,null,"DOB Error","DOB Error",""]
[1689,null,null,null,null,"",{"$f":"IFERROR(IF(OR(AZ1708=1,F1708<>\"\"),\"To key in DOB\",#REF!),\"\")","v":""},null,null,null,null,null,null,null,null,null,null,"","",null,null,null,null,null,null,null,null,null,null,null,null,null,null,null,null,null,null,null,null,null,null,null,null,null,null,null,null,null,null,"DOB Error","DOB Error",""]
[1692,null,null,null,null,"",{"$f":"IFERROR(IF(OR(AZ1711=1,F1711<>\"\"),\"To key in DOB\",#REF!),\"\")","v":""},null,null,null,null,null,null,null,null,null,null,"","",null,null,null,null,null,null,null,null,null,null,null,null,null,null,null,null,null,null,null,null,null,null,null,null,null,null,null,null,null,null,"DOB Error","DOB Error",""]
[1696,null,null,null,null,"",{"$f":"IFERROR(IF(OR(AZ1715=1,F1715<>\"\"),\"To key in DOB\",#REF!),\"\")","v":""},null,null,null,null,null,null,null,null,null,null,"","",null,null,null,null,null,null,null,null,null,null,null,null,null,null,null,null,null,null,null,null,null,null,null,null,null,null,null,null,null,null,"DOB Error","DOB Error",""]
[1699,null,null,null,null,"",{"$f":"IFERROR(IF(OR(AZ1718=1,F1718<>\"\"),\"To key in DOB\",#REF!),\"\")","v":""},null,null,null,null,null,null,null,null,null,null,"","",null,null,null,null,null,null,null,null,null,null,null,null,null,null,null,null,null,null,null,null,null,null,null,null,null,null,null,null,null,null,"DOB Error","DOB Error",""]
[1702,null,null,null,null,"",{"$f":"IFERROR(IF(OR(AZ1721=1,F1721<>\"\"),\"To key in DOB\",#REF!),\"\")","v":""},null,null,null,null,null,null,null,null,null,null,"","",null,null,null,null,null,null,null,null,null,null,null,null,null,null,null,null,null,null,null,null,null,null,null,null,null,null,null,null,null,null,"DOB Error","DOB Error",""]
[1704,null,null,null,null,"",{"$f":"IFERROR(IF(OR(AZ1723=1,F1723<>\"\"),\"To key in DOB\",#REF!),\"\")","v":""},null,null,null,null,null,null,null,null,null,null,"","",null,null,null,null,null,null,null,null,null,null,null,null,null,null,null,null,null,null,null,null,null,null,null,null,null,null,null,null,null,null,"DOB Error","DOB Error",""]
[1705,null,null,null,null,"",{"$f":"IFERROR(IF(OR(AZ1724=1,F1724<>\"\"),\"To key in DOB\",#REF!),\"\")","v":""},null,null,null,null,null,null,null,null,null,null,"","",null,null,null,null,null,null,null,null,null,null,null,null,null,null,null,null,null,null,null,null,null,null,null,null,null,null,null,null,null,null,"DOB Error","DOB Error",""]
[1709,null,null,null,null,"",{"$f":"IFERROR(IF(OR(AZ1728=1,F1728<>\"\"),\"To key in DOB\",#REF!),\"\")","v":""},null,null,null,null,null,null,null,null,null,null,"","",null,null,null,null,null,null,null,null,null,null,null,null,null,null,null,null,null,null,null,null,null,null,null,null,null,null,null,null,null,null,"DOB Error","DOB Error",""]
[1712,null,null,null,null,"",{"$f":"IFERROR(IF(OR(AZ1731=1,F1731<>\"\"),\"To key in DOB\",#REF!),\"\")","v":""},null,null,null,null,null,null,null,null,null,null,"","",null,null,null,null,null,null,null,null,null,null,null,null,null,null,null,null,null,null,null,null,null,null,null,null,null,null,null,null,null,null,"DOB Error","DOB Error",""]
[1715,null,null,null,null,"",{"$f":"IFERROR(IF(OR(AZ1734=1,F1734<>\"\"),\"To key in DOB\",#REF!),\"\")","v":""},null,null,null,null,null,null,null,null,null,null,"","",null,null,null,null,null,null,null,null,null,null,null,null,null,null,null,null,null,null,null,null,null,null,null,null,null,null,null,null,null,null,"DOB Error","DOB Error",""]
[1717,null,null,null,null,"",{"$f":"IFERROR(IF(OR(AZ1736=1,F1736<>\"\"),\"To key in DOB\",#REF!),\"\")","v":""},null,null,null,null,null,null,null,null,null,null,"","",null,null,null,null,null,null,null,null,null,null,null,null,null,null,null,null,null,null,null,null,null,null,null,null,null,null,null,null,null,null,"DOB Error","DOB Error",""]
[1721,null,null,null,null,"",{"$f":"IFERROR(IF(OR(AZ1740=1,F1740<>\"\"),\"To key in DOB\",#REF!),\"\")","v":""},null,null,null,null,null,null,null,null,null,null,"","",null,null,null,null,null,null,null,null,null,null,null,null,null,null,null,null,null,null,null,null,null,null,null,null,null,null,null,null,null,null,"DOB Error","DOB Error",""]
[1724,null,null,null,null,"",{"$f":"IFERROR(IF(OR(AZ1743=1,F1743<>\"\"),\"To key in DOB\",#REF!),\"\")","v":""},null,null,null,null,null,null,null,null,null,null,"","",null,null,null,null,null,null,null,null,null,null,null,null,null,null,null,null,null,null,null,null,null,null,null,null,null,null,null,null,null,null,"DOB Error","DOB Error",""]
[1725,null,null,null,null,"",{"$f":"IFERROR(IF(OR(AZ1744=1,F1744<>\"\"),\"To key in DOB\",#REF!),\"\")","v":""},null,null,null,null,null,null,null,null,null,null,"","",null,null,null,null,null,null,null,null,null,null,null,null,null,null,null,null,null,null,null,null,null,null,null,null,null,null,null,null,null,null,"DOB Error","DOB Error",""]
[1728,null,null,null,null,"",{"$f":"IFERROR(IF(OR(AZ1747=1,F1747<>\"\"),\"To key in DOB\",#REF!),\"\")","v":""},null,null,null,null,null,null,null,null,null,null,"","",null,null,null,null,null,null,null,null,null,null,null,null,null,null,null,null,null,null,null,null,null,null,null,null,null,null,null,null,null,null,{"$f":"IF(ISERROR(AND(SEARCH(\"-\",E1747,7)=7,SEARCH(\"-\",E1747,9)=10)),\"DOB Error\",\"ok\")","v":"DOB Error"},{"$f":"IF(ISERROR(LEFT(E1747,6)+MID(E1747,8,2)+RIGHT(E1747,4)),\"DOB Error\",\"ok\")","v":"DOB Error"},{"$f":"IF(E1747=\"\",\"\",IF(OR(AX1747=\"DOB Error\", AY1747=\"DOB Error\"),1,0))","v":""}]
[1732,null,null,null,null,"",{"$f":"IFERROR(IF(OR(AZ1751=1,F1751<>\"\"),\"To key in DOB\",#REF!),\"\")","v":""},null,null,null,null,null,null,null,null,null,null,"","",null,null,null,null,null,null,null,null,null,null,null,null,null,null,null,null,null,null,null,null,null,null,null,null,null,null,null,null,null,null,"DOB Error","DOB Error",""]
[1734,null,null,null,null,"",{"$f":"IFERROR(IF(OR(AZ1753=1,F1753<>\"\"),\"To key in DOB\",#REF!),\"\")","v":""},null,null,null,null,null,null,null,null,null,null,"","",null,null,null,null,null,null,null,null,null,null,null,null,null,null,null,null,null,null,null,null,null,null,null,null,null,null,null,null,null,null,"DOB Error","DOB Error",""]
[1737,null,null,null,null,"",{"$f":"IFERROR(IF(OR(AZ1756=1,F1756<>\"\"),\"To key in DOB\",#REF!),\"\")","v":""},null,null,null,null,null,null,null,null,null,null,"","",null,null,null,null,null,null,null,null,null,null,null,null,null,null,null,null,null,null,null,null,null,null,null,null,null,null,null,null,null,null,"DOB Error","DOB Error",""]
[1741,null,null,null,null,"",{"$f":"IFERROR(IF(OR(AZ1760=1,F1760<>\"\"),\"To key in DOB\",#REF!),\"\")","v":""},null,null,null,null,null,null,null,null,null,null,"","",null,null,null,null,null,null,null,null,null,null,null,null,null,null,null,null,null,null,null,null,null,null,null,null,null,null,null,null,null,null,"DOB Error","DOB Error",""]
[1743,null,null,null,null,"",{"$f":"IFERROR(IF(OR(AZ1762=1,F1762<>\"\"),\"To key in DOB\",#REF!),\"\")","v":""},null,null,null,null,null,null,null,null,null,null,"","",null,null,null,null,null,null,null,null,null,null,null,null,null,null,null,null,null,null,null,null,null,null,null,null,null,null,null,null,null,null,"DOB Error","DOB Error",""]
[1744,null,null,null,null,"",{"$f":"IFERROR(IF(OR(AZ1763=1,F1763<>\"\"),\"To key in DOB\",#REF!),\"\")","v":""},null,null,null,null,null,null,null,null,null,null,"","",null,null,null,null,null,null,null,null,null,null,null,null,null,null,null,null,null,null,null,null,null,null,null,null,null,null,null,null,null,null,"DOB Error","DOB Error",""]
[1747,null,null,null,null,"",{"$f":"IFERROR(IF(OR(AZ1766=1,F1766<>\"\"),\"To key in DOB\",#REF!),\"\")","v":""},null,null,null,null,null,null,null,null,null,null,"","",null,null,null,null,null,null,null,null,null,null,null,null,null,null,null,null,null,null,null,null,null,null,null,null,null,null,null,null,null,null,"DOB Error","DOB Error",""]
[1750,null,null,null,null,"",{"$f":"IFERROR(IF(OR(AZ1769=1,F1769<>\"\"),\"To key in DOB\",#REF!),\"\")","v":""},null,null,null,null,null,null,null,null,null,null,"","",null,null,null,null,null,null,null,null,null,null,null,null,null,null,null,null,null,null,null,null,null,null,null,null,null,null,null,null,null,null,"DOB Error","DOB Error",""]
[1754,null,null,null,null,"",{"$f":"IFERROR(IF(OR(AZ1773=1,F1773<>\"\"),\"To key in DOB\",#REF!),\"\")","v":""},null,null,null,null,null,null,null,null,null,null,"","",null,null,null,null,null,null,null,null,null,null,null,null,null,null,null,null,null,null,null,null,null,null,null,null,null,null,null,null,null,null,"DOB Error","DOB Error",""]
[1756,null,null,null,null,"",{"$f":"IFERROR(IF(OR(AZ1775=1,F1775<>\"\"),\"To key in DOB\",#REF!),\"\")","v":""},null,null,null,null,null,null,null,null,null,null,"","",null,null,null,null,null,null,null,null,null,null,null,null,null,null,null,null,null,null,null,null,null,null,null,null,null,null,null,null,null,null,"DOB Error","DOB Error",""]
[1759,null,null,null,null,"",{"$f":"IFERROR(IF(OR(AZ1778=1,F1778<>\"\"),\"To key in DOB\",#REF!),\"\")","v":""},null,null,null,null,null,null,null,null,null,null,"","",null,null,null,null,null,null,null,null,null,null,null,null,null,null,null,null,null,null,null,null,null,null,null,null,null,null,null,null,null,null,"DOB Error","DOB Error",""]
[1763,null,null,null,null,"",{"$f":"IFERROR(IF(OR(AZ1782=1,F1782<>\"\"),\"To key in DOB\",#REF!),\"\")","v":""},null,null,null,null,null,null,null,null,null,null,"","",null,null,null,null,null,null,null,null,null,null,null,null,null,null,null,null,null,null,null,null,null,null,null,null,null,null,null,null,null,null,"DOB Error","DOB Error",""]
[1766,null,null,null,null,"",{"$f":"IFERROR(IF(OR(AZ1785=1,F1785<>\"\"),\"To key in DOB\",#REF!),\"\")","v":""},null,null,null,null,null,null,null,null,null,null,"","",null,null,null,null,null,null,null,null,null,null,null,null,null,null,null,null,null,null,null,null,null,null,null,null,null,null,null,null,null,null,"DOB Error","DOB Error",""]
[1767,null,null,null,null,"",{"$f":"IFERROR(IF(OR(AZ1786=1,F1786<>\"\"),\"To key in DOB\",#REF!),\"\")","v":""},null,null,null,null,null,null,null,null,null,null,"","",null,null,null,null,null,null,null,null,null,null,null,null,null,null,null,null,null,null,null,null,null,null,null,null,null,null,null,null,null,null,"DOB Error","DOB Error",""]
[1771,null,null,null,null,"",{"$f":"IFERROR(IF(OR(AZ1790=1,F1790<>\"\"),\"To key in DOB\",#REF!),\"\")","v":""},null,null,null,null,null,null,null,null,null,null,"","",null,null,null,null,null,null,null,null,null,null,null,null,null,null,null,null,null,null,null,null,null,null,null,null,null,null,null,null,null,null,"DOB Error","DOB Error",""]
[1772,null,null,null,null,"",{"$f":"IFERROR(IF(OR(AZ1791=1,F1791<>\"\"),\"To key in DOB\",#REF!),\"\")","v":""},null,null,null,null,null,null,null,null,null,null,"","",null,null,null,null,null,null,null,null,null,null,null,null,null,null,null,null,null,null,null,null,null,null,null,null,null,null,null,null,null,null,"DOB Error","DOB Error",""]
[1776,null,null,null,null,"",{"$f":"IFERROR(IF(OR(AZ1795=1,F1795<>\"\"),\"To key in DOB\",#REF!),\"\")","v":""},null,null,null,null,null,null,null,null,null,null,"","",null,null,null,null,null,null,null,null,null,null,null,null,null,null,null,null,null,null,null,null,null,null,null,null,null,null,null,null,null,null,"DOB Error","DOB Error",""]
[1779,null,null,null,null,"",{"$f":"IFERROR(IF(OR(AZ1798=1,F1798<>\"\"),\"To key in DOB\",#REF!),\"\")","v":""},null,null,null,null,null,null,null,null,null,null,"","",null,null,null,null,null,null,null,null,null,null,null,null,null,null,null,null,null,null,null,null,null,null,null,null,null,null,null,null,null,null,"DOB Error","DOB Error",""]
[1782,null,null,null,null,"",{"$f":"IFERROR(IF(OR(AZ1801=1,F1801<>\"\"),\"To key in DOB\",#REF!),\"\")","v":""},null,null,null,null,null,null,null,null,null,null,"","",null,null,null,null,null,null,null,null,null,null,null,null,null,null,null,null,null,null,null,null,null,null,null,null,null,null,null,null,null,null,"DOB Error","DOB Error",""]
[1785,null,null,null,null,"",{"$f":"IFERROR(IF(OR(AZ1804=1,F1804<>\"\"),\"To key in DOB\",#REF!),\"\")","v":""},null,null,null,null,null,null,null,null,null,null,"","",null,null,null,null,null,null,null,null,null,null,null,null,null,null,null,null,null,null,null,null,null,null,null,null,null,null,null,null,null,null,"DOB Error","DOB Error",""]
[1788,null,null,null,null,"",{"$f":"IFERROR(IF(OR(AZ1807=1,F1807<>\"\"),\"To key in DOB\",#REF!),\"\")","v":""},null,null,null,null,null,null,null,null,null,null,"","",null,null,null,null,null,null,null,null,null,null,null,null,null,null,null,null,null,null,null,null,null,null,null,null,null,null,null,null,null,null,"DOB Error","DOB Error",""]
[1789,null,null,null,null,"",{"$f":"IFERROR(IF(OR(AZ1808=1,F1808<>\"\"),\"To key in DOB\",#REF!),\"\")","v":""},null,null,null,null,null,null,null,null,null,null,"","",null,null,null,null,null,null,null,null,null,null,null,null,null,null,null,null,null,null,null,null,null,null,null,null,null,null,null,null,null,null,"DOB Error","DOB Error",""]
[1792,null,null,null,null,"",{"$f":"IFERROR(IF(OR(AZ1811=1,F1811<>\"\"),\"To key in DOB\",#REF!),\"\")","v":""},null,null,null,null,null,null,null,null,null,null,"","",null,null,null,null,null,null,null,null,null,null,null,null,null,null,null,null,null,null,null,null,null,null,null,null,null,null,null,null,null,null,{"$f":"IF(ISERROR(AND(SEARCH(\"-\",E1811,7)=7,SEARCH(\"-\",E1811,9)=10)),\"DOB Error\",\"ok\")","v":"DOB Error"},{"$f":"IF(ISERROR(LEFT(E1811,6)+MID(E1811,8,2)+RIGHT(E1811,4)),\"DOB Error\",\"ok\")","v":"DOB Error"},{"$f":"IF(E1811=\"\",\"\",IF(OR(AX1811=\"DOB Error\", AY1811=\"DOB Error\"),1,0))","v":""}]
[1795,null,null,null,null,"",{"$f":"IFERROR(IF(OR(AZ1814=1,F1814<>\"\"),\"To key in DOB\",#REF!),\"\")","v":""},null,null,null,null,null,null,null,null,null,null,"","",null,null,null,null,null,null,null,null,null,null,null,null,null,null,null,null,null,null,null,null,null,null,null,null,null,null,null,null,null,null,"DOB Error","DOB Error",""]
[1798,null,null,null,null,"",{"$f":"IFERROR(IF(OR(AZ1817=1,F1817<>\"\"),\"To key in DOB\",#REF!),\"\")","v":""},null,null,null,null,null,null,null,null,null,null,"","",null,null,null,null,null,null,null,null,null,null,null,null,null,null,null,null,null,null,null,null,null,null,null,null,null,null,null,null,null,null,"DOB Error","DOB Error",""]
[1801,null,null,null,null,"",{"$f":"IFERROR(IF(OR(AZ1820=1,F1820<>\"\"),\"To key in DOB\",#REF!),\"\")","v":""},null,null,null,null,null,null,null,null,null,null,"","",null,null,null,null,null,null,null,null,null,null,null,null,null,null,null,null,null,null,null,null,null,null,null,null,null,null,null,null,null,null,"DOB Error","DOB Error",""]
[1805,null,null,null,null,"",{"$f":"IFERROR(IF(OR(AZ1824=1,F1824<>\"\"),\"To key in DOB\",#REF!),\"\")","v":""},null,null,null,null,null,null,null,null,null,null,"","",null,null,null,null,null,null,null,null,null,null,null,null,null,null,null,null,null,null,null,null,null,null,null,null,null,null,null,null,null,null,"DOB Error","DOB Error",""]
[1808,null,null,null,null,"",{"$f":"IFERROR(IF(OR(AZ1827=1,F1827<>\"\"),\"To key in DOB\",#REF!),\"\")","v":""},null,null,null,null,null,null,null,null,null,null,"","",null,null,null,null,null,null,null,null,null,null,null,null,null,null,null,null,null,null,null,null,null,null,null,null,null,null,null,null,null,null,"DOB Error","DOB Error",""]
[1810,null,null,null,null,"",{"$f":"IFERROR(IF(OR(AZ1829=1,F1829<>\"\"),\"To key in DOB\",#REF!),\"\")","v":""},null,null,null,null,null,null,null,null,null,null,"","",null,null,null,null,null,null,null,null,null,null,null,null,null,null,null,null,null,null,null,null,null,null,null,null,null,null,null,null,null,null,"DOB Error","DOB Error",""]
[1811,null,null,null,null,"",{"$f":"IFERROR(IF(OR(AZ1830=1,F1830<>\"\"),\"To key in DOB\",#REF!),\"\")","v":""},null,null,null,null,null,null,null,null,null,null,"","",null,null,null,null,null,null,null,null,null,null,null,null,null,null,null,null,null,null,null,null,null,null,null,null,null,null,null,null,null,null,"DOB Error","DOB Error",""]
[1814,null,null,null,null,"",{"$f":"IFERROR(IF(OR(AZ1833=1,F1833<>\"\"),\"To key in DOB\",#REF!),\"\")","v":""},null,null,null,null,null,null,null,null,null,null,"","",null,null,null,null,null,null,null,null,null,null,null,null,null,null,null,null,null,null,null,null,null,null,null,null,null,null,null,null,null,null,"DOB Error","DOB Error",""]
[1817,null,null,null,null,"",{"$f":"IFERROR(IF(OR(AZ1836=1,F1836<>\"\"),\"To key in DOB\",#REF!),\"\")","v":""},null,null,null,null,null,null,null,null,null,null,"","",null,null,null,null,null,null,null,null,null,null,null,null,null,null,null,null,null,null,null,null,null,null,null,null,null,null,null,null,null,null,"DOB Error","DOB Error",""]
[1821,null,null,null,null,"",{"$f":"IFERROR(IF(OR(AZ1840=1,F1840<>\"\"),\"To key in DOB\",#REF!),\"\")","v":""},null,null,null,null,null,null,null,null,null,null,"","",null,null,null,null,null,null,null,null,null,null,null,null,null,null,null,null,null,null,null,null,null,null,null,null,null,null,null,null,null,null,"DOB Error","DOB Error",""]
[1823,null,null,null,null,"",{"$f":"IFERROR(IF(OR(AZ1842=1,F1842<>\"\"),\"To key in DOB\",#REF!),\"\")","v":""},null,null,null,null,null,null,null,null,null,null,"","",null,null,null,null,null,null,null,null,null,null,null,null,null,null,null,null,null,null,null,null,null,null,null,null,null,null,null,null,null,null,"DOB Error","DOB Error",""]
[1827,null,null,null,null,"",{"$f":"IFERROR(IF(OR(AZ1846=1,F1846<>\"\"),\"To key in DOB\",#REF!),\"\")","v":""},null,null,null,null,null,null,null,null,null,null,"","",null,null,null,null,null,null,null,null,null,null,null,null,null,null,null,null,null,null,null,null,null,null,null,null,null,null,null,null,null,null,"DOB Error","DOB Error",""]
[1830,null,null,null,null,"",{"$f":"IFERROR(IF(OR(AZ1849=1,F1849<>\"\"),\"To key in DOB\",#REF!),\"\")","v":""},null,null,null,null,null,null,null,null,null,null,"","",null,null,null,null,null,null,null,null,null,null,null,null,null,null,null,null,null,null,null,null,null,null,null,null,null,null,null,null,null,null,"DOB Error","DOB Error",""]
[1833,null,null,null,null,"",{"$f":"IFERROR(IF(OR(AZ1852=1,F1852<>\"\"),\"To key in DOB\",#REF!),\"\")","v":""},null,null,null,null,null,null,null,null,null,null,"","",null,null,null,null,null,null,null,null,null,null,null,null,null,null,null,null,null,null,null,null,null,null,null,null,null,null,null,null,null,null,"DOB Error","DOB Error",""]
[1834,null,null,null,null,"",{"$f":"IFERROR(IF(OR(AZ1853=1,F1853<>\"\"),\"To key in DOB\",#REF!),\"\")","v":""},null,null,null,null,null,null,null,null,null,null,"","",null,null,null,null,null,null,null,null,null,null,null,null,null,null,null,null,null,null,null,null,null,null,null,null,null,null,null,null,null,null,"DOB Error","DOB Error",""]
[1836,null,null,null,null,"",{"$f":"IFERROR(IF(OR(AZ1855=1,F1855<>\"\"),\"To key in DOB\",#REF!),\"\")","v":""},null,null,null,null,null,null,null,null,null,null,"","",null,null,null,null,null,null,null,null,null,null,null,null,null,null,null,null,null,null,null,null,null,null,null,null,null,null,null,null,null,null,"DOB Error","DOB Error",""]
[1840,null,null,null,null,"",{"$f":"IFERROR(IF(OR(AZ1859=1,F1859<>\"\"),\"To key in DOB\",#REF!),\"\")","v":""},null,null,null,null,null,null,null,null,null,null,"","",null,null,null,null,null,null,null,null,null,null,null,null,null,null,null,null,null,null,null,null,null,null,null,null,null,null,null,null,null,null,"DOB Error","DOB Error",""]
[1843,null,null,null,null,"",{"$f":"IFERROR(IF(OR(AZ1862=1,F1862<>\"\"),\"To key in DOB\",#REF!),\"\")","v":""},null,null,null,null,null,null,null,null,null,null,"","",null,null,null,null,null,null,null,null,null,null,null,null,null,null,null,null,null,null,null,null,null,null,null,null,null,null,null,null,null,null,"DOB Error","DOB Error",""]
[1846,null,null,null,null,"",{"$f":"IFERROR(IF(OR(AZ1865=1,F1865<>\"\"),\"To key in DOB\",#REF!),\"\")","v":""},null,null,null,null,null,null,null,null,null,null,"","",null,null,null,null,null,null,null,null,null,null,null,null,null,null,null,null,null,null,null,null,null,null,null,null,null,null,null,null,null,null,"DOB Error","DOB Error",""]
[1849,null,null,null,null,"",{"$f":"IFERROR(IF(OR(AZ1868=1,F1868<>\"\"),\"To key in DOB\",#REF!),\"\")","v":""},null,null,null,null,null,null,null,null,null,null,"","",null,null,null,null,null,null,null,null,null,null,null,null,null,null,null,null,null,null,null,null,null,null,null,null,null,null,null,null,null,null,"DOB Error","DOB Error",""]
[1852,null,null,null,null,"",{"$f":"IFERROR(IF(OR(AZ1871=1,F1871<>\"\"),\"To key in DOB\",#REF!),\"\")","v":""},null,null,null,null,null,null,null,null,null,null,"","",null,null,null,null,null,null,null,null,null,null,null,null,null,null,null,null,null,null,null,null,null,null,null,null,null,null,null,null,null,null,"DOB Error","DOB Error",""]
[1855,null,null,null,null,"",{"$f":"IFERROR(IF(OR(AZ1874=1,F1874<>\"\"),\"To key in DOB\",#REF!),\"\")","v":""},null,null,null,null,null,null,null,null,null,null,"","",null,null,null,null,null,null,null,null,null,null,null,null,null,null,null,null,null,null,null,null,null,null,null,null,null,null,null,null,null,null,"DOB Error","DOB Error",""]
[1856,null,null,null,null,"",{"$f":"IFERROR(IF(OR(AZ1875=1,F1875<>\"\"),\"To key in DOB\",#REF!),\"\")","v":""},null,null,null,null,null,null,null,null,null,null,"","",null,null,null,null,null,null,null,null,null,null,null,null,null,null,null,null,null,null,null,null,null,null,null,null,null,null,null,null,null,null,{"$f":"IF(ISERROR(AND(SEARCH(\"-\",E1875,7)=7,SEARCH(\"-\",E1875,9)=10)),\"DOB Error\",\"ok\")","v":"DOB Error"},{"$f":"IF(ISERROR(LEFT(E1875,6)+MID(E1875,8,2)+RIGHT(E1875,4)),\"DOB Error\",\"ok\")","v":"DOB Error"},{"$f":"IF(E1875=\"\",\"\",IF(OR(AX1875=\"DOB Error\", AY1875=\"DOB Error\"),1,0))","v":""}]
[1859,null,null,null,null,"",{"$f":"IFERROR(IF(OR(AZ1878=1,F1878<>\"\"),\"To key in DOB\",#REF!),\"\")","v":""},null,null,null,null,null,null,null,null,null,null,"","",null,null,null,null,null,null,null,null,null,null,null,null,null,null,null,null,null,null,null,null,null,null,null,null,null,null,null,null,null,null,"DOB Error","DOB Error",""]
[1862,null,null,null,null,"",{"$f":"IFERROR(IF(OR(AZ1881=1,F1881<>\"\"),\"To key in DOB\",#REF!),\"\")","v":""},null,null,null,null,null,null,null,null,null,null,"","",null,null,null,null,null,null,null,null,null,null,null,null,null,null,null,null,null,null,null,null,null,null,null,null,null,null,null,null,null,null,"DOB Error","DOB Error",""]
[1865,null,null,null,null,"",{"$f":"IFERROR(IF(OR(AZ1884=1,F1884<>\"\"),\"To key in DOB\",#REF!),\"\")","v":""},null,null,null,null,null,null,null,null,null,null,"","",null,null,null,null,null,null,null,null,null,null,null,null,null,null,null,null,null,null,null,null,null,null,null,null,null,null,null,null,null,null,"DOB Error","DOB Error",""]
[1868,null,null,null,null,"",{"$f":"IFERROR(IF(OR(AZ1887=1,F1887<>\"\"),\"To key in DOB\",#REF!),\"\")","v":""},null,null,null,null,null,null,null,null,null,null,"","",null,null,null,null,null,null,null,null,null,null,null,null,null,null,null,null,null,null,null,null,null,null,null,null,null,null,null,null,null,null,"DOB Error","DOB Error",""]
[1872,null,null,null,null,"",{"$f":"IFERROR(IF(OR(AZ1891=1,F1891<>\"\"),\"To key in DOB\",#REF!),\"\")","v":""},null,null,null,null,null,null,null,null,null,null,"","",null,null,null,null,null,null,null,null,null,null,null,null,null,null,null,null,null,null,null,null,null,null,null,null,null,null,null,null,null,null,"DOB Error","DOB Error",""]
[1875,null,null,null,null,"",{"$f":"IFERROR(IF(OR(AZ1894=1,F1894<>\"\"),\"To key in DOB\",#REF!),\"\")","v":""},null,null,null,null,null,null,null,null,null,null,"","",null,null,null,null,null,null,null,null,null,null,null,null,null,null,null,null,null,null,null,null,null,null,null,null,null,null,null,null,null,null,"DOB Error","DOB Error",""]
[1876,null,null,null,null,"",{"$f":"IFERROR(IF(OR(AZ1895=1,F1895<>\"\"),\"To key in DOB\",#REF!),\"\")","v":""},null,null,null,null,null,null,null,null,null,null,"","",null,null,null,null,null,null,null,null,null,null,null,null,null,null,null,null,null,null,null,null,null,null,null,null,null,null,null,null,null,null,"DOB Error","DOB Error",""]
[1877,null,null,null,null,"",{"$f":"IFERROR(IF(OR(AZ1896=1,F1896<>\"\"),\"To key in DOB\",#REF!),\"\")","v":""},null,null,null,null,null,null,null,null,null,null,"","",null,null,null,null,null,null,null,null,null,null,null,null,null,null,null,null,null,null,null,null,null,null,null,null,null,null,null,null,null,null,"DOB Error","DOB Error",""]
[1878,null,null,null,null,"",{"$f":"IFERROR(IF(OR(AZ1897=1,F1897<>\"\"),\"To key in DOB\",#REF!),\"\")","v":""},null,null,null,null,null,null,null,null,null,null,"","",null,null,null,null,null,null,null,null,null,null,null,null,null,null,null,null,null,null,null,null,null,null,null,null,null,null,null,null,null,null,"DOB Error","DOB Error",""]
[1879,null,null,null,null,"",{"$f":"IFERROR(IF(OR(AZ1898=1,F1898<>\"\"),\"To key in DOB\",#REF!),\"\")","v":""},null,null,null,null,null,null,null,null,null,null,"","",null,null,null,null,null,null,null,null,null,null,null,null,null,null,null,null,null,null,null,null,null,null,null,null,null,null,null,null,null,null,"DOB Error","DOB Error",""]
[1880,null,null,null,null,"",{"$f":"IFERROR(IF(OR(AZ1899=1,F1899<>\"\"),\"To key in DOB\",#REF!),\"\")","v":""},null,null,null,null,null,null,null,null,null,null,"","",null,null,null,null,null,null,null,null,null,null,null,null,null,null,null,null,null,null,null,null,null,null,null,null,null,null,null,null,null,null,"DOB Error","DOB Error",""]
[1881,null,null,null,null,"",{"$f":"IFERROR(IF(OR(AZ1900=1,F1900<>\"\"),\"To key in DOB\",#REF!),\"\")","v":""},null,null,null,null,null,null,null,null,null,null,"","",null,null,null,null,null,null,null,null,null,null,null,null,null,null,null,null,null,null,null,null,null,null,null,null,null,null,null,null,null,null,"DOB Error","DOB Error",""]
[1882,null,null,null,null,"",{"$f":"IFERROR(IF(OR(AZ1901=1,F1901<>\"\"),\"To key in DOB\",#REF!),\"\")","v":""},null,null,null,null,null,null,null,null,null,null,"","",null,null,null,null,null,null,null,null,null,null,null,null,null,null,null,null,null,null,null,null,null,null,null,null,null,null,null,null,null,null,"DOB Error","DOB Error",""]
[1883,null,null,null,null,"",{"$f":"IFERROR(IF(OR(AZ1902=1,F1902<>\"\"),\"To key in DOB\",#REF!),\"\")","v":""},null,null,null,null,null,null,null,null,null,null,"","",null,null,null,null,null,null,null,null,null,null,null,null,null,null,null,null,null,null,null,null,null,null,null,null,null,null,null,null,null,null,"DOB Error","DOB Error",""]
[1884,null,null,null,null,"",{"$f":"IFERROR(IF(OR(AZ1903=1,F1903<>\"\"),\"To key in DOB\",#REF!),\"\")","v":""},null,null,null,null,null,null,null,null,null,null,"","",null,null,null,null,null,null,null,null,null,null,null,null,null,null,null,null,null,null,null,null,null,null,null,null,null,null,null,null,null,null,"DOB Error","DOB Error",""]
[1885,null,null,null,null,"",{"$f":"IFERROR(IF(OR(AZ1904=1,F1904<>\"\"),\"To key in DOB\",#REF!),\"\")","v":""},null,null,null,null,null,null,null,null,null,null,"","",null,null,null,null,null,null,null,null,null,null,null,null,null,null,null,null,null,null,null,null,null,null,null,null,null,null,null,null,null,null,"DOB Error","DOB Error",""]
[1886,null,null,null,null,"",{"$f":"IFERROR(IF(OR(AZ1905=1,F1905<>\"\"),\"To key in DOB\",#REF!),\"\")","v":""},null,null,null,null,null,null,null,null,null,null,"","",null,null,null,null,null,null,null,null,null,null,null,null,null,null,null,null,null,null,null,null,null,null,null,null,null,null,null,null,null,null,"DOB Error","DOB Error",""]
[1887,null,null,null,null,"",{"$f":"IFERROR(IF(OR(AZ1906=1,F1906<>\"\"),\"To key in DOB\",#REF!),\"\")","v":""},null,null,null,null,null,null,null,null,null,null,"","",null,null,null,null,null,null,null,null,null,null,null,null,null,null,null,null,null,null,null,null,null,null,null,null,null,null,null,null,null,null,"DOB Error","DOB Error",""]
[1888,null,null,null,null,"",{"$f":"IFERROR(IF(OR(AZ1907=1,F1907<>\"\"),\"To key in DOB\",#REF!),\"\")","v":""},null,null,null,null,null,null,null,null,null,null,"","",null,null,null,null,null,null,null,null,null,null,null,null,null,null,null,null,null,null,null,null,null,null,null,null,null,null,null,null,null,null,"DOB Error","DOB Error",""]
[1889,null,null,null,null,"",{"$f":"IFERROR(IF(OR(AZ1908=1,F1908<>\"\"),\"To key in DOB\",#REF!),\"\")","v":""},null,null,null,null,null,null,null,null,null,null,"","",null,null,null,null,null,null,null,null,null,null,null,null,null,null,null,null,null,null,null,null,null,null,null,null,null,null,null,null,null,null,"DOB Error","DOB Error",""]
[1890,null,null,null,null,"",{"$f":"IFERROR(IF(OR(AZ1909=1,F1909<>\"\"),\"To key in DOB\",#REF!),\"\")","v":""},null,null,null,null,null,null,null,null,null,null,"","",null,null,null,null,null,null,null,null,null,null,null,null,null,null,null,null,null,null,null,null,null,null,null,null,null,null,null,null,null,null,"DOB Error","DOB Error",""]
[1891,null,null,null,null,"",{"$f":"IFERROR(IF(OR(AZ1910=1,F1910<>\"\"),\"To key in DOB\",#REF!),\"\")","v":""},null,null,null,null,null,null,null,null,null,null,"","",null,null,null,null,null,null,null,null,null,null,null,null,null,null,null,null,null,null,null,null,null,null,null,null,null,null,null,null,null,null,"DOB Error","DOB Error",""]
[1892,null,null,null,null,"",{"$f":"IFERROR(IF(OR(AZ1911=1,F1911<>\"\"),\"To key in DOB\",#REF!),\"\")","v":""},null,null,null,null,null,null,null,null,null,null,"","",null,null,null,null,null,null,null,null,null,null,null,null,null,null,null,null,null,null,null,null,null,null,null,null,null,null,null,null,null,null,"DOB Error","DOB Error",""]
[1893,null,null,null,null,"",{"$f":"IFERROR(IF(OR(AZ1912=1,F1912<>\"\"),\"To key in DOB\",#REF!),\"\")","v":""},null,null,null,null,null,null,null,null,null,null,"","",null,null,null,null,null,null,null,null,null,null,null,null,null,null,null,null,null,null,null,null,null,null,null,null,null,null,null,null,null,null,"DOB Error","DOB Error",""]
[1894,null,null,null,null,"",{"$f":"IFERROR(IF(OR(AZ1913=1,F1913<>\"\"),\"To key in DOB\",#REF!),\"\")","v":""},null,null,null,null,null,null,null,null,null,null,"","",null,null,null,null,null,null,null,null,null,null,null,null,null,null,null,null,null,null,null,null,null,null,null,null,null,null,null,null,null,null,"DOB Error","DOB Error",""]
[1895,null,null,null,null,"",{"$f":"IFERROR(IF(OR(AZ1914=1,F1914<>\"\"),\"To key in DOB\",#REF!),\"\")","v":""},null,null,null,null,null,null,null,null,null,null,"","",null,null,null,null,null,null,null,null,null,null,null,null,null,null,null,null,null,null,null,null,null,null,null,null,null,null,null,null,null,null,"DOB Error","DOB Error",""]
[1896,null,null,null,null,"",{"$f":"IFERROR(IF(OR(AZ1915=1,F1915<>\"\"),\"To key in DOB\",#REF!),\"\")","v":""},null,null,null,null,null,null,null,null,null,null,"","",null,null,null,null,null,null,null,null,null,null,null,null,null,null,null,null,null,null,null,null,null,null,null,null,null,null,null,null,null,null,"DOB Error","DOB Error",""]
[1897,null,null,null,null,"",{"$f":"IFERROR(IF(OR(AZ1916=1,F1916<>\"\"),\"To key in DOB\",#REF!),\"\")","v":""},null,null,null,null,null,null,null,null,null,null,"","",null,null,null,null,null,null,null,null,null,null,null,null,null,null,null,null,null,null,null,null,null,null,null,null,null,null,null,null,null,null,"DOB Error","DOB Error",""]
[1898,null,null,null,null,"",{"$f":"IFERROR(IF(OR(AZ1917=1,F1917<>\"\"),\"To key in DOB\",#REF!),\"\")","v":""},null,null,null,null,null,null,null,null,null,null,"","",null,null,null,null,null,null,null,null,null,null,null,null,null,null,null,null,null,null,null,null,null,null,null,null,null,null,null,null,null,null,"DOB Error","DOB Error",""]
[1899,null,null,null,null,"",{"$f":"IFERROR(IF(OR(AZ1918=1,F1918<>\"\"),\"To key in DOB\",#REF!),\"\")","v":""},null,null,null,null,null,null,null,null,null,null,"","",null,null,null,null,null,null,null,null,null,null,null,null,null,null,null,null,null,null,null,null,null,null,null,null,null,null,null,null,null,null,"DOB Error","DOB Error",""]
[1900,null,null,null,null,"",{"$f":"IFERROR(IF(OR(AZ1919=1,F1919<>\"\"),\"To key in DOB\",#REF!),\"\")","v":""},null,null,null,null,null,null,null,null,null,null,"","",null,null,null,null,null,null,null,null,null,null,null,null,null,null,null,null,null,null,null,null,null,null,null,null,null,null,null,null,null,null,"DOB Error","DOB Error",""]
[1901,null,null,null,null,"",{"$f":"IFERROR(IF(OR(AZ1920=1,F1920<>\"\"),\"To key in DOB\",#REF!),\"\")","v":""},null,null,null,null,null,null,null,null,null,null,"","",null,null,null,null,null,null,null,null,null,null,null,null,null,null,null,null,null,null,null,null,null,null,null,null,null,null,null,null,null,null,"DOB Error","DOB Error",""]
[1902,null,null,null,null,"",{"$f":"IFERROR(IF(OR(AZ1921=1,F1921<>\"\"),\"To key in DOB\",#REF!),\"\")","v":""},null,null,null,null,null,null,null,null,null,null,"","",null,null,null,null,null,null,null,null,null,null,null,null,null,null,null,null,null,null,null,null,null,null,null,null,null,null,null,null,null,null,"DOB Error","DOB Error",""]
[1903,null,null,null,null,"",{"$f":"IFERROR(IF(OR(AZ1922=1,F1922<>\"\"),\"To key in DOB\",#REF!),\"\")","v":""},null,null,null,null,null,null,null,null,null,null,"","",null,null,null,null,null,null,null,null,null,null,null,null,null,null,null,null,null,null,null,null,null,null,null,null,null,null,null,null,null,null,"DOB Error","DOB Error",""]
[1904,null,null,null,null,"",{"$f":"IFERROR(IF(OR(AZ1923=1,F1923<>\"\"),\"To key in DOB\",#REF!),\"\")","v":""},null,null,null,null,null,null,null,null,null,null,"","",null,null,null,null,null,null,null,null,null,null,null,null,null,null,null,null,null,null,null,null,null,null,null,null,null,null,null,null,null,null,"DOB Error","DOB Error",""]
[1905,null,null,null,null,"",{"$f":"IFERROR(IF(OR(AZ1924=1,F1924<>\"\"),\"To key in DOB\",#REF!),\"\")","v":""},null,null,null,null,null,null,null,null,null,null,"","",null,null,null,null,null,null,null,null,null,null,null,null,null,null,null,null,null,null,null,null,null,null,null,null,null,null,null,null,null,null,"DOB Error","DOB Error",""]
[1906,null,null,null,null,"",{"$f":"IFERROR(IF(OR(AZ1925=1,F1925<>\"\"),\"To key in DOB\",#REF!),\"\")","v":""},null,null,null,null,null,null,null,null,null,null,"","",null,null,null,null,null,null,null,null,null,null,null,null,null,null,null,null,null,null,null,null,null,null,null,null,null,null,null,null,null,null,"DOB Error","DOB Error",""]
[1907,null,null,null,null,"",{"$f":"IFERROR(IF(OR(AZ1926=1,F1926<>\"\"),\"To key in DOB\",#REF!),\"\")","v":""},null,null,null,null,null,null,null,null,null,null,"","",null,null,null,null,null,null,null,null,null,null,null,null,null,null,null,null,null,null,null,null,null,null,null,null,null,null,null,null,null,null,"DOB Error","DOB Error",""]
[1908,null,null,null,null,"",{"$f":"IFERROR(IF(OR(AZ1927=1,F1927<>\"\"),\"To key in DOB\",#REF!),\"\")","v":""},null,null,null,null,null,null,null,null,null,null,"","",null,null,null,null,null,null,null,null,null,null,null,null,null,null,null,null,null,null,null,null,null,null,null,null,null,null,null,null,null,null,"DOB Error","DOB Error",""]
[1909,null,null,null,null,"",{"$f":"IFERROR(IF(OR(AZ1928=1,F1928<>\"\"),\"To key in DOB\",#REF!),\"\")","v":""},null,null,null,null,null,null,null,null,null,null,"","",null,null,null,null,null,null,null,null,null,null,null,null,null,null,null,null,null,null,null,null,null,null,null,null,null,null,null,null,null,null,"DOB Error","DOB Error",""]
[1910,null,null,null,null,"",{"$f":"IFERROR(IF(OR(AZ1929=1,F1929<>\"\"),\"To key in DOB\",#REF!),\"\")","v":""},null,null,null,null,null,null,null,null,null,null,"","",null,null,null,null,null,null,null,null,null,null,null,null,null,null,null,null,null,null,null,null,null,null,null,null,null,null,null,null,null,null,"DOB Error","DOB Error",""]
[1911,null,null,null,null,"",{"$f":"IFERROR(IF(OR(AZ1930=1,F1930<>\"\"),\"To key in DOB\",#REF!),\"\")","v":""},null,null,null,null,null,null,null,null,null,null,"","",null,null,null,null,null,null,null,null,null,null,null,null,null,null,null,null,null,null,null,null,null,null,null,null,null,null,null,null,null,null,"DOB Error","DOB Error",""]
[1912,null,null,null,null,"",{"$f":"IFERROR(IF(OR(AZ1931=1,F1931<>\"\"),\"To key in DOB\",#REF!),\"\")","v":""},null,null,null,null,null,null,null,null,null,null,"","",null,null,null,null,null,null,null,null,null,null,null,null,null,null,null,null,null,null,null,null,null,null,null,null,null,null,null,null,null,null,"DOB Error","DOB Error",""]
[1913,null,null,null,null,"",{"$f":"IFERROR(IF(OR(AZ1932=1,F1932<>\"\"),\"To key in DOB\",#REF!),\"\")","v":""},null,null,null,null,null,null,null,null,null,null,"","",null,null,null,null,null,null,null,null,null,null,null,null,null,null,null,null,null,null,null,null,null,null,null,null,null,null,null,null,null,null,"DOB Error","DOB Error",""]
[1914,null,null,null,null,"",{"$f":"IFERROR(IF(OR(AZ1933=1,F1933<>\"\"),\"To key in DOB\",#REF!),\"\")","v":""},null,null,null,null,null,null,null,null,null,null,"","",null,null,null,null,null,null,null,null,null,null,null,null,null,null,null,null,null,null,null,null,null,null,null,null,null,null,null,null,null,null,"DOB Error","DOB Error",""]
[1915,null,null,null,null,"",{"$f":"IFERROR(IF(OR(AZ1934=1,F1934<>\"\"),\"To key in DOB\",#REF!),\"\")","v":""},null,null,null,null,null,null,null,null,null,null,"","",null,null,null,null,null,null,null,null,null,null,null,null,null,null,null,null,null,null,null,null,null,null,null,null,null,null,null,null,null,null,"DOB Error","DOB Error",""]
[1916,null,null,null,null,"",{"$f":"IFERROR(IF(OR(AZ1935=1,F1935<>\"\"),\"To key in DOB\",#REF!),\"\")","v":""},null,null,null,null,null,null,null,null,null,null,"","",null,null,null,null,null,null,null,null,null,null,null,null,null,null,null,null,null,null,null,null,null,null,null,null,null,null,null,null,null,null,"DOB Error","DOB Error",""]
[1917,null,null,null,null,"",{"$f":"IFERROR(IF(OR(AZ1936=1,F1936<>\"\"),\"To key in DOB\",#REF!),\"\")","v":""},null,null,null,null,null,null,null,null,null,null,"","",null,null,null,null,null,null,null,null,null,null,null,null,null,null,null,null,null,null,null,null,null,null,null,null,null,null,null,null,null,null,"DOB Error","DOB Error",""]
[1918,null,null,null,null,"",{"$f":"IFERROR(IF(OR(AZ1937=1,F1937<>\"\"),\"To key in DOB\",#REF!),\"\")","v":""},null,null,null,null,null,null,null,null,null,null,"","",null,null,null,null,null,null,null,null,null,null,null,null,null,null,null,null,null,null,null,null,null,null,null,null,null,null,null,null,null,null,"DOB Error","DOB Error",""]
[1919,null,null,null,null,"",{"$f":"IFERROR(IF(OR(AZ1938=1,F1938<>\"\"),\"To key in DOB\",#REF!),\"\")","v":""},null,null,null,null,null,null,null,null,null,null,"","",null,null,null,null,null,null,null,null,null,null,null,null,null,null,null,null,null,null,null,null,null,null,null,null,null,null,null,null,null,null,"DOB Error","DOB Error",""]
[1920,null,null,null,null,"",{"$f":"IFERROR(IF(OR(AZ1939=1,F1939<>\"\"),\"To key in DOB\",#REF!),\"\")","v":""},null,null,null,null,null,null,null,null,null,null,"","",null,null,null,null,null,null,null,null,null,null,null,null,null,null,null,null,null,null,null,null,null,null,null,null,null,null,null,null,null,null,{"$f":"IF(ISERROR(AND(SEARCH(\"-\",E1939,7)=7,SEARCH(\"-\",E1939,9)=10)),\"DOB Error\",\"ok\")","v":"DOB Error"},{"$f":"IF(ISERROR(LEFT(E1939,6)+MID(E1939,8,2)+RIGHT(E1939,4)),\"DOB Error\",\"ok\")","v":"DOB Error"},{"$f":"IF(E1939=\"\",\"\",IF(OR(AX1939=\"DOB Error\", AY1939=\"DOB Error\"),1,0))","v":""}]
[1921,null,null,null,null,"",{"$f":"IFERROR(IF(OR(AZ1940=1,F1940<>\"\"),\"To key in DOB\",#REF!),\"\")","v":""},null,null,null,null,null,null,null,null,null,null,{"$f":"IF(OR(Q1940=\"CHANGE\",Q1940=\"ADD\",Q1940=\"TERMINATE\"),VLOOKUP(Q1940,$AR:$AS,2,FALSE),\"\")","v":""},{"$f":"IF(OR(Q1940=\"TERMINATE (DEATH)\"),VLOOKUP(Q1940,$AR:$AU,4,FALSE),\"\")","v":""},null,null,null,null,null,null,null,null,null,null,null,null,null,null,null,null,null,null,null,null,null,null,null,null,null,null,null,null,null,null,"DOB Error","DOB Error",""]
[1922,null,null,null,null,{"$f":"IF(AZ1941=1,\"To key in Old IC / Passport / Birth Cert No.\",\"\")","v":""},{"$f":"IFERROR(IF(OR(AZ1941=1,F1941<>\"\"),\"To key in DOB\",#REF!),\"\")","v":""},null,null,null,null,null,null,null,null,null,null,"","",null,null,null,null,null,null,null,null,null,null,null,null,null,null,null,null,null,null,null,null,null,null,null,null,null,null,null,null,null,null,"DOB Error","DOB Error",""]
[1923,null,null,null,null,"",{"$f":"IFERROR(IF(OR(AZ1942=1,F1942<>\"\"),\"To key in DOB\",#REF!),\"\")","v":""},null,null,null,null,null,null,null,null,null,null,"","",null,null,null,null,null,null,null,null,null,null,null,null,null,null,null,null,null,null,null,null,null,null,null,null,null,null,null,null,null,null,"DOB Error","DOB Error",""]
[1924,null,null,null,null,"",{"$f":"IFERROR(IF(OR(AZ1943=1,F1943<>\"\"),\"To key in DOB\",#REF!),\"\")","v":""},null,null,null,null,null,null,null,null,null,null,"","",null,null,null,null,null,null,null,null,null,null,null,null,null,null,null,null,null,null,null,null,null,null,null,null,null,null,null,null,null,null,"DOB Error","DOB Error",""]
[1925,null,null,null,null,"",{"$f":"IFERROR(IF(OR(AZ1944=1,F1944<>\"\"),\"To key in DOB\",#REF!),\"\")","v":""},null,null,null,null,null,null,null,null,null,null,"","",null,null,null,null,null,null,null,null,null,null,null,null,null,null,null,null,null,null,null,null,null,null,null,null,null,null,null,null,null,null,"DOB Error","DOB Error",""]
[1926,null,null,null,null,"",{"$f":"IFERROR(IF(OR(AZ1945=1,F1945<>\"\"),\"To key in DOB\",#REF!),\"\")","v":""},null,null,null,null,null,null,null,null,null,null,"","",null,null,null,null,null,null,null,null,null,null,null,null,null,null,null,null,null,null,null,null,null,null,null,null,null,null,null,null,null,null,"DOB Error","DOB Error",""]
[1927,null,null,null,null,"",{"$f":"IFERROR(IF(OR(AZ1946=1,F1946<>\"\"),\"To key in DOB\",#REF!),\"\")","v":""},null,null,null,null,null,null,null,null,null,null,"","",null,null,null,null,null,null,null,null,null,null,null,null,null,null,null,null,null,null,null,null,null,null,null,null,null,null,null,null,null,null,"DOB Error","DOB Error",""]
[1928,null,null,null,null,"",{"$f":"IFERROR(IF(OR(AZ1947=1,F1947<>\"\"),\"To key in DOB\",#REF!),\"\")","v":""},null,null,null,null,null,null,null,null,null,null,"","",null,null,null,null,null,null,null,null,null,null,null,null,null,null,null,null,null,null,null,null,null,null,null,null,null,null,null,null,null,null,"DOB Error","DOB Error",""]
[1929,null,null,null,null,"",{"$f":"IFERROR(IF(OR(AZ1948=1,F1948<>\"\"),\"To key in DOB\",#REF!),\"\")","v":""},null,null,null,null,null,null,null,null,null,null,"","",null,null,null,null,null,null,null,null,null,null,null,null,null,null,null,null,null,null,null,null,null,null,null,null,null,null,null,null,null,null,"DOB Error","DOB Error",""]
[1930,null,null,null,null,"",{"$f":"IFERROR(IF(OR(AZ1949=1,F1949<>\"\"),\"To key in DOB\",#REF!),\"\")","v":""},null,null,null,null,null,null,null,null,null,null,"","",null,null,null,null,null,null,null,null,null,null,null,null,null,null,null,null,null,null,null,null,null,null,null,null,null,null,null,null,null,null,"DOB Error","DOB Error",""]
[1931,null,null,null,null,"",{"$f":"IFERROR(IF(OR(AZ1950=1,F1950<>\"\"),\"To key in DOB\",#REF!),\"\")","v":""},null,null,null,null,null,null,null,null,null,null,"","",null,null,null,null,null,null,null,null,null,null,null,null,null,null,null,null,null,null,null,null,null,null,null,null,null,null,null,null,null,null,"DOB Error","DOB Error",""]
[1932,null,null,null,null,"",{"$f":"IFERROR(IF(OR(AZ1951=1,F1951<>\"\"),\"To key in DOB\",#REF!),\"\")","v":""},null,null,null,null,null,null,null,null,null,null,"","",null,null,null,null,null,null,null,null,null,null,null,null,null,null,null,null,null,null,null,null,null,null,null,null,null,null,null,null,null,null,"DOB Error","DOB Error",""]
[1933,null,null,null,null,"",{"$f":"IFERROR(IF(OR(AZ1952=1,F1952<>\"\"),\"To key in DOB\",#REF!),\"\")","v":""},null,null,null,null,null,null,null,null,null,null,"","",null,null,null,null,null,null,null,null,null,null,null,null,null,null,null,null,null,null,null,null,null,null,null,null,null,null,null,null,null,null,"DOB Error","DOB Error",""]
[1934,null,null,null,null,"",{"$f":"IFERROR(IF(OR(AZ1953=1,F1953<>\"\"),\"To key in DOB\",#REF!),\"\")","v":""},null,null,null,null,null,null,null,null,null,null,"","",null,null,null,null,null,null,null,null,null,null,null,null,null,null,null,null,null,null,null,null,null,null,null,null,null,null,null,null,null,null,"DOB Error","DOB Error",""]
[1935,null,null,null,null,"",{"$f":"IFERROR(IF(OR(AZ1954=1,F1954<>\"\"),\"To key in DOB\",#REF!),\"\")","v":""},null,null,null,null,null,null,null,null,null,null,"","",null,null,null,null,null,null,null,null,null,null,null,null,null,null,null,null,null,null,null,null,null,null,null,null,null,null,null,null,null,null,"DOB Error","DOB Error",""]
[1936,null,null,null,null,"",{"$f":"IFERROR(IF(OR(AZ1955=1,F1955<>\"\"),\"To key in DOB\",#REF!),\"\")","v":""},null,null,null,null,null,null,null,null,null,null,"","",null,null,null,null,null,null,null,null,null,null,null,null,null,null,null,null,null,null,null,null,null,null,null,null,null,null,null,null,null,null,"DOB Error","DOB Error",""]
[1937,null,null,null,null,"",{"$f":"IFERROR(IF(OR(AZ1956=1,F1956<>\"\"),\"To key in DOB\",#REF!),\"\")","v":""},null,null,null,null,null,null,null,null,null,null,"","",null,null,null,null,null,null,null,null,null,null,null,null,null,null,null,null,null,null,null,null,null,null,null,null,null,null,null,null,null,null,"DOB Error","DOB Error",""]
[1938,null,null,null,null,"",{"$f":"IFERROR(IF(OR(AZ1957=1,F1957<>\"\"),\"To key in DOB\",#REF!),\"\")","v":""},null,null,null,null,null,null,null,null,null,null,"","",null,null,null,null,null,null,null,null,null,null,null,null,null,null,null,null,null,null,null,null,null,null,null,null,null,null,null,null,null,null,"DOB Error","DOB Error",""]
[1939,null,null,null,null,"",{"$f":"IFERROR(IF(OR(AZ1958=1,F1958<>\"\"),\"To key in DOB\",#REF!),\"\")","v":""},null,null,null,null,null,null,null,null,null,null,"","",null,null,null,null,null,null,null,null,null,null,null,null,null,null,null,null,null,null,null,null,null,null,null,null,null,null,null,null,null,null,"DOB Error","DOB Error",""]
[1940,null,null,null,null,"",{"$f":"IFERROR(IF(OR(AZ1959=1,F1959<>\"\"),\"To key in DOB\",#REF!),\"\")","v":""},null,null,null,null,null,null,null,null,null,null,"","",null,null,null,null,null,null,null,null,null,null,null,null,null,null,null,null,null,null,null,null,null,null,null,null,null,null,null,null,null,null,"DOB Error","DOB Error",""]
[1941,null,null,null,null,"",{"$f":"IFERROR(IF(OR(AZ1960=1,F1960<>\"\"),\"To key in DOB\",#REF!),\"\")","v":""},null,null,null,null,null,null,null,null,null,null,"","",null,null,null,null,null,null,null,null,null,null,null,null,null,null,null,null,null,null,null,null,null,null,null,null,null,null,null,null,null,null,"DOB Error","DOB Error",""]
[1942,null,null,null,null,"",{"$f":"IFERROR(IF(OR(AZ1961=1,F1961<>\"\"),\"To key in DOB\",#REF!),\"\")","v":""},null,null,null,null,null,null,null,null,null,null,"","",null,null,null,null,null,null,null,null,null,null,null,null,null,null,null,null,null,null,null,null,null,null,null,null,null,null,null,null,null,null,"DOB Error","DOB Error",""]
[1943,null,null,null,null,"",{"$f":"IFERROR(IF(OR(AZ1962=1,F1962<>\"\"),\"To key in DOB\",#REF!),\"\")","v":""},null,null,null,null,null,null,null,null,null,null,"","",null,null,null,null,null,null,null,null,null,null,null,null,null,null,null,null,null,null,null,null,null,null,null,null,null,null,null,null,null,null,"DOB Error","DOB Error",""]
[1944,null,null,null,null,"",{"$f":"IFERROR(IF(OR(AZ1963=1,F1963<>\"\"),\"To key in DOB\",#REF!),\"\")","v":""},null,null,null,null,null,null,null,null,null,null,"","",null,null,null,null,null,null,null,null,null,null,null,null,null,null,null,null,null,null,null,null,null,null,null,null,null,null,null,null,null,null,"DOB Error","DOB Error",""]
[1945,null,null,null,null,"",{"$f":"IFERROR(IF(OR(AZ1964=1,F1964<>\"\"),\"To key in DOB\",#REF!),\"\")","v":""},null,null,null,null,null,null,null,null,null,null,"","",null,null,null,null,null,null,null,null,null,null,null,null,null,null,null,null,null,null,null,null,null,null,null,null,null,null,null,null,null,null,"DOB Error","DOB Error",""]
[1946,null,null,null,null,"",{"$f":"IFERROR(IF(OR(AZ1965=1,F1965<>\"\"),\"To key in DOB\",#REF!),\"\")","v":""},null,null,null,null,null,null,null,null,null,null,"","",null,null,null,null,null,null,null,null,null,null,null,null,null,null,null,null,null,null,null,null,null,null,null,null,null,null,null,null,null,null,"DOB Error","DOB Error",""]
[1947,null,null,null,null,"",{"$f":"IFERROR(IF(OR(AZ1966=1,F1966<>\"\"),\"To key in DOB\",#REF!),\"\")","v":""},null,null,null,null,null,null,null,null,null,null,"","",null,null,null,null,null,null,null,null,null,null,null,null,null,null,null,null,null,null,null,null,null,null,null,null,null,null,null,null,null,null,"DOB Error","DOB Error",""]
[1948,null,null,null,null,"",{"$f":"IFERROR(IF(OR(AZ1967=1,F1967<>\"\"),\"To key in DOB\",#REF!),\"\")","v":""},null,null,null,null,null,null,null,null,null,null,"","",null,null,null,null,null,null,null,null,null,null,null,null,null,null,null,null,null,null,null,null,null,null,null,null,null,null,null,null,null,null,"DOB Error","DOB Error",""]
[1949,null,null,null,null,"",{"$f":"IFERROR(IF(OR(AZ1968=1,F1968<>\"\"),\"To key in DOB\",#REF!),\"\")","v":""},null,null,null,null,null,null,null,null,null,null,"","",null,null,null,null,null,null,null,null,null,null,null,null,null,null,null,null,null,null,null,null,null,null,null,null,null,null,null,null,null,null,"DOB Error","DOB Error",""]
[1950,null,null,null,null,"",{"$f":"IFERROR(IF(OR(AZ1969=1,F1969<>\"\"),\"To key in DOB\",#REF!),\"\")","v":""},null,null,null,null,null,null,null,null,null,null,"","",null,null,null,null,null,null,null,null,null,null,null,null,null,null,null,null,null,null,null,null,null,null,null,null,null,null,null,null,null,null,"DOB Error","DOB Error",""]
[1951,null,null,null,null,"",{"$f":"IFERROR(IF(OR(AZ1970=1,F1970<>\"\"),\"To key in DOB\",#REF!),\"\")","v":""},null,null,null,null,null,null,null,null,null,null,"","",null,null,null,null,null,null,null,null,null,null,null,null,null,null,null,null,null,null,null,null,null,null,null,null,null,null,null,null,null,null,"DOB Error","DOB Error",""]
[1952,null,null,null,null,"",{"$f":"IFERROR(IF(OR(AZ1971=1,F1971<>\"\"),\"To key in DOB\",#REF!),\"\")","v":""},null,null,null,null,null,null,null,null,null,null,"","",null,null,null,null,null,null,null,null,null,null,null,null,null,null,null,null,null,null,null,null,null,null,null,null,null,null,null,null,null,null,"DOB Error","DOB Error",""]
[1953,null,null,null,null,"",{"$f":"IFERROR(IF(OR(AZ1972=1,F1972<>\"\"),\"To key in DOB\",#REF!),\"\")","v":""},null,null,null,null,null,null,null,null,null,null,"","",null,null,null,null,null,null,null,null,null,null,null,null,null,null,null,null,null,null,null,null,null,null,null,null,null,null,null,null,null,null,"DOB Error","DOB Error",""]
[1954,null,null,null,null,"",{"$f":"IFERROR(IF(OR(AZ1973=1,F1973<>\"\"),\"To key in DOB\",#REF!),\"\")","v":""},null,null,null,null,null,null,null,null,null,null,"","",null,null,null,null,null,null,null,null,null,null,null,null,null,null,null,null,null,null,null,null,null,null,null,null,null,null,null,null,null,null,"DOB Error","DOB Error",""]
[1955,null,null,null,null,"",{"$f":"IFERROR(IF(OR(AZ1974=1,F1974<>\"\"),\"To key in DOB\",#REF!),\"\")","v":""},null,null,null,null,null,null,null,null,null,null,"","",null,null,null,null,null,null,null,null,null,null,null,null,null,null,null,null,null,null,null,null,null,null,null,null,null,null,null,null,null,null,"DOB Error","DOB Error",""]
[1956,null,null,null,null,"",{"$f":"IFERROR(IF(OR(AZ1975=1,F1975<>\"\"),\"To key in DOB\",#REF!),\"\")","v":""},null,null,null,null,null,null,null,null,null,null,"","",null,null,null,null,null,null,null,null,null,null,null,null,null,null,null,null,null,null,null,null,null,null,null,null,null,null,null,null,null,null,"DOB Error","DOB Error",""]
[1957,null,null,null,null,"",{"$f":"IFERROR(IF(OR(AZ1976=1,F1976<>\"\"),\"To key in DOB\",#REF!),\"\")","v":""},null,null,null,null,null,null,null,null,null,null,"","",null,null,null,null,null,null,null,null,null,null,null,null,null,null,null,null,null,null,null,null,null,null,null,null,null,null,null,null,null,null,"DOB Error","DOB Error",""]
[1958,null,null,null,null,"",{"$f":"IFERROR(IF(OR(AZ1977=1,F1977<>\"\"),\"To key in DOB\",#REF!),\"\")","v":""},null,null,null,null,null,null,null,null,null,null,"","",null,null,null,null,null,null,null,null,null,null,null,null,null,null,null,null,null,null,null,null,null,null,null,null,null,null,null,null,null,null,"DOB Error","DOB Error",""]
[1959,null,null,null,null,"",{"$f":"IFERROR(IF(OR(AZ1978=1,F1978<>\"\"),\"To key in DOB\",#REF!),\"\")","v":""},null,null,null,null,null,null,null,null,null,null,"","",null,null,null,null,null,null,null,null,null,null,null,null,null,null,null,null,null,null,null,null,null,null,null,null,null,null,null,null,null,null,"DOB Error","DOB Error",""]
[1960,null,null,null,null,"",{"$f":"IFERROR(IF(OR(AZ1979=1,F1979<>\"\"),\"To key in DOB\",#REF!),\"\")","v":""},null,null,null,null,null,null,null,null,null,null,"","",null,null,null,null,null,null,null,null,null,null,null,null,null,null,null,null,null,null,null,null,null,null,null,null,null,null,null,null,null,null,"DOB Error","DOB Error",""]
[1961,null,null,null,null,"",{"$f":"IFERROR(IF(OR(AZ1980=1,F1980<>\"\"),\"To key in DOB\",#REF!),\"\")","v":""},null,null,null,null,null,null,null,null,null,null,"","",null,null,null,null,null,null,null,null,null,null,null,null,null,null,null,null,null,null,null,null,null,null,null,null,null,null,null,null,null,null,"DOB Error","DOB Error",""]
[1962,null,null,null,null,"",{"$f":"IFERROR(IF(OR(AZ1981=1,F1981<>\"\"),\"To key in DOB\",#REF!),\"\")","v":""},null,null,null,null,null,null,null,null,null,null,"","",null,null,null,null,null,null,null,null,null,null,null,null,null,null,null,null,null,null,null,null,null,null,null,null,null,null,null,null,null,null,"DOB Error","DOB Error",""]
[1963,null,null,null,null,"",{"$f":"IFERROR(IF(OR(AZ1982=1,F1982<>\"\"),\"To key in DOB\",#REF!),\"\")","v":""},null,null,null,null,null,null,null,null,null,null,"","",null,null,null,null,null,null,null,null,null,null,null,null,null,null,null,null,null,null,null,null,null,null,null,null,null,null,null,null,null,null,"DOB Error","DOB Error",""]
[1964,null,null,null,null,"",{"$f":"IFERROR(IF(OR(AZ1983=1,F1983<>\"\"),\"To key in DOB\",#REF!),\"\")","v":""},null,null,null,null,null,null,null,null,null,null,"","",null,null,null,null,null,null,null,null,null,null,null,null,null,null,null,null,null,null,null,null,null,null,null,null,null,null,null,null,null,null,"DOB Error","DOB Error",""]
[1965,null,null,null,null,"",{"$f":"IFERROR(IF(OR(AZ1984=1,F1984<>\"\"),\"To key in DOB\",#REF!),\"\")","v":""},null,null,null,null,null,null,null,null,null,null,"","",null,null,null,null,null,null,null,null,null,null,null,null,null,null,null,null,null,null,null,null,null,null,null,null,null,null,null,null,null,null,"DOB Error","DOB Error",""]
[1966,null,null,null,null,"",{"$f":"IFERROR(IF(OR(AZ1985=1,F1985<>\"\"),\"To key in DOB\",#REF!),\"\")","v":""},null,null,null,null,null,null,null,null,null,null,"","",null,null,null,null,null,null,null,null,null,null,null,null,null,null,null,null,null,null,null,null,null,null,null,null,null,null,null,null,null,null,"DOB Error","DOB Error",""]
[1967,null,null,null,null,"",{"$f":"IFERROR(IF(OR(AZ1986=1,F1986<>\"\"),\"To key in DOB\",#REF!),\"\")","v":""},null,null,null,null,null,null,null,null,null,null,"","",null,null,null,null,null,null,null,null,null,null,null,null,null,null,null,null,null,null,null,null,null,null,null,null,null,null,null,null,null,null,"DOB Error","DOB Error",""]
[1968,null,null,null,null,"",{"$f":"IFERROR(IF(OR(AZ1987=1,F1987<>\"\"),\"To key in DOB\",#REF!),\"\")","v":""},null,null,null,null,null,null,null,null,null,null,"","",null,null,null,null,null,null,null,null,null,null,null,null,null,null,null,null,null,null,null,null,null,null,null,null,null,null,null,null,null,null,"DOB Error","DOB Error",""]
[1969,null,null,null,null,"",{"$f":"IFERROR(IF(OR(AZ1988=1,F1988<>\"\"),\"To key in DOB\",#REF!),\"\")","v":""},null,null,null,null,null,null,null,null,null,null,"","",null,null,null,null,null,null,null,null,null,null,null,null,null,null,null,null,null,null,null,null,null,null,null,null,null,null,null,null,null,null,"DOB Error","DOB Error",""]
[1970,null,null,null,null,"",{"$f":"IFERROR(IF(OR(AZ1989=1,F1989<>\"\"),\"To key in DOB\",#REF!),\"\")","v":""},null,null,null,null,null,null,null,null,null,null,"","",null,null,null,null,null,null,null,null,null,null,null,null,null,null,null,null,null,null,null,null,null,null,null,null,null,null,null,null,null,null,"DOB Error","DOB Error",""]
[1971,null,null,null,null,"",{"$f":"IFERROR(IF(OR(AZ1990=1,F1990<>\"\"),\"To key in DOB\",#REF!),\"\")","v":""},null,null,null,null,null,null,null,null,null,null,"","",null,null,null,null,null,null,null,null,null,null,null,null,null,null,null,null,null,null,null,null,null,null,null,null,null,null,null,null,null,null,"DOB Error","DOB Error",""]
[1972,null,null,null,null,"",{"$f":"IFERROR(IF(OR(AZ1991=1,F1991<>\"\"),\"To key in DOB\",#REF!),\"\")","v":""},null,null,null,null,null,null,null,null,null,null,"","",null,null,null,null,null,null,null,null,null,null,null,null,null,null,null,null,null,null,null,null,null,null,null,null,null,null,null,null,null,null,"DOB Error","DOB Error",""]
[1973,null,null,null,null,"",{"$f":"IFERROR(IF(OR(AZ1992=1,F1992<>\"\"),\"To key in DOB\",#REF!),\"\")","v":""},null,null,null,null,null,null,null,null,null,null,"","",null,null,null,null,null,null,null,null,null,null,null,null,null,null,null,null,null,null,null,null,null,null,null,null,null,null,null,null,null,null,"DOB Error","DOB Error",""]
[1974,null,null,null,null,"",{"$f":"IFERROR(IF(OR(AZ1993=1,F1993<>\"\"),\"To key in DOB\",#REF!),\"\")","v":""},null,null,null,null,null,null,null,null,null,null,"","",null,null,null,null,null,null,null,null,null,null,null,null,null,null,null,null,null,null,null,null,null,null,null,null,null,null,null,null,null,null,"DOB Error","DOB Error",""]
[1975,null,null,null,null,"",{"$f":"IFERROR(IF(OR(AZ1994=1,F1994<>\"\"),\"To key in DOB\",#REF!),\"\")","v":""},null,null,null,null,null,null,null,null,null,null,"","",null,null,null,null,null,null,null,null,null,null,null,null,null,null,null,null,null,null,null,null,null,null,null,null,null,null,null,null,null,null,"DOB Error","DOB Error",""]
[1976,null,null,null,null,"",{"$f":"IFERROR(IF(OR(AZ1995=1,F1995<>\"\"),\"To key in DOB\",#REF!),\"\")","v":""},null,null,null,null,null,null,null,null,null,null,"","",null,null,null,null,null,null,null,null,null,null,null,null,null,null,null,null,null,null,null,null,null,null,null,null,null,null,null,null,null,null,"DOB Error","DOB Error",""]
[1977,null,null,null,null,"",{"$f":"IFERROR(IF(OR(AZ1996=1,F1996<>\"\"),\"To key in DOB\",#REF!),\"\")","v":""},null,null,null,null,null,null,null,null,null,null,"","",null,null,null,null,null,null,null,null,null,null,null,null,null,null,null,null,null,null,null,null,null,null,null,null,null,null,null,null,null,null,"DOB Error","DOB Error",""]
[1978,null,null,null,null,"",{"$f":"IFERROR(IF(OR(AZ1997=1,F1997<>\"\"),\"To key in DOB\",#REF!),\"\")","v":""},null,null,null,null,null,null,null,null,null,null,"","",null,null,null,null,null,null,null,null,null,null,null,null,null,null,null,null,null,null,null,null,null,null,null,null,null,null,null,null,null,null,"DOB Error","DOB Error",""]
[1979,null,null,null,null,"",{"$f":"IFERROR(IF(OR(AZ1998=1,F1998<>\"\"),\"To key in DOB\",#REF!),\"\")","v":""},null,null,null,null,null,null,null,null,null,null,"","",null,null,null,null,null,null,null,null,null,null,null,null,null,null,null,null,null,null,null,null,null,null,null,null,null,null,null,null,null,null,"DOB Error","DOB Error",""]
[1980,null,null,null,null,"",{"$f":"IFERROR(IF(OR(AZ1999=1,F1999<>\"\"),\"To key in DOB\",#REF!),\"\")","v":""},null,null,null,null,null,null,null,null,null,null,"","",null,null,null,null,null,null,null,null,null,null,null,null,null,null,null,null,null,null,null,null,null,null,null,null,null,null,null,null,null,null,"DOB Error","DOB Error",""]
[1981,null,null,null,null,"",{"$f":"IFERROR(IF(OR(AZ2000=1,F2000<>\"\"),\"To key in DOB\",#REF!),\"\")","v":""},null,null,null,null,null,null,null,null,null,null,"","",null,null,null,null,null,null,null,null,null,null,null,null,null,null,null,null,null,null,null,null,null,null,null,null,null,null,null,null,null,null,"DOB Error","DOB Error",""]
[1982,null,null,null,null,"",{"$f":"IFERROR(IF(OR(AZ2001=1,F2001<>\"\"),\"To key in DOB\",#REF!),\"\")","v":""},null,null,null,null,null,null,null,null,null,null,"","",null,null,null,null,null,null,null,null,null,null,null,null,null,null,null,null,null,null,null,null,null,null,null,null,null,null,null,null,null,null,"DOB Error","DOB Error",""]
[1983,null,null,null,null,"",{"$f":"IFERROR(IF(OR(AZ2002=1,F2002<>\"\"),\"To key in DOB\",#REF!),\"\")","v":""},null,null,null,null,null,null,null,null,null,null,"","",null,null,null,null,null,null,null,null,null,null,null,null,null,null,null,null,null,null,null,null,null,null,null,null,null,null,null,null,null,null,"DOB Error","DOB Error",""]
[1984,null,null,null,null,"",{"$f":"IFERROR(IF(OR(AZ2003=1,F2003<>\"\"),\"To key in DOB\",#REF!),\"\")","v":""},null,null,null,null,null,null,null,null,null,null,"","",null,null,null,null,null,null,null,null,null,null,null,null,null,null,null,null,null,null,null,null,null,null,null,null,null,null,null,null,null,null,{"$f":"IF(ISERROR(AND(SEARCH(\"-\",E2003,7)=7,SEARCH(\"-\",E2003,9)=10)),\"DOB Error\",\"ok\")","v":"DOB Error"},{"$f":"IF(ISERROR(LEFT(E2003,6)+MID(E2003,8,2)+RIGHT(E2003,4)),\"DOB Error\",\"ok\")","v":"DOB Error"},{"$f":"IF(E2003=\"\",\"\",IF(OR(AX2003=\"DOB Error\", AY2003=\"DOB Error\"),1,0))","v":""}]
[1985,null,null,null,null,"",{"$f":"IFERROR(IF(OR(AZ2004=1,F2004<>\"\"),\"To key in DOB\",#REF!),\"\")","v":""},null,null,null,null,null,null,null,null,null,null,{"$f":"IF(OR(Q2004=\"CHANGE\",Q2004=\"ADD\",Q2004=\"TERMINATE\"),VLOOKUP(Q2004,$AR:$AS,2,FALSE),\"\")","v":""},{"$f":"IF(OR(Q2004=\"TERMINATE (DEATH)\"),VLOOKUP(Q2004,$AR:$AU,4,FALSE),\"\")","v":""},null,null,null,null,null,null,null,null,null,null,null,null,null,null,null,null,null,null,null,null,null,null,null,null,null,null,null,null,null,null,"DOB Error","DOB Error",""]
[1986,null,null,null,null,{"$f":"IF(AZ2005=1,\"To key in Old IC / Passport / Birth Cert No.\",\"\")","v":""},{"$f":"IFERROR(IF(OR(AZ2005=1,F2005<>\"\"),\"To key in DOB\",#REF!),\"\")","v":""},null,null,null,null,null,null,null,null,null,null,"","",null,null,null,null,null,null,null,null,null,null,null,null,null,null,null,null,null,null,null,null,null,null,null,null,null,null,null,null,null,null,"DOB Error","DOB Error",""]
[1987,null,null,null,null,"",{"$f":"IFERROR(IF(OR(AZ2006=1,F2006<>\"\"),\"To key in DOB\",#REF!),\"\")","v":""},null,null,null,null,null,null,null,null,null,null,"","",null,null,null,null,null,null,null,null,null,null,null,null,null,null,null,null,null,null,null,null,null,null,null,null,null,null,null,null,null,null,"DOB Error","DOB Error",""]
[1988,null,null,null,null,"",{"$f":"IFERROR(IF(OR(AZ2007=1,F2007<>\"\"),\"To key in DOB\",#REF!),\"\")","v":""},null,null,null,null,null,null,null,null,null,null,"","",null,null,null,null,null,null,null,null,null,null,null,null,null,null,null,null,null,null,null,null,null,null,null,null,null,null,null,null,null,null,"DOB Error","DOB Error",""]
[1989,null,null,null,null,"",{"$f":"IFERROR(IF(OR(AZ2008=1,F2008<>\"\"),\"To key in DOB\",#REF!),\"\")","v":""},null,null,null,null,null,null,null,null,null,null,"","",null,null,null,null,null,null,null,null,null,null,null,null,null,null,null,null,null,null,null,null,null,null,null,null,null,null,null,null,null,null,"DOB Error","DOB Error",""]
[1990,null,null,null,null,"",{"$f":"IFERROR(IF(OR(AZ2009=1,F2009<>\"\"),\"To key in DOB\",#REF!),\"\")","v":""},null,null,null,null,null,null,null,null,null,null,"","",null,null,null,null,null,null,null,null,null,null,null,null,null,null,null,null,null,null,null,null,null,null,null,null,null,null,null,null,null,null,"DOB Error","DOB Error",""]
[1991,null,null,null,null,"",{"$f":"IFERROR(IF(OR(AZ2010=1,F2010<>\"\"),\"To key in DOB\",#REF!),\"\")","v":""},null,null,null,null,null,null,null,null,null,null,"","",null,null,null,null,null,null,null,null,null,null,null,null,null,null,null,null,null,null,null,null,null,null,null,null,null,null,null,null,null,null,"DOB Error","DOB Error",""]
[1992,null,null,null,null,"",{"$f":"IFERROR(IF(OR(AZ2011=1,F2011<>\"\"),\"To key in DOB\",#REF!),\"\")","v":""},null,null,null,null,null,null,null,null,null,null,"","",null,null,null,null,null,null,null,null,null,null,null,null,null,null,null,null,null,null,null,null,null,null,null,null,null,null,null,null,null,null,"DOB Error","DOB Error",""]
[1993,null,null,null,null,"",{"$f":"IFERROR(IF(OR(AZ2012=1,F2012<>\"\"),\"To key in DOB\",#REF!),\"\")","v":""},null,null,null,null,null,null,null,null,null,null,"","",null,null,null,null,null,null,null,null,null,null,null,null,null,null,null,null,null,null,null,null,null,null,null,null,null,null,null,null,null,null,"DOB Error","DOB Error",""]
[1994,null,null,null,null,"",{"$f":"IFERROR(IF(OR(AZ2013=1,F2013<>\"\"),\"To key in DOB\",#REF!),\"\")","v":""},null,null,null,null,null,null,null,null,null,null,"","",null,null,null,null,null,null,null,null,null,null,null,null,null,null,null,null,null,null,null,null,null,null,null,null,null,null,null,null,null,null,"DOB Error","DOB Error",""]
[1995,null,null,null,null,"",{"$f":"IFERROR(IF(OR(AZ2014=1,F2014<>\"\"),\"To key in DOB\",#REF!),\"\")","v":""},null,null,null,null,null,null,null,null,null,null,"","",null,null,null,null,null,null,null,null,null,null,null,null,null,null,null,null,null,null,null,null,null,null,null,null,null,null,null,null,null,null,"DOB Error","DOB Error",""]
[1996,null,null,null,null,"",{"$f":"IFERROR(IF(OR(AZ2015=1,F2015<>\"\"),\"To key in DOB\",#REF!),\"\")","v":""},null,null,null,null,null,null,null,null,null,null,"","",null,null,null,null,null,null,null,null,null,null,null,null,null,null,null,null,null,null,null,null,null,null,null,null,null,null,null,null,null,null,"DOB Error","DOB Error",""]
[1997,null,null,null,null,"",{"$f":"IFERROR(IF(OR(AZ2016=1,F2016<>\"\"),\"To key in DOB\",#REF!),\"\")","v":""},null,null,null,null,null,null,null,null,null,null,"","",null,null,null,null,null,null,null,null,null,null,null,null,null,null,null,null,null,null,null,null,null,null,null,null,null,null,null,null,null,null,"DOB Error","DOB Error",""]
[1998,null,null,null,null,"",{"$f":"IFERROR(IF(OR(AZ2017=1,F2017<>\"\"),\"To key in DOB\",#REF!),\"\")","v":""},null,null,null,null,null,null,null,null,null,null,"","",null,null,null,null,null,null,null,null,null,null,null,null,null,null,null,null,null,null,null,null,null,null,null,null,null,null,null,null,null,null,"DOB Error","DOB Error",""]
[1999,null,null,null,null,"",{"$f":"IFERROR(IF(OR(AZ2018=1,F2018<>\"\"),\"To key in DOB\",#REF!),\"\")","v":""},null,null,null,null,null,null,null,null,null,null,"","",null,null,null,null,null,null,null,null,null,null,null,null,null,null,null,null,null,null,null,null,null,null,null,null,null,null,null,null,null,null,"DOB Error","DOB Error",""]
[2000,null,null,null,null,"",{"$f":"IFERROR(IF(OR(AZ2019=1,F2019<>\"\"),\"To key in DOB\",#REF!),\"\")","v":""},null,null,null,null,null,null,null,null,null,null,"","",null,null,null,null,null,null,null,null,null,null,null,null,null,null,null,null,null,null,null,null,null,null,null,null,null,null,null,null,null,null,"DOB Error","DOB Error",""]

{"sheet":"Details","index":1,"n_rows":18,"n_cols":7,"rows_kept":18,"cut":false,"hidden":true,"merged":[]}
[null,null,null,null,null,"Category","Remark"]
[]
[null,null,"TERMINATION",null,null,"TERMINATION","Pleaes Put in Reason For Termination"]
[null,null,null,null,null,"ADD",""]
[null,null,"Resign",null,null,"CHANGES",""]
[null,null,"Death",null,null,"DEATH"]
[null,null,"Contract End"]
[null,null,"Temporary Stop for coverage"]
[null,null,"Cease of service"]
[]
[null,null,"Cost Centre"]
[]
[null,null,"Department"]
[null,null,"Category","exp:exe, non exe, manager"]
[null,null,"Location"]
[null,null,"email"]
[null,null,"Bank / Account No"]
[null,null,"Job Grade"]